Workbook

Sheet ReadMe
B2: Reliability Analysis of Horizontal Sightline Obstructions along Horizontal Curves
B8: Worksheet Name | C8: Description
B9: UserInput | C9: Data entry, display of results
B10: Profile | C10: View ASSD at fixed intervals for each lane of travel
B11: Crash | C11: View intermediate calculations
B12: Capacity | C12: View intermediate calculations
B14: This tool calculates available sight distance on roadways where a horizontal sightline obstruction is present. This tool also conducts a reliability analysis to estimate the total number of vehicles per year that may encounter limited sight distance when a stopped vehicle is obstructed from view.
B16: Instructions
B17: All data entry is performed in the "UserInput" worksheet. When all necessary data is entered, click the "Calculate" button located on the "UserInput" worksheet. Execution time may range anywhere from a second to a minute depending on the complexity of the site being analyzed. The results are shown in the "UserInput" worksheet. A detailed users manual is available in Appendix _ of the NCHRP Project 15-59 Final Report.
B19: Acknowledgements
B20: This tool was developed by MRIGlobal and The Larson Institute at Penn State as part of NCHRP Project 15-59, "Horizontal Sightline Offset Design Criteria, Exceptions, and Mitigation Strategies." The final report of NCHRP Project 15-59 documents the development of this tool.

Sheet UserInput
B5: INPUT DATA
B6: Facility Type | E6: RESULTS | J6: Lane 1 | K6: =IF($C$8>1,"Lane 2","") -> Lane 2 | L6: =IF($C$8>2,"Lane 3","") -> Lane 3 | M6: =IF($C$8>3,"Lane 4","") -> Lane 4 | N6: Total
B7: Urban freeway (8 lanes) | C7: =IF(B7="Rural two-lane highway",1,IF(B7="Rural four-lane undivided highway",2,IF(B7="Rural four-lane divided highway",3,IF(B7="Rural freeway (4 lanes)",4,IF(B7="Rural freeway (6 lanes)",5,IF(B7="Urban freeway (4 lanes)",6,IF(B7="Urban freeway (6 lanes)",7,IF(B7="Urban freeway (8 lanes)",8,IF(B7="Rural one-lane entrance ramp",9,IF(B7="Rural one-lane exit ramp",10,IF(B7="Urban one-lane entrance ramp",11,IF(B7="Urban one-lane exit ramp",12,IF(B7="Urban two-lane entrance ramp",13,IF(B7="Urban two-lane exit ramp",14,0)))))))))))))) -> 8 | E7: Minimum available sight distance (ft) | J7: 379.7267579 | K7: 539.5139178 | L7: 663.8154626 | M7: 770.0141947
B8: Number of lanes in analysis direction | C8: =VLOOKUP(C7,Ref!D102:E115,2) -> 4 | E8: Length of sight-restricted roadway (mi) | J8: 0.3409090909 | K8: 0.2840909091 | L8: 0.2083333333 | M8: 0
B9: Average lane width (ft) | C9: 12 | E9: Total Number of potentially affected vehs per yr | J9: =Crash!$C$26+Capacity!$C$33 -> 509.0076564 | K9: =IF($C$8>1,Crash!$C$27+Capacity!$C$34,"") -> 428.1349721 | L9: =IF($C$8>2,Crash!$C$28+Capacity!$C$35,"") -> 317.8395286 | M9: =IF($C$8>3,Crash!$C$29+Capacity!$C$36,"") -> 0 | N9: =SUM(J9:M9) -> 1254.982157
B10: AADT (one direction, veh/d) | C10: 50000 | E10: Total number of vehicles passing site per year | J10: =$C$10*$C$44*365 -> 4562500 | K10: =IF($C$8>1,$C$10*$C$45*365,"") -> 4562500 | L10: =IF($C$8>2,$C$10*$C$46*365,"") -> 4562500 | M10: =IF($C$8>3,$C$10*$C$47*365,"") -> 4562500 | N10: =SUM(J10:M10) -> 18250000
E11: Percent potentially affected | J11: =J9/J10 -> 0.0001115633219 | K11: =IF($C$8>1,K9/K10,"") -> 9.383780211e-05 | L11: =IF($C$8>2,L9/L10,"") -> 6.966345833e-05 | M11: =IF($C$8>3,M9/M10,"") -> 0 | N11: =N9/N10 -> 6.87661456e-05
E12: Time and date of last analysis | H12: 2018-10-22T16:32:38 | J12: AASHTO design stopping sight distance (ft) | N12: =Ref!P105 -> 682
C13: Direction of Curve
C15: To the left
B17: Horizontal Curve and Obstruction Data Input
B18: Curve Radius, R (ft) | C18: 1500
B19: Curve Length, L (mi) | C19: 0.3
B20: Design or Operating Speed (mi/h) | C20: 65
B21: Longitudinal distance from PC to beginning of continuous obstruction, B1 (mi) | C21: -0.1
B22: Longitudinal distance from PC to end of continuous obstruction, B2 (mi) | C22: 0.4
B23: Offset from edge of traveled way to sight obstruction, m (ft) | C23: 6
B24: Height of obstruction above edge of traveled way (ft) | C24: 4
B26: Profile Data
B27: Roadway grade (%) | C27: -3
C28: 3
C29: -0.1
C30: 0.2
J31: AASHTO values | K31: Alternative values | M31: NOTE: B, B1, and B2 should be entered as negative values if they occur prior to the PC
B32: Advanced Options
B33: Analysis increment, x (ft) | C33: 50 | E33: Eye height (ft) | J33: 3.5 | K33: 3.5
E34: Object in road height (ft) | J34: 2 | K34: 3.5
E35: Distance from left edge of lane to driver (ft) | J35: =C9/2 -> 6 | K35: 6
B37: Traffic Data
B38: Percentage of traffic in peak hour (k-max) | C38: 0.08 | E38: k-factor distributions
F39: k-max = 0.08 | H39: k-max = 0.09 | J39: k-max = 0.10 | L39: k-max = 0.11 | N39: k-max = 0.12
E40: Hour | F40: Default | G40: Custom | H40: Default | I40: Custom | J40: Default | K40: Custom | L40: Default | M40: Custom | N40: Default | O40: Custom
E41: 1 | F41: =VLOOKUP(E41,Ref!$B$117:$P$141,1+UserInput!$C$7) -> 0.0102 | H41: =VLOOKUP(E41,Ref!$B$144:$P$168,1+UserInput!$C$7) -> 0.0097 | J41: =VLOOKUP(E41,Ref!$B$172:$P$195,1+UserInput!$C$7) -> 0.0093 | L41: =VLOOKUP(E41,Ref!$B$199:$P$222,1+UserInput!$C$7) -> 0.0088 | N41: =VLOOKUP(E41,Ref!$B$226:$P$249,1+UserInput!$C$7) -> 0.0084
E42: 2 | F42: =VLOOKUP(E42,Ref!$B$117:$P$141,1+UserInput!$C$7) -> 0.0073 | H42: =VLOOKUP(E42,Ref!$B$144:$P$168,1+UserInput!$C$7) -> 0.0068 | J42: =VLOOKUP(E42,Ref!$B$172:$P$195,1+UserInput!$C$7) -> 0.0064 | L42: =VLOOKUP(E42,Ref!$B$199:$P$222,1+UserInput!$C$7) -> 0.0059 | N42: =VLOOKUP(E42,Ref!$B$226:$P$249,1+UserInput!$C$7) -> 0.0055
B43: Lane Utilization (%) | E43: 3 | F43: =VLOOKUP(E43,Ref!$B$117:$P$141,1+UserInput!$C$7) -> 0.0067 | H43: =VLOOKUP(E43,Ref!$B$144:$P$168,1+UserInput!$C$7) -> 0.0062 | J43: =VLOOKUP(E43,Ref!$B$172:$P$195,1+UserInput!$C$7) -> 0.0058 | L43: =VLOOKUP(E43,Ref!$B$199:$P$222,1+UserInput!$C$7) -> 0.0053 | N43: =VLOOKUP(E43,Ref!$B$226:$P$249,1+UserInput!$C$7) -> 0.0049
B44: Lane 1 (closest to obstruction) | C44: 0.25 | E44: 4 | F44: =VLOOKUP(E44,Ref!$B$117:$P$141,1+UserInput!$C$7) -> 0.0078 | H44: =VLOOKUP(E44,Ref!$B$144:$P$168,1+UserInput!$C$7) -> 0.0073 | J44: =VLOOKUP(E44,Ref!$B$172:$P$195,1+UserInput!$C$7) -> 0.0069 | L44: =VLOOKUP(E44,Ref!$B$199:$P$222,1+UserInput!$C$7) -> 0.0064 | N44: =VLOOKUP(E44,Ref!$B$226:$P$249,1+UserInput!$C$7) -> 0.006
B45: =IF($C$8>1,"Lane 2","") -> Lane 2 | C45: 0.25 | E45: 5 | F45: =VLOOKUP(E45,Ref!$B$117:$P$141,1+UserInput!$C$7) -> 0.0121 | H45: =VLOOKUP(E45,Ref!$B$144:$P$168,1+UserInput!$C$7) -> 0.0116 | J45: =VLOOKUP(E45,Ref!$B$172:$P$195,1+UserInput!$C$7) -> 0.0112 | L45: =VLOOKUP(E45,Ref!$B$199:$P$222,1+UserInput!$C$7) -> 0.0107 | N45: =VLOOKUP(E45,Ref!$B$226:$P$249,1+UserInput!$C$7) -> 0.0103
B46: =IF($C$8>2,"Lane 3","") -> Lane 3 | C46: 0.25 | E46: 6 | F46: =VLOOKUP(E46,Ref!$B$117:$P$141,1+UserInput!$C$7) -> 0.0257 | H46: =VLOOKUP(E46,Ref!$B$144:$P$168,1+UserInput!$C$7) -> 0.0252 | J46: =VLOOKUP(E46,Ref!$B$172:$P$195,1+UserInput!$C$7) -> 0.0248 | L46: =VLOOKUP(E46,Ref!$B$199:$P$222,1+UserInput!$C$7) -> 0.0243 | N46: =VLOOKUP(E46,Ref!$B$226:$P$249,1+UserInput!$C$7) -> 0.0239
B47: =IF($C$8>3,"Lane 4","") -> Lane 4 | C47: 0.25 | E47: 7 | F47: =VLOOKUP(E47,Ref!$B$117:$P$141,1+UserInput!$C$7) -> 0.0513 | H47: =VLOOKUP(E47,Ref!$B$144:$P$168,1+UserInput!$C$7) -> 0.0508 | J47: =VLOOKUP(E47,Ref!$B$172:$P$195,1+UserInput!$C$7) -> 0.0504 | L47: =VLOOKUP(E47,Ref!$B$199:$P$222,1+UserInput!$C$7) -> 0.0499 | N47: =VLOOKUP(E47,Ref!$B$226:$P$249,1+UserInput!$C$7) -> 0.0495
B48: =IF($C$8>4,"Lane 5","") ->  | C48: 0 | E48: 8 | F48: =VLOOKUP(E48,Ref!$B$117:$P$141,1+UserInput!$C$7) -> 0.0682 | H48: =VLOOKUP(E48,Ref!$B$144:$P$168,1+UserInput!$C$7) -> 0.0677 | J48: =VLOOKUP(E48,Ref!$B$172:$P$195,1+UserInput!$C$7) -> 0.0673 | L48: =VLOOKUP(E48,Ref!$B$199:$P$222,1+UserInput!$C$7) -> 0.0668 | N48: =VLOOKUP(E48,Ref!$B$226:$P$249,1+UserInput!$C$7) -> 0.0664
E49: 9 | F49: =VLOOKUP(E49,Ref!$B$117:$P$141,1+UserInput!$C$7) -> 0.0613 | H49: =VLOOKUP(E49,Ref!$B$144:$P$168,1+UserInput!$C$7) -> 0.0608 | J49: =VLOOKUP(E49,Ref!$B$172:$P$195,1+UserInput!$C$7) -> 0.0604 | L49: =VLOOKUP(E49,Ref!$B$199:$P$222,1+UserInput!$C$7) -> 0.0599 | N49: =VLOOKUP(E49,Ref!$B$226:$P$249,1+UserInput!$C$7) -> 0.0595
B50: =IF(SUM(C44:C48)=1,"","Lane utilization values must sum to 100%") ->  | E50: 10 | F50: =VLOOKUP(E50,Ref!$B$117:$P$141,1+UserInput!$C$7) -> 0.0522 | H50: =VLOOKUP(E50,Ref!$B$144:$P$168,1+UserInput!$C$7) -> 0.0517 | J50: =VLOOKUP(E50,Ref!$B$172:$P$195,1+UserInput!$C$7) -> 0.0513 | L50: =VLOOKUP(E50,Ref!$B$199:$P$222,1+UserInput!$C$7) -> 0.0508 | N50: =VLOOKUP(E50,Ref!$B$226:$P$249,1+UserInput!$C$7) -> 0.0504
E51: 11 | F51: =VLOOKUP(E51,Ref!$B$117:$P$141,1+UserInput!$C$7) -> 0.0499 | H51: =VLOOKUP(E51,Ref!$B$144:$P$168,1+UserInput!$C$7) -> 0.0494 | J51: =VLOOKUP(E51,Ref!$B$172:$P$195,1+UserInput!$C$7) -> 0.049 | L51: =VLOOKUP(E51,Ref!$B$199:$P$222,1+UserInput!$C$7) -> 0.0485 | N51: =VLOOKUP(E51,Ref!$B$226:$P$249,1+UserInput!$C$7) -> 0.0481
E52: 12 | F52: =VLOOKUP(E52,Ref!$B$117:$P$141,1+UserInput!$C$7) -> 0.0513 | H52: =VLOOKUP(E52,Ref!$B$144:$P$168,1+UserInput!$C$7) -> 0.0508 | J52: =VLOOKUP(E52,Ref!$B$172:$P$195,1+UserInput!$C$7) -> 0.0504 | L52: =VLOOKUP(E52,Ref!$B$199:$P$222,1+UserInput!$C$7) -> 0.0499 | N52: =VLOOKUP(E52,Ref!$B$226:$P$249,1+UserInput!$C$7) -> 0.0495
E53: 13 | F53: =VLOOKUP(E53,Ref!$B$117:$P$141,1+UserInput!$C$7) -> 0.0532 | H53: =VLOOKUP(E53,Ref!$B$144:$P$168,1+UserInput!$C$7) -> 0.0527 | J53: =VLOOKUP(E53,Ref!$B$172:$P$195,1+UserInput!$C$7) -> 0.0523 | L53: =VLOOKUP(E53,Ref!$B$199:$P$222,1+UserInput!$C$7) -> 0.0518 | N53: =VLOOKUP(E53,Ref!$B$226:$P$249,1+UserInput!$C$7) -> 0.0514
E54: 14 | F54: =VLOOKUP(E54,Ref!$B$117:$P$141,1+UserInput!$C$7) -> 0.0548 | H54: =VLOOKUP(E54,Ref!$B$144:$P$168,1+UserInput!$C$7) -> 0.0543 | J54: =VLOOKUP(E54,Ref!$B$172:$P$195,1+UserInput!$C$7) -> 0.0539 | L54: =VLOOKUP(E54,Ref!$B$199:$P$222,1+UserInput!$C$7) -> 0.0534 | N54: =VLOOKUP(E54,Ref!$B$226:$P$249,1+UserInput!$C$7) -> 0.053
B55: =IF(Crash!J29="Yes",IF(UserInput!$C$38=0.08,IF(G65<>1,"k factors must sum to 100%",""),IF(UserInput!$C$38=0.09,IF(I65<>1,"k factors must sum to 100%",""),IF(UserInput!$C$38=0.1,IF(K65<>1,"k factors must sum to 100%",""),IF(UserInput!$C$38=0.11,IF(M65<>1,"k factors must sum to 100%",""),IF(O65<>1,"k factors must sum to 100%",""))))),"") ->  | E55: 15 | F55: =VLOOKUP(E55,Ref!$B$117:$P$141,1+UserInput!$C$7) -> 0.0608 | H55: =VLOOKUP(E55,Ref!$B$144:$P$168,1+UserInput!$C$7) -> 0.0603 | J55: =VLOOKUP(E55,Ref!$B$172:$P$195,1+UserInput!$C$7) -> 0.0599 | L55: =VLOOKUP(E55,Ref!$B$199:$P$222,1+UserInput!$C$7) -> 0.0594 | N55: =VLOOKUP(E55,Ref!$B$226:$P$249,1+UserInput!$C$7) -> 0.059
E56: 16 | F56: =VLOOKUP(E56,Ref!$B$117:$P$141,1+UserInput!$C$7) -> 0.0706 | H56: =VLOOKUP(E56,Ref!$B$144:$P$168,1+UserInput!$C$7) -> 0.0701 | J56: =VLOOKUP(E56,Ref!$B$172:$P$195,1+UserInput!$C$7) -> 0.0697 | L56: =VLOOKUP(E56,Ref!$B$199:$P$222,1+UserInput!$C$7) -> 0.0692 | N56: =VLOOKUP(E56,Ref!$B$226:$P$249,1+UserInput!$C$7) -> 0.0688
E57: 17 | F57: =VLOOKUP(E57,Ref!$B$117:$P$141,1+UserInput!$C$7) -> 0.08 | H57: =VLOOKUP(E57,Ref!$B$144:$P$168,1+UserInput!$C$7) -> 0.09 | J57: =VLOOKUP(E57,Ref!$B$172:$P$195,1+UserInput!$C$7) -> 0.1 | L57: =VLOOKUP(E57,Ref!$B$199:$P$222,1+UserInput!$C$7) -> 0.11 | N57: =VLOOKUP(E57,Ref!$B$226:$P$249,1+UserInput!$C$7) -> 0.12
E58: 18 | F58: =VLOOKUP(E58,Ref!$B$117:$P$141,1+UserInput!$C$7) -> 0.073 | H58: =VLOOKUP(E58,Ref!$B$144:$P$168,1+UserInput!$C$7) -> 0.074 | J58: =VLOOKUP(E58,Ref!$B$172:$P$195,1+UserInput!$C$7) -> 0.0728 | L58: =VLOOKUP(E58,Ref!$B$199:$P$222,1+UserInput!$C$7) -> 0.0738 | N58: =VLOOKUP(E58,Ref!$B$226:$P$249,1+UserInput!$C$7) -> 0.0726
E59: 19 | F59: =VLOOKUP(E59,Ref!$B$117:$P$141,1+UserInput!$C$7) -> 0.0568 | H59: =VLOOKUP(E59,Ref!$B$144:$P$168,1+UserInput!$C$7) -> 0.0563 | J59: =VLOOKUP(E59,Ref!$B$172:$P$195,1+UserInput!$C$7) -> 0.0559 | L59: =VLOOKUP(E59,Ref!$B$199:$P$222,1+UserInput!$C$7) -> 0.0554 | N59: =VLOOKUP(E59,Ref!$B$226:$P$249,1+UserInput!$C$7) -> 0.055
E60: 20 | F60: =VLOOKUP(E60,Ref!$B$117:$P$141,1+UserInput!$C$7) -> 0.0429 | H60: =VLOOKUP(E60,Ref!$B$144:$P$168,1+UserInput!$C$7) -> 0.0424 | J60: =VLOOKUP(E60,Ref!$B$172:$P$195,1+UserInput!$C$7) -> 0.042 | L60: =VLOOKUP(E60,Ref!$B$199:$P$222,1+UserInput!$C$7) -> 0.0415 | N60: =VLOOKUP(E60,Ref!$B$226:$P$249,1+UserInput!$C$7) -> 0.0411
E61: 21 | F61: =VLOOKUP(E61,Ref!$B$117:$P$141,1+UserInput!$C$7) -> 0.0351 | H61: =VLOOKUP(E61,Ref!$B$144:$P$168,1+UserInput!$C$7) -> 0.0346 | J61: =VLOOKUP(E61,Ref!$B$172:$P$195,1+UserInput!$C$7) -> 0.0342 | L61: =VLOOKUP(E61,Ref!$B$199:$P$222,1+UserInput!$C$7) -> 0.0337 | N61: =VLOOKUP(E61,Ref!$B$226:$P$249,1+UserInput!$C$7) -> 0.0333
E62: 22 | F62: =VLOOKUP(E62,Ref!$B$117:$P$141,1+UserInput!$C$7) -> 0.0297 | H62: =VLOOKUP(E62,Ref!$B$144:$P$168,1+UserInput!$C$7) -> 0.0292 | J62: =VLOOKUP(E62,Ref!$B$172:$P$195,1+UserInput!$C$7) -> 0.0288 | L62: =VLOOKUP(E62,Ref!$B$199:$P$222,1+UserInput!$C$7) -> 0.0283 | N62: =VLOOKUP(E62,Ref!$B$226:$P$249,1+UserInput!$C$7) -> 0.0279
E63: 23 | F63: =VLOOKUP(E63,Ref!$B$117:$P$141,1+UserInput!$C$7) -> 0.0228 | H63: =VLOOKUP(E63,Ref!$B$144:$P$168,1+UserInput!$C$7) -> 0.0223 | J63: =VLOOKUP(E63,Ref!$B$172:$P$195,1+UserInput!$C$7) -> 0.0219 | L63: =VLOOKUP(E63,Ref!$B$199:$P$222,1+UserInput!$C$7) -> 0.0214 | N63: =VLOOKUP(E63,Ref!$B$226:$P$249,1+UserInput!$C$7) -> 0.021
E64: 24 | F64: =VLOOKUP(E64,Ref!$B$117:$P$141,1+UserInput!$C$7) -> 0.0163 | H64: =VLOOKUP(E64,Ref!$B$144:$P$168,1+UserInput!$C$7) -> 0.0158 | J64: =VLOOKUP(E64,Ref!$B$172:$P$195,1+UserInput!$C$7) -> 0.0154 | L64: =VLOOKUP(E64,Ref!$B$199:$P$222,1+UserInput!$C$7) -> 0.0149 | N64: =VLOOKUP(E64,Ref!$B$226:$P$249,1+UserInput!$C$7) -> 0.0145
E65: Total | F65: =SUM(F41:F64) -> 1 | G65: =SUM(G41:G64) -> 0 | H65: 1 | I65: 0 | J65: 1 | K65: 0 | L65: 1 | M65: 0 | N65: 1 | O65: 0
B67: SPFs Used as Crash Prediction Models
D68: Functional Form of SPFs
B72: Calibration factor | C72: 1
B74: Facility Type | C74: =IF(OR(C7=1,C7=2,C7=3),"Coefficients for Total Crash SPF","Coefficients for MV-FI SPF") -> Coefficients for MV-FI SPF
B75: =$B$7 -> Urban freeway (8 lanes) | C75: X1 | D75: a1 | E75: b1 | F75: c1 | G75: d1
B76: Default | C76: =VLOOKUP($C$7,Crash!$A$34:$V$47,3) -> 1 | D76: =VLOOKUP($C$7,Crash!$A$34:$V$47,4) -> -5.635 | E76: =VLOOKUP($C$7,Crash!$A$34:$V$47,5) -> 1.492 | F76: =VLOOKUP($C$7,Crash!$A$34:$V$47,6) -> 0.001 | G76: =VLOOKUP($C$7,Crash!$A$34:$V$47,7) -> 0
B77: Custom
B79: Facility Type | C79: Coefficients for MV-PDO SPF
B80: =$B$7 -> Urban freeway (8 lanes) | C80: X2 | D80: a2 | E80: b2 | F80: c2 | G80: d2
B81: Default | C81: =VLOOKUP($C$7,Crash!$A$34:$V$47,8) -> 1 | D81: =VLOOKUP($C$7,Crash!$A$34:$V$47,9) -> -6.997 | E81: =VLOOKUP($C$7,Crash!$A$34:$V$47,10) -> 1.936 | F81: =VLOOKUP($C$7,Crash!$A$34:$V$47,11) -> 0.001 | G81: =VLOOKUP($C$7,Crash!$A$34:$V$47,12) -> 0
B82: Custom
B84: Facility Type | C84: Coefficients for SV-FI SPF
B85: =$B$7 -> Urban freeway (8 lanes) | C85: X3 | D85: a3 | E85: b3 | F85: c3 | G85: d3
B86: Default | C86: =VLOOKUP($C$7,Crash!$A$34:$V$47,13) -> 1 | D86: =VLOOKUP($C$7,Crash!$A$34:$V$47,14) -> -1.985 | E86: =VLOOKUP($C$7,Crash!$A$34:$V$47,15) -> 0.646 | F86: =VLOOKUP($C$7,Crash!$A$34:$V$47,16) -> 0.001 | G86: =VLOOKUP($C$7,Crash!$A$34:$V$47,17) -> 0
B87: Custom
B89: Facility Type | C89: Coefficients for SV-PDO SPF
B90: =$B$7 -> Urban freeway (8 lanes) | C90: X4 | D90: a4 | E90: b4 | F90: c4 | G90: d4
B91: Default | C91: =VLOOKUP($C$7,Crash!$A$34:$V$47,18) -> 1 | D91: =VLOOKUP($C$7,Crash!$A$34:$V$47,19) -> -2.312 | E91: =VLOOKUP($C$7,Crash!$A$34:$V$47,20) -> 0.876 | F91: =VLOOKUP($C$7,Crash!$A$34:$V$47,21) -> 0.001 | G91: =VLOOKUP($C$7,Crash!$A$34:$V$47,22) -> 0
B92: Custom

Sheet Input (hidden)
F8: (calculated values for display only)
B9: Curve Radius (ft) | C9: 1536 | F9: SSD | G9: 682 | H9: ft
B10: Curve Length (mi) | C10: =UserInput!C19 -> 0.3 | F10: Deflection | G10: =C10*5280/C9*180/3.141593 -> 59.08626611 | H10: degrees
B11: Speed (mi/h) | C11: =UserInput!C20 -> 65 | F11: Deflection | G11: =C10*5280/C9 -> 1.03125 | H11: radians
B12: B1 (mi) | C12: -0.1
B13: B2 (mi) | C13: 0.4
B14: m (ft) | C14: 48
F16: S'min | G16: 770.0141947
F17: E @ S'min | G17: 0.1325757576
B18: Advanced Options | F18: PC to S'min | G18: 0.00340719697
B19: t (s) | C19: 2.5
B20: a (ft/s^2) | C20: 11.2 | E20: E when: | F20: S' < SSD
B21: x (ft) | C21: =UserInput!C33 -> 50 | F21: S' > SSD
F23: Hazard L | G23: =G21-G20 -> 0 | H23: mi
B27: Vertical Curve Data | I27: k
C28: =UserInput!C29 -> -0.1 | F28: PC-S to PVC | G28: 154 | I28: 0.08
C29: =UserInput!C30 -> 0.2 | F29: PC-S to PVT | G29: 1210 | I29: 0.09
B30: G (%) | C30: =UserInput!C27 -> -3 | F30: ePVC | G30: 0 | I30: 0.1
C31: =UserInput!C28 -> 3 | F31: ePVT | G31: 3.552713679e-15 | I31: 0.11
I32: 0.12
B33: Advanced Options
B34: Eye Height (ft) | C34: 3.5 | D34: 0
B35: Obstruction Height (ft) | C35: =UserInput!C24 -> 4
B36: Object in Road Height (ft) | C36: 2 | D36: 0
B38: Facility Type
B39: =UserInput!B7 -> Urban freeway (8 lanes) | C39: =UserInput!C7 -> 8
B40: Number of Lanes in analysis direction | C40: =UserInput!C8 -> 4
B42: Lane Utilization (%)
B43: Lane 1 (closest to obstruction) | C43: =UserInput!C44 -> 0.25
B44: Lane 2 | C44: =UserInput!C45 -> 0.25
B45: Lane 3 | C45: =UserInput!C46 -> 0.25
B46: Lane 4 | C46: =UserInput!C47 -> 0.25
B47: Lane 5 | C47: =UserInput!C48 -> 0
B49: Queueing Input
B50: Capacity (pcphpl) | C50: =UserInput!C51 -> 0
B51: Capacity reduction (%) | C51: =UserInput!C52 -> 0
B52: No. incidents per mile per year | C52: =UserInput!C53 -> 0
B54: Other Geometric Features
B55: Avg Lane Width (ft) | C55: =UserInput!C9 -> 12
B56: Distance from Obstruction to Edge of Travelled Way (ft) | C56: =UserInput!C23 -> 6
B57: Position of Driver in Lane (ft) | C57: 6 | D57: 0

Sheet Results (hidden)
A1: E (mi) | B1: S' (ft) | C1: R | D1: L | E1: S | F1: Tx | G1: Ty | H1: Cx | I1: Cy | J1: alpha1 | K1: U | L1: beta | M1: gamma | N1: Delta | O1: O | P1: PTx | Q1: PTy | R1: Ix | S1: Iy | T1: N | U1: alpha2 | V1: lambda | W1: theta | X1: beta1 | Y1: beta2 | Z1: Q | AA1: Iycircle | AB1: delta | AC1: P | AD1: T2x | AE1: T2y | AF1: Condition | AG1: Zc | AH1: Zt | AI1: Zi | AJ1: Zsl | AK1: SLCondition | AL1: E (ft) | AM1: Available SD (ft) | AN1: Design SSD (ft) | AO1: CrestControl
A2: 0 | B2: 1167.755683 | C2: 1536 | D2: 0.3 | E2: 682.01 | F2: 682.01 | G2: 48 | L2: 3.757744259 | N2: 59.08626611 | O2: 1167.755683 | U2: 4.02584954 | W2: 18.11925424 | X2: 0 | Y2: 59.08626611 | Z2: 380.9881888 | AB2: 66.05796152 | AC2: 1680.605141 | AF2: 2 | AG2: 3.5 | AH2: -19.48245758 | AI2: -33.0326705 | AJ2: -21.05664535 | AK2: 0
A3: 0.00946969697 | B3: 1124.607098 | C3: 1536 | D3: 0.3 | E3: 682.01 | L3: 4.013315265 | N3: 59.08626611 | O3: 1174.607098 | W3: 18.37482524 | X3: 0 | Y3: 59.08626611 | Z3: 380.9881888 | AB3: 67.63454916 | AC3: 1660.943298 | AF3: 2 | AG3: 2 | AH3: -19.688 | AI3: -33.23821293 | AJ3: -21.24005577 | AK3: 0
A4: 0.01893939394 | B4: 1082.376242 | C4: 1536 | D4: 0.3 | E4: 682.01 | L4: 4.303119404 | N4: 59.08626611 | O4: 1182.376242 | W4: 18.66462938 | X4: 0 | Y4: 59.08626611 | Z4: 380.9881888 | AB4: 69.24765497 | AC4: 1642.56861 | AF4: 2 | AG4: 0.5 | AH4: -19.92107435 | AI4: -33.47128727 | AJ4: -21.4495893 | AK4: 0
A5: 0.02840909091 | B5: 1041.240854 | C5: 1536 | D5: 0.3 | E5: 682.01 | L5: 4.633786566 | N5: 59.08626611 | O5: 1191.240854 | W5: 18.99529654 | X5: 0 | Y5: 59.08626611 | Z5: 380.9881888 | AB5: 70.89591834 | AC5: 1625.524728 | AF5: 2 | AG5: -1 | AH5: -20.18701269 | AI5: -33.73722561 | AJ5: -21.69055084 | AK5: 0
A6: 0.03787878788 | B6: 1001.421014 | C6: 1536 | D6: 0.3 | E6: 682.01 | L6: 5.013526264 | N6: 59.08626611 | O6: 1201.421014 | W6: 19.37503624 | X6: 0 | Y6: 59.08626611 | Z6: 380.9881888 | AB6: 72.57768648 | AC6: 1609.853919 | AF6: 2 | AG6: -2.5 | AH6: -20.49241751 | AI6: -34.04263043 | AJ6: -21.96956196 | AK6: 0
A7: 0.04734848485 | B7: 963.1895907 | C7: 1536 | D7: 0.3 | E7: 682.01 | L7: 5.452516943 | N7: 59.08626611 | O7: 1213.189591 | W7: 19.81402692 | X7: 0 | Y7: 59.08626611 | Z7: 380.9881888 | AB7: 74.2910083 | AC7: 1595.596641 | AF7: 2 | AG7: -4 | AH7: -20.8454748 | AI7: -34.39568772 | AJ7: -22.29490045 | AK7: 0
A8: 0.05681818182 | B8: 926.8842208 | C8: 1536 | D8: 0.3 | E8: 682.01 | L8: 5.963353155 | N8: 59.08626611 | O8: 1226.884221 | W8: 20.32486313 | X8: 0 | Y8: 59.08626611 | Z8: 380.9881888 | AB8: 76.03363376 | AC8: 1582.791092 | AF8: 2 | AG8: -5.5 | AH8: -21.2563137 | AI8: -34.80652662 | AJ8: -22.676897 | AK8: 0
A9: 0.06628787879 | B9: 892.9198002 | C9: 1536 | D9: 0.3 | E9: 682.01 | L9: 6.561511307 | N9: 59.08626611 | O9: 1242.9198 | W9: 20.92302129 | X9: 0 | Y9: 59.08626611 | Z9: 380.9881888 | AB9: 77.80301892 | AC9: 1571.472761 | AF9: 2 | AG9: -7 | AH9: -21.73738109 | AI9: -35.28759401 | AJ9: -23.12835923 | AK9: 0
A10: 0.07575757576 | B10: 861.7988894 | C10: 1536 | D10: 0.3 | E10: 682.01 | L10: 7.265737878 | N10: 59.08626611 | O10: 1261.798889 | W10: 21.62724786 | X10: 0 | Y10: 59.08626611 | Z10: 380.9881888 | AB10: 79.59633764 | AC10: 1561.673986 | AF10: 2 | AG10: -8.5 | AH10: -22.30375376 | AI10: -35.85396668 | AJ10: -23.6649457 | AK10: 0
A11: 0.08522727273 | B11: 834.1149716 | C11: 1536 | D11: 0.3 | E11: 682.01 | L11: 8.098170939 | N11: 59.08626611 | O11: 1284.114972 | W11: 22.45968092 | X11: 0 | Y11: 59.08626611 | Z11: 380.9881888 | AB11: 81.41049987 | AC11: 1553.423522 | AF11: 2 | AG11: -10 | AH11: -22.97323623 | AI11: -36.52344915 | AJ11: -24.30533172 | AK11: 0
A12: 0.0946969697 | B12: 810.5402231 | C12: 1536 | D12: 0.3 | E12: 682.01 | L12: 9.083883973 | N12: 59.08626611 | O12: 1310.540223 | W12: 23.44539395 | X12: 0 | Y12: 59.08626611 | Z12: 380.9881888 | AB12: 83.24217674 | AC12: 1546.746146 | AF12: 2 | AG12: -11.5 | AH12: -23.76599377 | AI12: -37.31620669 | AJ12: -25.07090151 | AK12: 0
A13: 0.1041666667 | B13: 791.7869328 | C13: 1536 | D13: 0.3 | E13: 682.01 | L13: 10.24944673 | N13: 59.08626611 | O13: 1341.786933 | W13: 24.61095671 | X13: 0 | Y13: 59.08626611 | Z13: 380.9881888 | AB13: 85.08783216 | AC13: 1541.662298 | AF13: 2 | AG13: -13 | AH13: -24.70339506 | AI13: -38.25360798 | AJ13: -25.98461182 | AK13: 0
A14: 0.1136363636 | B14: 778.5336656 | C14: 1536 | D14: 0.3 | E14: 682.01 | L14: 11.62017099 | N14: 59.08626611 | O14: 1378.533666 | W14: 25.98168097 | X14: 0 | Y14: 59.08626611 | Z14: 380.9881888 | AB14: 86.94376026 | AC14: 1538.187778 | AF14: 2 | AG14: -14.5 | AH14: -25.80579705 | AI14: -39.35600997 | AJ14: -27.06872231 | AK14: 0
A15: 0.1231060606 | B15: 771.3186798 | C15: 1536 | D15: 0.3 | E15: 682.01 | L15: 13.21613484 | N15: 59.08626611 | O15: 1421.31868 | W15: 27.57764482 | X15: 0 | Y15: 59.08626611 | Z15: 380.9881888 | AB15: 88.80612793 | AC15: 1536.333505 | AF15: 2 | AG15: -16 | AH15: -27.08934747 | AI15: -40.6395604 | AJ15: -28.34144098 | AK15: 0
A16: 0.1325757576 | B16: 770.0141947 | C16: 1536 | D16: 0.3 | E16: 682.01 | L16: 15.0325718 | N16: 59.08626611 | O16: 1470.014195 | W16: 29.39408178 | X16: 0 | Y16: 59.08626611 | Z16: 380.9881888 | AB16: -89.32895894 | AC16: 1536.105348 | AF16: 6 | AG16: -17.5 | AH16: -28.55021292 | AI16: -42.10042584 | AJ16: -29.80021292 | AK16: 0
A17: 0.1420454545 | B17: 770.0141947 | C17: 1536 | D17: 0.3 | E17: 682.01 | L17: 16.89766859 | N17: 59.08626611 | O17: 1520.014195 | W17: 31.25917857 | X17: 0 | Y17: 59.08626611 | AF17: 6 | AG17: -19 | AH17: -30.05021292 | AI17: -43.60042584 | AJ17: -31.30021292 | AK17: 0
A18: 0.1515151515 | B18: 770.0141947 | C18: 1536 | D18: 0.3 | E18: 682.01 | L18: 18.76276537 | N18: 59.08626611 | O18: 1570.014195 | W18: 33.12427535 | X18: 0 | Y18: 59.08626611 | AF18: 6 | AG18: -20.5 | AH18: -31.55021292 | AI18: -45.10042584 | AJ18: -32.80021292 | AK18: 0
A19: 0.1609848485 | B19: 770.0141947 | C19: 1536 | D19: 0.3 | E19: 682.01 | L19: 20.62786215 | N19: 59.08626611 | O19: 1620.014195 | W19: 34.98937213 | X19: 0 | Y19: 59.08626611 | AF19: 6 | AG19: -22 | AH19: -33.05021292 | AI19: -46.60042584 | AJ19: -34.30021292 | AK19: 0
A20: 0.1704545455 | B20: 770.0141947 | C20: 1536 | D20: 0.3 | E20: 682.01 | L20: 22.49295894 | N20: 59.08626611 | O20: 1670.014195 | W20: 36.85446892 | X20: 0 | Y20: 59.08626611 | AF20: 6 | AG20: -23.5 | AH20: -34.55021292 | AI20: -48.10042584 | AJ20: -35.80021292 | AK20: 0
A21: 0.1799242424 | B21: 770.0141947 | C21: 1536 | D21: 0.3 | E21: 682.01 | L21: 24.35805572 | N21: 59.08626611 | O21: 1720.014195 | W21: 38.7195657 | X21: 0 | Y21: 59.08626611 | AF21: 6 | AG21: -25 | AH21: -36.05021292 | AI21: -49.60042584 | AJ21: -37.30021292 | AK21: 0
A22: 0.1893939394 | B22: 770.0141947 | C22: 1536 | D22: 0.3 | E22: 682.01 | L22: 26.2231525 | N22: 59.08626611 | O22: 1770.014195 | W22: 40.58466248 | X22: 0 | Y22: 59.08626611 | AF22: 6 | AG22: -26.5 | AH22: -37.55021292 | AI22: -51.10042584 | AJ22: -38.80021292 | AK22: 0
A23: 0.1988636364 | B23: 770.0141947 | C23: 1536 | D23: 0.3 | E23: 682.01 | L23: 28.08824929 | N23: 59.08626611 | O23: 1820.014195 | W23: 42.44975927 | X23: 0 | Y23: 59.08626611 | AF23: 6 | AG23: -28 | AH23: -39.05021292 | AI23: -52.60042584 | AJ23: -40.30021292 | AK23: 0
A24: 0.2083333333 | B24: 770.0141947 | C24: 1536 | D24: 0.3 | E24: 682.01 | L24: 29.95334607 | N24: 59.08626611 | O24: 1870.014195 | W24: 44.31485605 | X24: 0 | Y24: 59.08626611 | AF24: 6 | AG24: -29.5 | AH24: -40.55021292 | AI24: -54.10042584 | AJ24: -41.80021292 | AK24: 0
A25: 0.2178030303 | B25: 770.0141947 | C25: 1536 | D25: 0.3 | E25: 682.01 | L25: 31.81844286 | N25: 59.08626611 | O25: 1920.014195 | W25: 46.17995283 | X25: 0 | Y25: 59.08626611 | AF25: 6 | AG25: -31 | AH25: -42.05021292 | AI25: -55.60042584 | AJ25: -43.30021292 | AK25: 0
A26: 0.2272727273 | B26: 770.0141947 | C26: 1536 | D26: 0.3 | E26: 682.01 | L26: 33.68353964 | N26: 59.08626611 | O26: 1970.014195 | W26: 48.04504962 | X26: 0 | Y26: 59.08626611 | AF26: 6 | AG26: -32.5 | AH26: -43.55021292 | AI26: -57.10042584 | AJ26: -44.80021292 | AK26: 0
A27: 0.2367424242 | B27: 770.0141947 | C27: 1536 | D27: 0.3 | E27: 682.01 | L27: 35.54863642 | N27: 59.08626611 | O27: 2020.014195 | W27: 49.9101464 | X27: 0 | Y27: 59.08626611 | AF27: 6 | AG27: -34 | AH27: -45.05021292 | AI27: -58.60042584 | AJ27: -46.30021292 | AK27: 0
A28: 0.2462121212 | B28: 770.0141947 | C28: 1536 | D28: 0.3 | E28: 682.01 | L28: 37.41373321 | N28: 59.08626611 | O28: 2070.014195 | W28: 51.77524319 | X28: 0 | Y28: 59.08626611 | AF28: 6 | AG28: -35.5 | AH28: -46.55021292 | AI28: -60.10042584 | AJ28: -47.80021292 | AK28: 0
A29: 0.2556818182 | B29: 770.0141947 | C29: 1536 | D29: 0.3 | E29: 682.01 | L29: 39.27882999 | N29: 59.08626611 | O29: 2120.014195 | W29: 53.64033997 | X29: 0 | Y29: 59.08626611 | AF29: 6 | AG29: -37 | AH29: -48.05021292 | AI29: -61.60042584 | AJ29: -49.30021292 | AK29: 0
A30: 0.2651515152 | B30: 770.0141947 | C30: 1536 | D30: 0.3 | E30: 682.01 | L30: 41.14392677 | N30: 59.08626611 | O30: 2170.014195 | W30: 55.50543675 | X30: 0 | Y30: 59.08626611 | AF30: 6 | AG30: -38.5 | AH30: -49.55021292 | AI30: -63.10042584 | AJ30: -50.80021292 | AK30: 0
A31: 0.2746212121 | B31: 770.0141947 | C31: 1536 | D31: 0.3 | E31: 682.01 | L31: 43.00902356 | N31: 59.08626611 | O31: 2220.014195 | W31: 57.37053354 | X31: 0 | Y31: 59.08626611 | AF31: 6 | AG31: -40 | AH31: -51.05021292 | AI31: -64.60042584 | AJ31: -52.30021292 | AK31: 0
A32: 0.2840909091 | B32: 770.0347981 | C32: 1536 | D32: 0.3 | E32: 682.01 | H32: 1461.880268 | I32: 212.7092668 | K32: 626.6493073 | L32: 44.87412034 | N32: 59.08626611 | O32: 2270.034798 | P32: 1999.808671 | Q32: 746.8848855 | W32: 59.23563032 | X32: 0 | Y32: 59.08626611 | Z32: 380.9881888 | AF32: 8 | AG32: -41.5 | AH32: -52.55021292 | AI32: -66.10104394 | AJ32: -53.80017881 | AK32: 0
A33: 0.2935606061 | B33: 774.3396948 | C33: 1536 | D33: 0.3 | E33: 682.01 | H33: 1504.535378 | I33: 238.7922283 | K33: 650.5524212 | L33: 46.73921713 | N33: 59.08626611 | O33: 2324.339695 | P33: 1999.808671 | Q33: 746.8848855 | X33: 0 | Y33: 59.08626611 | Z33: 380.9881888 | AF33: 8 | AG33: -43 | AH33: -54.05021292 | AI33: -67.73019084 | AJ33: -55.29347315 | AK33: 0
A34: 0.303030303 | B34: 788.9591713 | C34: 1536 | D34: 0.3 | E34: 682.01 | H34: 1546.318985 | I34: 266.2496393 | K34: 683.1680839 | L34: 48.60431391 | N34: 59.08626611 | O34: 2388.959171 | P34: 1999.808671 | Q34: 746.8848855 | X34: 0 | Y34: 59.08626611 | Z34: 380.9881888 | AF34: 8 | AG34: -44.5 | AH34: -55.55021292 | AI34: -69.66877514 | AJ34: -56.77277043 | AK34: 0
A35: 0.3125 | B35: 820.6614982 | C35: 1536 | D35: 0.3 | E35: 682.01 | H35: 1587.186818 | I35: 295.0524074 | K35: 731.2984755 | L35: 50.46941069 | N35: 59.08626611 | O35: 2470.661498 | P35: 1999.808671 | Q35: 746.8848855 | X35: 0 | Y35: 59.08626611 | Z35: 380.9881888 | AF35: 8 | AG35: -46 | AH35: -57.05021292 | AI35: -72.11984495 | AJ35: -58.23332299 | AK35: 0
A36: 0.321969697 | B36: 883.6784123 | C36: 1536 | D36: 0.3 | E36: 682.01 | H36: 1627.095576 | I36: 325.1700147 | K36: 809.2109036 | L36: 52.33450748 | N36: 59.08626611 | O36: 2583.678412 | P36: 1999.808671 | Q36: 746.8848855 | X36: 0 | Y36: 59.08626611 | Z36: 380.9881888 | AF36: 8 | AG36: -47.5 | AH36: -58.55021292 | AI36: -75.51035237 | AJ36: -59.66779183 | AK36: 0
A37: 0.3314393939 | B37: 1013.948391 | C37: 1536 | D37: 0.3 | E37: 682.01 | H37: 1666.002974 | I37: 356.5705504 | K37: 952.8810403 | L37: 54.19960426 | N37: 59.08626611 | O37: 2763.948391 | P37: 1999.808671 | Q37: 746.8848855 | X37: 0 | Y37: 59.08626611 | Z37: 380.9881888 | AF37: 8 | AG37: -49 | AH37: -60.05021292 | AI37: -80.91845172 | AJ37: -61.0645101 | AK37: 0
A38: 0.3409090909 | B38: 1336.110792 | C38: 1536 | D38: 0.3 | E38: 682.01 | H38: 1703.867788 | I38: 389.2207442 | K38: 1286.987023 | L38: 56.06470104 | N38: 59.08626611 | O38: 3136.110792 | P38: 1999.808671 | Q38: 746.8848855 | X38: 0 | Y38: 59.08626611 | Z38: 380.9881888 | AF38: 8 | AG38: -50.5 | AH38: -61.55021292 | AI38: -92.08332376 | AJ38: -62.40428547 | AK38: 0

Sheet Profile
A1: Distance from PC, ft | B1: ASSD(lane1, ft) | C1: ASSD(lane2, ft) | D1: ASSD(lane3, ft) | E1: ASSD(lane4, ft) | F1: DSSD (ft)
A2: -682.01 | B2: 897.7751282 | C2: 1003.055618 | D2: 1090.135787 | E2: 1167.755683 | F2: 682
A3: -632.01 | B3: 849.7409024 | C3: 956.7998782 | D3: 1045.500822 | E3: 1124.607098 | F3: 682
A4: -582.01 | B4: 802.0216227 | C4: 911.1066968 | D4: 1001.625402 | E4: 1082.376242 | F4: 682
A5: -532.01 | B5: 754.6971393 | C5: 866.1055228 | D5: 958.6693608 | E5: 1041.240854 | F5: 682
A6: -482.01 | B6: 707.8757006 | C6: 821.965747 | D6: 916.8357194 | E6: 1001.421014 | F6: 682
A7: -432.01 | B7: 661.7071384 | C7: 778.9117293 | D7: 876.3838726 | E7: 963.1895907 | F7: 682
A8: -382.01 | B8: 616.4036013 | C8: 737.2439867 | D8: 837.6463927 | E8: 926.8842208 | F8: 682
A9: -332.01 | B9: 572.2728152 | C9: 697.3686412 | D9: 801.0494008 | E9: 892.9198002 | F9: 682
A10: -282.01 | B10: 529.7721729 | C10: 659.8368128 | D10: 767.1348929 | E10: 861.7988894 | F10: 682
A11: -232.01 | B11: 489.5964912 | C11: 625.392814 | D11: 736.5799335 | E11: 834.1149716 | F11: 682
A12: -182.01 | B12: 452.8146862 | C12: 595.0211585 | D12: 710.2013299 | E12: 810.5402231 | F12: 682
A13: -132.01 | B13: 421.0541651 | C13: 569.9621749 | D13: 688.925867 | E13: 791.7869328 | F13: 682
A14: -82.01 | B14: 396.6436918 | C14: 551.6346179 | D14: 673.7011952 | E14: 778.5336656 | F14: 682
A15: -32.01 | B15: 382.3957811 | C15: 541.3903777 | D15: 665.3350786 | E15: 771.3186798 | F15: 682
A16: 17.99 | B16: 379.7267579 | C16: 539.5139178 | D16: 663.8154626 | E16: 770.0141947 | F16: 682
A17: 67.99 | B17: 379.7267579 | C17: 539.5139178 | D17: 663.8154626 | E17: 770.0141947 | F17: 682
A18: 117.99 | B18: 379.7267579 | C18: 539.5139178 | D18: 663.8154626 | E18: 770.0141947 | F18: 682
A19: 167.99 | B19: 379.7267579 | C19: 539.5139178 | D19: 663.8154626 | E19: 770.0141947 | F19: 682
A20: 217.99 | B20: 379.7267579 | C20: 539.5139178 | D20: 663.8154626 | E20: 770.0141947 | F20: 682
A21: 267.99 | B21: 379.7267579 | C21: 539.5139178 | D21: 663.8154626 | E21: 770.0141947 | F21: 682
A22: 317.99 | B22: 379.7267579 | C22: 539.5139178 | D22: 663.8154626 | E22: 770.0141947 | F22: 682
A23: 367.99 | B23: 379.7267579 | C23: 539.5139178 | D23: 663.8154626 | E23: 770.0141947 | F23: 682
A24: 417.99 | B24: 379.7267579 | C24: 539.5139178 | D24: 663.8154626 | E24: 770.0141947 | F24: 682
A25: 467.99 | B25: 379.7267579 | C25: 539.5139178 | D25: 663.8154626 | E25: 770.0141947 | F25: 682
A26: 517.99 | B26: 379.7267579 | C26: 539.5139178 | D26: 663.8154626 | E26: 770.0141947 | F26: 682
A27: 567.99 | B27: 379.7267579 | C27: 539.5139178 | D27: 663.8154626 | E27: 770.0141947 | F27: 682
A28: 617.99 | B28: 379.7267579 | C28: 539.5139178 | D28: 663.8154626 | E28: 770.0141947 | F28: 682
A29: 667.99 | B29: 379.7267579 | C29: 539.5139178 | D29: 663.8154626 | E29: 770.0141947 | F29: 682
A30: 717.99 | B30: 379.7267579 | C30: 539.5139178 | D30: 663.8154626 | E30: 770.0141947 | F30: 682
A31: 767.99 | B31: 379.7267579 | C31: 539.5139178 | D31: 663.8154626 | E31: 770.0141947 | F31: 682
A32: 817.99 | B32: 379.7267579 | C32: 539.5139178 | D32: 663.8154626 | E32: 770.0347981 | F32: 682
A33: 867.99 | B33: 379.7267579 | C33: 539.5139178 | D33: 663.8154626 | E33: 774.3396948 | F33: 682
A34: 917.99 | B34: 379.7267579 | C34: 539.5139178 | D34: 663.8154626 | E34: 788.9591713 | F34: 682
A35: 967.99 | B35: 379.7267579 | C35: 539.5139178 | D35: 667.7826738 | E35: 820.6614982 | F35: 682
A36: 1017.99 | B36: 379.7267579 | C36: 539.5139178 | D36: 684.011477 | E36: 883.6784123 | F36: 682
A37: 1067.99 | B37: 379.7267579 | C37: 540.6246935 | D37: 722.5810848 | E37: 1013.948391 | F37: 682
A38: 1117.99 | B38: 379.7267579 | C38: 553.1698347 | D38: 808.5646024 | E38: 1336.110792 | F38: 682
A39: 1167.99 | B39: 379.7267579 | C39: 591.3316628 | D39: 1026.628052 | F39: 682
A40: 1217.99 | B40: 380.2581764 | C40: 695.1282481 | D40: 1957.900344 | F40: 682
A41: 1267.99 | B41: 395.7589231 | C41: 1077.55787 | F41: 682
A42: 1317.99 | B42: 464.4161339 | F42: 682
A43: 1367.99 | B43: 891.3966961 | F43: 682
A44: 1417.99 | B44: 9999 | F44: 682

Sheet Ref (hidden)
B2: Combination | C2: 1st Condition | D2: 2nd Condition | E2: 3rd Condition | F2: 4th Condition
B3: 1 | C3: 1 | D3: 2 | E3: 4 | F3: 8
B4: 2 | C4: 1 | D4: 2 | E4: 6 | F4: 8
B5: 3 | C5: 1 | D5: 5 | E5: 6 | F5: 8
B6: 4 | C6: 1 | D6: 5 | E6: 7 | F6: 8
B7: 5 | C7: 1 | D7: 3 | E7: 4 | F7: 8
B8: 6 | C8: 1 | D8: 3 | E8: 7 | F8: 8
G9: 0
B10: Combination=
G11: 0 | M11: zT1 | P11: zT2 | S11: zT3
M12: zI1 | N12: zI2 | O12: zI3 | P12: zI1 | Q12: zI2 | R12: zI3 | S12: zI1 | T12: zI2 | U12: zI3
B13: 3D Sightline Condition 1 | E13: HT | F13: =Input!$C$35 -> 4 | J13: 1 | K13: zC1 | L13: =-(Input!$G$28-Ref!C19)*Ref!F15/100+Ref!F14 -> -9.88 | M13: =(L19-L13)/(Input!$G$9+Input!$C$9*SIN(Ref!$C$15)-Ref!C19)-(Ref!L16-Ref!L13)/(Input!$C$14/Ref!$C$20) -> -0.5607061764 | N13: =(L20-L13)/(Input!$G$9+Input!$C$9*SIN(Ref!$C$15)-Ref!C19)-(Ref!L16-Ref!L13)/(Input!$C$14/Ref!$C$20) -> 1.98488501 | O13: =(L21-L13)/(Input!$G$9+Input!$C$9*SIN(Ref!$C$15)-Ref!C19)-(Ref!L16-Ref!L13)/(Input!$C$14/Ref!$C$20) -> -0.09144053002 | Q13: =(L20-L13)/(Input!$G$9+Input!$C$9*SIN(Ref!$C$15)-Ref!C19)-(Ref!L17-Ref!L13)/(Input!$C$14/Ref!$C$20) -> 1.154084079 | R13: =(L21-L13)/(Input!$G$9+Input!$C$9*SIN(Ref!$C$15)-Ref!C19)-(Ref!L17-Ref!L13)/(Input!$C$14/Ref!$C$20) -> -0.9222414608 | U13: =(L21-L13)/(Input!$G$9+Input!$C$9*SIN(Ref!$C$15)-Ref!C19)-(Ref!L18-Ref!L13)/(Input!$C$14/Ref!$C$20) -> 0.9113735565 | V13: 2 | W13: =0
E14: HC | F14: =Input!$C$34 -> 3.5 | K14: zC2 | L14: =Input!$G$30+Ref!F15/100*(Ref!C19-Input!$G$28)+(Ref!F16-Ref!F15)*(Ref!C19-Input!$G$28)^2/(200*Input!$C$29*5280)+Ref!F14 -> -4.228977273 | Q14: =(L20-L14)/(Input!$G$9+Input!$C$9*SIN(Ref!$C$15)-Ref!C19)-(Ref!L17-Ref!L14)/(Input!$C$14/Ref!$C$20) -> 2.355646714 | R14: =(L21-L14)/(Input!$G$9+Input!$C$9*SIN(Ref!$C$15)-Ref!C19)-(Ref!L17-Ref!L14)/(Input!$C$14/Ref!$C$20) -> 0.279321174 | U14: =(L21-L14)/(Input!$G$9+Input!$C$9*SIN(Ref!$C$15)-Ref!C19)-(Ref!L18-Ref!L14)/(Input!$C$14/Ref!$C$20) -> 2.112936191
B15: theta(rad)= | C15: 3.002576979 | E15: G1 | F15: =Input!$C$30 -> -3 | K15: zC3 | L15: =Input!$G$31+(Ref!C19-Input!$G$29)*Ref!F16/100+Ref!F14 -> -14.8 | U15: =(L21-L15)/(Input!$G$9+Input!$C$9*SIN(Ref!$C$15)-Ref!C19)-(Ref!L18-Ref!L15)/(Input!$C$14/Ref!$C$20) -> -0.1347535693
B16: 0= | E16: G2 | F16: =Input!$C$31 -> 3 | K16: zT1 | L16: =-(Input!$G$28-(Ref!C19+Input!$C$14/Ref!C20))*Ref!F15/100+Ref!F13 -> -9.518876594 | M16: 999 | N16: 999 | O16: 999 | Q16: 999 | R16: 999 | U16: 999 | V16: zC1 | W16: Theta | X16: =999 if no alpha found
E17: Hmin | F17: =Input!$C$36 -> 2 | K17: zT2 | L17: =Input!$G$30+Ref!F15/100*((Ref!C19+Input!$C$14/Ref!C20)-Input!$G$28)+(Ref!F16-Ref!F15)*((Ref!C19+Input!$C$14/Ref!C20)-Input!$G$28)^2/(200*Input!$C$10*5280)+Ref!F13 -> -5.672916485 | Q17: 999 | R17: 999 | U17: 999 | V17: zC2
B18: D= | E18: Use solver to find a theta that makes C26=0 | K18: zT3 | L18: =Input!$G$31+((Ref!C19+Input!$C$14/Ref!C20)-Input!$G$29)*Ref!F16/100+Ref!F13 -> -14.16112341 | U18: 999 | V18: zC3
B19: E= | C19: 600 | K19: zI1 | L19: =-(Input!$G$28-Input!$G$9-Input!$C$9*Ref!C15)*Ref!F15/100+Ref!F17 -> -152.1987472 | M19: =IF($V$13=1,IF(M16=999,999,IF($C$19+Input!$C$14/((Input!$C$9-Input!$C$9*COS(M16))/(Input!$G$9+Input!$C$9*SIN(M16)-Ref!$C$19))<=Input!$G$28,1,IF($C$19+Input!$C$14/((Input!$C$9-Input!$C$9*COS(M16))/(Input!$G$9+Input!$C$9*SIN(M16)-Ref!$C$19))>Input!$G$29,3,2))),999) -> 999 | N19: =IF($V$13=1,IF(N16=999,999,IF($C$19+Input!$C$14/((Input!$C$9-Input!$C$9*COS(N16))/(Input!$G$9+Input!$C$9*SIN(N16)-Ref!$C$19))<=Input!$G$28,1,IF($C$19+Input!$C$14/((Input!$C$9-Input!$C$9*COS(N16))/(Input!$G$9+Input!$C$9*SIN(N16)-Ref!$C$19))>Input!$G$29,3,2))),999) -> 999 | O19: =IF($V$13=1,IF(O16=999,999,IF($C$19+Input!$C$14/((Input!$C$9-Input!$C$9*COS(O16))/(Input!$G$9+Input!$C$9*SIN(O16)-Ref!$C$19))<=Input!$G$28,1,IF($C$19+Input!$C$14/((Input!$C$9-Input!$C$9*COS(O16))/(Input!$G$9+Input!$C$9*SIN(O16)-Ref!$C$19))>Input!$G$29,3,2))),999) -> 999 | Q19: =IF($V$13=1,IF(Q16=999,999,IF($C$19+Input!$C$14/((Input!$C$9-Input!$C$9*COS(Q16))/(Input!$G$9+Input!$C$9*SIN(Q16)-Ref!$C$19))<=Input!$G$28,1,IF($C$19+Input!$C$14/((Input!$C$9-Input!$C$9*COS(Q16))/(Input!$G$9+Input!$C$9*SIN(Q16)-Ref!$C$19))>Input!$G$29,3,2))),IF($V$13=2,IF(Q17=999,999,IF($C$19+Input!$C$14/((Input!$C$9-Input!$C$9*COS(Q17))/(Input!$G$9+Input!$C$9*SIN(Q17)-Ref!$C$19))<=Input!$G$28,1,IF($C$19+Input!$C$14/((Input!$C$9-Input!$C$9*COS(Q17))/(Input!$G$9+Input!$C$9*SIN(Q17)-Ref!$C$19))>Input!$G$29,3,2))),999)) -> 999 | R19: =IF($V$13=1,IF(R16=999,999,IF($C$19+Input!$C$14/((Input!$C$9-Input!$C$9*COS(R16))/(Input!$G$9+Input!$C$9*SIN(R16)-Ref!$C$19))<=Input!$G$28,1,IF($C$19+Input!$C$14/((Input!$C$9-Input!$C$9*COS(R16))/(Input!$G$9+Input!$C$9*SIN(R16)-Ref!$C$19))>Input!$G$29,3,2))),IF($V$13=2,IF(R17=999,999,IF($C$19+Input!$C$14/((Input!$C$9-Input!$C$9*COS(R17))/(Input!$G$9+Input!$C$9*SIN(R17)-Ref!$C$19))<=Input!$G$28,1,IF($C$19+Input!$C$14/((Input!$C$9-Input!$C$9*COS(R17))/(Input!$G$9+Input!$C$9*SIN(R17)-Ref!$C$19))>Input!$G$29,3,2))),999)) -> 999 | U19: =IF($V$13=1,IF(U16=999,999,IF($C$19+Input!$C$14/((Input!$C$9-Input!$C$9*COS(U16))/(Input!$G$9+Input!$C$9*SIN(U16)-Ref!$C$19))<=Input!$G$28,1,IF($C$19+Input!$C$14/((Input!$C$9-Input!$C$9*COS(U16))/(Input!$G$9+Input!$C$9*SIN(U16)-Ref!$C$19))>Input!$G$29,3,2))),IF($V$13=2,IF(U17=999,999,IF($C$19+Input!$C$14/((Input!$C$9-Input!$C$9*COS(U17))/(Input!$G$9+Input!$C$9*SIN(U17)-Ref!$C$19))<=Input!$G$28,1,IF($C$19+Input!$C$14/((Input!$C$9-Input!$C$9*COS(U17))/(Input!$G$9+Input!$C$9*SIN(U17)-Ref!$C$19))>Input!$G$29,3,2))),IF(U18=999,999,IF($C$19+Input!$C$14/((Input!$C$9-Input!$C$9*COS(U18))/(Input!$G$9+Input!$C$9*SIN(U18)-Ref!$C$19))<=Input!$G$28,1,IF($C$19+Input!$C$14/((Input!$C$9-Input!$C$9*COS(U18))/(Input!$G$9+Input!$C$9*SIN(U18)-Ref!$C$19))>Input!$G$29,3,2))))) -> 999 | V19: T Vertical Position (1,2,3)
B20: tan alpha= | C20: =(Input!C9-Input!C9*COS(Ref!C15))/(Input!G9+Input!C9*SIN(Ref!C15)-Ref!C19) -> 10.36891792 | K20: zI2 | L20: =Input!$G$30+Ref!F15/100*(Input!$G$9+Input!$C$9*Ref!C15-Input!$G$28)+(Ref!F16-Ref!F15)*(Input!$G$9+Input!$C$9*Ref!C15-Input!$G$28)^2/(200*Input!$C$29*5280)+Ref!F17 -> 598.3458753 | M20: =IF($V$13=1,IF(M16=999,999,IF(Input!$G$9+Input!$C$9*Ref!M16<=Input!$G$28,1,IF(Input!$G$9+Input!$C$9*Ref!M16>Input!$G$29,3,2))),999) -> 999 | N20: =IF($V$13=1,IF(N16=999,999,IF(Input!$G$9+Input!$C$9*Ref!N16<=Input!$G$28,1,IF(Input!$G$9+Input!$C$9*Ref!N16>Input!$G$29,3,2))),999) -> 999 | O20: =IF($V$13=1,IF(O16=999,999,IF(Input!$G$9+Input!$C$9*Ref!O16<=Input!$G$28,1,IF(Input!$G$9+Input!$C$9*Ref!O16>Input!$G$29,3,2))),999) -> 999 | Q20: =IF($V$13=1,IF(Q16=999,999,IF(Input!$G$9+Input!$C$9*Ref!Q16<=Input!$G$28,1,IF(Input!$G$9+Input!$C$9*Ref!Q16>Input!$G$29,3,2))),IF($V$13=2,IF(Q17=999,999,IF(Input!$G$9+Input!$C$9*Ref!Q17<=Input!$G$28,1,IF(Input!$G$9+Input!$C$9*Ref!Q17>Input!$G$29,3,2))),999)) -> 999 | R20: =IF($V$13=1,IF(R16=999,999,IF(Input!$G$9+Input!$C$9*Ref!R16<=Input!$G$28,1,IF(Input!$G$9+Input!$C$9*Ref!R16>Input!$G$29,3,2))),IF($V$13=2,IF(R17=999,999,IF(Input!$G$9+Input!$C$9*Ref!R17<=Input!$G$28,1,IF(Input!$G$9+Input!$C$9*Ref!R17>Input!$G$29,3,2))),999)) -> 999 | U20: =IF($V$13=1,IF(U16=999,999,IF(Input!$G$9+Input!$C$9*Ref!U16<=Input!$G$28,1,IF(Input!$G$9+Input!$C$9*Ref!U16>Input!$G$29,3,2))),IF($V$13=2,IF(U17=999,999,IF(Input!$G$9+Input!$C$9*Ref!U17<=Input!$G$28,1,IF(Input!$G$9+Input!$C$9*Ref!U17>Input!$G$29,3,2))),IF(U18=999,999,IF(Input!$G$9+Input!$C$9*Ref!U18<=Input!$G$28,1,IF(Input!$G$9+Input!$C$9*Ref!U18>Input!$G$29,3,2))))) -> 999 | V20: I Vertical Position (1,2,3)
B21: alpha (rad)= | C21: =ATAN(C20) -> 1.474651595 | E21: S'= | F21: =#REF!*C15*PI()/180+#REF!-C19 ->  | K21: zI3 | L21: =Input!$G$31+(Input!$G$9+Input!$C$9*Ref!C18-Input!$G$29)*Ref!F16/100+Ref!F17 -> -13.84 | M21: =IF(AND(M19=1,M20=1),1,999) -> 999 | N21: =IF(AND(N19=1,N20=2),1,999) -> 999 | O21: =IF(AND(O19=1,O20=3),1,999) -> 999 | Q21: =IF(AND(Q19=2,Q20=2),1,999) -> 999 | R21: =IF(AND(R19=2,R20=3),1,999) -> 999 | U21: =IF(AND(U19=3,U20=3),1,999) -> 999
M22: zT1 | P22: zT2 | S22: zT3
M23: zI1 | N23: zI2 | O23: zI3 | P23: zI1 | Q23: zI2 | R23: zI3 | S23: zI1 | T23: zI2 | U23: zI3
B24: 3D Sightline Condition 2 | E24: HT | F24: =Input!$C$35 -> 4 | J24: 2 | K24: zC1 | L24: =-(Input!$G$28-Ref!C30)*Ref!F26/100+Ref!F25 -> -8.38 | M24: =(L30-L24)/($C$32*COS($C$25)+Input!$G$9+Input!$C$9*TAN(Ref!$C$25/2)-Ref!$C$30)-(Ref!L27-Ref!L24)/(Input!$C$14/Ref!$C$31) -> -3.142110231 | N24: =(L31-L24)/($C$32*COS($C$25)+Input!$G$9+Input!$C$9*TAN(Ref!$C$25/2)-Ref!$C$30)-(Ref!L27-Ref!L24)/(Input!$C$14/Ref!$C$31) -> -4.125100239 | O24: =(L32-L24)/($C$32*COS($C$25)+Input!$G$9+Input!$C$9*TAN(Ref!$C$25/2)-Ref!$C$30)-(Ref!L27-Ref!L24)/(Input!$C$14/Ref!$C$31) -> 1.656994214 | Q24: =(L31-L24)/($C$32*COS($C$25)+Input!$G$9+Input!$C$9*TAN(Ref!$C$25/2)-Ref!$C$30)-(Ref!L28-Ref!L24)/(Input!$C$14/Ref!$C$31) -> -10.77349609 | R24: =(L32-L24)/($C$32*COS($C$25)+Input!$G$9+Input!$C$9*TAN(Ref!$C$25/2)-Ref!$C$30)-(Ref!L28-Ref!L24)/(Input!$C$14/Ref!$C$31) -> -4.991401636 | U24: =(L32-L24)/($C$32*COS($C$25)+Input!$G$9+Input!$C$9*TAN(Ref!$C$25/2)-Ref!$C$30)-(Ref!L29-Ref!L24)/(Input!$C$14/Ref!$C$31) -> 19.2860272 | V24: 2 | W24: =0
B25: Delta(rad)= | C25: =Input!G11 -> 1.03125 | E25: HC | F25: =Input!$C$34 -> 3.5 | K25: zC2 | L25: =Input!$G$30+Ref!F26/100*(Ref!C30-Input!$G$28)+(Ref!F27-Ref!F26)*(Ref!C30-Input!$G$28)^2/(200*Input!$C$29*5280)+Ref!F25 -> -3.925 | Q25: =(L31-L25)/($C$32*COS($C$25)+Input!$G$9+Input!$C$9*TAN(Ref!$C$25/2)-Ref!$C$30)-(Ref!L28-Ref!L25)/(Input!$C$14/Ref!$C$31) -> -0.5425918471 | R25: =(L32-L25)/($C$32*COS($C$25)+Input!$G$9+Input!$C$9*TAN(Ref!$C$25/2)-Ref!$C$30)-(Ref!L28-Ref!L25)/(Input!$C$14/Ref!$C$31) -> 5.239502606 | U25: =(L32-L25)/($C$32*COS($C$25)+Input!$G$9+Input!$C$9*TAN(Ref!$C$25/2)-Ref!$C$30)-(Ref!L29-Ref!L25)/(Input!$C$14/Ref!$C$31) -> 29.51693144
B26: alpha(rad)= | C26: 1.561468784 | E26: G1 | F26: =Input!$C$30 -> -3 | K26: zC3 | L26: =Input!$G$31+(Ref!C30-Input!$G$29)*Ref!F27/100+Ref!F25 -> -16.3 | U26: =(L32-L26)/($C$32*COS($C$25)+Input!$G$9+Input!$C$9*TAN(Ref!$C$25/2)-Ref!$C$30)-(Ref!L29-Ref!L26)/(Input!$C$14/Ref!$C$31) -> 1.097752993
B27: 0= | E27: G2 | F27: =Input!$C$31 -> 3 | K27: zT1 | L27: =-(Input!$G$28-(Ref!C30+Input!$C$14/Ref!C31))*Ref!F26/100+Ref!F24 -> -7.893432051 | M27: 999 | N27: 999 | O27: 999 | Q27: 999 | R27: 999 | U27: 999 | V27: zC1 | W27: Alpha | X27: =999 if no alpha found
E28: Hmin | F28: =Input!$C$36 -> 2 | K28: zT2 | L28: =Input!$G$30+Ref!F26/100*((Ref!C30+Input!$C$14/Ref!C31)-Input!$G$28)+(Ref!F27-Ref!F26)*((Ref!C30+Input!$C$14/Ref!C31)-Input!$G$28)^2/(200*Input!$C$10*5280)+Ref!F24 -> -4.916712229 | Q28: 999 | R28: 999 | U28: 999 | V28: zC2
B29: D= | E29: Use solver to find a U that makes C44=0 | K29: zT3 | L29: =Input!$G$31+((Ref!C30+Input!$C$14/Ref!C31)-Input!$G$29)*Ref!F27/100+Ref!F24 -> -15.78656795 | U29: 999 | V29: zC3
B30: E= | C30: 550 | K30: zI1 | L30: =-(Input!$G$28-Input!$G$9-Input!$C$9*Ref!C25-C32+Input!$C$9*TAN(Ref!C25/2))*Ref!F26/100+Ref!F28 -> 24.22667558 | M30: =IF($V$24=1,IF(M27=999,999,IF($C$30+Input!$C$14/TAN(M27)<=Input!$G$28,1,IF($C$30+Input!$C$14/TAN(M27)>Input!$G$29,3,2))),999) -> 999 | N30: =IF($V$24=1,IF(N27=999,999,IF($C$30+Input!$C$14/TAN(N27)<=Input!$G$28,1,IF($C$30+Input!$C$14/TAN(N27)>Input!$G$29,3,2))),999) -> 999 | O30: =IF($V$24=1,IF(O27=999,999,IF($C$30+Input!$C$14/TAN(O27)<=Input!$G$28,1,IF($C$30+Input!$C$14/TAN(O27)>Input!$G$29,3,2))),999) -> 999 | Q30: =IF($V$24=1,IF(Q27=999,999,IF($C$30+Input!$C$14/TAN(Q27)<=Input!$G$28,1,IF($C$30+Input!$C$14/TAN(Q27)>Input!$G$29,3,2))),IF($V$24=2,IF(Q28=999,999,IF($C$30+Input!$C$14/TAN(Q27)<=Input!$G$28,1,IF($C$30+Input!$C$14/TAN(Q27)>Input!$G$29,3,2))),999)) -> 999 | R30: =IF($V$24=1,IF(R27=999,999,IF($C$30+Input!$C$14/TAN(R27)<=Input!$G$28,1,IF($C$30+Input!$C$14/TAN(R27)>Input!$G$29,3,2))),IF($V$24=2,IF(R28=999,999,IF($C$30+Input!$C$14/TAN(R28)<=Input!$G$28,1,IF($C$30+Input!$C$14/TAN(R28)>Input!$G$29,3,2))),999)) -> 999 | U30: =IF($V$24=1,IF(U27=999,999,IF($C$30+Input!$C$14/TAN(U27)<=Input!$G$28,1,IF($C$30+Input!$C$14/TAN(U27)>Input!$G$29,3,2))),IF($V$24=2,IF(U28=999,999,IF($C$30+Input!$C$14/TAN(U28)<=Input!$G$28,1,IF($C$30+Input!$C$14/TAN(U28)>Input!$G$29,3,2))),IF(U29=999,999,IF($C$30+Input!$C$14/TAN(U29)<=Input!$G$28,1,IF($C$30+Input!$C$14/TAN(U29)>Input!$G$29,3,2))))) -> 999 | V30: T Vertical Position (1,2,3)
B31: tan alpha= | C31: =TAN(C26) -> 107.2062605 | K31: zI2 | L31: =Input!$G$30+Ref!F26/100*(Input!$G$9+Input!$C$9*Ref!C25+C32-Input!$C$9*TAN(Ref!C25/2)-Input!$G$28)+(Ref!F27-Ref!F26)*(Input!$G$9+Input!$C$9*Ref!C25+C32-Input!$C$9*TAN(Ref!C25/2)-Input!$G$28)^2/(200*Input!$C$29*5280)+Ref!F28 -> 39.82090246 | M31: =IF($V$24=1,IF(M27=999,999,IF(Input!$G$9+Input!$C$9*$C$25+SIN(M27)*(Input!$G$9-Ref!$C$30+Input!$C$9*TAN(Ref!$C$25/2))/SIN(Ref!$C$25-Ref!M27)<=Input!$G$28,1,IF(Input!$G$9+Input!$C$9*$C$25+SIN(M27)*(Input!$G$9-Ref!$C$30+Input!$C$9*TAN(Ref!$C$25/2))/SIN(Ref!$C$25-Ref!M27)>Input!$G$29,3,2))),999) -> 999 | N31: =IF($V$24=1,IF(N27=999,999,IF(Input!$G$9+Input!$C$9*$C$25+SIN(N27)*(Input!$G$9-Ref!$C$30+Input!$C$9*TAN(Ref!$C$25/2))/SIN(Ref!$C$25-Ref!N27)<=Input!$G$28,1,IF(Input!$G$9+Input!$C$9*$C$25+SIN(N27)*(Input!$G$9-Ref!$C$30+Input!$C$9*TAN(Ref!$C$25/2))/SIN(Ref!$C$25-Ref!N27)>Input!$G$29,3,2))),999) -> 999 | O31: =IF($V$24=1,IF(O27=999,999,IF(Input!$G$9+Input!$C$9*$C$25+SIN(O27)*(Input!$G$9-Ref!$C$30+Input!$C$9*TAN(Ref!$C$25/2))/SIN(Ref!$C$25-Ref!O27)<=Input!$G$28,1,IF(Input!$G$9+Input!$C$9*$C$25+SIN(O27)*(Input!$G$9-Ref!$C$30+Input!$C$9*TAN(Ref!$C$25/2))/SIN(Ref!$C$25-Ref!O27)>Input!$G$29,3,2))),999) -> 999 | Q31: =IF($V$24=1,IF(Q27=999,999,IF(Input!$G$9+Input!$C$9*$C$25+SIN(Q27)*(Input!$G$9-Ref!$C$30+Input!$C$9*TAN(Ref!$C$25/2))/SIN(Ref!$C$25-Ref!Q27)<=Input!$G$28,1,IF(Input!$G$9+Input!$C$9*$C$25+SIN(Q27)*(Input!$G$9-Ref!$C$30+Input!$C$9*TAN(Ref!$C$25/2))/SIN(Ref!$C$25-Ref!Q27)>Input!$G$29,3,2))),IF($V$24=2,IF(Q28=999,999,IF(Input!$G$9+Input!$C$9*$C$25+SIN(Q28)*(Input!$G$9-Ref!$C$30+Input!$C$9*TAN(Ref!$C$25/2))/SIN(Ref!$C$25-Ref!Q28)<=Input!$G$28,1,IF(Input!$G$9+Input!$C$9*$C$25+SIN(Q28)*(Input!$G$9-Ref!$C$30+Input!$C$9*TAN(Ref!$C$25/2))/SIN(Ref!$C$25-Ref!Q28)>Input!$G$29,3,2))),999)) -> 999 | R31: =IF($V$24=1,IF(R27=999,999,IF(Input!$G$9+Input!$C$9*$C$25+SIN(R27)*(Input!$G$9-Ref!$C$30+Input!$C$9*TAN(Ref!$C$25/2))/SIN(Ref!$C$25-Ref!R27)<=Input!$G$28,1,IF(Input!$G$9+Input!$C$9*$C$25+SIN(R27)*(Input!$G$9-Ref!$C$30+Input!$C$9*TAN(Ref!$C$25/2))/SIN(Ref!$C$25-Ref!R27)>Input!$G$29,3,2))),IF($V$24=2,IF(R28=999,999,IF(Input!$G$9+Input!$C$9*$C$25+SIN(R28)*(Input!$G$9-Ref!$C$30+Input!$C$9*TAN(Ref!$C$25/2))/SIN(Ref!$C$25-Ref!R28)<=Input!$G$28,1,IF(Input!$G$9+Input!$C$9*$C$25+SIN(R28)*(Input!$G$9-Ref!$C$30+Input!$C$9*TAN(Ref!$C$25/2))/SIN(Ref!$C$25-Ref!R28)>Input!$G$29,3,2))),999)) -> 999 | U31: =IF($V$24=1,IF(U27=999,999,IF(Input!$G$9+Input!$C$9*$C$25+SIN(U27)*(Input!$G$9-Ref!$C$30+Input!$C$9*TAN(Ref!$C$25/2))/SIN(Ref!$C$25-Ref!U27)<=Input!$G$28,1,IF(Input!$G$9+Input!$C$9*$C$25+SIN(U27)*(Input!$G$9-Ref!$C$30+Input!$C$9*TAN(Ref!$C$25/2))/SIN(Ref!$C$25-Ref!U27)>Input!$G$29,3,2))),IF($V$24=2,IF(U28=999,999,IF(Input!$G$9+Input!$C$9*$C$25+SIN(U28)*(Input!$G$9-Ref!$C$30+Input!$C$9*TAN(Ref!$C$25/2))/SIN(Ref!$C$25-Ref!U28)<=Input!$G$28,1,IF(Input!$G$9+Input!$C$9*$C$25+SIN(U28)*(Input!$G$9-Ref!$C$30+Input!$C$9*TAN(Ref!$C$25/2))/SIN(Ref!$C$25-Ref!U28)>Input!$G$29,3,2))),IF(U29=999,999,IF(Input!$G$9+Input!$C$9*$C$25+SIN(U29)*(Input!$G$9-Ref!$C$30+Input!$C$9*TAN(Ref!$C$25/2))/SIN(Ref!$C$25-Ref!U29)<=Input!$G$28,1,IF(Input!$G$9+Input!$C$9*$C$25+SIN(U29)*(Input!$G$9-Ref!$C$30+Input!$C$9*TAN(Ref!$C$25/2))/SIN(Ref!$C$25-Ref!U29)>Input!$G$29,3,2))))) -> 999 | V31: I Vertical Position (1,2,3)
B32: U= | C32: =SIN(C26)*(Input!$G$9-C30+Input!C9*TAN(C25/2))/SIN(C25-C26) -> -1982.334973 | E32: S'= | K32: zI3 | L32: =Input!$G$31+(Input!$G$9+Input!$C$9*Ref!C25+C32-Input!$C$9*TAN(Ref!C25/2)-Input!$G$29)*Ref!F27/100+Ref!F28 -> -51.90667558 | M32: =IF(AND(M30=1,M31=1),1,999) -> 999 | N32: =IF(AND(N30=1,N31=2),1,999) -> 999 | O32: =IF(AND(O30=1,O31=3),1,999) -> 999 | Q32: =IF(AND(Q30=2,Q31=2),1,999) -> 999 | R32: =IF(AND(R30=2,R31=3),1,999) -> 999 | U32: =IF(AND(U30=3,U31=3),1,999) -> 999
M33: zT1 | P33: zT2 | S33: zT3
M34: zI1 | N34: zI2 | O34: zI3 | P34: zI1 | Q34: zI2 | R34: zI3 | S34: zI1 | T34: zI2 | U34: zI3
B35: 3D Sightline Condition 3 | E35: HT | F35: =Input!$C$35 -> 4 | J35: 3 | K35: zC1 | L35: =-(Input!$G$28-Ref!C41)*Ref!F37/100+Ref!F36 -> -9.88 | M35: =(L41-L35)/(Input!$G$9+Input!$C$9*SIN(Ref!$C$40)-Ref!C41)-(Ref!L38-Ref!L35)/(Input!$G$9+(Input!$C$9-Input!$C$14)*SIN(Ref!C36)-Ref!C41) ->  | N35: =(L42-L35)/(Input!$G$9+Input!$C$9*SIN(Ref!$C$40)-Ref!C41)-(Ref!L38-Ref!L35)/(Input!$G$9+(Input!$C$9-Input!$C$14)*SIN(Ref!C36)-Ref!C41) ->  | O35: =(L43-L35)/(Input!$G$9+Input!$C$9*SIN(Ref!$C$40)-Ref!C41)-(Ref!L38-Ref!L35)/(Input!$G$9+(Input!$C$9-Input!$C$14)*SIN(Ref!C36)-Ref!C41) ->  | P35: x | Q35: =(L42-L35)/(Input!$G$9+Input!$C$9*SIN(Ref!$C$40)-Ref!C41)-(Ref!L39-Ref!L35)/(Input!$G$9+(Input!$C$9-Input!$C$14)*SIN(Ref!C36)-Ref!C41) ->  | R35: =(L43-L35)/(Input!$G$9+Input!$C$9*SIN(Ref!$C$40)-Ref!C41)-(Ref!L39-Ref!L35)/(Input!$G$9+(Input!$C$9-Input!$C$14)*SIN(Ref!C36)-Ref!C41) ->  | S35: x | T35: x | U35: =(L43-L35)/(Input!$G$9+Input!$C$9*SIN(Ref!$C$40)-Ref!C41)-(Ref!L40-Ref!L35)/(Input!$G$9+(Input!$C$9-Input!$C$14)*SIN(Ref!C36)-Ref!C41) ->  | V35: 2 | W35: =0
B36: beta(rad)= | C36: =PI()/2+C37-ASIN((Input!C9-TAN(Ref!C37)*(Input!G9-Ref!C41))*SIN(PI()/2-Ref!C37)/(Input!C9-Input!C14)) ->  | E36: HC | F36: =Input!$C$34 -> 3.5 | K36: zC2 | L36: =Input!$G$30+Ref!F37/100*(Ref!C41-Input!$G$28)+(Ref!F38-Ref!F37)*(Ref!C41-Input!$G$28)^2/(200*Input!$C$29*5280)+Ref!F36 -> -4.228977273 | M36: x | N36: x | O36: x | P36: x | Q36: =(L42-L36)/(Input!$G$9+Input!$C$9*SIN(Ref!$C$40)-Ref!C41)-(Ref!L39-Ref!L36)/(Input!$G$9+(Input!$C$9-Input!$C$14)*SIN(Ref!C36)-Ref!C41) ->  | R36: =(L43-L36)/(Input!$G$9+Input!$C$9*SIN(Ref!$C$40)-Ref!C41)-(Ref!L39-Ref!L36)/(Input!$G$9+(Input!$C$9-Input!$C$14)*SIN(Ref!C36)-Ref!C41) ->  | S36: x | T36: x | U36: =(L43-L36)/(Input!$G$9+Input!$C$9*SIN(Ref!$C$40)-Ref!C41)-(Ref!L40-Ref!L36)/(Input!$G$9+(Input!$C$9-Input!$C$14)*SIN(Ref!C36)-Ref!C41) -> 
B37: alpha(rad)= | C37: 0 | E37: G1 | F37: =Input!$C$30 -> -3 | K37: zC3 | L37: =Input!$G$31+(Ref!C41-Input!$G$29)*Ref!F38/100+Ref!F36 -> -14.8 | M37: x | N37: x | O37: x | P37: x | Q37: x | R37: x | S37: x | T37: x | U37: =(L43-L37)/(Input!$G$9+Input!$C$9*SIN(Ref!$C$40)-Ref!C41)-(Ref!L40-Ref!L37)/(Input!$G$9+(Input!$C$9-Input!$C$14)*SIN(Ref!C36)-Ref!C41) -> 
B38: 0= | E38: G2 | F38: =Input!$C$31 -> 3 | K38: zT1 | L38: =-(Input!$G$28-Input!$G$9-Input!$C$9*Ref!C36)*Ref!F37/100+Ref!F35 ->  | M38: 999 | N38: 999 | O38: 999 | P38: x | Q38: 999 | R38: 999 | S38: x | T38: x | U38: 999 | V38: zC1 | W38: Alpha | X38: =999 if no alpha found
E39: Hmin | F39: 3 | K39: zT2 | L39: =Input!$G$30+Ref!F37/100*(Input!$G$9+Input!$C$9*Ref!C36-Input!$G$28)+(Ref!F38-Ref!F37)*(Input!$G$9+Input!$C$9*Ref!C36-Input!$G$28)^2/(200*Input!$C$29*5280)+Ref!F35 ->  | M39: x | N39: x | O39: x | P39: x | Q39: 999 | R39: 999 | S39: x | T39: x | U39: 999 | V39: zC2
B40: theta(rad)= | C40: =PI()/2+C37-ASIN((Input!C9-TAN(Ref!C37)*(Input!G9-Ref!C41))*SIN(PI()/2-Ref!C37)/(Input!C9)) -> 0 | E40: Use solver to find a theta that makes C44=0 | K40: zT3 | L40: =Input!$G$31+(Input!$G$9+Input!$C$9*Ref!C36-Input!$G$29)*Ref!F38/100+Ref!F35 ->  | M40: x | N40: x | O40: x | P40: x | Q40: x | R40: x | S40: x | T40: x | V40: zC3
B41: E= | C41: 600 | K41: zI1 | L41: =-(Input!$G$28-Input!$G$9-Input!$C$9*Ref!C40)*Ref!F37/100+Ref!F39 -> -12.84 | M41: =IF($V$35=1,IF(M38=999,999,IF(Input!$G$9+Input!$C$9*(PI()/2+M38-ASIN((Input!$C$9-TAN(M38)*(Input!$G$9-Ref!$C$41))*SIN(PI()/2-M38)/(Input!$C$9-Input!$C$14)))<=Input!$G$28,1,IF(Input!$G$9+Input!$C$9*(PI()/2+M38-ASIN((Input!$C$9-TAN(M38)*(Input!$G$9-Ref!$C$41))*SIN(PI()/2-M38)/(Input!$C$9-Input!$C$14)))>Input!$G$29,3,2))),999) -> 999 | N41: =IF($V$35=1,IF(N38=999,999,IF(Input!$G$9+Input!$C$9*(PI()/2+N38-ASIN((Input!$C$9-TAN(N38)*(Input!$G$9-Ref!$C$41))*SIN(PI()/2-N38)/(Input!$C$9-Input!$C$14)))<=Input!$G$28,1,IF(Input!$G$9+Input!$C$9*(PI()/2+N38-ASIN((Input!$C$9-TAN(N38)*(Input!$G$9-Ref!$C$41))*SIN(PI()/2-N38)/(Input!$C$9-Input!$C$14)))>Input!$G$29,3,2))),999) -> 999 | O41: =IF($V$35=1,IF(O38=999,999,IF(Input!$G$9+Input!$C$9*(PI()/2+O38-ASIN((Input!$C$9-TAN(O38)*(Input!$G$9-Ref!$C$41))*SIN(PI()/2-O38)/(Input!$C$9-Input!$C$14)))<=Input!$G$28,1,IF(Input!$G$9+Input!$C$9*(PI()/2+O38-ASIN((Input!$C$9-TAN(O38)*(Input!$G$9-Ref!$C$41))*SIN(PI()/2-O38)/(Input!$C$9-Input!$C$14)))>Input!$G$29,3,2))),999) -> 999 | Q41: =IF($V$35=1,IF(Q38=999,999,IF(Input!$G$9+Input!$C$9*(PI()/2+Q38-ASIN((Input!$C$9-TAN(Q38)*(Input!$G$9-Ref!$C$41))*SIN(PI()/2-Q38)/(Input!$C$9-Input!$C$14)))<=Input!$G$28,1,IF(Input!$G$9+Input!$C$9*(PI()/2+Q38-ASIN((Input!$C$9-TAN(Q38)*(Input!$G$9-Ref!$C$41))*SIN(PI()/2-Q38)/(Input!$C$9-Input!$C$14)))>Input!$G$29,3,2))),IF($V$35=2,IF(Q39=999,999,IF(Input!$G$9+Input!$C$9*(PI()/2+Q39-ASIN((Input!$C$9-TAN(Q39)*(Input!$G$9-Ref!$C$41))*SIN(PI()/2-Q39)/(Input!$C$9-Input!$C$14)))<=Input!$G$28,1,IF(Input!$G$9+Input!$C$9*(PI()/2+Q39-ASIN((Input!$C$9-TAN(Q39)*(Input!$G$9-Ref!$C$41))*SIN(PI()/2-Q39)/(Input!$C$9-Input!$C$14)))>Input!$G$29,3,2))),999)) -> 999 | R41: =IF($V$35=1,IF(R38=999,999,IF(Input!$G$9+Input!$C$9*(PI()/2+R38-ASIN((Input!$C$9-TAN(R38)*(Input!$G$9-Ref!$C$41))*SIN(PI()/2-R38)/(Input!$C$9-Input!$C$14)))<=Input!$G$28,1,IF(Input!$G$9+Input!$C$9*(PI()/2+R38-ASIN((Input!$C$9-TAN(R38)*(Input!$G$9-Ref!$C$41))*SIN(PI()/2-R38)/(Input!$C$9-Input!$C$14)))>Input!$G$29,3,2))),IF($V$35=2,IF(R39=999,999,IF(Input!$G$9+Input!$C$9*(PI()/2+R39-ASIN((Input!$C$9-TAN(R39)*(Input!$G$9-Ref!$C$41))*SIN(PI()/2-R39)/(Input!$C$9-Input!$C$14)))<=Input!$G$28,1,IF(Input!$G$9+Input!$C$9*(PI()/2+R39-ASIN((Input!$C$9-TAN(R39)*(Input!$G$9-Ref!$C$41))*SIN(PI()/2-R39)/(Input!$C$9-Input!$C$14)))>Input!$G$29,3,2))),999)) -> 999 | U41: =IF($V$35=1,IF(U38=999,999,IF(Input!$G$9+Input!$C$9*(PI()/2+U38-ASIN((Input!$C$9-TAN(U38)*(Input!$G$9-Ref!$C$41))*SIN(PI()/2-U38)/(Input!$C$9-Input!$C$14)))<=Input!$G$28,1,IF(Input!$G$9+Input!$C$9*(PI()/2+U38-ASIN((Input!$C$9-TAN(U38)*(Input!$G$9-Ref!$C$41))*SIN(PI()/2-U38)/(Input!$C$9-Input!$C$14)))>Input!$G$29,3,2))),IF($V$35=2,IF(U39=999,999,IF(Input!$G$9+Input!$C$9*(PI()/2+U39-ASIN((Input!$C$9-TAN(U39)*(Input!$G$9-Ref!$C$41))*SIN(PI()/2-U39)/(Input!$C$9-Input!$C$14)))<=Input!$G$28,1,IF(Input!$G$9+Input!$C$9*(PI()/2+U39-ASIN((Input!$C$9-TAN(U39)*(Input!$G$9-Ref!$C$41))*SIN(PI()/2-U39)/(Input!$C$9-Input!$C$14)))>Input!$G$29,3,2))),IF(U40=999,999,IF(Input!$G$9+Input!$C$9*(PI()/2+U40-ASIN((Input!$C$9-TAN(U40)*(Input!$G$9-Ref!$C$41))*SIN(PI()/2-U40)/(Input!$C$9-Input!$C$14)))<=Input!$G$28,1,IF(Input!$G$9+Input!$C$9*(PI()/2+U40-ASIN((Input!$C$9-TAN(U39)*(Input!$G$9-Ref!$C$41))*SIN(PI()/2-U40)/(Input!$C$9-Input!$C$14)))>Input!$G$29,3,2))))) -> 999 | V41: T Vertical Position (1,2,3)
K42: zI2 | L42: =Input!$G$30+Ref!F37/100*(Input!$G$9+Input!$C$9*Ref!C40-Input!$G$28)+(Ref!F38-Ref!F37)*(Input!$G$9+Input!$C$9*Ref!C40-Input!$G$28)^2/(200*Input!$C$29*5280)+Ref!F39 -> -4.92 | M42: =IF($V$35=1,IF(M38=999,999,IF(Input!$G$9+Input!$C$9*(PI()/2+M38-ASIN((Input!$C$9-TAN(M38)*(Input!$G$9-Ref!$C$41))*SIN(PI()/2-M38)/(Input!$C$9)))<=Input!$G$28,1,IF(Input!$G$9+Input!$C$9*(PI()/2+M38-ASIN((Input!$C$9-TAN(M38)*(Input!$G$9-Ref!$C$41))*SIN(PI()/2-M38)/(Input!$C$9)))>Input!$G$29,3,2))),999) -> 999 | N42: =IF($V$35=1,IF(N38=999,999,IF(Input!$G$9+Input!$C$9*(PI()/2+N38-ASIN((Input!$C$9-TAN(N38)*(Input!$G$9-Ref!$C$41))*SIN(PI()/2-N38)/(Input!$C$9)))<=Input!$G$28,1,IF(Input!$G$9+Input!$C$9*(PI()/2+N38-ASIN((Input!$C$9-TAN(N38)*(Input!$G$9-Ref!$C$41))*SIN(PI()/2-N38)/(Input!$C$9)))>Input!$G$29,3,2))),999) -> 999 | O42: =IF($V$35=1,IF(O38=999,999,IF(Input!$G$9+Input!$C$9*(PI()/2+O38-ASIN((Input!$C$9-TAN(O38)*(Input!$G$9-Ref!$C$41))*SIN(PI()/2-O38)/(Input!$C$9)))<=Input!$G$28,1,IF(Input!$G$9+Input!$C$9*(PI()/2+O38-ASIN((Input!$C$9-TAN(O38)*(Input!$G$9-Ref!$C$41))*SIN(PI()/2-O38)/(Input!$C$9)))>Input!$G$29,3,2))),999) -> 999 | Q42: =IF($V$35=1,IF(Q38=999,999,IF(Input!$G$9+Input!$C$9*(PI()/2+Q38-ASIN((Input!$C$9-TAN(Q38)*(Input!$G$9-Ref!$C$41))*SIN(PI()/2-Q38)/(Input!$C$9)))<=Input!$G$28,1,IF(Input!$G$9+Input!$C$9*(PI()/2+Q38-ASIN((Input!$C$9-TAN(Q38)*(Input!$G$9-Ref!$C$41))*SIN(PI()/2-Q38)/(Input!$C$9)))>Input!$G$29,3,2))),IF($V$35=2,IF(Q39=999,999,IF(Input!$G$9+Input!$C$9*(PI()/2+Q39-ASIN((Input!$C$9-TAN(Q39)*(Input!$G$9-Ref!$C$41))*SIN(PI()/2-Q39)/(Input!$C$9)))<=Input!$G$28,1,IF(Input!$G$9+Input!$C$9*(PI()/2+Q39-ASIN((Input!$C$9-TAN(Q39)*(Input!$G$9-Ref!$C$41))*SIN(PI()/2-Q39)/(Input!$C$9)))>Input!$G$29,3,2))),999)) -> 999 | R42: =IF($V$35=1,IF(R38=999,999,IF(Input!$G$9+Input!$C$9*(PI()/2+R38-ASIN((Input!$C$9-TAN(R38)*(Input!$G$9-Ref!$C$41))*SIN(PI()/2-R38)/(Input!$C$9)))<=Input!$G$28,1,IF(Input!$G$9+Input!$C$9*(PI()/2+R38-ASIN((Input!$C$9-TAN(R38)*(Input!$G$9-Ref!$C$41))*SIN(PI()/2-R38)/(Input!$C$9)))>Input!$G$29,3,2))),IF($V$35=2,IF(R39=999,999,IF(Input!$G$9+Input!$C$9*(PI()/2+R39-ASIN((Input!$C$9-TAN(R39)*(Input!$G$9-Ref!$C$41))*SIN(PI()/2-R39)/(Input!$C$9)))<=Input!$G$28,1,IF(Input!$G$9+Input!$C$9*(PI()/2+R39-ASIN((Input!$C$9-TAN(R39)*(Input!$G$9-Ref!$C$41))*SIN(PI()/2-R39)/(Input!$C$9)))>Input!$G$29,3,2))),999)) -> 999 | U42: =IF($V$35=1,IF(U38=999,999,IF(Input!$G$9+Input!$C$9*(PI()/2+U38-ASIN((Input!$C$9-TAN(U38)*(Input!$G$9-Ref!$C$41))*SIN(PI()/2-U38)/(Input!$C$9)))<=Input!$G$28,1,IF(Input!$G$9+Input!$C$9*(PI()/2+U38-ASIN((Input!$C$9-TAN(U38)*(Input!$G$9-Ref!$C$41))*SIN(PI()/2-U38)/(Input!$C$9)))>Input!$G$29,3,2))),IF($V$35=2,IF(U39=999,999,IF(Input!$G$9+Input!$C$9*(PI()/2+U39-ASIN((Input!$C$9-TAN(U39)*(Input!$G$9-Ref!$C$41))*SIN(PI()/2-U39)/(Input!$C$9)))<=Input!$G$28,1,IF(Input!$G$9+Input!$C$9*(PI()/2+U39-ASIN((Input!$C$9-TAN(U39)*(Input!$G$9-Ref!$C$41))*SIN(PI()/2-U39)/(Input!$C$9)))>Input!$G$29,3,2))),IF(U40=999,999,IF(Input!$G$9+Input!$C$9*(PI()/2+U40-ASIN((Input!$C$9-TAN(U40)*(Input!$G$9-Ref!$C$41))*SIN(PI()/2-U40)/(Input!$C$9)))<=Input!$G$28,1,IF(Input!$G$9+Input!$C$9*(PI()/2+U40-ASIN((Input!$C$9-TAN(U39)*(Input!$G$9-Ref!$C$41))*SIN(PI()/2-U40)/(Input!$C$9)))>Input!$G$29,3,2))))) -> 999 | V42: I Vertical Position (1,2,3)
B43: alpha= | E43: S'= | K43: zI3 | L43: =Input!$G$31+(Input!$G$9+Input!$C$9*Ref!C40-Input!$G$29)*Ref!F38/100+Ref!F39 -> -12.84 | M43: =IF(AND(M41=1,M42=1),1,999) -> 999 | N43: =IF(AND(N41=1,N42=2),1,999) -> 999 | O43: =IF(AND(O41=1,O42=3),1,999) -> 999 | Q43: =IF(AND(Q41=2,Q42=2),1,999) -> 999 | R43: =IF(AND(R41=2,R42=3),1,999) -> 999 | U43: =IF(AND(U41=3,U42=3),1,999) -> 999
M44: zT1 | P44: zT2 | S44: zT3
M45: zI1 | N45: zI2 | O45: zI3 | P45: zI1 | Q45: zI2 | R45: zI3 | S45: zI1 | T45: zI2 | U45: zI3
B46: 3D Sightline Condition 4 | E46: HT | F46: =Input!$C$35 -> 4 | J46: 4 | K46: zC1 | L46: =-(Input!$G$28-Ref!C52)*Ref!F48/100+Ref!F47 -> -9.88 | M46: =(L52-L46)/($C$54*COS($C$50)+Input!$G$9+Input!$C$9*TAN(Ref!$C$50/2)-Ref!$C$52)-(Ref!L49-Ref!L46)/(Input!$G$9+(Input!$C$9-Input!$C$14)*SIN(Ref!C48)-Ref!$C$52) -> 0.0002292286925 | N46: =(L53-L46)/($C$54*COS($C$50)+Input!$G$9+Input!$C$9*TAN(Ref!$C$50/2)-Ref!$C$52)-(Ref!L49-Ref!L46)/(Input!$G$9+(Input!$C$9-Input!$C$14)*SIN(Ref!C48)-Ref!$C$52) -> 0.06357755371 | O46: =(L54-L46)/($C$54*COS($C$50)+Input!$G$9+Input!$C$9*TAN(Ref!$C$50/2)-Ref!$C$52)-(Ref!L49-Ref!L46)/(Input!$G$9+(Input!$C$9-Input!$C$14)*SIN(Ref!C48)-Ref!$C$52) -> 0.05647365017 | Q46: =(L53-L46)/($C$54*COS($C$50)+Input!$G$9+Input!$C$9*TAN(Ref!$C$50/2)-Ref!$C$52)-(Ref!L50-Ref!L46)/(Input!$G$9+(Input!$C$9-Input!$C$14)*SIN(Ref!C48)-Ref!$C$52) -> 0.0006224533141 | R46: =(L54-L46)/($C$54*COS($C$50)+Input!$G$9+Input!$C$9*TAN(Ref!$C$50/2)-Ref!$C$52)-(Ref!L50-Ref!L46)/(Input!$G$9+(Input!$C$9-Input!$C$14)*SIN(Ref!C48)-Ref!$C$52) -> -0.006481450221 | U46: =(L54-L46)/($C$54*COS($C$50)+Input!$G$9+Input!$C$9*TAN(Ref!$C$50/2)-Ref!$C$52)-(Ref!L51-Ref!L46)/(Input!$G$9+(Input!$C$9-Input!$C$14)*SIN(Ref!C48)-Ref!$C$52) -> -0.002769380636 | V46: 2 | W46: =0
B47: alpha(rad)= | C47: =ATAN((Input!$C$9-Input!$C$14-(Input!$C$9-Input!$C$14)*COS(C48))/(Input!$G$9-$C$52+(Input!$C$9-Input!$C$14)*SIN(C48))) -> 0.2569584073 | E47: HC | F47: =Input!$C$34 -> 3.5 | K47: zC2 | L47: =Input!$G$30+Ref!F48/100*(Ref!C52-Input!$G$28)+(Ref!F49-Ref!F48)*(Ref!C52-Input!$G$28)^2/(200*Input!$C$29*5280)+Ref!F47 -> -4.228977273 | Q47: =(L53-L47)/($C$54*COS($C$50)+Input!$G$9+Input!$C$9*TAN(Ref!$C$50/2)-Ref!$C$52)-(Ref!L50-Ref!L47)/(Input!$G$9+(Input!$C$9-Input!$C$14)*SIN(Ref!C48)-Ref!$C$52) -> 0.002061648493 | R47: =(L54-L47)/($C$54*COS($C$50)+Input!$G$9+Input!$C$9*TAN(Ref!$C$50/2)-Ref!$C$52)-(Ref!L50-Ref!L47)/(Input!$G$9+(Input!$C$9-Input!$C$14)*SIN(Ref!C48)-Ref!$C$52) -> -0.005042255042 | U47: =(L54-L47)/($C$54*COS($C$50)+Input!$G$9+Input!$C$9*TAN(Ref!$C$50/2)-Ref!$C$52)-(Ref!L51-Ref!L47)/(Input!$G$9+(Input!$C$9-Input!$C$14)*SIN(Ref!C48)-Ref!$C$52) -> -0.001330185456
B48: beta(rad)= | C48: 0.5642297829 | E48: G1 | F48: =Input!$C$30 -> -3 | K48: zC3 | L48: =Input!$G$31+(Ref!C52-Input!$G$29)*Ref!F49/100+Ref!F47 -> -14.8 | U48: =(L54-L48)/($C$54*COS($C$50)+Input!$G$9+Input!$C$9*TAN(Ref!$C$50/2)-Ref!$C$52)-(Ref!L51-Ref!L48)/(Input!$G$9+(Input!$C$9-Input!$C$14)*SIN(Ref!C48)-Ref!$C$52) -> -0.00402239989
B49: 0= | E49: G2 | F49: =Input!$C$31 -> 3 | K49: zT1 | L49: =-(Input!$G$28-Input!$G$9-Input!$C$9*Ref!C48)*Ref!F48/100+Ref!F46 -> -37.8397084 | M49: 999 | N49: 999 | O49: 999 | Q49: 999 | R49: 999 | U49: 999 | V49: zC1 | W49: Beta | X49: =999 if no alpha found
B50: Delta(rad)= | C50: =Input!G11 -> 1.03125 | E50: Hmin | F50: =Input!$C$36 -> 2 | K50: zT2 | L50: =Input!$G$30+Ref!F48/100*(Input!$G$9+Input!$C$9*Ref!C48-Input!$G$28)+(Ref!F49-Ref!F48)*(Input!$G$9+Input!$C$9*Ref!C48-Input!$G$28)^2/(200*Input!$C$29*5280)+Ref!F46 -> 17.4179052 | Q50: 999 | R50: 999 | U50: 999 | V50: zC2
B51: U= | C51: =(SIN(C47)*(Input!$G$9-C52+Input!$C$9*TAN(Input!$G$11/2)))/SIN(Input!$G$11-C47) -> 346.2224507 | E51: Use solver to find a theta that makes C44=0 | K51: zT3 | L51: =Input!$G$31+(Input!$G$9+Input!$C$9*Ref!C48-Input!$G$29)*Ref!F49/100+Ref!F46 -> 14.1597084 | U51: 999 | V51: zC3
B52: E= | C52: 600 | K52: zI1 | L52: =-(Input!$G$28-Input!$G$9-Input!$C$9*Ref!C50-C54+Input!$C$9*TAN(Ref!C50/2))*Ref!F48/100+Ref!F50 -> -45.63004714 | M52: =IF($V$46=1,IF(M49=999,999,IF(Input!$G$9+Input!$C$9*M49<=Input!$G$28,1,IF(Input!$G$9+Input!$C$9*M49>Input!$G$29,3,2))),999) -> 999 | N52: =IF($V$46=1,IF(N49=999,999,IF(Input!$G$9+Input!$C$9*N49<=Input!$G$28,1,IF(Input!$G$9+Input!$C$9*N49>Input!$G$29,3,2))),999) -> 999 | O52: =IF($V$46=1,IF(O49=999,999,IF(Input!$G$9+Input!$C$9*O49<=Input!$G$28,1,IF(Input!$G$9+Input!$C$9*O49>Input!$G$29,3,2))),999) -> 999 | Q52: =IF($V$46=1,IF(Q49=999,999,IF(Input!$G$9+Input!$C$9*Q49<=Input!$G$28,1,IF(Input!$G$9+Input!$C$9*Q49>Input!$G$29,3,2))),IF($V$46=2,IF(Q50=999,999,IF(Input!$G$9+Input!$C$9*Q50<=Input!$G$28,1,IF(Input!$G$9+Input!$C$9*Q50>Input!$G$29,3,2))),999)) -> 999 | R52: =IF($V$46=1,IF(R49=999,999,IF(Input!$G$9+Input!$C$9*R49<=Input!$G$28,1,IF(Input!$G$9+Input!$C$9*R49>Input!$G$29,3,2))),IF($V$46=2,IF(R50=999,999,IF(Input!$G$9+Input!$C$9*R50<=Input!$G$28,1,IF(Input!$G$9+Input!$C$9*R50>Input!$G$29,3,2))),999)) -> 999 | U52: =IF($V$46=1,IF(U49=999,999,IF(Input!$G$9+Input!$C$9*U49<=Input!$G$28,1,IF(Input!$G$9+Input!$C$9*U49>Input!$G$29,3,2))),IF($V$46=2,IF(U50=999,999,IF(Input!$G$9+Input!$C$9*U50<=Input!$G$28,1,IF(Input!$G$9+Input!$C$9*U50>Input!$G$29,3,2))),IF(U51=999,999,IF(Input!$G$9+Input!$C$9*U51<=Input!$G$28,1,IF(Input!$G$9+Input!$C$9*U51>Input!$G$29,3,2))))) -> 999 | V52: T Vertical Position (1,2,3)
K53: zI2 | L53: =Input!$G$30+Ref!F48/100*(Input!$G$9+Input!$C$9*Ref!C50+C54-Input!$C$9*TAN(Ref!C50/2)-Input!$G$28)+(Ref!F49-Ref!F48)*(Input!$G$9+Input!$C$9*Ref!C50+C54-Input!$C$9*TAN(Ref!C50/2)-Input!$G$28)^2/(200*Input!$C$29*5280)+Ref!F50 -> 25.98047655 | M53: =IF($V$46=1,IF(M49=999,999,IF(Input!$G$9+Input!$C$9*$C$50+SIN(ATAN((Input!$C$9-Input!$C$14-(Input!$C$9-Input!$C$14)*COS(M49))/(Input!$G$9-$C$52+(Input!$C$9-Input!$C$14)*SIN(M49))))*(Input!$G$9-Ref!$C$52+Input!$C$9*TAN(Ref!$C$50/2))/SIN(Ref!$C$50-ATAN((Input!$C$9-Input!$C$14-(Input!$C$9-Input!$C$14)*COS(M49))/(Input!$G$9-$C$52+(Input!$C$9-Input!$C$14)*SIN(M49))))<=Input!$G$28,1,IF(Input!$G$9+Input!$C$9*$C$50+SIN(ATAN((Input!$C$9-Input!$C$14-(Input!$C$9-Input!$C$14)*COS(M49))/(Input!$G$9-$C$52+(Input!$C$9-Input!$C$14)*SIN(M49))))*(Input!$G$9-Ref!$C$52+Input!$C$9*TAN(Ref!$C$50/2))/SIN(Ref!$C$50-ATAN((Input!$C$9-Input!$C$14-(Input!$C$9-Input!$C$14)*COS(M49))/(Input!$G$9-$C$52+(Input!$C$9-Input!$C$14)*SIN(M49))))>Input!$G$29,3,2))),999) -> 999 | N53: =IF($V$46=1,IF(N49=999,999,IF(Input!$G$9+Input!$C$9*$C$50+SIN(ATAN((Input!$C$9-Input!$C$14-(Input!$C$9-Input!$C$14)*COS(N49))/(Input!$G$9-$C$52+(Input!$C$9-Input!$C$14)*SIN(N49))))*(Input!$G$9-Ref!$C$52+Input!$C$9*TAN(Ref!$C$50/2))/SIN(Ref!$C$50-ATAN((Input!$C$9-Input!$C$14-(Input!$C$9-Input!$C$14)*COS(N49))/(Input!$G$9-$C$52+(Input!$C$9-Input!$C$14)*SIN(N49))))<=Input!$G$28,1,IF(Input!$G$9+Input!$C$9*$C$50+SIN(ATAN((Input!$C$9-Input!$C$14-(Input!$C$9-Input!$C$14)*COS(N49))/(Input!$G$9-$C$52+(Input!$C$9-Input!$C$14)*SIN(N49))))*(Input!$G$9-Ref!$C$52+Input!$C$9*TAN(Ref!$C$50/2))/SIN(Ref!$C$50-ATAN((Input!$C$9-Input!$C$14-(Input!$C$9-Input!$C$14)*COS(N49))/(Input!$G$9-$C$52+(Input!$C$9-Input!$C$14)*SIN(N49))))>Input!$G$29,3,2))),999) -> 999 | O53: =IF($V$46=1,IF(O49=999,999,IF(Input!$G$9+Input!$C$9*$C$50+SIN(ATAN((Input!$C$9-Input!$C$14-(Input!$C$9-Input!$C$14)*COS(O49))/(Input!$G$9-$C$52+(Input!$C$9-Input!$C$14)*SIN(O49))))*(Input!$G$9-Ref!$C$52+Input!$C$9*TAN(Ref!$C$50/2))/SIN(Ref!$C$50-ATAN((Input!$C$9-Input!$C$14-(Input!$C$9-Input!$C$14)*COS(O49))/(Input!$G$9-$C$52+(Input!$C$9-Input!$C$14)*SIN(O49))))<=Input!$G$28,1,IF(Input!$G$9+Input!$C$9*$C$50+SIN(ATAN((Input!$C$9-Input!$C$14-(Input!$C$9-Input!$C$14)*COS(O49))/(Input!$G$9-$C$52+(Input!$C$9-Input!$C$14)*SIN(O49))))*(Input!$G$9-Ref!$C$52+Input!$C$9*TAN(Ref!$C$50/2))/SIN(Ref!$C$50-ATAN((Input!$C$9-Input!$C$14-(Input!$C$9-Input!$C$14)*COS(O49))/(Input!$G$9-$C$52+(Input!$C$9-Input!$C$14)*SIN(O49))))>Input!$G$29,3,2))),999) -> 999 | Q53: =IF($V$46=1,IF(Q49=999,999,IF(Input!$G$9+Input!$C$9*$C$50+SIN(ATAN((Input!$C$9-Input!$C$14-(Input!$C$9-Input!$C$14)*COS(Q49))/(Input!$G$9-$C$52+(Input!$C$9-Input!$C$14)*SIN(Q49))))*(Input!$G$9-Ref!$C$52+Input!$C$9*TAN(Ref!$C$50/2))/SIN(Ref!$C$50-ATAN((Input!$C$9-Input!$C$14-(Input!$C$9-Input!$C$14)*COS(Q49))/(Input!$G$9-$C$52+(Input!$C$9-Input!$C$14)*SIN(Q49))))<=Input!$G$28,1,IF(Input!$G$9+Input!$C$9*$C$50+SIN(ATAN((Input!$C$9-Input!$C$14-(Input!$C$9-Input!$C$14)*COS(Q49))/(Input!$G$9-$C$52+(Input!$C$9-Input!$C$14)*SIN(Q49))))*(Input!$G$9-Ref!$C$52+Input!$C$9*TAN(Ref!$C$50/2))/SIN(Ref!$C$50-ATAN((Input!$C$9-Input!$C$14-(Input!$C$9-Input!$C$14)*COS(Q49))/(Input!$G$9-$C$52+(Input!$C$9-Input!$C$14)*SIN(Q49))))>Input!$G$29,3,2))),IF($V$46=2,IF(Q50=999,999,IF(Input!$G$9+Input!$C$9*$C$50+SIN(ATAN((Input!$C$9-Input!$C$14-(Input!$C$9-Input!$C$14)*COS(Q50))/(Input!$G$9-$C$52+(Input!$C$9-Input!$C$14)*SIN(Q50))))*(Input!$G$9-Ref!$C$52+Input!$C$9*TAN(Ref!$C$50/2))/SIN(Ref!$C$50-ATAN((Input!$C$9-Input!$C$14-(Input!$C$9-Input!$C$14)*COS(Q50))/(Input!$G$9-$C$52+(Input!$C$9-Input!$C$14)*SIN(Q50))))<=Input!$G$28,1,IF(Input!$G$9+Input!$C$9*$C$50+SIN(ATAN((Input!$C$9-Input!$C$14-(Input!$C$9-Input!$C$14)*COS(Q50))/(Input!$G$9-$C$52+(Input!$C$9-Input!$C$14)*SIN(Q50))))*(Input!$G$9-Ref!$C$52+Input!$C$9*TAN(Ref!$C$50/2))/SIN(Ref!$C$50-ATAN((Input!$C$9-Input!$C$14-(Input!$C$9-Input!$C$14)*COS(Q50))/(Input!$G$9-$C$52+(Input!$C$9-Input!$C$14)*SIN(Q50))))>Input!$G$29,3,2))),999)) -> 999 | R53: =IF($V$46=1,IF(R49=999,999,IF(Input!$G$9+Input!$C$9*$C$50+SIN(ATAN((Input!$C$9-Input!$C$14-(Input!$C$9-Input!$C$14)*COS(R49))/(Input!$G$9-$C$52+(Input!$C$9-Input!$C$14)*SIN(R49))))*(Input!$G$9-Ref!$C$52+Input!$C$9*TAN(Ref!$C$50/2))/SIN(Ref!$C$50-ATAN((Input!$C$9-Input!$C$14-(Input!$C$9-Input!$C$14)*COS(R49))/(Input!$G$9-$C$52+(Input!$C$9-Input!$C$14)*SIN(R49))))<=Input!$G$28,1,IF(Input!$G$9+Input!$C$9*$C$50+SIN(ATAN((Input!$C$9-Input!$C$14-(Input!$C$9-Input!$C$14)*COS(R49))/(Input!$G$9-$C$52+(Input!$C$9-Input!$C$14)*SIN(R49))))*(Input!$G$9-Ref!$C$52+Input!$C$9*TAN(Ref!$C$50/2))/SIN(Ref!$C$50-ATAN((Input!$C$9-Input!$C$14-(Input!$C$9-Input!$C$14)*COS(R49))/(Input!$G$9-$C$52+(Input!$C$9-Input!$C$14)*SIN(R49))))>Input!$G$29,3,2))),IF($V$46=2,IF(R50=999,999,IF(Input!$G$9+Input!$C$9*$C$50+SIN(ATAN((Input!$C$9-Input!$C$14-(Input!$C$9-Input!$C$14)*COS(R50))/(Input!$G$9-$C$52+(Input!$C$9-Input!$C$14)*SIN(R50))))*(Input!$G$9-Ref!$C$52+Input!$C$9*TAN(Ref!$C$50/2))/SIN(Ref!$C$50-ATAN((Input!$C$9-Input!$C$14-(Input!$C$9-Input!$C$14)*COS(R50))/(Input!$G$9-$C$52+(Input!$C$9-Input!$C$14)*SIN(R50))))<=Input!$G$28,1,IF(Input!$G$9+Input!$C$9*$C$50+SIN(ATAN((Input!$C$9-Input!$C$14-(Input!$C$9-Input!$C$14)*COS(R50))/(Input!$G$9-$C$52+(Input!$C$9-Input!$C$14)*SIN(R50))))*(Input!$G$9-Ref!$C$52+Input!$C$9*TAN(Ref!$C$50/2))/SIN(Ref!$C$50-ATAN((Input!$C$9-Input!$C$14-(Input!$C$9-Input!$C$14)*COS(R50))/(Input!$G$9-$C$52+(Input!$C$9-Input!$C$14)*SIN(R50))))>Input!$G$29,3,2))),999)) -> 999 | U53: =IF($V$46=1,IF(U49=999,999,IF(Input!$G$9+Input!$C$9*$C$50+SIN(ATAN((Input!$C$9-Input!$C$14-(Input!$C$9-Input!$C$14)*COS(U49))/(Input!$G$9-$C$52+(Input!$C$9-Input!$C$14)*SIN(U49))))*(Input!$G$9-Ref!$C$52+Input!$C$9*TAN(Ref!$C$50/2))/SIN(Ref!$C$50-ATAN((Input!$C$9-Input!$C$14-(Input!$C$9-Input!$C$14)*COS(U49))/(Input!$G$9-$C$52+(Input!$C$9-Input!$C$14)*SIN(U49))))<=Input!$G$28,1,IF(Input!$G$9+Input!$C$9*$C$50+SIN(ATAN((Input!$C$9-Input!$C$14-(Input!$C$9-Input!$C$14)*COS(U49))/(Input!$G$9-$C$52+(Input!$C$9-Input!$C$14)*SIN(U49))))*(Input!$G$9-Ref!$C$52+Input!$C$9*TAN(Ref!$C$50/2))/SIN(Ref!$C$50-ATAN((Input!$C$9-Input!$C$14-(Input!$C$9-Input!$C$14)*COS(U49))/(Input!$G$9-$C$52+(Input!$C$9-Input!$C$14)*SIN(U49))))>Input!$G$29,3,2))),IF($V$46=2,IF(U50=999,999,IF(Input!$G$9+Input!$C$9*$C$50+SIN(ATAN((Input!$C$9-Input!$C$14-(Input!$C$9-Input!$C$14)*COS(U50))/(Input!$G$9-$C$52+(Input!$C$9-Input!$C$14)*SIN(U50))))*(Input!$G$9-Ref!$C$52+Input!$C$9*TAN(Ref!$C$50/2))/SIN(Ref!$C$50-ATAN((Input!$C$9-Input!$C$14-(Input!$C$9-Input!$C$14)*COS(U50))/(Input!$G$9-$C$52+(Input!$C$9-Input!$C$14)*SIN(U50))))<=Input!$G$28,1,IF(Input!$G$9+Input!$C$9*$C$50+SIN(ATAN((Input!$C$9-Input!$C$14-(Input!$C$9-Input!$C$14)*COS(U50))/(Input!$G$9-$C$52+(Input!$C$9-Input!$C$14)*SIN(U50))))*(Input!$G$9-Ref!$C$52+Input!$C$9*TAN(Ref!$C$50/2))/SIN(Ref!$C$50-ATAN((Input!$C$9-Input!$C$14-(Input!$C$9-Input!$C$14)*COS(U50))/(Input!$G$9-$C$52+(Input!$C$9-Input!$C$14)*SIN(U50))))>Input!$G$29,3,2))),IF(U51=999,999,IF(Input!$G$9+Input!$C$9*$C$50+SIN(ATAN((Input!$C$9-Input!$C$14-(Input!$C$9-Input!$C$14)*COS(U51))/(Input!$G$9-$C$52+(Input!$C$9-Input!$C$14)*SIN(U51))))*(Input!$G$9-Ref!$C$52+Input!$C$9*TAN(Ref!$C$50/2))/SIN(Ref!$C$50-ATAN((Input!$C$9-Input!$C$14-(Input!$C$9-Input!$C$14)*COS(U51))/(Input!$G$9-$C$52+(Input!$C$9-Input!$C$14)*SIN(U51))))<=Input!$G$28,1,IF(Input!$G$9+Input!$C$9*$C$50+SIN(ATAN((Input!$C$9-Input!$C$14-(Input!$C$9-Input!$C$14)*COS(U51))/(Input!$G$9-$C$52+(Input!$C$9-Input!$C$14)*SIN(U51))))*(Input!$G$9-Ref!$C$52+Input!$C$9*TAN(Ref!$C$50/2))/SIN(Ref!$C$50-ATAN((Input!$C$9-Input!$C$14-(Input!$C$9-Input!$C$14)*COS(U51))/(Input!$G$9-$C$52+(Input!$C$9-Input!$C$14)*SIN(U51))))>Input!$G$29,3,2))))) -> 999 | V53: I Vertical Position (1,2,3)
B54: U= | C54: =(SIN(C47)*(Input!$G$9-C52+Input!$C$9*TAN(Input!$G$11/2)))/SIN(Input!$G$11-C47) -> 346.2224507 | E54: S'= | K54: zI3 | L54: =Input!$G$31+(Input!$G$9+Input!$C$9*Ref!C50+C54-Input!$C$9*TAN(Ref!C50/2)-Input!$G$29)*Ref!F49/100+Ref!F50 -> 17.95004714 | M54: =IF(AND(M52=1,M53=1),1,999) -> 999 | N54: =IF(AND(N52=1,N53=2),1,999) -> 999 | O54: =IF(AND(O52=1,O53=3),1,999) -> 999 | Q54: =IF(AND(Q52=2,Q53=2),1,999) -> 999 | R54: =IF(AND(R52=2,R53=3),1,999) -> 999 | U54: =IF(AND(U52=3,U53=3),1,999) -> 999
M55: zT1 | P55: zT2 | S55: zT3
M56: zI1 | N56: zI2 | O56: zI3 | P56: zI1 | Q56: zI2 | R56: zI3 | S56: zI1 | T56: zI2 | U56: zI3
B57: 3D Sightline Condition 5 | E57: HT | F57: =Input!$C$35 -> 4 | J57: 5 | K57: zC1 | L57: =-(Input!$G$28-Ref!C63)*Ref!F59/100+Ref!F58 -> -9.88 | M57: =(L57-L63)/($C$62*COS(Input!$G$11)+Input!$G$9+Input!$C$9*TAN(Input!$G$11/2)-Ref!$C$58)-(Ref!L60-Ref!L63)/(Input!$C$14/TAN(Ref!$C$59)) ->  | N57: =(L57-L64)/($C$62*COS(Input!$G$11)+Input!$G$9+Input!$C$9*TAN(Input!$G$11/2)-Ref!$C$58)-(Ref!L60-Ref!L64)/(Input!$C$14/TAN(Ref!$C$59)) ->  | O57: =(L57-L65)/($C$62*COS(Input!$G$11)+Input!$G$9+Input!$C$9*TAN(Input!$G$11/2)-Ref!$C$58)-(Ref!L60-Ref!L65)/(Input!$C$14/TAN(Ref!$C$59)) ->  | Q57: =(L57-L64)/($C$62*COS(Input!$G$11)+Input!$G$9+Input!$C$9*TAN(Input!$G$11/2)-Ref!$C$58)-(Ref!L61-Ref!L64)/(Input!$C$14/TAN(Ref!$C$59)) ->  | R57: =(L57-L65)/($C$62*COS(Input!$G$11)+Input!$G$9+Input!$C$9*TAN(Input!$G$11/2)-Ref!$C$58)-(Ref!L61-Ref!L65)/(Input!$C$14/TAN(Ref!$C$59)) ->  | U57: =(L57-L65)/($C$62*COS(Input!$G$11)+Input!$G$9+Input!$C$9*TAN(Input!$G$11/2)-Ref!$C$58)-(Ref!L62-Ref!L65)/(Input!$C$14/TAN(Ref!$C$59)) ->  | V57: 2 | W57: =0
B58: N= | C58: =Input!$G$9+Input!$C$9*TAN(Input!$G$11/2)-SIN(Input!$G$11-C59)/SIN(C59)*(Input!$G$9-C63+Input!$C$9*TAN(Input!$G$11/2)) ->  | E58: HC | F58: =Input!$C$34 -> 3.5 | K58: zC2 | L58: =Input!$G$30+Ref!F59/100*(Ref!C63-Input!$G$28)+(Ref!F60-Ref!F59)*(Ref!C63-Input!$G$28)^2/(200*Input!$C$29*5280)+Ref!F58 -> -4.228977273 | Q58: =(L58-L64)/($C$62*COS(Input!$G$11)+Input!$G$9+Input!$C$9*TAN(Input!$G$11/2)-Ref!$C$58)-(Ref!L61-Ref!L64)/(Input!$C$14/TAN(Ref!$C$59)) ->  | R58: =(L58-L65)/($C$62*COS(Input!$G$11)+Input!$G$9+Input!$C$9*TAN(Input!$G$11/2)-Ref!$C$58)-(Ref!L61-Ref!L65)/(Input!$C$14/TAN(Ref!$C$59)) ->  | U58: =(L58-L65)/($C$62*COS(Input!$G$11)+Input!$G$9+Input!$C$9*TAN(Input!$G$11/2)-Ref!$C$58)-(Ref!L62-Ref!L65)/(Input!$C$14/TAN(Ref!$C$59)) -> 
B59: alpha(rad)= | C59: 0 | E59: G1 | F59: =Input!$C$30 -> -3 | K59: zC3 | L59: =Input!$G$31+(Ref!C63-Input!$G$29)*Ref!F60/100+Ref!F58 -> -14.8 | U59: =(L59-L65)/($C$62*COS(Input!$G$11)+Input!$G$9+Input!$C$9*TAN(Input!$G$11/2)-Ref!$C$58)-(Ref!L62-Ref!L65)/(Input!$C$14/TAN(Ref!$C$59)) -> 
B60: 0= | E60: G2 | F60: =Input!$C$31 -> 3 | K60: zT1 | L60: =-(Input!$G$28-Input!$G$9-Input!$C$9*Input!$G$11-(Input!$G$9-Ref!C58-Input!$C$14/TAN(Ref!C59)))*Ref!F59/100+Ref!F57 ->  | M60: 999 | N60: 999 | O60: 999 | Q60: 999 | R60: 999 | U60: 999 | V60: zC1 | W60: Alpha | X60: =999 if no alpha found
B61: B2= | C61: =Input!$C$10*5280+Input!$G$9-Ref!$C$58-Input!$C$14/TAN(Ref!$C$59) ->  | E61: Hmin | F61: =Input!$C$36 -> 2 | K61: zT2 | L61: =Input!$G$30+Ref!F59/100*(Input!$G$9+Input!$C$9*Input!$G$11+(Input!$G$9-Ref!C58-Input!$C$14/TAN(Ref!C59))-Input!$G$28)+(Ref!F60-Ref!F59)*(Input!$G$9+Input!$C$9*Input!$G$11+(Input!$G$9-Ref!C58-Input!$C$14/TAN(Ref!C59))-Input!$G$28)^2/(200*Input!$C$10*5280)+Ref!F57 ->  | Q61: 999 | R61: 999 | U61: 999 | V61: zC2
B62: U= | C62: =Input!$G$9-C63+Input!$C$9*TAN(Input!$G$11/2) -> 952.5542127 | E62: Use solver to find a theta that makes C44=0 | K62: zT3 | L62: =Input!$G$31+(Input!$G$9+Input!$C$9*Input!$G$11+(Input!$G$9-Ref!C58-Input!$C$14/TAN(Ref!C59))-Input!$G$29)*Ref!F60/100+Ref!F57 ->  | U62: 999 | V62: zC3
B63: E= | C63: 600 | K63: zI1 | L63: =-(Input!$G$28-Input!$G$9-Input!$C$9*Input!$G$11-(Input!$G$9-Ref!C58))*Ref!F59/100+Ref!F57 ->  | M63: =IF($V$57=1,IF(M60=999,999,IF(Input!$G$9+Input!$C$9*Input!$G$11+(Input!$G$9-(Input!$G$9+Input!$C$9*TAN(Input!$G$11/2)-SIN(Input!$G$11-M60)/SIN(M60)*(Input!$G$9-$C$63+Input!$C$9*TAN(Input!$G$11/2)))-Input!$C$14/TAN(M60))<=Input!$G$28,1,IF(Input!$G$9+Input!$C$9*Input!$G$11+(Input!$G$9-(Input!$G$9+Input!$C$9*TAN(Input!$G$11/2)-SIN(Input!$G$11-M60)/SIN(M60)*(Input!$G$9-$C$63+Input!$C$9*TAN(Input!$G$11/2)))-Input!$C$14/TAN(M60))>Input!$G$29,3,2))),999) -> 999 | N63: =IF($V$57=1,IF(N60=999,999,IF(Input!$G$9+Input!$C$9*Input!$G$11+(Input!$G$9-(Input!$G$9+Input!$C$9*TAN(Input!$G$11/2)-SIN(Input!$G$11-N60)/SIN(N60)*(Input!$G$9-$C$63+Input!$C$9*TAN(Input!$G$11/2)))-Input!$C$14/TAN(N60))<=Input!$G$28,1,IF(Input!$G$9+Input!$C$9*Input!$G$11+(Input!$G$9-(Input!$G$9+Input!$C$9*TAN(Input!$G$11/2)-SIN(Input!$G$11-N60)/SIN(N60)*(Input!$G$9-$C$63+Input!$C$9*TAN(Input!$G$11/2)))-Input!$C$14/TAN(N60))>Input!$G$29,3,2))),999) -> 999 | O63: =IF($V$57=1,IF(O60=999,999,IF(Input!$G$9+Input!$C$9*Input!$G$11+(Input!$G$9-(Input!$G$9+Input!$C$9*TAN(Input!$G$11/2)-SIN(Input!$G$11-O60)/SIN(O60)*(Input!$G$9-$C$63+Input!$C$9*TAN(Input!$G$11/2)))-Input!$C$14/TAN(O60))<=Input!$G$28,1,IF(Input!$G$9+Input!$C$9*Input!$G$11+(Input!$G$9-(Input!$G$9+Input!$C$9*TAN(Input!$G$11/2)-SIN(Input!$G$11-O60)/SIN(O60)*(Input!$G$9-$C$63+Input!$C$9*TAN(Input!$G$11/2)))-Input!$C$14/TAN(O60))>Input!$G$29,3,2))),999) -> 999 | Q63: =IF($V$57=1,IF(Q60=999,999,IF(Input!$G$9+Input!$C$9*Input!$G$11+(Input!$G$9-(Input!$G$9+Input!$C$9*TAN(Input!$G$11/2)-SIN(Input!$G$11-Q60)/SIN(Q60)*(Input!$G$9-$C$63+Input!$C$9*TAN(Input!$G$11/2)))-Input!$C$14/TAN(Q60))<=Input!$G$28,1,IF(Input!$G$9+Input!$C$9*Input!$G$11+(Input!$G$9-(Input!$G$9+Input!$C$9*TAN(Input!$G$11/2)-SIN(Input!$G$11-Q60)/SIN(Q60)*(Input!$G$9-$C$63+Input!$C$9*TAN(Input!$G$11/2)))-Input!$C$14/TAN(Q60))>Input!$G$29,3,2))),IF($V$57=2,IF(Q61=999,999,IF(Input!$G$9+Input!$C$9*Input!$G$11+(Input!$G$9-(Input!$G$9+Input!$C$9*TAN(Input!$G$11/2)-SIN(Input!$G$11-Q61)/SIN(Q61)*(Input!$G$9-$C$63+Input!$C$9*TAN(Input!$G$11/2)))-Input!$C$14/TAN(Q61))<=Input!$G$28,1,IF(Input!$G$9+Input!$C$9*Input!$G$11+(Input!$G$9-(Input!$G$9+Input!$C$9*TAN(Input!$G$11/2)-SIN(Input!$G$11-Q61)/SIN(Q61)*(Input!$G$9-$C$63+Input!$C$9*TAN(Input!$G$11/2)))-Input!$C$14/TAN(Q61))>Input!$G$29,3,2))),999)) -> 999 | R63: =IF($V$57=1,IF(R60=999,999,IF(Input!$G$9+Input!$C$9*Input!$G$11+(Input!$G$9-(Input!$G$9+Input!$C$9*TAN(Input!$G$11/2)-SIN(Input!$G$11-R60)/SIN(R60)*(Input!$G$9-$C$63+Input!$C$9*TAN(Input!$G$11/2)))-Input!$C$14/TAN(R60))<=Input!$G$28,1,IF(Input!$G$9+Input!$C$9*Input!$G$11+(Input!$G$9-(Input!$G$9+Input!$C$9*TAN(Input!$G$11/2)-SIN(Input!$G$11-R60)/SIN(R60)*(Input!$G$9-$C$63+Input!$C$9*TAN(Input!$G$11/2)))-Input!$C$14/TAN(R60))>Input!$G$29,3,2))),IF($V$57=2,IF(R61=999,999,IF(Input!$G$9+Input!$C$9*Input!$G$11+(Input!$G$9-(Input!$G$9+Input!$C$9*TAN(Input!$G$11/2)-SIN(Input!$G$11-R61)/SIN(R61)*(Input!$G$9-$C$63+Input!$C$9*TAN(Input!$G$11/2)))-Input!$C$14/TAN(R61))<=Input!$G$28,1,IF(Input!$G$9+Input!$C$9*Input!$G$11+(Input!$G$9-(Input!$G$9+Input!$C$9*TAN(Input!$G$11/2)-SIN(Input!$G$11-R61)/SIN(R61)*(Input!$G$9-$C$63+Input!$C$9*TAN(Input!$G$11/2)))-Input!$C$14/TAN(R61))>Input!$G$29,3,2))),999)) -> 999 | U63: =IF($V$57=1,IF(U60=999,999,IF(Input!$G$9+Input!$C$9*Input!$G$11+(Input!$G$9-(Input!$G$9+Input!$C$9*TAN(Input!$G$11/2)-SIN(Input!$G$11-U60)/SIN(U60)*(Input!$G$9-$C$63+Input!$C$9*TAN(Input!$G$11/2)))-Input!$C$14/TAN(U60))<=Input!$G$28,1,IF(Input!$G$9+Input!$C$9*Input!$G$11+(Input!$G$9-(Input!$G$9+Input!$C$9*TAN(Input!$G$11/2)-SIN(Input!$G$11-U60)/SIN(U60)*(Input!$G$9-$C$63+Input!$C$9*TAN(Input!$G$11/2)))-Input!$C$14/TAN(U60))>Input!$G$29,3,2))),IF($V$57=2,IF(U61=999,999,IF(Input!$G$9+Input!$C$9*Input!$G$11+(Input!$G$9-(Input!$G$9+Input!$C$9*TAN(Input!$G$11/2)-SIN(Input!$G$11-U61)/SIN(U61)*(Input!$G$9-$C$63+Input!$C$9*TAN(Input!$G$11/2)))-Input!$C$14/TAN(U61))<=Input!$G$28,1,IF(Input!$G$9+Input!$C$9*Input!$G$11+(Input!$G$9-(Input!$G$9+Input!$C$9*TAN(Input!$G$11/2)-SIN(Input!$G$11-U61)/SIN(U61)*(Input!$G$9-$C$63+Input!$C$9*TAN(Input!$G$11/2)))-Input!$C$14/TAN(U61))>Input!$G$29,3,2))),IF(U62=999,999,IF(Input!$G$9+Input!$C$9*Input!$G$11+(Input!$G$9-(Input!$G$9+Input!$C$9*TAN(Input!$G$11/2)-SIN(Input!$G$11-U62)/SIN(U61)*(Input!$G$9-$C$63+Input!$C$9*TAN(Input!$G$11/2)))-Input!$C$14/TAN(U62))<=Input!$G$28,1,IF(Input!$G$9+Input!$C$9*Input!$G$11+(Input!$G$9-(Input!$G$9+Input!$C$9*TAN(Input!$G$11/2)-SIN(Input!$G$11-U62)/SIN(U62)*(Input!$G$9-$C$63+Input!$C$9*TAN(Input!$G$11/2)))-Input!$C$14/TAN(U62))>Input!$G$29,3,2))))) -> 999 | V63: T Vertical Position (1,2,3)
K64: zI2 | L64: =Input!$G$30+Ref!F59/100*(Input!$G$9+Input!$C$9*Input!$G$11+(Input!$G$9-Ref!C58)-Input!$G$28)+(Ref!F60-Ref!F59)*(Input!$G$9+Input!$C$9*Input!$G$11+(Input!$G$9-Ref!C58)-Input!$G$28)^2/(200*Input!$C$10*5280)+Ref!F57 ->  | M64: =IF($V$57=1,IF(M60=999,999,IF(Input!$G$9+Input!$C$9*Input!$G$11+(Input!$G$9-(Input!$G$9+Input!$C$9*TAN(Input!$G$11/2)-SIN(Input!$G$11-M60)/SIN(M60)*(Input!$G$9-$C$63+Input!$C$9*TAN(Input!$G$11/2))))<=Input!$G$28,1,IF(Input!$G$9+Input!$C$9*Input!$G$11+(Input!$G$9-(Input!$G$9+Input!$C$9*TAN(Input!$G$11/2)-SIN(Input!$G$11-M60)/SIN(M60)*(Input!$G$9-$C$63+Input!$C$9*TAN(Input!$G$11/2))))>Input!$G$29,3,2))),999) -> 999 | N64: =IF($V$57=1,IF(N60=999,999,IF(Input!$G$9+Input!$C$9*Input!$G$11+(Input!$G$9-(Input!$G$9+Input!$C$9*TAN(Input!$G$11/2)-SIN(Input!$G$11-N60)/SIN(N60)*(Input!$G$9-$C$63+Input!$C$9*TAN(Input!$G$11/2))))<=Input!$G$28,1,IF(Input!$G$9+Input!$C$9*Input!$G$11+(Input!$G$9-(Input!$G$9+Input!$C$9*TAN(Input!$G$11/2)-SIN(Input!$G$11-N60)/SIN(N60)*(Input!$G$9-$C$63+Input!$C$9*TAN(Input!$G$11/2))))>Input!$G$29,3,2))),999) -> 999 | O64: =IF($V$57=1,IF(O60=999,999,IF(Input!$G$9+Input!$C$9*Input!$G$11+(Input!$G$9-(Input!$G$9+Input!$C$9*TAN(Input!$G$11/2)-SIN(Input!$G$11-O60)/SIN(O60)*(Input!$G$9-$C$63+Input!$C$9*TAN(Input!$G$11/2))))<=Input!$G$28,1,IF(Input!$G$9+Input!$C$9*Input!$G$11+(Input!$G$9-(Input!$G$9+Input!$C$9*TAN(Input!$G$11/2)-SIN(Input!$G$11-O60)/SIN(O60)*(Input!$G$9-$C$63+Input!$C$9*TAN(Input!$G$11/2))))>Input!$G$29,3,2))),999) -> 999 | Q64: =IF($V$57=1,IF(Q60=999,999,IF(Input!$G$9+Input!$C$9*Input!$G$11+(Input!$G$9-(Input!$G$9+Input!$C$9*TAN(Input!$G$11/2)-SIN(Input!$G$11-Q60)/SIN(Q60)*(Input!$G$9-$C$63+Input!$C$9*TAN(Input!$G$11/2))))<=Input!$G$28,1,IF(Input!$G$9+Input!$C$9*Input!$G$11+(Input!$G$9-(Input!$G$9+Input!$C$9*TAN(Input!$G$11/2)-SIN(Input!$G$11-Q60)/SIN(Q60)*(Input!$G$9-$C$63+Input!$C$9*TAN(Input!$G$11/2))))>Input!$G$29,3,2))),IF($V$57=2,IF(Q61=999,999,IF(Input!$G$9+Input!$C$9*Input!$G$11+(Input!$G$9-(Input!$G$9+Input!$C$9*TAN(Input!$G$11/2)-SIN(Input!$G$11-Q61)/SIN(Q61)*(Input!$G$9-$C$63+Input!$C$9*TAN(Input!$G$11/2))))<=Input!$G$28,1,IF(Input!$G$9+Input!$C$9*Input!$G$11+(Input!$G$9-(Input!$G$9+Input!$C$9*TAN(Input!$G$11/2)-SIN(Input!$G$11-Q61)/SIN(Q61)*(Input!$G$9-$C$63+Input!$C$9*TAN(Input!$G$11/2))))>Input!$G$29,3,2))),999)) -> 999 | R64: =IF($V$57=1,IF(R60=999,999,IF(Input!$G$9+Input!$C$9*Input!$G$11+(Input!$G$9-(Input!$G$9+Input!$C$9*TAN(Input!$G$11/2)-SIN(Input!$G$11-R60)/SIN(R60)*(Input!$G$9-$C$63+Input!$C$9*TAN(Input!$G$11/2))))<=Input!$G$28,1,IF(Input!$G$9+Input!$C$9*Input!$G$11+(Input!$G$9-(Input!$G$9+Input!$C$9*TAN(Input!$G$11/2)-SIN(Input!$G$11-R60)/SIN(R60)*(Input!$G$9-$C$63+Input!$C$9*TAN(Input!$G$11/2))))>Input!$G$29,3,2))),IF($V$57=2,IF(R61=999,999,IF(Input!$G$9+Input!$C$9*Input!$G$11+(Input!$G$9-(Input!$G$9+Input!$C$9*TAN(Input!$G$11/2)-SIN(Input!$G$11-R61)/SIN(R61)*(Input!$G$9-$C$63+Input!$C$9*TAN(Input!$G$11/2))))<=Input!$G$28,1,IF(Input!$G$9+Input!$C$9*Input!$G$11+(Input!$G$9-(Input!$G$9+Input!$C$9*TAN(Input!$G$11/2)-SIN(Input!$G$11-R61)/SIN(R61)*(Input!$G$9-$C$63+Input!$C$9*TAN(Input!$G$11/2))))>Input!$G$29,3,2))),999)) -> 999 | U64: =IF($V$57=1,IF(U60=999,999,IF(Input!$G$9+Input!$C$9*Input!$G$11+(Input!$G$9-(Input!$G$9+Input!$C$9*TAN(Input!$G$11/2)-SIN(Input!$G$11-U60)/SIN(U60)*(Input!$G$9-$C$63+Input!$C$9*TAN(Input!$G$11/2))))<=Input!$G$28,1,IF(Input!$G$9+Input!$C$9*Input!$G$11+(Input!$G$9-(Input!$G$9+Input!$C$9*TAN(Input!$G$11/2)-SIN(Input!$G$11-U60)/SIN(U60)*(Input!$G$9-$C$63+Input!$C$9*TAN(Input!$G$11/2))))>Input!$G$29,3,2))),IF($V$57=2,IF(U61=999,999,IF(Input!$G$9+Input!$C$9*Input!$G$11+(Input!$G$9-(Input!$G$9+Input!$C$9*TAN(Input!$G$11/2)-SIN(Input!$G$11-U61)/SIN(U61)*(Input!$G$9-$C$63+Input!$C$9*TAN(Input!$G$11/2))))<=Input!$G$28,1,IF(Input!$G$9+Input!$C$9*Input!$G$11+(Input!$G$9-(Input!$G$9+Input!$C$9*TAN(Input!$G$11/2)-SIN(Input!$G$11-U61)/SIN(U61)*(Input!$G$9-$C$63+Input!$C$9*TAN(Input!$G$11/2))))>Input!$G$29,3,2))),IF(U62=999,999,IF(Input!$G$9+Input!$C$9*Input!$G$11+(Input!$G$9-(Input!$G$9+Input!$C$9*TAN(Input!$G$11/2)-SIN(Input!$G$11-U62)/SIN(U61)*(Input!$G$9-$C$63+Input!$C$9*TAN(Input!$G$11/2))))<=Input!$G$28,1,IF(Input!$G$9+Input!$C$9*Input!$G$11+(Input!$G$9-(Input!$G$9+Input!$C$9*TAN(Input!$G$11/2)-SIN(Input!$G$11-U62)/SIN(U62)*(Input!$G$9-$C$63+Input!$C$9*TAN(Input!$G$11/2))))>Input!$G$29,3,2))))) -> 999 | V64: I Vertical Position (1,2,3)
B65: alpha= | E65: S'= | K65: zI3 | L65: =Input!$G$31+(Input!$G$9+Input!$C$9*Input!$G$11+(Input!$G$9-Ref!C58)-Input!$G$29)*Ref!F60/100+Ref!F57 ->  | M65: =IF(AND(M63=1,M64=1),1,999) -> 999 | N65: =IF(AND(N63=1,N64=2),1,999) -> 999 | O65: =IF(AND(O63=1,O64=3),1,999) -> 999 | Q65: =IF(AND(Q63=2,Q64=2),1,999) -> 999 | R65: =IF(AND(R63=2,R64=3),1,999) -> 999 | U65: =IF(AND(U63=3,U64=3),1,999) -> 999
M66: zT1 | P66: zT2 | S66: zT3
M67: zI1 | N67: zI2 | O67: zI3 | P67: zI1 | Q67: zI2 | R67: zI3 | S67: zI1 | T67: zI2 | U67: zI3
B68: 3D Sightline Condition 6 | E68: HT | F68: =Input!$C$35 -> 4 | J68: 6 | K68: zC1 | L68: =-(Input!$G$28-Ref!C74)*Ref!F70/100+Ref!F69 -> -20.38 | M68: =(L74-L68)/(Input!$C$9*SIN(Ref!$C$70)-Input!$C$9*SIN(Ref!$C$69))-(Ref!L71-Ref!L68)/((Input!$C$9-Input!$C$14)*SIN(Ref!$C$73)-Input!$C$9*SIN(Ref!$C$69)) ->  | N68: =(L75-L68)/(Input!$C$9*SIN(Ref!$C$70)-Input!$C$9*SIN(Ref!$C$69))-(Ref!L71-Ref!L68)/((Input!$C$9-Input!$C$14)*SIN(Ref!$C$73)-Input!$C$9*SIN(Ref!$C$69)) ->  | O68: =(L76-L68)/(Input!$C$9*SIN(Ref!$C$70)-Input!$C$9*SIN(Ref!$C$69))-(Ref!L71-Ref!L68)/((Input!$C$9-Input!$C$14)*SIN(Ref!$C$73)-Input!$C$9*SIN(Ref!$C$69)) ->  | Q68: =(L75-L68)/(Input!$C$9*SIN(Ref!$C$70)-Input!$C$9*SIN(Ref!$C$69))-(Ref!L72-Ref!L68)/((Input!$C$9-Input!$C$14)*SIN(Ref!$C$73)-Input!$C$9*SIN(Ref!$C$69)) ->  | R68: =(L76-L68)/(Input!$C$9*SIN(Ref!$C$70)-Input!$C$9*SIN(Ref!$C$69))-(Ref!L72-Ref!L68)/((Input!$C$9-Input!$C$14)*SIN(Ref!$C$73)-Input!$C$9*SIN(Ref!$C$69)) ->  | U68: =(L76-L68)/(Input!$C$9*SIN(Ref!$C$70)-Input!$C$9*SIN(Ref!$C$69))-(Ref!L73-Ref!L68)/((Input!$C$9-Input!$C$14)*SIN(Ref!$C$73)-Input!$C$9*SIN(Ref!$C$69)) ->  | V68: 2 | W68: =0
B69: lambda(rad)= | C69: =(C74-Input!$G$9)/Input!$C$9 -> 0.1744791667 | E69: HC | F69: =Input!$C$34 -> 3.5 | K69: zC2 | L69: =Input!$G$30+Ref!F70/100*(Ref!C74-Input!$G$28)+(Ref!F71-Ref!F70)*(Ref!C74-Input!$G$28)^2/(200*Input!$C$29*5280)+Ref!F69 -> -2.379545455 | Q69: =(L75-L69)/(Input!$C$9*SIN(Ref!$C$70)-Input!$C$9*SIN(Ref!$C$69))-(Ref!L72-Ref!L69)/((Input!$C$9-Input!$C$14)*SIN(Ref!$C$73)-Input!$C$9*SIN(Ref!$C$69)) ->  | R69: =(L76-L69)/(Input!$C$9*SIN(Ref!$C$70)-Input!$C$9*SIN(Ref!$C$69))-(Ref!L72-Ref!L69)/((Input!$C$9-Input!$C$14)*SIN(Ref!$C$73)-Input!$C$9*SIN(Ref!$C$69)) ->  | U69: =(L76-L69)/(Input!$C$9*SIN(Ref!$C$70)-Input!$C$9*SIN(Ref!$C$69))-(Ref!L73-Ref!L69)/((Input!$C$9-Input!$C$14)*SIN(Ref!$C$73)-Input!$C$9*SIN(Ref!$C$69)) -> 
B70: theta(rad)= | C70: 678.7091459 | E70: G1 | F70: =Input!$C$30 -> -3 | K70: zC3 | L70: =Input!$G$31+(Ref!C74-Input!$G$29)*Ref!F71/100+Ref!F69 -> -4.3 | U70: =(L76-L70)/(Input!$C$9*SIN(Ref!$C$70)-Input!$C$9*SIN(Ref!$C$69))-(Ref!L73-Ref!L70)/((Input!$C$9-Input!$C$14)*SIN(Ref!$C$73)-Input!$C$9*SIN(Ref!$C$69)) -> 
B71: 0= | E71: G2 | F71: =Input!$C$31 -> 3 | K71: zT1 | L71: =-(Input!$G$28-Input!$G$9-Input!$C$9*Ref!C73)*Ref!F70/100+Ref!F68 ->  | M71: 999 | N71: 999 | O71: 999 | Q71: 999 | R71: 999 | U71: 999 | V71: zC1 | W71: Theta | X71: =999 if no alpha found
E72: Hmin | F72: =Input!$C$36 -> 2 | K72: zT2 | L72: =Input!$G$30+Ref!F70/100*(Input!$G$9+Input!$C$9*Ref!C73-Input!$G$28)+(Ref!F71-Ref!F70)*(Input!$G$9+Input!$C$9*Ref!C73-Input!$G$28)^2/(200*Input!$C$29*5280)+Ref!F68 ->  | Q72: 999 | R72: 999 | U72: 999 | V72: zC2
B73: beta(rad)= | C73: =PI()/2+(C69+C70)/2-ASIN(Input!$C$9/(Input!$C$9-Input!$C$14)*SIN((PI()/2-(C70-C69)/2))) ->  | E73: Use solver to find a theta that makes C44=0 | K73: zT3 | L73: =Input!$G$31+(Input!$G$9+Input!$C$9*Ref!C73-Input!$G$29)*Ref!F71/100+Ref!F68 ->  | U73: 999 | V73: zC3
B74: E= | C74: 950 | K74: zI1 | L74: =-(Input!$G$28-Input!$G$9-Input!$C$9*Ref!C70)*Ref!F70/100+Ref!F72 -> -31288.75744 | M74: =IF($V$68=1,IF(M71=999,999,IF(Input!$G$9+Input!$C$9*(PI()/2+($C$69+M71)/2-ASIN(Input!$C$9/(Input!$C$9-Input!$C$14)*SIN((PI()/2-(M71-$C$69)/2))))<=Input!$G$28,1,IF(Input!$G$9+Input!$C$9*(PI()/2+($C$69+M71)/2-ASIN(Input!$C$9/(Input!$C$9-Input!$C$14)*SIN((PI()/2-(M71-$C$69)/2))))>Input!$G$29,3,2))),999) -> 999 | N74: =IF($V$68=1,IF(N71=999,999,IF(Input!$G$9+Input!$C$9*(PI()/2+($C$69+N71)/2-ASIN(Input!$C$9/(Input!$C$9-Input!$C$14)*SIN((PI()/2-(N71-$C$69)/2))))<=Input!$G$28,1,IF(Input!$G$9+Input!$C$9*(PI()/2+($C$69+N71)/2-ASIN(Input!$C$9/(Input!$C$9-Input!$C$14)*SIN((PI()/2-(N71-$C$69)/2))))>Input!$G$29,3,2))),999) -> 999 | O74: =IF($V$68=1,IF(O71=999,999,IF(Input!$G$9+Input!$C$9*(PI()/2+($C$69+O71)/2-ASIN(Input!$C$9/(Input!$C$9-Input!$C$14)*SIN((PI()/2-(O71-$C$69)/2))))<=Input!$G$28,1,IF(Input!$G$9+Input!$C$9*(PI()/2+($C$69+O71)/2-ASIN(Input!$C$9/(Input!$C$9-Input!$C$14)*SIN((PI()/2-(O71-$C$69)/2))))>Input!$G$29,3,2))),999) -> 999 | Q74: =IF($V$68=1,IF(Q71=999,999,IF(Input!$G$9+Input!$C$9*(PI()/2+($C$69+Q71)/2-ASIN(Input!$C$9/(Input!$C$9-Input!$C$14)*SIN((PI()/2-(Q71-$C$69)/2))))<=Input!$G$28,1,IF(Input!$G$9+Input!$C$9*(PI()/2+($C$69+Q71)/2-ASIN(Input!$C$9/(Input!$C$9-Input!$C$14)*SIN((PI()/2-(Q71-$C$69)/2))))>Input!$G$29,3,2))),IF($V$68=2,IF(Q72=999,999,IF(Input!$G$9+Input!$C$9*(PI()/2+($C$69+Q72)/2-ASIN(Input!$C$9/(Input!$C$9-Input!$C$14)*SIN((PI()/2-(Q72-$C$69)/2))))<=Input!$G$28,1,IF(Input!$G$9+Input!$C$9*(PI()/2+($C$69+Q72)/2-ASIN(Input!$C$9/(Input!$C$9-Input!$C$14)*SIN((PI()/2-(Q72-$C$69)/2))))>Input!$G$29,3,2))),999)) -> 999 | R74: =IF($V$68=1,IF(R71=999,999,IF(Input!$G$9+Input!$C$9*(PI()/2+($C$69+R71)/2-ASIN(Input!$C$9/(Input!$C$9-Input!$C$14)*SIN((PI()/2-(R71-$C$69)/2))))<=Input!$G$28,1,IF(Input!$G$9+Input!$C$9*(PI()/2+($C$69+R71)/2-ASIN(Input!$C$9/(Input!$C$9-Input!$C$14)*SIN((PI()/2-(R71-$C$69)/2))))>Input!$G$29,3,2))),IF($V$68=2,IF(R72=999,999,IF(Input!$G$9+Input!$C$9*(PI()/2+($C$69+R72)/2-ASIN(Input!$C$9/(Input!$C$9-Input!$C$14)*SIN((PI()/2-(R72-$C$69)/2))))<=Input!$G$28,1,IF(Input!$G$9+Input!$C$9*(PI()/2+($C$69+R72)/2-ASIN(Input!$C$9/(Input!$C$9-Input!$C$14)*SIN((PI()/2-(R72-$C$69)/2))))>Input!$G$29,3,2))),999)) -> 999 | U74: =IF($V$68=1,IF(U71=999,999,IF(Input!$G$9+Input!$C$9*(PI()/2+($C$69+U71)/2-ASIN(Input!$C$9/(Input!$C$9-Input!$C$14)*SIN((PI()/2-(U71-$C$69)/2))))<=Input!$G$28,1,IF(Input!$G$9+Input!$C$9*(PI()/2+($C$69+U71)/2-ASIN(Input!$C$9/(Input!$C$9-Input!$C$14)*SIN((PI()/2-(U71-$C$69)/2))))>Input!$G$29,3,2))),IF($V$68=2,IF(U72=999,999,IF(Input!$G$9+Input!$C$9*(PI()/2+($C$69+U72)/2-ASIN(Input!$C$9/(Input!$C$9-Input!$C$14)*SIN((PI()/2-(U72-$C$69)/2))))<=Input!$G$28,1,IF(Input!$G$9+Input!$C$9*(PI()/2+($C$69+U72)/2-ASIN(Input!$C$9/(Input!$C$9-Input!$C$14)*SIN((PI()/2-(U72-$C$69)/2))))>Input!$G$29,3,2))),IF(U73=999,999,IF(Input!$G$9+Input!$C$9*(PI()/2+($C$69+U73)/2-ASIN(Input!$C$9/(Input!$C$9-Input!$C$14)*SIN((PI()/2-(U73-$C$69)/2))))<=Input!$G$28,1,IF(Input!$G$9+Input!$C$9*(PI()/2+($C$69+U73)/2-ASIN(Input!$C$9/(Input!$C$9-Input!$C$14)*SIN((PI()/2-(U73-$C$69)/2))))>Input!$G$29,3,2))))) -> 999 | V74: T Vertical Position (1,2,3)
K75: zI2 | L75: =Input!$G$30+Ref!F70/100*(Input!$G$9+Input!$C$9*Ref!C70-Input!$G$28)+(Ref!F71-Ref!F70)*(Input!$G$9+Input!$C$9*Ref!C70-Input!$G$28)^2/(200*Input!$C$29*5280)+Ref!F72 -> 30875008.63 | M75: =IF($V$68=1,IF(M71=999,999,IF(Input!$G$9+Input!$C$9*M71<=Input!$G$28,1,IF(Input!$G$9+Input!$C$9*M71>Input!$G$29,3,2))),999) -> 999 | N75: =IF($V$68=1,IF(N71=999,999,IF(Input!$G$9+Input!$C$9*N71<=Input!$G$28,1,IF(Input!$G$9+Input!$C$9*N71>Input!$G$29,3,2))),999) -> 999 | O75: =IF($V$68=1,IF(O71=999,999,IF(Input!$G$9+Input!$C$9*O71<=Input!$G$28,1,IF(Input!$G$9+Input!$C$9*O71>Input!$G$29,3,2))),999) -> 999 | Q75: =IF($V$68=1,IF(Q71=999,999,IF(Input!$G$9+Input!$C$9*Q71<=Input!$G$28,1,IF(Input!$G$9+Input!$C$9*Q71>Input!$G$29,3,2))),IF($V$68=2,IF(Q72=999,999,IF(Input!$G$9+Input!$C$9*Q72<=Input!$G$28,1,IF(Input!$G$9+Input!$C$9*Q72>Input!$G$29,3,2))),999)) -> 999 | R75: =IF($V$68=1,IF(R71=999,999,IF(Input!$G$9+Input!$C$9*R71<=Input!$G$28,1,IF(Input!$G$9+Input!$C$9*R71>Input!$G$29,3,2))),IF($V$68=2,IF(R72=999,999,IF(Input!$G$9+Input!$C$9*R72<=Input!$G$28,1,IF(Input!$G$9+Input!$C$9*R72>Input!$G$29,3,2))),999)) -> 999 | U75: =IF($V$68=1,IF(U71=999,999,IF(Input!$G$9+Input!$C$9*U71<=Input!$G$28,1,IF(Input!$G$9+Input!$C$9*U71>Input!$G$29,3,2))),IF($V$68=2,IF(U72=999,999,IF(Input!$G$9+Input!$C$9*U72<=Input!$G$28,1,IF(Input!$G$9+Input!$C$9*U72>Input!$G$29,3,2))),IF(U73=999,999,IF(Input!$G$9+Input!$C$9*U73<=Input!$G$28,1,IF(Input!$G$9+Input!$C$9*U73>Input!$G$29,3,2))))) -> 999 | V75: I Vertical Position (1,2,3)
B76: alpha= | C76: =ATAN(C70*SIN(C69)/(C70*COS(C69)+G36+C36*TAN(C69/2)-C74))*180/PI() ->  | E76: S'= | K76: zI3 | L76: =Input!$G$31+(Input!$G$9+Input!$C$9*Ref!C70-Input!$G$29)*Ref!F71/100+Ref!F72 -> 31261.07744 | M76: =IF(AND(M74=1,M75=1),1,999) -> 999 | N76: =IF(AND(N74=1,N75=2),1,999) -> 999 | O76: =IF(AND(O74=1,O75=3),1,999) -> 999 | Q76: =IF(AND(Q74=2,Q75=2),1,999) -> 999 | R76: =IF(AND(R74=2,R75=3),1,999) -> 999 | U76: =IF(AND(U74=3,U75=3),1,999) -> 999
M77: zT1 | P77: zT2 | S77: zT3
M78: zI1 | N78: zI2 | O78: zI3 | P78: zI1 | Q78: zI2 | R78: zI3 | S78: zI1 | T78: zI2 | U78: zI3
B79: 3D Sightline Condition 7 | E79: HT | F79: =Input!$C$35 -> 4 | J79: 7 | K79: zC1 | L79: =-(Input!$G$28-Ref!C85)*Ref!F81/100+Ref!F80 -> -54.88 | M79: =(L79-L85)/(Input!$G$9+Input!$C$9*SIN(Ref!$C$86)-Ref!$C$80)-(Ref!L82-Ref!L85)/(Input!$G$9+(Input!$C$9-Input!$C$14)*SIN(Ref!$C$84)-Ref!$C$80) ->  | N79: =(L79-L86)/(Input!$G$9+Input!$C$9*SIN(Ref!$C$86)-Ref!$C$80)-(Ref!L82-Ref!L86)/(Input!$G$9+(Input!$C$9-Input!$C$14)*SIN(Ref!$C$84)-Ref!$C$80) ->  | O79: =(L79-L87)/(Input!$G$9+Input!$C$9*SIN(Ref!$C$86)-Ref!$C$80)-(Ref!L82-Ref!L87)/(Input!$G$9+(Input!$C$9-Input!$C$14)*SIN(Ref!$C$84)-Ref!$C$80) ->  | Q79: =(L79-L86)/(Input!$G$9+Input!$C$9*SIN(Ref!$C$86)-Ref!$C$80)-(Ref!L83-Ref!L86)/(Input!$G$9+(Input!$C$9-Input!$C$14)*SIN(Ref!$C$84)-Ref!$C$80) ->  | R79: =(L79-L87)/(Input!$G$9+Input!$C$9*SIN(Ref!$C$86)-Ref!$C$80)-(Ref!L83-Ref!L87)/(Input!$G$9+(Input!$C$9-Input!$C$14)*SIN(Ref!$C$84)-Ref!$C$80) ->  | U79: =(L79-L87)/(Input!$G$9+Input!$C$9*SIN(Ref!$C$86)-Ref!$C$80)-(Ref!L84-Ref!L87)/(Input!$G$9+(Input!$C$9-Input!$C$14)*SIN(Ref!$C$84)-Ref!$C$80) ->  | V79: 1 | W79: =0
B80: N= | C80: =Input!$G$9+Input!$C$9*TAN(Input!$G$11/2)-(Input!$C$9-Input!$C$9*COS(C82))/SIN(Input!$G$11)-SIN(Input!$G$11-C81)/SIN(C81)*(Input!$C$9*TAN(Input!$G$11/2)-Input!$C$9*SIN(C82)+(Input!$C$9-Input!$C$9*COS(C82))/COS(Input!$G$11)) ->  | E80: HC | F80: =Input!$C$34 -> 3.5 | K80: zC2 | L80: =Input!$G$30+Ref!F81/100*(Ref!C85-Input!$G$28)+(Ref!F82-Ref!F81)*(Ref!C85-Input!$G$28)^2/(200*Input!$C$29*5280)+Ref!F80 -> 52.70284091 | Q80: =(L80-L86)/(Input!$G$9+Input!$C$9*SIN(Ref!$C$86)-Ref!$C$80)-(Ref!L83-Ref!L86)/(Input!$G$9+(Input!$C$9-Input!$C$14)*SIN(Ref!$C$84)-Ref!$C$80) ->  | R80: =(L80-L87)/(Input!$G$9+Input!$C$9*SIN(Ref!$C$86)-Ref!$C$80)-(Ref!L83-Ref!L87)/(Input!$G$9+(Input!$C$9-Input!$C$14)*SIN(Ref!$C$84)-Ref!$C$80) ->  | U80: =(L80-L87)/(Input!$G$9+Input!$C$9*SIN(Ref!$C$86)-Ref!$C$80)-(Ref!L84-Ref!L87)/(Input!$G$9+(Input!$C$9-Input!$C$14)*SIN(Ref!$C$84)-Ref!$C$80) -> 
B81: alpha(rad)= | C81: 0 | E81: G1 | F81: =Input!$C$30 -> -3 | K81: zC3 | L81: =Input!$G$31+(Ref!C85-Input!$G$29)*Ref!F82/100+Ref!F80 -> 30.2 | U81: =(L81-L87)/(Input!$G$9+Input!$C$9*SIN(Ref!$C$86)-Ref!$C$80)-(Ref!L84-Ref!L87)/(Input!$G$9+(Input!$C$9-Input!$C$14)*SIN(Ref!$C$84)-Ref!$C$80) -> 
B82: lambda(rad)= | C82: =(C85-Input!$G$9)/Input!$C$9 -> 0.9231770833 | E82: G2 | F82: =Input!$C$31 -> 3 | K82: zT1 | L82: =-(Input!$G$28-Input!$G$9-Input!$C$9*(Input!$G$11-Ref!C84))*Ref!F81/100+Ref!F79 ->  | M82: 999 | N82: 999 | O82: 999 | Q82: 999 | R82: 999 | U82: 999 | V82: zC1 | W82: Alpha | X82: =999 if no alpha found
B83: 0= | E83: Hmin | F83: =Input!$C$36 -> 2 | K83: zT2 | L83: =Input!$G$30+Ref!F81/100*(Input!$G$9+Input!$C$9*(Input!$G$11-Ref!C84)-Input!$G$28)+(Ref!F82-Ref!F81)*(Input!$G$9+Input!$C$9*(Input!$G$11-Ref!C84)-Input!$G$28)^2/(200*Input!$C$29*5280)+Ref!F79 ->  | Q83: 999 | R83: 999 | U83: 999 | V83: zC2
B84: beta(rad)= | C84: =PI()/2-C81-ASIN(SIN(PI()/2-C81)/(Input!$C$9-Input!$C$14)*(Input!$C$9-(Input!$G$9-C80)*TAN(C81))) ->  | E84: Use solver to find a theta that makes C44=0 | K84: zT3 | L84: =Input!$G$31+(Input!$G$9+Input!$C$9*(Input!$G$11-Ref!C84)-Input!$G$29)*Ref!F82/100+Ref!F79 ->  | U84: 999 | V84: zC3
B85: E= | C85: 2100 | K85: zI1 | L85: =-(Input!$G$28-Input!$G$9-Input!$C$9*Input!$G$11-(Input!$G$9-Ref!C80))*Ref!F81/100+Ref!F79 ->  | M85: =IF($V$79=1,IF(M82=999,999,IF(Input!$G$9+Input!$C$9*(Input!$G$11-(PI()/2-M82-ASIN(SIN(PI()/2-M82)/(Input!$C$9-Input!$C$14)*(Input!$C$9-(Input!$G$9-(Input!$G$9+Input!$C$9*TAN(Input!$G$11/2)-(Input!$C$9-Input!$C$9*COS($C$82))/SIN(Input!$G$11)-SIN(Input!$G$11-M82)/SIN(M82)*(Input!$C$9*TAN(Input!$G$11/2)-Input!$C$9*SIN($C$82)+(Input!$C$9-Input!$C$9*COS($C$82))/COS(Input!$G$11))))*TAN(M82)))))<=Input!$G$28,1,IF(Input!$G$9+Input!$C$9*(Input!$G$11-(PI()/2-M82-ASIN(SIN(PI()/2-M82)/(Input!$C$9-Input!$C$14)*(Input!$C$9-(Input!$G$9-(Input!$G$9+Input!$C$9*TAN(Input!$G$11/2)-(Input!$C$9-Input!$C$9*COS($C$82))/SIN(Input!$G$11)-SIN(Input!$G$11-M82)/SIN(M82)*(Input!$C$9*TAN(Input!$G$11/2)-Input!$C$9*SIN($C$82)+(Input!$C$9-Input!$C$9*COS($C$82))/COS(Input!$G$11))))*TAN(M82)))))>Input!$G$29,3,2))),999) -> 999 | N85: =IF($V$79=1,IF(N82=999,999,IF(Input!$G$9+Input!$C$9*(Input!$G$11-(PI()/2-N82-ASIN(SIN(PI()/2-N82)/(Input!$C$9-Input!$C$14)*(Input!$C$9-(Input!$G$9-(Input!$G$9+Input!$C$9*TAN(Input!$G$11/2)-(Input!$C$9-Input!$C$9*COS($C$82))/SIN(Input!$G$11)-SIN(Input!$G$11-N82)/SIN(N82)*(Input!$C$9*TAN(Input!$G$11/2)-Input!$C$9*SIN($C$82)+(Input!$C$9-Input!$C$9*COS($C$82))/COS(Input!$G$11))))*TAN(N82)))))<=Input!$G$28,1,IF(Input!$G$9+Input!$C$9*(Input!$G$11-(PI()/2-N82-ASIN(SIN(PI()/2-N82)/(Input!$C$9-Input!$C$14)*(Input!$C$9-(Input!$G$9-(Input!$G$9+Input!$C$9*TAN(Input!$G$11/2)-(Input!$C$9-Input!$C$9*COS($C$82))/SIN(Input!$G$11)-SIN(Input!$G$11-N82)/SIN(N82)*(Input!$C$9*TAN(Input!$G$11/2)-Input!$C$9*SIN($C$82)+(Input!$C$9-Input!$C$9*COS($C$82))/COS(Input!$G$11))))*TAN(N82)))))>Input!$G$29,3,2))),999) -> 999 | O85: =IF($V$79=1,IF(O82=999,999,IF(Input!$G$9+Input!$C$9*(Input!$G$11-(PI()/2-O82-ASIN(SIN(PI()/2-O82)/(Input!$C$9-Input!$C$14)*(Input!$C$9-(Input!$G$9-(Input!$G$9+Input!$C$9*TAN(Input!$G$11/2)-(Input!$C$9-Input!$C$9*COS($C$82))/SIN(Input!$G$11)-SIN(Input!$G$11-O82)/SIN(O82)*(Input!$C$9*TAN(Input!$G$11/2)-Input!$C$9*SIN($C$82)+(Input!$C$9-Input!$C$9*COS($C$82))/COS(Input!$G$11))))*TAN(O82)))))<=Input!$G$28,1,IF(Input!$G$9+Input!$C$9*(Input!$G$11-(PI()/2-O82-ASIN(SIN(PI()/2-O82)/(Input!$C$9-Input!$C$14)*(Input!$C$9-(Input!$G$9-(Input!$G$9+Input!$C$9*TAN(Input!$G$11/2)-(Input!$C$9-Input!$C$9*COS($C$82))/SIN(Input!$G$11)-SIN(Input!$G$11-O82)/SIN(O82)*(Input!$C$9*TAN(Input!$G$11/2)-Input!$C$9*SIN($C$82)+(Input!$C$9-Input!$C$9*COS($C$82))/COS(Input!$G$11))))*TAN(O82)))))>Input!$G$29,3,2))),999) -> 999 | Q85: =IF($V$79=1,IF(Q82=999,999,IF(Input!$G$9+Input!$C$9*(Input!$G$11-(PI()/2-Q82-ASIN(SIN(PI()/2-Q82)/(Input!$C$9-Input!$C$14)*(Input!$C$9-(Input!$G$9-(Input!$G$9+Input!$C$9*TAN(Input!$G$11/2)-(Input!$C$9-Input!$C$9*COS($C$82))/SIN(Input!$G$11)-SIN(Input!$G$11-Q82)/SIN(Q82)*(Input!$C$9*TAN(Input!$G$11/2)-Input!$C$9*SIN($C$82)+(Input!$C$9-Input!$C$9*COS($C$82))/COS(Input!$G$11))))*TAN(Q82)))))<=Input!$G$28,1,IF(Input!$G$9+Input!$C$9*(Input!$G$11-(PI()/2-Q82-ASIN(SIN(PI()/2-Q82)/(Input!$C$9-Input!$C$14)*(Input!$C$9-(Input!$G$9-(Input!$G$9+Input!$C$9*TAN(Input!$G$11/2)-(Input!$C$9-Input!$C$9*COS($C$82))/SIN(Input!$G$11)-SIN(Input!$G$11-Q82)/SIN(Q82)*(Input!$C$9*TAN(Input!$G$11/2)-Input!$C$9*SIN($C$82)+(Input!$C$9-Input!$C$9*COS($C$82))/COS(Input!$G$11))))*TAN(Q82)))))>Input!$G$29,3,2))),IF($V$79=2,IF(Q83=999,999,IF(Input!$G$9+Input!$C$9*(Input!$G$11-(PI()/2-Q83-ASIN(SIN(PI()/2-Q83)/(Input!$C$9-Input!$C$14)*(Input!$C$9-(Input!$G$9-(Input!$G$9+Input!$C$9*TAN(Input!$G$11/2)-(Input!$C$9-Input!$C$9*COS($C$82))/SIN(Input!$G$11)-SIN(Input!$G$11-Q83)/SIN(Q83)*(Input!$C$9*TAN(Input!$G$11/2)-Input!$C$9*SIN($C$82)+(Input!$C$9-Input!$C$9*COS($C$82))/COS(Input!$G$11))))*TAN(Q83)))))<=Input!$G$28,1,IF(Input!$G$9+Input!$C$9*(Input!$G$11-(PI()/2-Q83-ASIN(SIN(PI()/2-Q83)/(Input!$C$9-Input!$C$14)*(Input!$C$9-(Input!$G$9-(Input!$G$9+Input!$C$9*TAN(Input!$G$11/2)-(Input!$C$9-Input!$C$9*COS($C$82))/SIN(Input!$G$11)-SIN(Input!$G$11-Q83)/SIN(Q83)*(Input!$C$9*TAN(Input!$G$11/2)-Input!$C$9*SIN($C$82)+(Input!$C$9-Input!$C$9*COS($C$82))/COS(Input!$G$11))))*TAN(Q83)))))>Input!$G$29,3,2))),999)) -> 999 | R85: =IF($V$79=1,IF(R82=999,999,IF(Input!$G$9+Input!$C$9*(Input!$G$11-(PI()/2-R82-ASIN(SIN(PI()/2-R82)/(Input!$C$9-Input!$C$14)*(Input!$C$9-(Input!$G$9-(Input!$G$9+Input!$C$9*TAN(Input!$G$11/2)-(Input!$C$9-Input!$C$9*COS($C$82))/SIN(Input!$G$11)-SIN(Input!$G$11-R82)/SIN(R82)*(Input!$C$9*TAN(Input!$G$11/2)-Input!$C$9*SIN($C$82)+(Input!$C$9-Input!$C$9*COS($C$82))/COS(Input!$G$11))))*TAN(R82)))))<=Input!$G$28,1,IF(Input!$G$9+Input!$C$9*(Input!$G$11-(PI()/2-R82-ASIN(SIN(PI()/2-R82)/(Input!$C$9-Input!$C$14)*(Input!$C$9-(Input!$G$9-(Input!$G$9+Input!$C$9*TAN(Input!$G$11/2)-(Input!$C$9-Input!$C$9*COS($C$82))/SIN(Input!$G$11)-SIN(Input!$G$11-R82)/SIN(R82)*(Input!$C$9*TAN(Input!$G$11/2)-Input!$C$9*SIN($C$82)+(Input!$C$9-Input!$C$9*COS($C$82))/COS(Input!$G$11))))*TAN(R82)))))>Input!$G$29,3,2))),IF($V$79=2,IF(R83=999,999,IF(Input!$G$9+Input!$C$9*(Input!$G$11-(PI()/2-R83-ASIN(SIN(PI()/2-R83)/(Input!$C$9-Input!$C$14)*(Input!$C$9-(Input!$G$9-(Input!$G$9+Input!$C$9*TAN(Input!$G$11/2)-(Input!$C$9-Input!$C$9*COS($C$82))/SIN(Input!$G$11)-SIN(Input!$G$11-R83)/SIN(R83)*(Input!$C$9*TAN(Input!$G$11/2)-Input!$C$9*SIN($C$82)+(Input!$C$9-Input!$C$9*COS($C$82))/COS(Input!$G$11))))*TAN(R83)))))<=Input!$G$28,1,IF(Input!$G$9+Input!$C$9*(Input!$G$11-(PI()/2-R83-ASIN(SIN(PI()/2-R83)/(Input!$C$9-Input!$C$14)*(Input!$C$9-(Input!$G$9-(Input!$G$9+Input!$C$9*TAN(Input!$G$11/2)-(Input!$C$9-Input!$C$9*COS($C$82))/SIN(Input!$G$11)-SIN(Input!$G$11-R83)/SIN(R83)*(Input!$C$9*TAN(Input!$G$11/2)-Input!$C$9*SIN($C$82)+(Input!$C$9-Input!$C$9*COS($C$82))/COS(Input!$G$11))))*TAN(R83)))))>Input!$G$29,3,2))),999)) -> 999 | U85: =IF($V$79=1,IF(U82=999,999,IF(Input!$G$9+Input!$C$9*(Input!$G$11-(PI()/2-U82-ASIN(SIN(PI()/2-U82)/(Input!$C$9-Input!$C$14)*(Input!$C$9-(Input!$G$9-(Input!$G$9+Input!$C$9*TAN(Input!$G$11/2)-(Input!$C$9-Input!$C$9*COS($C$82))/SIN(Input!$G$11)-SIN(Input!$G$11-U82)/SIN(U82)*(Input!$C$9*TAN(Input!$G$11/2)-Input!$C$9*SIN($C$82)+(Input!$C$9-Input!$C$9*COS($C$82))/COS(Input!$G$11))))*TAN(U82)))))<=Input!$G$28,1,IF(Input!$G$9+Input!$C$9*(Input!$G$11-(PI()/2-U82-ASIN(SIN(PI()/2-U82)/(Input!$C$9-Input!$C$14)*(Input!$C$9-(Input!$G$9-(Input!$G$9+Input!$C$9*TAN(Input!$G$11/2)-(Input!$C$9-Input!$C$9*COS($C$82))/SIN(Input!$G$11)-SIN(Input!$G$11-U82)/SIN(U82)*(Input!$C$9*TAN(Input!$G$11/2)-Input!$C$9*SIN($C$82)+(Input!$C$9-Input!$C$9*COS($C$82))/COS(Input!$G$11))))*TAN(U82)))))>Input!$G$29,3,2))),IF($V$79=2,IF(U83=999,999,IF(Input!$G$9+Input!$C$9*(Input!$G$11-(PI()/2-U83-ASIN(SIN(PI()/2-U83)/(Input!$C$9-Input!$C$14)*(Input!$C$9-(Input!$G$9-(Input!$G$9+Input!$C$9*TAN(Input!$G$11/2)-(Input!$C$9-Input!$C$9*COS($C$82))/SIN(Input!$G$11)-SIN(Input!$G$11-U83)/SIN(U83)*(Input!$C$9*TAN(Input!$G$11/2)-Input!$C$9*SIN($C$82)+(Input!$C$9-Input!$C$9*COS($C$82))/COS(Input!$G$11))))*TAN(U83)))))<=Input!$G$28,1,IF(Input!$G$9+Input!$C$9*(Input!$G$11-(PI()/2-U83-ASIN(SIN(PI()/2-U83)/(Input!$C$9-Input!$C$14)*(Input!$C$9-(Input!$G$9-(Input!$G$9+Input!$C$9*TAN(Input!$G$11/2)-(Input!$C$9-Input!$C$9*COS($C$82))/SIN(Input!$G$11)-SIN(Input!$G$11-U83)/SIN(U83)*(Input!$C$9*TAN(Input!$G$11/2)-Input!$C$9*SIN($C$82)+(Input!$C$9-Input!$C$9*COS($C$82))/COS(Input!$G$11))))*TAN(U83)))))>Input!$G$29,3,2))),IF(U84=999,999,IF(Input!$G$9+Input!$C$9*(Input!$G$11-(PI()/2-U84-ASIN(SIN(PI()/2-U84)/(Input!$C$9-Input!$C$14)*(Input!$C$9-(Input!$G$9-(Input!$G$9+Input!$C$9*TAN(Input!$G$11/2)-(Input!$C$9-Input!$C$9*COS($C$82))/SIN(Input!$G$11)-SIN(Input!$G$11-U84)/SIN(U84)*(Input!$C$9*TAN(Input!$G$11/2)-Input!$C$9*SIN($C$82)+(Input!$C$9-Input!$C$9*COS($C$82))/COS(Input!$G$11))))*TAN(U84)))))<=Input!$G$28,1,IF(Input!$G$9+Input!$C$9*(Input!$G$11-(PI()/2-U84-ASIN(SIN(PI()/2-U84)/(Input!$C$9-Input!$C$14)*(Input!$C$9-(Input!$G$9-(Input!$G$9+Input!$C$9*TAN(Input!$G$11/2)-(Input!$C$9-Input!$C$9*COS($C$82))/SIN(Input!$G$11)-SIN(Input!$G$11-U84)/SIN(U84)*(Input!$C$9*TAN(Input!$G$11/2)-Input!$C$9*SIN($C$82)+(Input!$C$9-Input!$C$9*COS($C$82))/COS(Input!$G$11))))*TAN(U84)))))>Input!$G$29,3,2))))) -> 999 | V85: T Vertical Position (1,2,3)
B86: theta(rad)= | C86: =Input!$G$11-C82 -> 0.1080729167 | K86: zI2 | L86: =Input!$G$30+Ref!F81/100*(Input!$G$9+Input!$C$9*Input!$G$11+(Input!$G$9-Ref!C80)-Input!$G$28)+(Ref!F82-Ref!F81)*(Input!$G$9+Input!$C$9*Input!$G$11+(Input!$G$9-Ref!C80)-Input!$G$28)^2/(200*Input!$C$10*5280)+Ref!F79 ->  | M86: =IF($V$79=1,IF(M82=999,999,IF(Input!$G$9+Input!$C$9*Input!$G$11+Input!$G$9-(Input!$G$9+Input!$C$9*TAN(Input!$G$11/2)-(Input!$C$9-Input!$C$9*COS($C$82))/SIN(Input!$G$11)-SIN(Input!$G$11-M82)/SIN(M82)*(Input!$C$9*TAN(Input!$G$11/2)-Input!$C$9*SIN($C$82)+(Input!$C$9-Input!$C$9*COS($C$82))/COS(Input!$G$11)))<=Input!$G$28,1,IF(Input!$G$9+Input!$C$9*Input!$G$11+Input!$G$9-(Input!$G$9+Input!$C$9*TAN(Input!$G$11/2)-(Input!$C$9-Input!$C$9*COS($C$82))/SIN(Input!$G$11)-SIN(Input!$G$11-M82)/SIN(M82)*(Input!$C$9*TAN(Input!$G$11/2)-Input!$C$9*SIN($C$82)+(Input!$C$9-Input!$C$9*COS($C$82))/COS(Input!$G$11)))>Input!$G$29,3,2))),999) -> 999 | N86: =IF($V$79=1,IF(N82=999,999,IF(Input!$G$9+Input!$C$9*Input!$G$11+Input!$G$9-(Input!$G$9+Input!$C$9*TAN(Input!$G$11/2)-(Input!$C$9-Input!$C$9*COS($C$82))/SIN(Input!$G$11)-SIN(Input!$G$11-N82)/SIN(N82)*(Input!$C$9*TAN(Input!$G$11/2)-Input!$C$9*SIN($C$82)+(Input!$C$9-Input!$C$9*COS($C$82))/COS(Input!$G$11)))<=Input!$G$28,1,IF(Input!$G$9+Input!$C$9*Input!$G$11+Input!$G$9-(Input!$G$9+Input!$C$9*TAN(Input!$G$11/2)-(Input!$C$9-Input!$C$9*COS($C$82))/SIN(Input!$G$11)-SIN(Input!$G$11-N82)/SIN(N82)*(Input!$C$9*TAN(Input!$G$11/2)-Input!$C$9*SIN($C$82)+(Input!$C$9-Input!$C$9*COS($C$82))/COS(Input!$G$11)))>Input!$G$29,3,2))),999) -> 999 | O86: =IF($V$79=1,IF(O82=999,999,IF(Input!$G$9+Input!$C$9*Input!$G$11+Input!$G$9-(Input!$G$9+Input!$C$9*TAN(Input!$G$11/2)-(Input!$C$9-Input!$C$9*COS($C$82))/SIN(Input!$G$11)-SIN(Input!$G$11-O82)/SIN(O82)*(Input!$C$9*TAN(Input!$G$11/2)-Input!$C$9*SIN($C$82)+(Input!$C$9-Input!$C$9*COS($C$82))/COS(Input!$G$11)))<=Input!$G$28,1,IF(Input!$G$9+Input!$C$9*Input!$G$11+Input!$G$9-(Input!$G$9+Input!$C$9*TAN(Input!$G$11/2)-(Input!$C$9-Input!$C$9*COS($C$82))/SIN(Input!$G$11)-SIN(Input!$G$11-O82)/SIN(O82)*(Input!$C$9*TAN(Input!$G$11/2)-Input!$C$9*SIN($C$82)+(Input!$C$9-Input!$C$9*COS($C$82))/COS(Input!$G$11)))>Input!$G$29,3,2))),999) -> 999 | Q86: =IF($V$79=1,IF(Q82=999,999,IF(Input!$G$9+Input!$C$9*Input!$G$11+Input!$G$9-(Input!$G$9+Input!$C$9*TAN(Input!$G$11/2)-(Input!$C$9-Input!$C$9*COS($C$82))/SIN(Input!$G$11)-SIN(Input!$G$11-Q82)/SIN(Q82)*(Input!$C$9*TAN(Input!$G$11/2)-Input!$C$9*SIN($C$82)+(Input!$C$9-Input!$C$9*COS($C$82))/COS(Input!$G$11)))<=Input!$G$28,1,IF(Input!$G$9+Input!$C$9*Input!$G$11+Input!$G$9-(Input!$G$9+Input!$C$9*TAN(Input!$G$11/2)-(Input!$C$9-Input!$C$9*COS($C$82))/SIN(Input!$G$11)-SIN(Input!$G$11-Q82)/SIN(Q82)*(Input!$C$9*TAN(Input!$G$11/2)-Input!$C$9*SIN($C$82)+(Input!$C$9-Input!$C$9*COS($C$82))/COS(Input!$G$11)))>Input!$G$29,3,2))),IF($V$79=2,IF(Q83=999,999,IF(Input!$G$9+Input!$C$9*Input!$G$11+Input!$G$9-(Input!$G$9+Input!$C$9*TAN(Input!$G$11/2)-(Input!$C$9-Input!$C$9*COS($C$82))/SIN(Input!$G$11)-SIN(Input!$G$11-Q83)/SIN(Q83)*(Input!$C$9*TAN(Input!$G$11/2)-Input!$C$9*SIN($C$82)+(Input!$C$9-Input!$C$9*COS($C$82))/COS(Input!$G$11)))<=Input!$G$28,1,IF(Input!$G$9+Input!$C$9*Input!$G$11+Input!$G$9-(Input!$G$9+Input!$C$9*TAN(Input!$G$11/2)-(Input!$C$9-Input!$C$9*COS($C$82))/SIN(Input!$G$11)-SIN(Input!$G$11-Q83)/SIN(Q83)*(Input!$C$9*TAN(Input!$G$11/2)-Input!$C$9*SIN($C$82)+(Input!$C$9-Input!$C$9*COS($C$82))/COS(Input!$G$11)))>Input!$G$29,3,2))),999)) -> 999 | R86: =IF($V$79=1,IF(R82=999,999,IF(Input!$G$9+Input!$C$9*Input!$G$11+Input!$G$9-(Input!$G$9+Input!$C$9*TAN(Input!$G$11/2)-(Input!$C$9-Input!$C$9*COS($C$82))/SIN(Input!$G$11)-SIN(Input!$G$11-R82)/SIN(R82)*(Input!$C$9*TAN(Input!$G$11/2)-Input!$C$9*SIN($C$82)+(Input!$C$9-Input!$C$9*COS($C$82))/COS(Input!$G$11)))<=Input!$G$28,1,IF(Input!$G$9+Input!$C$9*Input!$G$11+Input!$G$9-(Input!$G$9+Input!$C$9*TAN(Input!$G$11/2)-(Input!$C$9-Input!$C$9*COS($C$82))/SIN(Input!$G$11)-SIN(Input!$G$11-R82)/SIN(R82)*(Input!$C$9*TAN(Input!$G$11/2)-Input!$C$9*SIN($C$82)+(Input!$C$9-Input!$C$9*COS($C$82))/COS(Input!$G$11)))>Input!$G$29,3,2))),IF($V$79=2,IF(R83=999,999,IF(Input!$G$9+Input!$C$9*Input!$G$11+Input!$G$9-(Input!$G$9+Input!$C$9*TAN(Input!$G$11/2)-(Input!$C$9-Input!$C$9*COS($C$82))/SIN(Input!$G$11)-SIN(Input!$G$11-R83)/SIN(R83)*(Input!$C$9*TAN(Input!$G$11/2)-Input!$C$9*SIN($C$82)+(Input!$C$9-Input!$C$9*COS($C$82))/COS(Input!$G$11)))<=Input!$G$28,1,IF(Input!$G$9+Input!$C$9*Input!$G$11+Input!$G$9-(Input!$G$9+Input!$C$9*TAN(Input!$G$11/2)-(Input!$C$9-Input!$C$9*COS($C$82))/SIN(Input!$G$11)-SIN(Input!$G$11-R83)/SIN(R83)*(Input!$C$9*TAN(Input!$G$11/2)-Input!$C$9*SIN($C$82)+(Input!$C$9-Input!$C$9*COS($C$82))/COS(Input!$G$11)))>Input!$G$29,3,2))),999)) -> 999 | U86: =IF($V$79=1,IF(U82=999,999,IF(Input!$G$9+Input!$C$9*Input!$G$11+Input!$G$9-(Input!$G$9+Input!$C$9*TAN(Input!$G$11/2)-(Input!$C$9-Input!$C$9*COS($C$82))/SIN(Input!$G$11)-SIN(Input!$G$11-U82)/SIN(U82)*(Input!$C$9*TAN(Input!$G$11/2)-Input!$C$9*SIN($C$82)+(Input!$C$9-Input!$C$9*COS($C$82))/COS(Input!$G$11)))<=Input!$G$28,1,IF(Input!$G$9+Input!$C$9*Input!$G$11+Input!$G$9-(Input!$G$9+Input!$C$9*TAN(Input!$G$11/2)-(Input!$C$9-Input!$C$9*COS($C$82))/SIN(Input!$G$11)-SIN(Input!$G$11-U82)/SIN(U82)*(Input!$C$9*TAN(Input!$G$11/2)-Input!$C$9*SIN($C$82)+(Input!$C$9-Input!$C$9*COS($C$82))/COS(Input!$G$11)))>Input!$G$29,3,2))),IF($V$79=2,IF(U83=999,999,IF(Input!$G$9+Input!$C$9*Input!$G$11+Input!$G$9-(Input!$G$9+Input!$C$9*TAN(Input!$G$11/2)-(Input!$C$9-Input!$C$9*COS($C$82))/SIN(Input!$G$11)-SIN(Input!$G$11-U83)/SIN(U83)*(Input!$C$9*TAN(Input!$G$11/2)-Input!$C$9*SIN($C$82)+(Input!$C$9-Input!$C$9*COS($C$82))/COS(Input!$G$11)))<=Input!$G$28,1,IF(Input!$G$9+Input!$C$9*Input!$G$11+Input!$G$9-(Input!$G$9+Input!$C$9*TAN(Input!$G$11/2)-(Input!$C$9-Input!$C$9*COS($C$82))/SIN(Input!$G$11)-SIN(Input!$G$11-U83)/SIN(U83)*(Input!$C$9*TAN(Input!$G$11/2)-Input!$C$9*SIN($C$82)+(Input!$C$9-Input!$C$9*COS($C$82))/COS(Input!$G$11)))>Input!$G$29,3,2))),IF(U84=999,999,IF(Input!$G$9+Input!$C$9*Input!$G$11+Input!$G$9-(Input!$G$9+Input!$C$9*TAN(Input!$G$11/2)-(Input!$C$9-Input!$C$9*COS($C$82))/SIN(Input!$G$11)-SIN(Input!$G$11-U84)/SIN(U84)*(Input!$C$9*TAN(Input!$G$11/2)-Input!$C$9*SIN($C$82)+(Input!$C$9-Input!$C$9*COS($C$82))/COS(Input!$G$11)))<=Input!$G$28,1,IF(Input!$G$9+Input!$C$9*Input!$G$11+Input!$G$9-(Input!$G$9+Input!$C$9*TAN(Input!$G$11/2)-(Input!$C$9-Input!$C$9*COS($C$82))/SIN(Input!$G$11)-SIN(Input!$G$11-U84)/SIN(U84)*(Input!$C$9*TAN(Input!$G$11/2)-Input!$C$9*SIN($C$82)+(Input!$C$9-Input!$C$9*COS($C$82))/COS(Input!$G$11)))>Input!$G$29,3,2))))) -> 999 | V86: I Vertical Position (1,2,3)
E87: S'= | K87: zI3 | L87: =Input!$G$31+(Input!$G$9+Input!$C$9*Input!$G$11+(Input!$G$9-Ref!C80)-Input!$G$29)*Ref!F82/100+Ref!F79 ->  | M87: =IF(AND(M85=1,M86=1),1,999) -> 999 | N87: =IF(AND(N85=1,N86=2),1,999) -> 999 | O87: =IF(AND(O85=1,O86=3),1,999) -> 999 | Q87: =IF(AND(Q85=2,Q86=2),1,999) -> 999 | R87: =IF(AND(R85=2,R86=3),1,999) -> 999 | U87: =IF(AND(U85=3,U86=3),1,999) -> 999
H88: The discrepency may just be precision error | M88: zT1 | P88: zT2 | S88: zT3
M89: zI1 | N89: zI2 | O89: zI3 | P89: zI1 | Q89: zI2 | R89: zI3 | S89: zI1 | T89: zI2 | U89: zI3
B90: 3D Sightline Condition 8 | E90: HT | F90: =Input!$C$35 -> 4 | J90: 8 | K90: zC1 | L90: =-(Input!$G$28-Ref!C96)*Ref!F92/100+Ref!F91 -> -54.88 | M90: =(L90-L96)/(Input!$C$9-Input!$C$9*COS(Ref!$C$97))-(Ref!L93-Ref!L96)/Input!$C$14 ->  | N90: =(L90-L97)/(Input!$C$9-Input!$C$9*COS(Ref!$C$97))-(Ref!L93-Ref!L97)/Input!$C$14 ->  | O90: =(L90-L98)/(Input!$C$9-Input!$C$9*COS(Ref!$C$97))-(Ref!L93-Ref!L98)/Input!$C$14 ->  | Q90: =(L90-L97)/(Input!$C$9-Input!$C$9*COS(Ref!$C$97))-(Ref!L94-Ref!L97)/Input!$C$14 ->  | R90: =(L90-L98)/(Input!$C$9-Input!$C$9*COS(Ref!$C$97))-(Ref!L94-Ref!L98)/Input!$C$14 ->  | U90: =(L90-L98)/(Input!$C$9-Input!$C$9*COS(Ref!$C$97))-(Ref!L95-Ref!L98)/Input!$C$14 ->  | V90: 1 | W90: =0
B91: N= | C91: =Input!$G$9+Input!$C$9*TAN(Input!$G$11/2)-(Input!$C$9-Input!$C$9*COS(C93))/SIN(Input!$G$11)-SIN(Input!$G$11-C92)/SIN(C92)*(Input!$C$9*TAN(Input!$G$11/2)-Input!$C$9*SIN(C93)+(Input!$C$9-Input!$C$9*COS(C93))/COS(Input!$G$11)) ->  | E91: HC | F91: =Input!$C$34 -> 3.5 | K91: zC2 | L91: =Input!$G$30+Ref!F92/100*(Ref!C96-Input!$G$28)+(Ref!F93-Ref!F92)*(Ref!C96-Input!$G$28)^2/(200*Input!$C$29*5280)+Ref!F91 -> 52.70284091 | Q91: =(L91-L97)/(Input!$C$9-Input!$C$9*COS(Ref!$C$97))-(Ref!L94-Ref!L97)/Input!$C$14 ->  | R91: =(L91-L98)/(Input!$C$9-Input!$C$9*COS(Ref!$C$97))-(Ref!L94-Ref!L98)/Input!$C$14 ->  | U91: =(L91-L98)/(Input!$C$9-Input!$C$9*COS(Ref!$C$97))-(Ref!L95-Ref!L98)/Input!$C$14 -> 
B92: alpha(rad)= | C92: 0 | E92: G1 | F92: =Input!$C$30 -> -3 | K92: zC3 | L92: =Input!$G$31+(Ref!C96-Input!$G$29)*Ref!F93/100+Ref!F91 -> 30.2 | U92: =(L92-L98)/(Input!$C$9-Input!$C$9*COS(Ref!$C$97))-(Ref!L95-Ref!L98)/Input!$C$14 -> 
B93: lambda(rad)= | C93: =(C96-Input!$G$9)/Input!$C$9 -> 0.9231770833 | E93: G2 | F93: =Input!$C$31 -> 3 | K93: zT1 | L93: =-(Input!$G$28-Input!$G$9-Input!$C$9*Input!$G$11-(Input!$G$9-Ref!C91-Input!$C$14/TAN(Ref!C92)))*Ref!F92/100+Ref!F90 ->  | M93: 999 | N93: 999 | O93: 999 | Q93: 999 | R93: 999 | U93: 999 | V93: zC1 | W93: Alpha | X93: =999 if no alpha found
B94: 0= | E94: Hmin | F94: =Input!$C$36 -> 2 | K94: zT2 | L94: =Input!$G$30+Ref!F92/100*(Input!$G$9+Input!$C$9*Input!$G$11+(Input!$G$9-Ref!C91-Input!$C$14/TAN(Ref!C92))-Input!$G$28)+(Ref!F93-Ref!F92)*(Input!$G$9+Input!$C$9*Input!$G$11+(Input!$G$9-Ref!C91-Input!$C$14/TAN(Ref!C92))-Input!$G$28)^2/(200*Input!$C$10*5280)+Ref!F90 ->  | Q94: 999 | R94: 999 | U94: 999 | V94: zC2
E95: Use solver to find a theta that makes C44=0 | K95: zT3 | L95: =Input!$G$31+(Input!$G$9+Input!$C$9*Input!$G$11+(Input!$G$9-Ref!C91-Input!$C$14/TAN(Ref!C92))-Input!$G$29)*Ref!F93/100+Ref!F90 ->  | U95: 999 | V95: zC3
B96: E= | C96: 2100 | K96: zI1 | L96: =-(Input!$G$28-Input!$G$9-Input!$C$9*Input!$G$11-(Input!$G$9-Ref!C91))*Ref!F92/100+Ref!F90 ->  | M96: =IF($V$90=1,IF(M93=999,999,IF(Input!$G$9+Input!$C$9*Input!$G$11+(Input!$G$9-(Input!$G$9+Input!$C$9*TAN(Input!$G$11/2)-(Input!$C$9-Input!$C$9*COS($C$93))/SIN(Input!$G$11)-SIN(Input!$G$11-M93)/SIN(M93)*(Input!$C$9*TAN(Input!$G$11/2)-Input!$C$9*SIN($C$93)+(Input!$C$9-Input!$C$9*COS($C$93))/COS(Input!$G$11)))-Input!$C$14/TAN($M$93))<=Input!$G$28,1,IF(Input!$G$9+Input!$C$9*Input!$G$11+(Input!$G$9-(Input!$G$9+Input!$C$9*TAN(Input!$G$11/2)-(Input!$C$9-Input!$C$9*COS($C$93))/SIN(Input!$G$11)-SIN(Input!$G$11-M93)/SIN(M93)*(Input!$C$9*TAN(Input!$G$11/2)-Input!$C$9*SIN($C$93)+(Input!$C$9-Input!$C$9*COS($C$93))/COS(Input!$G$11)))-Input!$C$14/TAN($M$93))>Input!$G$29,3,2))),999) -> 999 | N96: =IF($V$90=1,IF(N93=999,999,IF(Input!$G$9+Input!$C$9*Input!$G$11+(Input!$G$9-(Input!$G$9+Input!$C$9*TAN(Input!$G$11/2)-(Input!$C$9-Input!$C$9*COS($C$93))/SIN(Input!$G$11)-SIN(Input!$G$11-N93)/SIN(N93)*(Input!$C$9*TAN(Input!$G$11/2)-Input!$C$9*SIN($C$93)+(Input!$C$9-Input!$C$9*COS($C$93))/COS(Input!$G$11)))-Input!$C$14/TAN($M$93))<=Input!$G$28,1,IF(Input!$G$9+Input!$C$9*Input!$G$11+(Input!$G$9-(Input!$G$9+Input!$C$9*TAN(Input!$G$11/2)-(Input!$C$9-Input!$C$9*COS($C$93))/SIN(Input!$G$11)-SIN(Input!$G$11-N93)/SIN(N93)*(Input!$C$9*TAN(Input!$G$11/2)-Input!$C$9*SIN($C$93)+(Input!$C$9-Input!$C$9*COS($C$93))/COS(Input!$G$11)))-Input!$C$14/TAN($M$93))>Input!$G$29,3,2))),999) -> 999 | O96: =IF($V$90=1,IF(O93=999,999,IF(Input!$G$9+Input!$C$9*Input!$G$11+(Input!$G$9-(Input!$G$9+Input!$C$9*TAN(Input!$G$11/2)-(Input!$C$9-Input!$C$9*COS($C$93))/SIN(Input!$G$11)-SIN(Input!$G$11-O93)/SIN(O93)*(Input!$C$9*TAN(Input!$G$11/2)-Input!$C$9*SIN($C$93)+(Input!$C$9-Input!$C$9*COS($C$93))/COS(Input!$G$11)))-Input!$C$14/TAN($M$93))<=Input!$G$28,1,IF(Input!$G$9+Input!$C$9*Input!$G$11+(Input!$G$9-(Input!$G$9+Input!$C$9*TAN(Input!$G$11/2)-(Input!$C$9-Input!$C$9*COS($C$93))/SIN(Input!$G$11)-SIN(Input!$G$11-O93)/SIN(O93)*(Input!$C$9*TAN(Input!$G$11/2)-Input!$C$9*SIN($C$93)+(Input!$C$9-Input!$C$9*COS($C$93))/COS(Input!$G$11)))-Input!$C$14/TAN($M$93))>Input!$G$29,3,2))),999) -> 999 | Q96: =IF($V$90=1,IF(Q93=999,999,IF(Input!$G$9+Input!$C$9*Input!$G$11+(Input!$G$9-(Input!$G$9+Input!$C$9*TAN(Input!$G$11/2)-(Input!$C$9-Input!$C$9*COS($C$93))/SIN(Input!$G$11)-SIN(Input!$G$11-Q93)/SIN(Q93)*(Input!$C$9*TAN(Input!$G$11/2)-Input!$C$9*SIN($C$93)+(Input!$C$9-Input!$C$9*COS($C$93))/COS(Input!$G$11)))-Input!$C$14/TAN($M$93))<=Input!$G$28,1,IF(Input!$G$9+Input!$C$9*Input!$G$11+(Input!$G$9-(Input!$G$9+Input!$C$9*TAN(Input!$G$11/2)-(Input!$C$9-Input!$C$9*COS($C$93))/SIN(Input!$G$11)-SIN(Input!$G$11-Q93)/SIN(Q93)*(Input!$C$9*TAN(Input!$G$11/2)-Input!$C$9*SIN($C$93)+(Input!$C$9-Input!$C$9*COS($C$93))/COS(Input!$G$11)))-Input!$C$14/TAN($M$93))>Input!$G$29,3,2))),IF($V$90=2,IF(Q94=999,999,IF(Input!$G$9+Input!$C$9*Input!$G$11+(Input!$G$9-(Input!$G$9+Input!$C$9*TAN(Input!$G$11/2)-(Input!$C$9-Input!$C$9*COS($C$93))/SIN(Input!$G$11)-SIN(Input!$G$11-Q94)/SIN(Q94)*(Input!$C$9*TAN(Input!$G$11/2)-Input!$C$9*SIN($C$93)+(Input!$C$9-Input!$C$9*COS($C$93))/COS(Input!$G$11)))-Input!$C$14/TAN($M$93))<=Input!$G$28,1,IF(Input!$G$9+Input!$C$9*Input!$G$11+(Input!$G$9-(Input!$G$9+Input!$C$9*TAN(Input!$G$11/2)-(Input!$C$9-Input!$C$9*COS($C$93))/SIN(Input!$G$11)-SIN(Input!$G$11-Q94)/SIN(Q94)*(Input!$C$9*TAN(Input!$G$11/2)-Input!$C$9*SIN($C$93)+(Input!$C$9-Input!$C$9*COS($C$93))/COS(Input!$G$11)))-Input!$C$14/TAN($M$93))>Input!$G$29,3,2))),999)) -> 999 | R96: =IF($V$90=1,IF(R93=999,999,IF(Input!$G$9+Input!$C$9*Input!$G$11+(Input!$G$9-(Input!$G$9+Input!$C$9*TAN(Input!$G$11/2)-(Input!$C$9-Input!$C$9*COS($C$93))/SIN(Input!$G$11)-SIN(Input!$G$11-R93)/SIN(R93)*(Input!$C$9*TAN(Input!$G$11/2)-Input!$C$9*SIN($C$93)+(Input!$C$9-Input!$C$9*COS($C$93))/COS(Input!$G$11)))-Input!$C$14/TAN($M$93))<=Input!$G$28,1,IF(Input!$G$9+Input!$C$9*Input!$G$11+(Input!$G$9-(Input!$G$9+Input!$C$9*TAN(Input!$G$11/2)-(Input!$C$9-Input!$C$9*COS($C$93))/SIN(Input!$G$11)-SIN(Input!$G$11-R93)/SIN(R93)*(Input!$C$9*TAN(Input!$G$11/2)-Input!$C$9*SIN($C$93)+(Input!$C$9-Input!$C$9*COS($C$93))/COS(Input!$G$11)))-Input!$C$14/TAN($M$93))>Input!$G$29,3,2))),IF($V$90=2,IF(R94=999,999,IF(Input!$G$9+Input!$C$9*Input!$G$11+(Input!$G$9-(Input!$G$9+Input!$C$9*TAN(Input!$G$11/2)-(Input!$C$9-Input!$C$9*COS($C$93))/SIN(Input!$G$11)-SIN(Input!$G$11-R94)/SIN(R94)*(Input!$C$9*TAN(Input!$G$11/2)-Input!$C$9*SIN($C$93)+(Input!$C$9-Input!$C$9*COS($C$93))/COS(Input!$G$11)))-Input!$C$14/TAN($M$93))<=Input!$G$28,1,IF(Input!$G$9+Input!$C$9*Input!$G$11+(Input!$G$9-(Input!$G$9+Input!$C$9*TAN(Input!$G$11/2)-(Input!$C$9-Input!$C$9*COS($C$93))/SIN(Input!$G$11)-SIN(Input!$G$11-R94)/SIN(R94)*(Input!$C$9*TAN(Input!$G$11/2)-Input!$C$9*SIN($C$93)+(Input!$C$9-Input!$C$9*COS($C$93))/COS(Input!$G$11)))-Input!$C$14/TAN($M$93))>Input!$G$29,3,2))),999)) -> 999 | U96: =IF($V$90=1,IF(U93=999,999,IF(Input!$G$9+Input!$C$9*Input!$G$11+(Input!$G$9-(Input!$G$9+Input!$C$9*TAN(Input!$G$11/2)-(Input!$C$9-Input!$C$9*COS($C$93))/SIN(Input!$G$11)-SIN(Input!$G$11-U93)/SIN(U93)*(Input!$C$9*TAN(Input!$G$11/2)-Input!$C$9*SIN($C$93)+(Input!$C$9-Input!$C$9*COS($C$93))/COS(Input!$G$11)))-Input!$C$14/TAN($M$93))<=Input!$G$28,1,IF(Input!$G$9+Input!$C$9*Input!$G$11+(Input!$G$9-(Input!$G$9+Input!$C$9*TAN(Input!$G$11/2)-(Input!$C$9-Input!$C$9*COS($C$93))/SIN(Input!$G$11)-SIN(Input!$G$11-U93)/SIN(U93)*(Input!$C$9*TAN(Input!$G$11/2)-Input!$C$9*SIN($C$93)+(Input!$C$9-Input!$C$9*COS($C$93))/COS(Input!$G$11)))-Input!$C$14/TAN($M$93))>Input!$G$29,3,2))),IF($V$90=2,IF(U94=999,999,IF(Input!$G$9+Input!$C$9*Input!$G$11+(Input!$G$9-(Input!$G$9+Input!$C$9*TAN(Input!$G$11/2)-(Input!$C$9-Input!$C$9*COS($C$93))/SIN(Input!$G$11)-SIN(Input!$G$11-U94)/SIN(U94)*(Input!$C$9*TAN(Input!$G$11/2)-Input!$C$9*SIN($C$93)+(Input!$C$9-Input!$C$9*COS($C$93))/COS(Input!$G$11)))-Input!$C$14/TAN($M$93))<=Input!$G$28,1,IF(Input!$G$9+Input!$C$9*Input!$G$11+(Input!$G$9-(Input!$G$9+Input!$C$9*TAN(Input!$G$11/2)-(Input!$C$9-Input!$C$9*COS($C$93))/SIN(Input!$G$11)-SIN(Input!$G$11-U94)/SIN(U94)*(Input!$C$9*TAN(Input!$G$11/2)-Input!$C$9*SIN($C$93)+(Input!$C$9-Input!$C$9*COS($C$93))/COS(Input!$G$11)))-Input!$C$14/TAN($M$93))>Input!$G$29,3,2))),IF(U95=999,999,IF(Input!$G$9+Input!$C$9*Input!$G$11+(Input!$G$9-(Input!$G$9+Input!$C$9*TAN(Input!$G$11/2)-(Input!$C$9-Input!$C$9*COS($C$93))/SIN(Input!$G$11)-SIN(Input!$G$11-U95)/SIN(U95)*(Input!$C$9*TAN(Input!$G$11/2)-Input!$C$9*SIN($C$93)+(Input!$C$9-Input!$C$9*COS($C$93))/COS(Input!$G$11)))-Input!$C$14/TAN($M$93))<=Input!$G$28,1,IF(Input!$G$9+Input!$C$9*Input!$G$11+(Input!$G$9-(Input!$G$9+Input!$C$9*TAN(Input!$G$11/2)-(Input!$C$9-Input!$C$9*COS($C$93))/SIN(Input!$G$11)-SIN(Input!$G$11-U95)/SIN(U95)*(Input!$C$9*TAN(Input!$G$11/2)-Input!$C$9*SIN($C$93)+(Input!$C$9-Input!$C$9*COS($C$93))/COS(Input!$G$11)))-Input!$C$14/TAN($M$93))>Input!$G$29,3,2))))) -> 999 | V96: T Vertical Position (1,2,3)
B97: theta(rad)= | C97: =Input!$G$11-C93 -> 0.1080729167 | K97: zI2 | L97: =Input!$G$30+Ref!F92/100*(Input!$G$9+Input!$C$9*Input!$G$11+(Input!$G$9-Ref!C91)-Input!$G$28)+(Ref!F93-Ref!F92)*(Input!$G$9+Input!$C$9*Input!$G$11+(Input!$G$9-Ref!C91)-Input!$G$28)^2/(200*Input!$C$10*5280)+Ref!F90 ->  | M97: =IF($V$79=1,IF(M93=999,999,IF(Input!$G$9+Input!$C$9*Input!$G$11+Input!$G$9-(Input!$G$9+Input!$C$9*TAN(Input!$G$11/2)-(Input!$C$9-Input!$C$9*COS($C$93))/SIN(Input!$G$11)-SIN(Input!$G$11-M93)/SIN(M93)*(Input!$C$9*TAN(Input!$G$11/2)-Input!$C$9*SIN($C$93)+(Input!$C$9-Input!$C$9*COS($C$93))/COS(Input!$G$11)))<=Input!$G$28,1,IF(Input!$G$9+Input!$C$9*Input!$G$11+Input!$G$9-(Input!$G$9+Input!$C$9*TAN(Input!$G$11/2)-(Input!$C$9-Input!$C$9*COS($C$93))/SIN(Input!$G$11)-SIN(Input!$G$11-M93)/SIN(M93)*(Input!$C$9*TAN(Input!$G$11/2)-Input!$C$9*SIN($C$93)+(Input!$C$9-Input!$C$9*COS($C$93))/COS(Input!$G$11)))>Input!$G$29,3,2))),999) -> 999 | N97: =IF($V$79=1,IF(N93=999,999,IF(Input!$G$9+Input!$C$9*Input!$G$11+Input!$G$9-(Input!$G$9+Input!$C$9*TAN(Input!$G$11/2)-(Input!$C$9-Input!$C$9*COS($C$93))/SIN(Input!$G$11)-SIN(Input!$G$11-N93)/SIN(N93)*(Input!$C$9*TAN(Input!$G$11/2)-Input!$C$9*SIN($C$93)+(Input!$C$9-Input!$C$9*COS($C$93))/COS(Input!$G$11)))<=Input!$G$28,1,IF(Input!$G$9+Input!$C$9*Input!$G$11+Input!$G$9-(Input!$G$9+Input!$C$9*TAN(Input!$G$11/2)-(Input!$C$9-Input!$C$9*COS($C$93))/SIN(Input!$G$11)-SIN(Input!$G$11-N93)/SIN(N93)*(Input!$C$9*TAN(Input!$G$11/2)-Input!$C$9*SIN($C$93)+(Input!$C$9-Input!$C$9*COS($C$93))/COS(Input!$G$11)))>Input!$G$29,3,2))),999) -> 999 | O97: =IF($V$79=1,IF(O93=999,999,IF(Input!$G$9+Input!$C$9*Input!$G$11+Input!$G$9-(Input!$G$9+Input!$C$9*TAN(Input!$G$11/2)-(Input!$C$9-Input!$C$9*COS($C$93))/SIN(Input!$G$11)-SIN(Input!$G$11-O93)/SIN(O93)*(Input!$C$9*TAN(Input!$G$11/2)-Input!$C$9*SIN($C$93)+(Input!$C$9-Input!$C$9*COS($C$93))/COS(Input!$G$11)))<=Input!$G$28,1,IF(Input!$G$9+Input!$C$9*Input!$G$11+Input!$G$9-(Input!$G$9+Input!$C$9*TAN(Input!$G$11/2)-(Input!$C$9-Input!$C$9*COS($C$93))/SIN(Input!$G$11)-SIN(Input!$G$11-O93)/SIN(O93)*(Input!$C$9*TAN(Input!$G$11/2)-Input!$C$9*SIN($C$93)+(Input!$C$9-Input!$C$9*COS($C$93))/COS(Input!$G$11)))>Input!$G$29,3,2))),999) -> 999 | Q97: =IF($V$79=1,IF(Q93=999,999,IF(Input!$G$9+Input!$C$9*Input!$G$11+Input!$G$9-(Input!$G$9+Input!$C$9*TAN(Input!$G$11/2)-(Input!$C$9-Input!$C$9*COS($C$93))/SIN(Input!$G$11)-SIN(Input!$G$11-Q93)/SIN(Q93)*(Input!$C$9*TAN(Input!$G$11/2)-Input!$C$9*SIN($C$93)+(Input!$C$9-Input!$C$9*COS($C$93))/COS(Input!$G$11)))<=Input!$G$28,1,IF(Input!$G$9+Input!$C$9*Input!$G$11+Input!$G$9-(Input!$G$9+Input!$C$9*TAN(Input!$G$11/2)-(Input!$C$9-Input!$C$9*COS($C$93))/SIN(Input!$G$11)-SIN(Input!$G$11-Q93)/SIN(Q93)*(Input!$C$9*TAN(Input!$G$11/2)-Input!$C$9*SIN($C$93)+(Input!$C$9-Input!$C$9*COS($C$93))/COS(Input!$G$11)))>Input!$G$29,3,2))),IF($V$79=2,IF(Q94=999,999,IF(Input!$G$9+Input!$C$9*Input!$G$11+Input!$G$9-(Input!$G$9+Input!$C$9*TAN(Input!$G$11/2)-(Input!$C$9-Input!$C$9*COS($C$93))/SIN(Input!$G$11)-SIN(Input!$G$11-Q94)/SIN(Q94)*(Input!$C$9*TAN(Input!$G$11/2)-Input!$C$9*SIN($C$93)+(Input!$C$9-Input!$C$9*COS($C$93))/COS(Input!$G$11)))<=Input!$G$28,1,IF(Input!$G$9+Input!$C$9*Input!$G$11+Input!$G$9-(Input!$G$9+Input!$C$9*TAN(Input!$G$11/2)-(Input!$C$9-Input!$C$9*COS($C$93))/SIN(Input!$G$11)-SIN(Input!$G$11-Q94)/SIN(Q94)*(Input!$C$9*TAN(Input!$G$11/2)-Input!$C$9*SIN($C$93)+(Input!$C$9-Input!$C$9*COS($C$93))/COS(Input!$G$11)))>Input!$G$29,3,2))),999)) -> 999 | R97: =IF($V$79=1,IF(R93=999,999,IF(Input!$G$9+Input!$C$9*Input!$G$11+Input!$G$9-(Input!$G$9+Input!$C$9*TAN(Input!$G$11/2)-(Input!$C$9-Input!$C$9*COS($C$93))/SIN(Input!$G$11)-SIN(Input!$G$11-R93)/SIN(R93)*(Input!$C$9*TAN(Input!$G$11/2)-Input!$C$9*SIN($C$93)+(Input!$C$9-Input!$C$9*COS($C$93))/COS(Input!$G$11)))<=Input!$G$28,1,IF(Input!$G$9+Input!$C$9*Input!$G$11+Input!$G$9-(Input!$G$9+Input!$C$9*TAN(Input!$G$11/2)-(Input!$C$9-Input!$C$9*COS($C$93))/SIN(Input!$G$11)-SIN(Input!$G$11-R93)/SIN(R93)*(Input!$C$9*TAN(Input!$G$11/2)-Input!$C$9*SIN($C$93)+(Input!$C$9-Input!$C$9*COS($C$93))/COS(Input!$G$11)))>Input!$G$29,3,2))),IF($V$79=2,IF(R94=999,999,IF(Input!$G$9+Input!$C$9*Input!$G$11+Input!$G$9-(Input!$G$9+Input!$C$9*TAN(Input!$G$11/2)-(Input!$C$9-Input!$C$9*COS($C$93))/SIN(Input!$G$11)-SIN(Input!$G$11-R94)/SIN(R94)*(Input!$C$9*TAN(Input!$G$11/2)-Input!$C$9*SIN($C$93)+(Input!$C$9-Input!$C$9*COS($C$93))/COS(Input!$G$11)))<=Input!$G$28,1,IF(Input!$G$9+Input!$C$9*Input!$G$11+Input!$G$9-(Input!$G$9+Input!$C$9*TAN(Input!$G$11/2)-(Input!$C$9-Input!$C$9*COS($C$93))/SIN(Input!$G$11)-SIN(Input!$G$11-R94)/SIN(R94)*(Input!$C$9*TAN(Input!$G$11/2)-Input!$C$9*SIN($C$93)+(Input!$C$9-Input!$C$9*COS($C$93))/COS(Input!$G$11)))>Input!$G$29,3,2))),999)) -> 999 | U97: =IF($V$79=1,IF(U93=999,999,IF(Input!$G$9+Input!$C$9*Input!$G$11+Input!$G$9-(Input!$G$9+Input!$C$9*TAN(Input!$G$11/2)-(Input!$C$9-Input!$C$9*COS($C$93))/SIN(Input!$G$11)-SIN(Input!$G$11-U93)/SIN(U93)*(Input!$C$9*TAN(Input!$G$11/2)-Input!$C$9*SIN($C$93)+(Input!$C$9-Input!$C$9*COS($C$93))/COS(Input!$G$11)))<=Input!$G$28,1,IF(Input!$G$9+Input!$C$9*Input!$G$11+Input!$G$9-(Input!$G$9+Input!$C$9*TAN(Input!$G$11/2)-(Input!$C$9-Input!$C$9*COS($C$93))/SIN(Input!$G$11)-SIN(Input!$G$11-U93)/SIN(U93)*(Input!$C$9*TAN(Input!$G$11/2)-Input!$C$9*SIN($C$93)+(Input!$C$9-Input!$C$9*COS($C$93))/COS(Input!$G$11)))>Input!$G$29,3,2))),IF($V$79=2,IF(U94=999,999,IF(Input!$G$9+Input!$C$9*Input!$G$11+Input!$G$9-(Input!$G$9+Input!$C$9*TAN(Input!$G$11/2)-(Input!$C$9-Input!$C$9*COS($C$93))/SIN(Input!$G$11)-SIN(Input!$G$11-U94)/SIN(U94)*(Input!$C$9*TAN(Input!$G$11/2)-Input!$C$9*SIN($C$93)+(Input!$C$9-Input!$C$9*COS($C$93))/COS(Input!$G$11)))<=Input!$G$28,1,IF(Input!$G$9+Input!$C$9*Input!$G$11+Input!$G$9-(Input!$G$9+Input!$C$9*TAN(Input!$G$11/2)-(Input!$C$9-Input!$C$9*COS($C$93))/SIN(Input!$G$11)-SIN(Input!$G$11-U94)/SIN(U94)*(Input!$C$9*TAN(Input!$G$11/2)-Input!$C$9*SIN($C$93)+(Input!$C$9-Input!$C$9*COS($C$93))/COS(Input!$G$11)))>Input!$G$29,3,2))),IF(U95=999,999,IF(Input!$G$9+Input!$C$9*Input!$G$11+Input!$G$9-(Input!$G$9+Input!$C$9*TAN(Input!$G$11/2)-(Input!$C$9-Input!$C$9*COS($C$93))/SIN(Input!$G$11)-SIN(Input!$G$11-U95)/SIN(U95)*(Input!$C$9*TAN(Input!$G$11/2)-Input!$C$9*SIN($C$93)+(Input!$C$9-Input!$C$9*COS($C$93))/COS(Input!$G$11)))<=Input!$G$28,1,IF(Input!$G$9+Input!$C$9*Input!$G$11+Input!$G$9-(Input!$G$9+Input!$C$9*TAN(Input!$G$11/2)-(Input!$C$9-Input!$C$9*COS($C$93))/SIN(Input!$G$11)-SIN(Input!$G$11-U95)/SIN(U95)*(Input!$C$9*TAN(Input!$G$11/2)-Input!$C$9*SIN($C$93)+(Input!$C$9-Input!$C$9*COS($C$93))/COS(Input!$G$11)))>Input!$G$29,3,2))))) -> 999 | V97: I Vertical Position (1,2,3)
E98: S'= | K98: zI3 | L98: =Input!$G$31+(Input!$G$9+Input!$C$9*Input!$G$11+(Input!$G$9-Ref!C91)-Input!$G$29)*Ref!F93/100+Ref!F90 ->  | M98: =IF(AND(M96=1,M97=1),1,999) -> 999 | N98: =IF(AND(N96=1,N97=2),1,999) -> 999 | O98: =IF(AND(O96=1,O97=3),1,999) -> 999 | Q98: =IF(AND(Q96=2,Q97=2),1,999) -> 999 | R98: =IF(AND(R96=2,R97=3),1,999) -> 999 | U98: =IF(AND(U96=3,U97=3),1,999) -> 999
L100: Speed | M100: Level SSD
B101: Facility Types | D101: Type | E101: Lanes | F101: Capacity | I101: To the right | L101: 15 | M101: 80 | O101: SSD1 | P101: =1.47*Input!$C$11*2.5+Input!$C$11^2/(30*((11.2/32.2)+Input!C30/100)) -> 681.9894551
B102: Rural two-lane highway | D102: 1 | E102: 1 | F102: 1900 | I102: To the left | L102: 20 | M102: 115 | O102: SSD2 | P102: =1.47*Input!$C$11*2.5+Input!$C$11^2/(30*((11.2/32.2)+Input!C31/100)) -> 611.6214519
B103: Rural four-lane undivided highway | D103: 2 | E103: 2 | F103: 2200 | L103: 25 | M103: 155
B104: Rural four-lane divided highway | D104: 3 | E104: 2 | F104: 2200 | L104: 30 | M104: 200
B105: Rural freeway (4 lanes) | D105: 4 | E105: 2 | F105: 2400 | L105: 35 | M105: 250 | O105: Design SSD | P105: =ROUNDUP(IF(Input!B31="",IF(ABS(Input!C30)>=3,Ref!P101,VLOOKUP(Input!C11,Ref!L101:M114,2)),IF(OR(AND(Input!C30>=3,Input!C31>=3),AND(Input!C30<=-3,Input!C31<=-3)),(Ref!P101+Ref!P102)/2,VLOOKUP(Input!C11,Ref!L101:M114,2))),0) -> 682
B106: Rural freeway (6 lanes) | D106: 5 | E106: 3 | F106: 2400 | L106: 40 | M106: 305
B107: Urban freeway (4 lanes) | D107: 6 | E107: 2 | F107: 2400 | L107: 45 | M107: 360
B108: Urban freeway (6 lanes) | D108: 7 | E108: 3 | F108: 2400 | L108: 50 | M108: 425
B109: Urban freeway (8 lanes) | D109: 8 | E109: 4 | F109: 2400 | L109: 55 | M109: 495
B110: Rural one-lane entrance ramp | D110: 9 | E110: 1 | F110: 2200 | L110: 60 | M110: 570
B111: Rural one-lane exit ramp | D111: 10 | E111: 1 | F111: 2200 | L111: 65 | M111: 645
B112: Urban one-lane entrance ramp | D112: 11 | E112: 1 | F112: 2200 | L112: 70 | M112: 730
B113: Urban one-lane exit ramp | D113: 12 | E113: 1 | F113: 2200 | L113: 75 | M113: 820
B114: Urban two-lane entrance ramp | D114: 13 | E114: 2 | F114: 2200 | L114: 80 | M114: 910
B115: Urban two-lane exit ramp | D115: 14 | E115: 2 | F115: 2200
B117: Type/hr(8%) | C117: 1 | D117: 2 | E117: 3 | F117: 4 | G117: 5 | H117: 6 | I117: 7 | J117: 8 | K117: 9 | L117: 10 | M117: 11 | N117: 12 | O117: 13 | P117: 14
B118: 1 | C118: 0.0068 | D118: 0.0073 | E118: 0.0073 | F118: 0.0144 | G118: 0.0144 | H118: 0.0102 | I118: 0.0102 | J118: 0.0102 | K118: 0.0144 | L118: 0.0144 | M118: 0.0102 | N118: 0.0102 | O118: 0.0102 | P118: 0.0102
B119: 2 | C119: 0.0044 | D119: 0.005 | E119: 0.005 | F119: 0.0117 | G119: 0.0117 | H119: 0.0073 | I119: 0.0073 | J119: 0.0073 | K119: 0.0117 | L119: 0.0117 | M119: 0.0073 | N119: 0.0073 | O119: 0.0073 | P119: 0.0073
B120: 3 | C120: 0.0041 | D120: 0.0047 | E120: 0.0047 | F120: 0.0109 | G120: 0.0109 | H120: 0.0067 | I120: 0.0067 | J120: 0.0067 | K120: 0.0109 | L120: 0.0109 | M120: 0.0067 | N120: 0.0067 | O120: 0.0067 | P120: 0.0067
B121: 4 | C121: 0.0052 | D121: 0.0058 | E121: 0.0058 | F121: 0.0118 | G121: 0.0118 | H121: 0.0078 | I121: 0.0078 | J121: 0.0078 | K121: 0.0118 | L121: 0.0118 | M121: 0.0078 | N121: 0.0078 | O121: 0.0078 | P121: 0.0078
B122: 5 | C122: 0.0104 | D122: 0.0112 | E122: 0.0112 | F122: 0.0152 | G122: 0.0152 | H122: 0.0121 | I122: 0.0121 | J122: 0.0121 | K122: 0.0152 | L122: 0.0152 | M122: 0.0121 | N122: 0.0121 | O122: 0.0121 | P122: 0.0121
B123: 6 | C123: 0.0267 | D123: 0.0271 | E123: 0.0271 | F123: 0.0248 | G123: 0.0248 | H123: 0.0257 | I123: 0.0257 | J123: 0.0257 | K123: 0.0248 | L123: 0.0248 | M123: 0.0257 | N123: 0.0257 | O123: 0.0257 | P123: 0.0257
B124: 7 | C124: 0.0508 | D124: 0.0499 | E124: 0.0499 | F124: 0.0414 | G124: 0.0414 | H124: 0.0513 | I124: 0.0513 | J124: 0.0513 | K124: 0.0414 | L124: 0.0414 | M124: 0.0513 | N124: 0.0513 | O124: 0.0513 | P124: 0.0513
B125: 8 | C125: 0.0653 | D125: 0.0643 | E125: 0.0643 | F125: 0.054 | G125: 0.054 | H125: 0.0682 | I125: 0.0682 | J125: 0.0682 | K125: 0.054 | L125: 0.054 | M125: 0.0682 | N125: 0.0682 | O125: 0.0682 | P125: 0.0682
B126: 9 | C126: 0.0573 | D126: 0.058 | E126: 0.058 | F126: 0.0525 | G126: 0.0525 | H126: 0.0613 | I126: 0.0613 | J126: 0.0613 | K126: 0.0525 | L126: 0.0525 | M126: 0.0613 | N126: 0.0613 | O126: 0.0613 | P126: 0.0613
B127: 10 | C127: 0.0513 | D127: 0.053 | E127: 0.053 | F127: 0.0515 | G127: 0.0515 | H127: 0.0522 | I127: 0.0522 | J127: 0.0522 | K127: 0.0515 | L127: 0.0515 | M127: 0.0522 | N127: 0.0522 | O127: 0.0522 | P127: 0.0522
B128: 11 | C128: 0.0517 | D128: 0.0538 | E128: 0.0538 | F128: 0.0532 | G128: 0.0532 | H128: 0.0499 | I128: 0.0499 | J128: 0.0499 | K128: 0.0532 | L128: 0.0532 | M128: 0.0499 | N128: 0.0499 | O128: 0.0499 | P128: 0.0499
B129: 12 | C129: 0.0541 | D129: 0.0559 | E129: 0.0559 | F129: 0.0548 | G129: 0.0548 | H129: 0.0513 | I129: 0.0513 | J129: 0.0513 | K129: 0.0548 | L129: 0.0548 | M129: 0.0513 | N129: 0.0513 | O129: 0.0513 | P129: 0.0513
B130: 13 | C130: 0.0567 | D130: 0.0581 | E130: 0.0581 | F130: 0.0564 | G130: 0.0564 | H130: 0.0532 | I130: 0.0532 | J130: 0.0532 | K130: 0.0564 | L130: 0.0564 | M130: 0.0532 | N130: 0.0532 | O130: 0.0532 | P130: 0.0532
B131: 14 | C131: 0.0579 | D131: 0.0599 | E131: 0.0599 | F131: 0.0585 | G131: 0.0585 | H131: 0.0548 | I131: 0.0548 | J131: 0.0548 | K131: 0.0585 | L131: 0.0585 | M131: 0.0548 | N131: 0.0548 | O131: 0.0548 | P131: 0.0548
B132: 15 | C132: 0.0648 | D132: 0.0658 | E132: 0.0658 | F132: 0.063 | G132: 0.063 | H132: 0.0608 | I132: 0.0608 | J132: 0.0608 | K132: 0.063 | L132: 0.063 | M132: 0.0608 | N132: 0.0608 | O132: 0.0608 | P132: 0.0608
B133: 16 | C133: 0.0769 | D133: 0.0758 | E133: 0.0758 | F133: 0.0686 | G133: 0.0686 | H133: 0.0706 | I133: 0.0706 | J133: 0.0706 | K133: 0.0686 | L133: 0.0686 | M133: 0.0706 | N133: 0.0706 | O133: 0.0706 | P133: 0.0706
B134: 17 | C134: 0.08 | D134: 0.08 | E134: 0.08 | F134: 0.08 | G134: 0.08 | H134: 0.08 | I134: 0.08 | J134: 0.08 | K134: 0.08 | L134: 0.08 | M134: 0.08 | N134: 0.08 | O134: 0.08 | P134: 0.08
B135: 18 | C135: 0.0783 | D135: 0.075 | E135: 0.075 | F135: 0.0681 | G135: 0.0681 | H135: 0.073 | I135: 0.073 | J135: 0.073 | K135: 0.0681 | L135: 0.0681 | M135: 0.073 | N135: 0.073 | O135: 0.073 | P135: 0.073
B136: 19 | C136: 0.0583 | D136: 0.0548 | E136: 0.0548 | F136: 0.0531 | G136: 0.0531 | H136: 0.0568 | I136: 0.0568 | J136: 0.0568 | K136: 0.0531 | L136: 0.0531 | M136: 0.0568 | N136: 0.0568 | O136: 0.0568 | P136: 0.0568
B137: 20 | C137: 0.0439 | D137: 0.0414 | E137: 0.0414 | F137: 0.0427 | G137: 0.0427 | H137: 0.0429 | I137: 0.0429 | J137: 0.0429 | K137: 0.0427 | L137: 0.0427 | M137: 0.0429 | N137: 0.0429 | O137: 0.0429 | P137: 0.0429
B138: 21 | C138: 0.0362 | D138: 0.0341 | E138: 0.0341 | F138: 0.0366 | G138: 0.0366 | H138: 0.0351 | I138: 0.0351 | J138: 0.0351 | K138: 0.0366 | L138: 0.0366 | M138: 0.0351 | N138: 0.0351 | O138: 0.0351 | P138: 0.0351
B139: 22 | C139: 0.0276 | D139: 0.0272 | E139: 0.0272 | F139: 0.0314 | G139: 0.0314 | H139: 0.0297 | I139: 0.0297 | J139: 0.0297 | K139: 0.0314 | L139: 0.0314 | M139: 0.0297 | N139: 0.0297 | O139: 0.0297 | P139: 0.0297
B140: 23 | C140: 0.0189 | D140: 0.0189 | E140: 0.0189 | F140: 0.0255 | G140: 0.0255 | H140: 0.0228 | I140: 0.0228 | J140: 0.0228 | K140: 0.0255 | L140: 0.0255 | M140: 0.0228 | N140: 0.0228 | O140: 0.0228 | P140: 0.0228
B141: 24 | C141: 0.0124 | D141: 0.013 | E141: 0.013 | F141: 0.0199 | G141: 0.0199 | H141: 0.0163 | I141: 0.0163 | J141: 0.0163 | K141: 0.0199 | L141: 0.0199 | M141: 0.0163 | N141: 0.0163 | O141: 0.0163 | P141: 0.0163
C142: =SUM(C118:C141) -> 1 | D142: 1 | E142: 1 | F142: 1 | G142: 1 | H142: 1 | I142: 1 | J142: 1 | K142: 1 | L142: 1 | M142: 1 | N142: 1 | O142: 1 | P142: 1
B144: Type/hr(9%) | C144: 1 | D144: 2 | E144: 3 | F144: 4 | G144: 5 | H144: 6 | I144: 7 | J144: 8 | K144: 9 | L144: 10 | M144: 11 | N144: 12 | O144: 13 | P144: 14
B145: 1 | C145: 0.0063 | D145: 0.0069 | E145: 0.0069 | F145: 0.0139 | G145: 0.0139 | H145: 0.0097 | I145: 0.0097 | J145: 0.0097 | K145: 0.0139 | L145: 0.0139 | M145: 0.0097 | N145: 0.0097 | O145: 0.0097 | P145: 0.0097
B146: 2 | C146: 0.0039 | D146: 0.0046 | E146: 0.0046 | F146: 0.0112 | G146: 0.0112 | H146: 0.0068 | I146: 0.0068 | J146: 0.0068 | K146: 0.0112 | L146: 0.0112 | M146: 0.0068 | N146: 0.0068 | O146: 0.0068 | P146: 0.0068
B147: 3 | C147: 0.0036 | D147: 0.0043 | E147: 0.0043 | F147: 0.0104 | G147: 0.0104 | H147: 0.0062 | I147: 0.0062 | J147: 0.0062 | K147: 0.0104 | L147: 0.0104 | M147: 0.0062 | N147: 0.0062 | O147: 0.0062 | P147: 0.0062
B148: 4 | C148: 0.0047 | D148: 0.0054 | E148: 0.0054 | F148: 0.0113 | G148: 0.0113 | H148: 0.0073 | I148: 0.0073 | J148: 0.0073 | K148: 0.0113 | L148: 0.0113 | M148: 0.0073 | N148: 0.0073 | O148: 0.0073 | P148: 0.0073
B149: 5 | C149: 0.0099 | D149: 0.0108 | E149: 0.0108 | F149: 0.0147 | G149: 0.0147 | H149: 0.0116 | I149: 0.0116 | J149: 0.0116 | K149: 0.0147 | L149: 0.0147 | M149: 0.0116 | N149: 0.0116 | O149: 0.0116 | P149: 0.0116
B150: 6 | C150: 0.0262 | D150: 0.0267 | E150: 0.0267 | F150: 0.0243 | G150: 0.0243 | H150: 0.0252 | I150: 0.0252 | J150: 0.0252 | K150: 0.0243 | L150: 0.0243 | M150: 0.0252 | N150: 0.0252 | O150: 0.0252 | P150: 0.0252
B151: 7 | C151: 0.0503 | D151: 0.0495 | E151: 0.0495 | F151: 0.0409 | G151: 0.0409 | H151: 0.0508 | I151: 0.0508 | J151: 0.0508 | K151: 0.0409 | L151: 0.0409 | M151: 0.0508 | N151: 0.0508 | O151: 0.0508 | P151: 0.0508
B152: 8 | C152: 0.0648 | D152: 0.0639 | E152: 0.0639 | F152: 0.0535 | G152: 0.0535 | H152: 0.0677 | I152: 0.0677 | J152: 0.0677 | K152: 0.0535 | L152: 0.0535 | M152: 0.0677 | N152: 0.0677 | O152: 0.0677 | P152: 0.0677
B153: 9 | C153: 0.0568 | D153: 0.0576 | E153: 0.0576 | F153: 0.052 | G153: 0.052 | H153: 0.0608 | I153: 0.0608 | J153: 0.0608 | K153: 0.052 | L153: 0.052 | M153: 0.0608 | N153: 0.0608 | O153: 0.0608 | P153: 0.0608
B154: 10 | C154: 0.0508 | D154: 0.0526 | E154: 0.0526 | F154: 0.051 | G154: 0.051 | H154: 0.0517 | I154: 0.0517 | J154: 0.0517 | K154: 0.051 | L154: 0.051 | M154: 0.0517 | N154: 0.0517 | O154: 0.0517 | P154: 0.0517
B155: 11 | C155: 0.0512 | D155: 0.0534 | E155: 0.0534 | F155: 0.0527 | G155: 0.0527 | H155: 0.0494 | I155: 0.0494 | J155: 0.0494 | K155: 0.0527 | L155: 0.0527 | M155: 0.0494 | N155: 0.0494 | O155: 0.0494 | P155: 0.0494
B156: 12 | C156: 0.0536 | D156: 0.0555 | E156: 0.0555 | F156: 0.0543 | G156: 0.0543 | H156: 0.0508 | I156: 0.0508 | J156: 0.0508 | K156: 0.0543 | L156: 0.0543 | M156: 0.0508 | N156: 0.0508 | O156: 0.0508 | P156: 0.0508
B157: 13 | C157: 0.0562 | D157: 0.0577 | E157: 0.0577 | F157: 0.0559 | G157: 0.0559 | H157: 0.0527 | I157: 0.0527 | J157: 0.0527 | K157: 0.0559 | L157: 0.0559 | M157: 0.0527 | N157: 0.0527 | O157: 0.0527 | P157: 0.0527
B158: 14 | C158: 0.0574 | D158: 0.0595 | E158: 0.0595 | F158: 0.058 | G158: 0.058 | H158: 0.0543 | I158: 0.0543 | J158: 0.0543 | K158: 0.058 | L158: 0.058 | M158: 0.0543 | N158: 0.0543 | O158: 0.0543 | P158: 0.0543
B159: 15 | C159: 0.0643 | D159: 0.0654 | E159: 0.0654 | F159: 0.0625 | G159: 0.0625 | H159: 0.0603 | I159: 0.0603 | J159: 0.0603 | K159: 0.0625 | L159: 0.0625 | M159: 0.0603 | N159: 0.0603 | O159: 0.0603 | P159: 0.0603
B160: 16 | C160: 0.0764 | D160: 0.0746 | E160: 0.0746 | F160: 0.0696 | G160: 0.0696 | H160: 0.0701 | I160: 0.0701 | J160: 0.0701 | K160: 0.0696 | L160: 0.0696 | M160: 0.0701 | N160: 0.0701 | O160: 0.0701 | P160: 0.0701
B161: 17 | C161: 0.09 | D161: 0.09 | E161: 0.09 | F161: 0.09 | G161: 0.09 | H161: 0.09 | I161: 0.09 | J161: 0.09 | K161: 0.09 | L161: 0.09 | M161: 0.09 | N161: 0.09 | O161: 0.09 | P161: 0.09
B162: 18 | C162: 0.0793 | D162: 0.0746 | E162: 0.0746 | F162: 0.0676 | G162: 0.0676 | H162: 0.074 | I162: 0.074 | J162: 0.074 | K162: 0.0676 | L162: 0.0676 | M162: 0.074 | N162: 0.074 | O162: 0.074 | P162: 0.074
B163: 19 | C163: 0.0578 | D163: 0.0544 | E163: 0.0544 | F163: 0.0526 | G163: 0.0526 | H163: 0.0563 | I163: 0.0563 | J163: 0.0563 | K163: 0.0526 | L163: 0.0526 | M163: 0.0563 | N163: 0.0563 | O163: 0.0563 | P163: 0.0563
B164: 20 | C164: 0.0434 | D164: 0.041 | E164: 0.041 | F164: 0.0422 | G164: 0.0422 | H164: 0.0424 | I164: 0.0424 | J164: 0.0424 | K164: 0.0422 | L164: 0.0422 | M164: 0.0424 | N164: 0.0424 | O164: 0.0424 | P164: 0.0424
B165: 21 | C165: 0.0357 | D165: 0.0337 | E165: 0.0337 | F165: 0.0361 | G165: 0.0361 | H165: 0.0346 | I165: 0.0346 | J165: 0.0346 | K165: 0.0361 | L165: 0.0361 | M165: 0.0346 | N165: 0.0346 | O165: 0.0346 | P165: 0.0346
B166: 22 | C166: 0.0271 | D166: 0.0268 | E166: 0.0268 | F166: 0.0309 | G166: 0.0309 | H166: 0.0292 | I166: 0.0292 | J166: 0.0292 | K166: 0.0309 | L166: 0.0309 | M166: 0.0292 | N166: 0.0292 | O166: 0.0292 | P166: 0.0292
B167: 23 | C167: 0.0184 | D167: 0.0185 | E167: 0.0185 | F167: 0.025 | G167: 0.025 | H167: 0.0223 | I167: 0.0223 | J167: 0.0223 | K167: 0.025 | L167: 0.025 | M167: 0.0223 | N167: 0.0223 | O167: 0.0223 | P167: 0.0223
B168: 24 | C168: 0.0119 | D168: 0.0126 | E168: 0.0126 | F168: 0.0194 | G168: 0.0194 | H168: 0.0158 | I168: 0.0158 | J168: 0.0158 | K168: 0.0194 | L168: 0.0194 | M168: 0.0158 | N168: 0.0158 | O168: 0.0158 | P168: 0.0158
C169: =SUM(C145:C168) -> 1 | D169: 1 | E169: 1 | F169: 1 | G169: 1 | H169: 1 | I169: 1 | J169: 1 | K169: 1 | L169: 1 | M169: 1 | N169: 1 | O169: 1 | P169: 1
B171: Type/hr(10%) | C171: 1 | D171: 2 | E171: 3 | F171: 4 | G171: 5 | H171: 6 | I171: 7 | J171: 8 | K171: 9 | L171: 10 | M171: 11 | N171: 12 | O171: 13 | P171: 14
B172: 1 | C172: 0.0059 | D172: 0.0064 | E172: 0.0064 | F172: 0.0135 | G172: 0.0135 | H172: 0.0093 | I172: 0.0093 | J172: 0.0093 | K172: 0.0135 | L172: 0.0135 | M172: 0.0093 | N172: 0.0093 | O172: 0.0093 | P172: 0.0093
B173: 2 | C173: 0.0035 | D173: 0.0041 | E173: 0.0041 | F173: 0.0108 | G173: 0.0108 | H173: 0.0064 | I173: 0.0064 | J173: 0.0064 | K173: 0.0108 | L173: 0.0108 | M173: 0.0064 | N173: 0.0064 | O173: 0.0064 | P173: 0.0064
B174: 3 | C174: 0.0032 | D174: 0.0038 | E174: 0.0038 | F174: 0.01 | G174: 0.01 | H174: 0.0058 | I174: 0.0058 | J174: 0.0058 | K174: 0.01 | L174: 0.01 | M174: 0.0058 | N174: 0.0058 | O174: 0.0058 | P174: 0.0058
B175: 4 | C175: 0.0043 | D175: 0.0049 | E175: 0.0049 | F175: 0.0109 | G175: 0.0109 | H175: 0.0069 | I175: 0.0069 | J175: 0.0069 | K175: 0.0109 | L175: 0.0109 | M175: 0.0069 | N175: 0.0069 | O175: 0.0069 | P175: 0.0069
B176: 5 | C176: 0.0095 | D176: 0.0103 | E176: 0.0103 | F176: 0.0143 | G176: 0.0143 | H176: 0.0112 | I176: 0.0112 | J176: 0.0112 | K176: 0.0143 | L176: 0.0143 | M176: 0.0112 | N176: 0.0112 | O176: 0.0112 | P176: 0.0112
B177: 6 | C177: 0.0258 | D177: 0.0262 | E177: 0.0262 | F177: 0.0239 | G177: 0.0239 | H177: 0.0248 | I177: 0.0248 | J177: 0.0248 | K177: 0.0239 | L177: 0.0239 | M177: 0.0248 | N177: 0.0248 | O177: 0.0248 | P177: 0.0248
B178: 7 | C178: 0.0499 | D178: 0.049 | E178: 0.049 | F178: 0.0405 | G178: 0.0405 | H178: 0.0504 | I178: 0.0504 | J178: 0.0504 | K178: 0.0405 | L178: 0.0405 | M178: 0.0504 | N178: 0.0504 | O178: 0.0504 | P178: 0.0504
B179: 8 | C179: 0.0644 | D179: 0.0634 | E179: 0.0634 | F179: 0.0531 | G179: 0.0531 | H179: 0.0673 | I179: 0.0673 | J179: 0.0673 | K179: 0.0531 | L179: 0.0531 | M179: 0.0673 | N179: 0.0673 | O179: 0.0673 | P179: 0.0673
B180: 9 | C180: 0.0564 | D180: 0.0571 | E180: 0.0571 | F180: 0.0516 | G180: 0.0516 | H180: 0.0604 | I180: 0.0604 | J180: 0.0604 | K180: 0.0516 | L180: 0.0516 | M180: 0.0604 | N180: 0.0604 | O180: 0.0604 | P180: 0.0604
B181: 10 | C181: 0.0504 | D181: 0.0521 | E181: 0.0521 | F181: 0.0506 | G181: 0.0506 | H181: 0.0513 | I181: 0.0513 | J181: 0.0513 | K181: 0.0506 | L181: 0.0506 | M181: 0.0513 | N181: 0.0513 | O181: 0.0513 | P181: 0.0513
B182: 11 | C182: 0.0508 | D182: 0.0529 | E182: 0.0529 | F182: 0.0523 | G182: 0.0523 | H182: 0.049 | I182: 0.049 | J182: 0.049 | K182: 0.0523 | L182: 0.0523 | M182: 0.049 | N182: 0.049 | O182: 0.049 | P182: 0.049
B183: 12 | C183: 0.0532 | D183: 0.055 | E183: 0.055 | F183: 0.0539 | G183: 0.0539 | H183: 0.0504 | I183: 0.0504 | J183: 0.0504 | K183: 0.0539 | L183: 0.0539 | M183: 0.0504 | N183: 0.0504 | O183: 0.0504 | P183: 0.0504
B184: 13 | C184: 0.0558 | D184: 0.0572 | E184: 0.0572 | F184: 0.0555 | G184: 0.0555 | H184: 0.0523 | I184: 0.0523 | J184: 0.0523 | K184: 0.0555 | L184: 0.0555 | M184: 0.0523 | N184: 0.0523 | O184: 0.0523 | P184: 0.0523
B185: 14 | C185: 0.057 | D185: 0.059 | E185: 0.059 | F185: 0.0576 | G185: 0.0576 | H185: 0.0539 | I185: 0.0539 | J185: 0.0539 | K185: 0.0576 | L185: 0.0576 | M185: 0.0539 | N185: 0.0539 | O185: 0.0539 | P185: 0.0539
B186: 15 | C186: 0.0639 | D186: 0.0649 | E186: 0.0649 | F186: 0.0621 | G186: 0.0621 | H186: 0.0599 | I186: 0.0599 | J186: 0.0599 | K186: 0.0621 | L186: 0.0621 | M186: 0.0599 | N186: 0.0599 | O186: 0.0599 | P186: 0.0599
B187: 16 | C187: 0.076 | D187: 0.0756 | E187: 0.0756 | F187: 0.0684 | G187: 0.0684 | H187: 0.0697 | I187: 0.0697 | J187: 0.0697 | K187: 0.0684 | L187: 0.0684 | M187: 0.0697 | N187: 0.0697 | O187: 0.0697 | P187: 0.0697
B188: 17 | C188: 0.1 | D188: 0.1 | E188: 0.1 | F188: 0.1 | G188: 0.1 | H188: 0.1 | I188: 0.1 | J188: 0.1 | K188: 0.1 | L188: 0.1 | M188: 0.1 | N188: 0.1 | O188: 0.1 | P188: 0.1
B189: 18 | C189: 0.0781 | D189: 0.0741 | E189: 0.0741 | F189: 0.0672 | G189: 0.0672 | H189: 0.0728 | I189: 0.0728 | J189: 0.0728 | K189: 0.0672 | L189: 0.0672 | M189: 0.0728 | N189: 0.0728 | O189: 0.0728 | P189: 0.0728
B190: 19 | C190: 0.0574 | D190: 0.0539 | E190: 0.0539 | F190: 0.0522 | G190: 0.0522 | H190: 0.0559 | I190: 0.0559 | J190: 0.0559 | K190: 0.0522 | L190: 0.0522 | M190: 0.0559 | N190: 0.0559 | O190: 0.0559 | P190: 0.0559
B191: 20 | C191: 0.043 | D191: 0.0405 | E191: 0.0405 | F191: 0.0418 | G191: 0.0418 | H191: 0.042 | I191: 0.042 | J191: 0.042 | K191: 0.0418 | L191: 0.0418 | M191: 0.042 | N191: 0.042 | O191: 0.042 | P191: 0.042
B192: 21 | C192: 0.0353 | D192: 0.0332 | E192: 0.0332 | F192: 0.0357 | G192: 0.0357 | H192: 0.0342 | I192: 0.0342 | J192: 0.0342 | K192: 0.0357 | L192: 0.0357 | M192: 0.0342 | N192: 0.0342 | O192: 0.0342 | P192: 0.0342
B193: 22 | C193: 0.0267 | D193: 0.0263 | E193: 0.0263 | F193: 0.0305 | G193: 0.0305 | H193: 0.0288 | I193: 0.0288 | J193: 0.0288 | K193: 0.0305 | L193: 0.0305 | M193: 0.0288 | N193: 0.0288 | O193: 0.0288 | P193: 0.0288
B194: 23 | C194: 0.018 | D194: 0.018 | E194: 0.018 | F194: 0.0246 | G194: 0.0246 | H194: 0.0219 | I194: 0.0219 | J194: 0.0219 | K194: 0.0246 | L194: 0.0246 | M194: 0.0219 | N194: 0.0219 | O194: 0.0219 | P194: 0.0219
B195: 24 | C195: 0.0115 | D195: 0.0121 | E195: 0.0121 | F195: 0.019 | G195: 0.019 | H195: 0.0154 | I195: 0.0154 | J195: 0.0154 | K195: 0.019 | L195: 0.019 | M195: 0.0154 | N195: 0.0154 | O195: 0.0154 | P195: 0.0154
C196: =SUM(C172:C195) -> 1 | D196: 1 | E196: 1 | F196: 1 | G196: 1 | H196: 1 | I196: 1 | J196: 1 | K196: 1 | L196: 1 | M196: 1 | N196: 1 | O196: 1 | P196: 1
B198: Type/hr(11%) | C198: 1 | D198: 2 | E198: 3 | F198: 4 | G198: 5 | H198: 6 | I198: 7 | J198: 8 | K198: 9 | L198: 10 | M198: 11 | N198: 12 | O198: 13 | P198: 14
B199: 1 | C199: 0.0055 | D199: 0.006 | E199: 0.006 | F199: 0.0131 | G199: 0.0131 | H199: 0.0088 | I199: 0.0088 | J199: 0.0088 | K199: 0.0131 | L199: 0.0131 | M199: 0.0088 | N199: 0.0088 | O199: 0.0088 | P199: 0.0088
B200: 2 | C200: 0.0031 | D200: 0.0037 | E200: 0.0037 | F200: 0.0104 | G200: 0.0104 | H200: 0.0059 | I200: 0.0059 | J200: 0.0059 | K200: 0.0104 | L200: 0.0104 | M200: 0.0059 | N200: 0.0059 | O200: 0.0059 | P200: 0.0059
B201: 3 | C201: 0.0028 | D201: 0.0034 | E201: 0.0034 | F201: 0.0096 | G201: 0.0096 | H201: 0.0053 | I201: 0.0053 | J201: 0.0053 | K201: 0.0096 | L201: 0.0096 | M201: 0.0053 | N201: 0.0053 | O201: 0.0053 | P201: 0.0053
B202: 4 | C202: 0.0039 | D202: 0.0045 | E202: 0.0045 | F202: 0.0105 | G202: 0.0105 | H202: 0.0064 | I202: 0.0064 | J202: 0.0064 | K202: 0.0105 | L202: 0.0105 | M202: 0.0064 | N202: 0.0064 | O202: 0.0064 | P202: 0.0064
B203: 5 | C203: 0.0091 | D203: 0.0099 | E203: 0.0099 | F203: 0.0139 | G203: 0.0139 | H203: 0.0107 | I203: 0.0107 | J203: 0.0107 | K203: 0.0139 | L203: 0.0139 | M203: 0.0107 | N203: 0.0107 | O203: 0.0107 | P203: 0.0107
B204: 6 | C204: 0.0254 | D204: 0.0258 | E204: 0.0258 | F204: 0.0235 | G204: 0.0235 | H204: 0.0243 | I204: 0.0243 | J204: 0.0243 | K204: 0.0235 | L204: 0.0235 | M204: 0.0243 | N204: 0.0243 | O204: 0.0243 | P204: 0.0243
B205: 7 | C205: 0.0495 | D205: 0.0486 | E205: 0.0486 | F205: 0.0401 | G205: 0.0401 | H205: 0.0499 | I205: 0.0499 | J205: 0.0499 | K205: 0.0401 | L205: 0.0401 | M205: 0.0499 | N205: 0.0499 | O205: 0.0499 | P205: 0.0499
B206: 8 | C206: 0.064 | D206: 0.063 | E206: 0.063 | F206: 0.0527 | G206: 0.0527 | H206: 0.0668 | I206: 0.0668 | J206: 0.0668 | K206: 0.0527 | L206: 0.0527 | M206: 0.0668 | N206: 0.0668 | O206: 0.0668 | P206: 0.0668
... 43 more rows

Sheet Crash
H1: Dir AADT | I1: =UserInput!C10 -> 50000 | K1: Crash/yr/25'/dir | L1: =C53 -> 0.04389324486
B2: Crash Probability per 25' | L2: Crash/yr/hr/ln per 25' | Q2: Flow Rate (veh/hr/ln) | V2: Number of Vehicles at Risk per yr/hr/ln
C3: Final | D3: Prob | E3: Exists? | H3: Hr of Day | I3: k | J3: Hourly Volume | K3: Crash/yr/hr/dir | L3: Lane 1 | M3: Lane 2 | N3: Lane 3 | O3: Lane 4 | P3: Lane 5 | Q3: Lane 1 | R3: Lane 2 | S3: Lane 3 | T3: Lane 4 | U3: Lane 5 | V3: Lane 1 | W3: Lane 2 | X3: Lane 3 | Y3: Lane 4 | Z3: Lane 5
B4: Lane 1 (closest to obstruction) | C4: =IF(E4=1,D4,0) -> 0.2 | D4: 0.2 | E4: =IF(Input!$C$40>=1,1,0) -> 1 | H4: 0 | I4: =IF($J$29="No",IF(UserInput!$C$38=0.08,UserInput!F41,IF(UserInput!$C$38=0.09,UserInput!H41,IF(UserInput!$C$38=0.1,UserInput!J41,IF(UserInput!$C$38=0.11,UserInput!L41,UserInput!N41)))),IF(UserInput!$C$38=0.08,UserInput!G41,IF(UserInput!$C$38=0.09,UserInput!I41,IF(UserInput!$C$38=0.1,UserInput!K41,IF(UserInput!$C$38=0.11,UserInput!M41,UserInput!O41))))) -> 0.0102 | J4: =$I$1*I4 -> 510 | K4: =$L$1*I4 -> 0.0004477110976 | L4: =IF(Input!$C$40>0,$K4*Input!$C$43,0) -> 0.0001119277744 | M4: =IF(Input!$C$40>1,$K4*Input!$C$44,0) -> 0.0001119277744 | N4: =IF(Input!$C$40>2,$K4*Input!$C$45,0) -> 0.0001119277744 | O4: =IF(Input!$C$40>3,$K4*Input!$C$46,0) -> 0.0001119277744 | P4: =IF(Input!$C$40>4,$K4*Input!$C$47,0) -> 0 | Q4: =$J4*Input!$C$43 -> 127.5 | R4: =$J4*Input!$C$44 -> 127.5 | S4: =$J4*Input!$C$45 -> 127.5 | T4: =$J4*Input!$C$46 -> 127.5 | U4: =$J4*Input!$C$47 -> 0 | V4: =L4*Q4*(0.5*(1+$D$19)*MIN($D$19,Q4)+$D$19*MAX(0,(Q4-$D$19)))/Q4 -> 0.7414095776 | W4: =IF(R4=0,0,M4*R4*(0.5*(1+$D$20)*MIN($D$20,R4)+$D$20*MAX(0,(R4-$D$20)))/R4) -> 0.6581353135 | X4: =IF(S4=0,0,N4*S4*(0.5*(1+$D$21)*MIN($D$21,S4)+$D$21*MAX(0,(S4-$D$21)))/S4) -> 0.5220311398 | Y4: =IF(T4=0,0,O4*T4*(0.5*(1+$D$22)*MIN($D$22,T4)+$D$22*MAX(0,(T4-$D$22)))/T4) -> 0 | Z4: =IF(U4=0,0,P4*U4*(0.5*(1+$D$23)*MIN($D$23,U4)+$D$23*MAX(0,(U4-$D$23)))/U4) -> 0
B5: Lane 2 | C5: =IF(E5=1,D5,0) -> 0.2 | D5: 0.2 | E5: =IF(Input!$C$40>=2,1,0) -> 1 | H5: 1 | I5: =IF($J$29="No",IF(UserInput!$C$38=0.08,UserInput!F42,IF(UserInput!$C$38=0.09,UserInput!H42,IF(UserInput!$C$38=0.1,UserInput!J42,IF(UserInput!$C$38=0.11,UserInput!L42,UserInput!N42)))),IF(UserInput!$C$38=0.08,UserInput!G42,IF(UserInput!$C$38=0.09,UserInput!I42,IF(UserInput!$C$38=0.1,UserInput!K42,IF(UserInput!$C$38=0.11,UserInput!M42,UserInput!O42))))) -> 0.0073 | J5: =$I$1*I5 -> 365 | K5: =$L$1*I5 -> 0.0003204206875 | L5: =IF(Input!$C$40>0,$K5*Input!$C$43,0) -> 8.010517187e-05 | M5: =IF(Input!$C$40>1,$K5*Input!$C$44,0) -> 8.010517187e-05 | N5: =IF(Input!$C$40>2,$K5*Input!$C$45,0) -> 8.010517187e-05 | O5: =IF(Input!$C$40>3,$K5*Input!$C$46,0) -> 8.010517187e-05 | P5: =IF(Input!$C$40>4,$K5*Input!$C$47,0) -> 0 | Q5: =$J5*Input!$C$43 -> 91.25 | R5: =$J5*Input!$C$44 -> 91.25 | S5: =$J5*Input!$C$45 -> 91.25 | T5: =$J5*Input!$C$46 -> 91.25 | U5: =$J5*Input!$C$47 -> 0 | V5: =L5*Q5*(0.5*(1+$D$19)*MIN($D$19,Q5)+$D$19*MAX(0,(Q5-$D$19)))/Q5 -> 0.3215421599 | W5: =IF(R5=0,0,M5*R5*(0.5*(1+$D$20)*MIN($D$20,R5)+$D$20*MAX(0,(R5-$D$20)))/R5) -> 0.2967896618 | X5: =IF(S5=0,0,N5*S5*(0.5*(1+$D$21)*MIN($D$21,S5)+$D$21*MAX(0,(S5-$D$21)))/S5) -> 0.2458427725 | Y5: =IF(T5=0,0,O5*T5*(0.5*(1+$D$22)*MIN($D$22,T5)+$D$22*MAX(0,(T5-$D$22)))/T5) -> 0 | Z5: =IF(U5=0,0,P5*U5*(0.5*(1+$D$23)*MIN($D$23,U5)+$D$23*MAX(0,(U5-$D$23)))/U5) -> 0
B6: Lane 3 | C6: 0.2 | D6: 0.2 | E6: =IF(Input!$C$40>=3,1,0) -> 1 | H6: 2 | I6: =IF($J$29="No",IF(UserInput!$C$38=0.08,UserInput!F43,IF(UserInput!$C$38=0.09,UserInput!H43,IF(UserInput!$C$38=0.1,UserInput!J43,IF(UserInput!$C$38=0.11,UserInput!L43,UserInput!N43)))),IF(UserInput!$C$38=0.08,UserInput!G43,IF(UserInput!$C$38=0.09,UserInput!I43,IF(UserInput!$C$38=0.1,UserInput!K43,IF(UserInput!$C$38=0.11,UserInput!M43,UserInput!O43))))) -> 0.0067 | J6: 335 | K6: 0.0002940847406 | L6: =IF(Input!$C$40>0,$K6*Input!$C$43,0) -> 7.352118515e-05 | M6: =IF(Input!$C$40>1,$K6*Input!$C$44,0) -> 7.352118515e-05 | N6: =IF(Input!$C$40>2,$K6*Input!$C$45,0) -> 7.352118515e-05 | O6: =IF(Input!$C$40>3,$K6*Input!$C$46,0) -> 7.352118515e-05 | P6: =IF(Input!$C$40>4,$K6*Input!$C$47,0) -> 0 | Q6: =$J6*Input!$C$43 -> 83.75 | R6: =$J6*Input!$C$44 -> 83.75 | S6: =$J6*Input!$C$45 -> 83.75 | T6: =$J6*Input!$C$46 -> 83.75 | U6: =$J6*Input!$C$47 -> 0 | V6: 0.2554125972 | W6: 0.2393114576 | X6: 0.2013745261 | Y6: 0 | Z6: 0
B7: Lane 4 | C7: 0.2 | D7: 0.2 | E7: =IF(Input!$C$40>=4,1,0) -> 1 | H7: 3 | I7: =IF($J$29="No",IF(UserInput!$C$38=0.08,UserInput!F44,IF(UserInput!$C$38=0.09,UserInput!H44,IF(UserInput!$C$38=0.1,UserInput!J44,IF(UserInput!$C$38=0.11,UserInput!L44,UserInput!N44)))),IF(UserInput!$C$38=0.08,UserInput!G44,IF(UserInput!$C$38=0.09,UserInput!I44,IF(UserInput!$C$38=0.1,UserInput!K44,IF(UserInput!$C$38=0.11,UserInput!M44,UserInput!O44))))) -> 0.0078 | J7: 390 | K7: 0.0003423673099 | L7: =IF(Input!$C$40>0,$K7*Input!$C$43,0) -> 8.559182748e-05 | M7: =IF(Input!$C$40>1,$K7*Input!$C$44,0) -> 8.559182748e-05 | N7: =IF(Input!$C$40>2,$K7*Input!$C$45,0) -> 8.559182748e-05 | O7: =IF(Input!$C$40>3,$K7*Input!$C$46,0) -> 8.559182748e-05 | P7: =IF(Input!$C$40>4,$K7*Input!$C$47,0) -> 0 | Q7: =$J7*Input!$C$43 -> 97.5 | R7: =$J7*Input!$C$44 -> 97.5 | S7: =$J7*Input!$C$45 -> 97.5 | T7: =$J7*Input!$C$46 -> 97.5 | U7: =$J7*Input!$C$47 -> 0 | V7: 0.3820819179 | W7: 0.3492146561 | X7: 0.2862190711 | Y7: 0 | Z7: 0
B8: Lane 5 | C8: 0 | D8: 0.2 | E8: =IF(Input!$C$40>=5,1,0) -> 0 | H8: 4 | I8: =IF($J$29="No",IF(UserInput!$C$38=0.08,UserInput!F45,IF(UserInput!$C$38=0.09,UserInput!H45,IF(UserInput!$C$38=0.1,UserInput!J45,IF(UserInput!$C$38=0.11,UserInput!L45,UserInput!N45)))),IF(UserInput!$C$38=0.08,UserInput!G45,IF(UserInput!$C$38=0.09,UserInput!I45,IF(UserInput!$C$38=0.1,UserInput!K45,IF(UserInput!$C$38=0.11,UserInput!M45,UserInput!O45))))) -> 0.0121 | J8: 605 | K8: 0.0005311082628 | L8: =IF(Input!$C$40>0,$K8*Input!$C$43,0) -> 0.0001327770657 | M8: =IF(Input!$C$40>1,$K8*Input!$C$44,0) -> 0.0001327770657 | N8: =IF(Input!$C$40>2,$K8*Input!$C$45,0) -> 0.0001327770657 | O8: =IF(Input!$C$40>3,$K8*Input!$C$46,0) -> 0.0001327770657 | P8: =IF(Input!$C$40>4,$K8*Input!$C$47,0) -> 0 | Q8: =$J8*Input!$C$43 -> 151.25 | R8: =$J8*Input!$C$44 -> 151.25 | S8: =$J8*Input!$C$45 -> 151.25 | T8: =$J8*Input!$C$46 -> 151.25 | U8: =$J8*Input!$C$47 -> 0 | V8: 1.106564066 | W8: 0.969936465 | X8: 0.7580242681 | Y8: 0 | Z8: 0
H9: 5 | I9: =IF($J$29="No",IF(UserInput!$C$38=0.08,UserInput!F46,IF(UserInput!$C$38=0.09,UserInput!H46,IF(UserInput!$C$38=0.1,UserInput!J46,IF(UserInput!$C$38=0.11,UserInput!L46,UserInput!N46)))),IF(UserInput!$C$38=0.08,UserInput!G46,IF(UserInput!$C$38=0.09,UserInput!I46,IF(UserInput!$C$38=0.1,UserInput!K46,IF(UserInput!$C$38=0.11,UserInput!M46,UserInput!O46))))) -> 0.0257 | J9: 1285 | K9: 0.001128056393 | L9: =IF(Input!$C$40>0,$K9*Input!$C$43,0) -> 0.0002820140982 | M9: =IF(Input!$C$40>1,$K9*Input!$C$44,0) -> 0.0002820140982 | N9: =IF(Input!$C$40>2,$K9*Input!$C$45,0) -> 0.0002820140982 | O9: =IF(Input!$C$40>3,$K9*Input!$C$46,0) -> 0.0002820140982 | P9: =IF(Input!$C$40>4,$K9*Input!$C$47,0) -> 0 | Q9: =$J9*Input!$C$43 -> 321.25 | R9: =$J9*Input!$C$44 -> 321.25 | S9: =$J9*Input!$C$45 -> 321.25 | T9: =$J9*Input!$C$46 -> 321.25 | U9: =$J9*Input!$C$47 -> 0 | V9: 5.802158057 | W9: 4.93665679 | X9: 3.719483942 | Y9: 0 | Z9: 0
B10: No. of Analysis Segments (X) | H10: 6 | I10: =IF($J$29="No",IF(UserInput!$C$38=0.08,UserInput!F47,IF(UserInput!$C$38=0.09,UserInput!H47,IF(UserInput!$C$38=0.1,UserInput!J47,IF(UserInput!$C$38=0.11,UserInput!L47,UserInput!N47)))),IF(UserInput!$C$38=0.08,UserInput!G47,IF(UserInput!$C$38=0.09,UserInput!I47,IF(UserInput!$C$38=0.1,UserInput!K47,IF(UserInput!$C$38=0.11,UserInput!M47,UserInput!O47))))) -> 0.0513 | J10: 2565 | K10: 0.002251723461 | L10: =IF(Input!$C$40>0,$K10*Input!$C$43,0) -> 0.0005629308654 | M10: =IF(Input!$C$40>1,$K10*Input!$C$44,0) -> 0.0005629308654 | N10: =IF(Input!$C$40>2,$K10*Input!$C$45,0) -> 0.0005629308654 | O10: =IF(Input!$C$40>3,$K10*Input!$C$46,0) -> 0.0005629308654 | P10: =IF(Input!$C$40>4,$K10*Input!$C$47,0) -> 0 | Q10: =$J10*Input!$C$43 -> 641.25 | R10: =$J10*Input!$C$44 -> 641.25 | S10: =$J10*Input!$C$45 -> 641.25 | T10: =$J10*Input!$C$46 -> 641.25 | U10: =$J10*Input!$C$47 -> 0 | V10: 24.55166676 | W10: 20.66237741 | X10: 15.35056177 | Y10: 0 | Z10: 0
B11: Lane 1 (closest to obstruction) | C11: =Input!C43 -> 0.25 | H11: 7 | I11: =IF($J$29="No",IF(UserInput!$C$38=0.08,UserInput!F48,IF(UserInput!$C$38=0.09,UserInput!H48,IF(UserInput!$C$38=0.1,UserInput!J48,IF(UserInput!$C$38=0.11,UserInput!L48,UserInput!N48)))),IF(UserInput!$C$38=0.08,UserInput!G48,IF(UserInput!$C$38=0.09,UserInput!I48,IF(UserInput!$C$38=0.1,UserInput!K48,IF(UserInput!$C$38=0.11,UserInput!M48,UserInput!O48))))) -> 0.0682 | J11: 3410 | K11: 0.0029935193 | L11: =IF(Input!$C$40>0,$K11*Input!$C$43,0) -> 0.0007483798249 | M11: =IF(Input!$C$40>1,$K11*Input!$C$44,0) -> 0.0007483798249 | N11: =IF(Input!$C$40>2,$K11*Input!$C$45,0) -> 0.0007483798249 | O11: =IF(Input!$C$40>3,$K11*Input!$C$46,0) -> 0.0007483798249 | P11: =IF(Input!$C$40>4,$K11*Input!$C$47,0) -> 0 | Q11: =$J11*Input!$C$43 -> 852.5 | R11: =$J11*Input!$C$44 -> 852.5 | S11: =$J11*Input!$C$45 -> 852.5 | T11: =$J11*Input!$C$46 -> 852.5 | U11: =$J11*Input!$C$47 -> 0 | V11: 44.02269482 | W11: 36.95499575 | X11: 27.36375992 | Y11: 0 | Z11: 0
B12: Lane 2 | C12: =Input!C44 -> 0.25 | H12: 8 | I12: =IF($J$29="No",IF(UserInput!$C$38=0.08,UserInput!F49,IF(UserInput!$C$38=0.09,UserInput!H49,IF(UserInput!$C$38=0.1,UserInput!J49,IF(UserInput!$C$38=0.11,UserInput!L49,UserInput!N49)))),IF(UserInput!$C$38=0.08,UserInput!G49,IF(UserInput!$C$38=0.09,UserInput!I49,IF(UserInput!$C$38=0.1,UserInput!K49,IF(UserInput!$C$38=0.11,UserInput!M49,UserInput!O49))))) -> 0.0613 | J12: 3065 | K12: 0.00269065591 | L12: =IF(Input!$C$40>0,$K12*Input!$C$43,0) -> 0.0006726639775 | M12: =IF(Input!$C$40>1,$K12*Input!$C$44,0) -> 0.0006726639775 | N12: =IF(Input!$C$40>2,$K12*Input!$C$45,0) -> 0.0006726639775 | O12: =IF(Input!$C$40>3,$K12*Input!$C$46,0) -> 0.0006726639775 | P12: =IF(Input!$C$40>4,$K12*Input!$C$47,0) -> 0 | Q12: =$J12*Input!$C$43 -> 766.25 | R12: =$J12*Input!$C$44 -> 766.25 | S12: =$J12*Input!$C$45 -> 766.25 | T12: =$J12*Input!$C$46 -> 766.25 | U12: =$J12*Input!$C$47 -> 0 | V12: 35.39154251 | W12: 29.73511113 | X12: 22.04252588 | Y12: 0 | Z12: 0
B13: Lane 3 | C13: =Input!C45 -> 0.25 | H13: 9 | I13: =IF($J$29="No",IF(UserInput!$C$38=0.08,UserInput!F50,IF(UserInput!$C$38=0.09,UserInput!H50,IF(UserInput!$C$38=0.1,UserInput!J50,IF(UserInput!$C$38=0.11,UserInput!L50,UserInput!N50)))),IF(UserInput!$C$38=0.08,UserInput!G50,IF(UserInput!$C$38=0.09,UserInput!I50,IF(UserInput!$C$38=0.1,UserInput!K50,IF(UserInput!$C$38=0.11,UserInput!M50,UserInput!O50))))) -> 0.0522 | J13: 2610 | K13: 0.002291227382 | L13: =IF(Input!$C$40>0,$K13*Input!$C$43,0) -> 0.0005728068455 | M13: =IF(Input!$C$40>1,$K13*Input!$C$44,0) -> 0.0005728068455 | N13: =IF(Input!$C$40>2,$K13*Input!$C$45,0) -> 0.0005728068455 | O13: =IF(Input!$C$40>3,$K13*Input!$C$46,0) -> 0.0005728068455 | P13: =IF(Input!$C$40>4,$K13*Input!$C$47,0) -> 0 | Q13: =$J13*Input!$C$43 -> 652.5 | R13: =$J13*Input!$C$44 -> 652.5 | S13: =$J13*Input!$C$45 -> 652.5 | T13: =$J13*Input!$C$46 -> 652.5 | U13: =$J13*Input!$C$47 -> 0 | V13: 25.4463713 | W13: 21.41151988 | X13: 15.90340926 | Y13: 0 | Z13: 0
B14: Lane 4 | C14: =Input!C46 -> 0.25 | H14: 10 | I14: =IF($J$29="No",IF(UserInput!$C$38=0.08,UserInput!F51,IF(UserInput!$C$38=0.09,UserInput!H51,IF(UserInput!$C$38=0.1,UserInput!J51,IF(UserInput!$C$38=0.11,UserInput!L51,UserInput!N51)))),IF(UserInput!$C$38=0.08,UserInput!G51,IF(UserInput!$C$38=0.09,UserInput!I51,IF(UserInput!$C$38=0.1,UserInput!K51,IF(UserInput!$C$38=0.11,UserInput!M51,UserInput!O51))))) -> 0.0499 | J14: 2495 | K14: 0.002190272919 | L14: =IF(Input!$C$40>0,$K14*Input!$C$43,0) -> 0.0005475682297 | M14: =IF(Input!$C$40>1,$K14*Input!$C$44,0) -> 0.0005475682297 | N14: =IF(Input!$C$40>2,$K14*Input!$C$45,0) -> 0.0005475682297 | O14: =IF(Input!$C$40>3,$K14*Input!$C$46,0) -> 0.0005475682297 | P14: =IF(Input!$C$40>4,$K14*Input!$C$47,0) -> 0 | Q14: =$J14*Input!$C$43 -> 623.75 | R14: =$J14*Input!$C$44 -> 623.75 | S14: =$J14*Input!$C$45 -> 623.75 | T14: =$J14*Input!$C$46 -> 623.75 | U14: =$J14*Input!$C$47 -> 0 | V14: 23.1917048 | W14: 19.52354523 | X14: 14.51001052 | Y14: 0 | Z14: 0
B15: Lane 5 | C15: =Input!C47 -> 0 | H15: 11 | I15: =IF($J$29="No",IF(UserInput!$C$38=0.08,UserInput!F52,IF(UserInput!$C$38=0.09,UserInput!H52,IF(UserInput!$C$38=0.1,UserInput!J52,IF(UserInput!$C$38=0.11,UserInput!L52,UserInput!N52)))),IF(UserInput!$C$38=0.08,UserInput!G52,IF(UserInput!$C$38=0.09,UserInput!I52,IF(UserInput!$C$38=0.1,UserInput!K52,IF(UserInput!$C$38=0.11,UserInput!M52,UserInput!O52))))) -> 0.0513 | J15: 2565 | K15: 0.002251723461 | L15: =IF(Input!$C$40>0,$K15*Input!$C$43,0) -> 0.0005629308654 | M15: =IF(Input!$C$40>1,$K15*Input!$C$44,0) -> 0.0005629308654 | N15: =IF(Input!$C$40>2,$K15*Input!$C$45,0) -> 0.0005629308654 | O15: =IF(Input!$C$40>3,$K15*Input!$C$46,0) -> 0.0005629308654 | P15: =IF(Input!$C$40>4,$K15*Input!$C$47,0) -> 0 | Q15: =$J15*Input!$C$43 -> 641.25 | R15: =$J15*Input!$C$44 -> 641.25 | S15: =$J15*Input!$C$45 -> 641.25 | T15: =$J15*Input!$C$46 -> 641.25 | U15: =$J15*Input!$C$47 -> 0 | V15: 24.55166676 | W15: 20.66237741 | X15: 15.35056177 | Y15: 0 | Z15: 0
H16: 12 | I16: =IF($J$29="No",IF(UserInput!$C$38=0.08,UserInput!F53,IF(UserInput!$C$38=0.09,UserInput!H53,IF(UserInput!$C$38=0.1,UserInput!J53,IF(UserInput!$C$38=0.11,UserInput!L53,UserInput!N53)))),IF(UserInput!$C$38=0.08,UserInput!G53,IF(UserInput!$C$38=0.09,UserInput!I53,IF(UserInput!$C$38=0.1,UserInput!K53,IF(UserInput!$C$38=0.11,UserInput!M53,UserInput!O53))))) -> 0.0532 | J16: 2660 | K16: 0.002335120627 | L16: =IF(Input!$C$40>0,$K16*Input!$C$43,0) -> 0.0005837801567 | M16: =IF(Input!$C$40>1,$K16*Input!$C$44,0) -> 0.0005837801567 | N16: =IF(Input!$C$40>2,$K16*Input!$C$45,0) -> 0.0005837801567 | O16: =IF(Input!$C$40>3,$K16*Input!$C$46,0) -> 0.0005837801567 | P16: =IF(Input!$C$40>4,$K16*Input!$C$47,0) -> 0 | Q16: =$J16*Input!$C$43 -> 665 | R16: =$J16*Input!$C$44 -> 665 | S16: =$J16*Input!$C$45 -> 665 | T16: =$J16*Input!$C$46 -> 665 | U16: =$J16*Input!$C$47 -> 0 | V16: 26.45925182 | W16: 22.25953737 | X16: 16.52915136 | Y16: 0 | Z16: 0
B17: No. of Segments in Restricted Zone | H17: 13 | I17: =IF($J$29="No",IF(UserInput!$C$38=0.08,UserInput!F54,IF(UserInput!$C$38=0.09,UserInput!H54,IF(UserInput!$C$38=0.1,UserInput!J54,IF(UserInput!$C$38=0.11,UserInput!L54,UserInput!N54)))),IF(UserInput!$C$38=0.08,UserInput!G54,IF(UserInput!$C$38=0.09,UserInput!I54,IF(UserInput!$C$38=0.1,UserInput!K54,IF(UserInput!$C$38=0.11,UserInput!M54,UserInput!O54))))) -> 0.0548 | J17: 2740 | K17: 0.002405349818 | L17: =IF(Input!$C$40>0,$K17*Input!$C$43,0) -> 0.0006013374546 | M17: =IF(Input!$C$40>1,$K17*Input!$C$44,0) -> 0.0006013374546 | N17: =IF(Input!$C$40>2,$K17*Input!$C$45,0) -> 0.0006013374546 | O17: =IF(Input!$C$40>3,$K17*Input!$C$46,0) -> 0.0006013374546 | P17: =IF(Input!$C$40>4,$K17*Input!$C$47,0) -> 0 | Q17: =$J17*Input!$C$43 -> 685 | R17: =$J17*Input!$C$44 -> 685 | S17: =$J17*Input!$C$45 -> 685 | T17: =$J17*Input!$C$46 -> 685 | U17: =$J17*Input!$C$47 -> 0 | V17: 28.12094473 | W17: 23.65060209 | X17: 17.55544565 | Y17: 0 | Z17: 0
C18: L | D18: No. | H18: 14 | I18: =IF($J$29="No",IF(UserInput!$C$38=0.08,UserInput!F55,IF(UserInput!$C$38=0.09,UserInput!H55,IF(UserInput!$C$38=0.1,UserInput!J55,IF(UserInput!$C$38=0.11,UserInput!L55,UserInput!N55)))),IF(UserInput!$C$38=0.08,UserInput!G55,IF(UserInput!$C$38=0.09,UserInput!I55,IF(UserInput!$C$38=0.1,UserInput!K55,IF(UserInput!$C$38=0.11,UserInput!M55,UserInput!O55))))) -> 0.0608 | J18: 3040 | K18: 0.002668709288 | L18: =IF(Input!$C$40>0,$K18*Input!$C$43,0) -> 0.0006671773219 | M18: =IF(Input!$C$40>1,$K18*Input!$C$44,0) -> 0.0006671773219 | N18: =IF(Input!$C$40>2,$K18*Input!$C$45,0) -> 0.0006671773219 | O18: =IF(Input!$C$40>3,$K18*Input!$C$46,0) -> 0.0006671773219 | P18: =IF(Input!$C$40>4,$K18*Input!$C$47,0) -> 0 | Q18: =$J18*Input!$C$43 -> 760 | R18: =$J18*Input!$C$44 -> 760 | S18: =$J18*Input!$C$45 -> 760 | T18: =$J18*Input!$C$46 -> 760 | U18: =$J18*Input!$C$47 -> 0 | V18: 34.80263782 | W18: 29.24238202 | X18: 21.6792599 | Y18: 0 | Z18: 0
B19: Lane 1 (closest to obstruction) | C19: 0.3409090909 | D19: =ROUNDUP(C19*5280/25,0) -> 72 | H19: 15 | I19: =IF($J$29="No",IF(UserInput!$C$38=0.08,UserInput!F56,IF(UserInput!$C$38=0.09,UserInput!H56,IF(UserInput!$C$38=0.1,UserInput!J56,IF(UserInput!$C$38=0.11,UserInput!L56,UserInput!N56)))),IF(UserInput!$C$38=0.08,UserInput!G56,IF(UserInput!$C$38=0.09,UserInput!I56,IF(UserInput!$C$38=0.1,UserInput!K56,IF(UserInput!$C$38=0.11,UserInput!M56,UserInput!O56))))) -> 0.0706 | J19: 3530 | K19: 0.003098863087 | L19: =IF(Input!$C$40>0,$K19*Input!$C$43,0) -> 0.0007747157718 | M19: =IF(Input!$C$40>1,$K19*Input!$C$44,0) -> 0.0007747157718 | N19: =IF(Input!$C$40>2,$K19*Input!$C$45,0) -> 0.0007747157718 | O19: =IF(Input!$C$40>3,$K19*Input!$C$46,0) -> 0.0007747157718 | P19: =IF(Input!$C$40>4,$K19*Input!$C$47,0) -> 0 | Q19: =$J19*Input!$C$43 -> 882.5 | R19: =$J19*Input!$C$44 -> 882.5 | S19: =$J19*Input!$C$45 -> 882.5 | T19: =$J19*Input!$C$46 -> 882.5 | U19: =$J19*Input!$C$47 -> 0 | V19: 47.24526663 | W19: 39.6499532 | X19: 29.3493323 | Y19: 0 | Z19: 0
B20: Lane 2 | C20: 0.2840909091 | D20: =ROUNDUP(C20*5280/25,0) -> 60 | H20: 16 | I20: =IF($J$29="No",IF(UserInput!$C$38=0.08,UserInput!F57,IF(UserInput!$C$38=0.09,UserInput!H57,IF(UserInput!$C$38=0.1,UserInput!J57,IF(UserInput!$C$38=0.11,UserInput!L57,UserInput!N57)))),IF(UserInput!$C$38=0.08,UserInput!G57,IF(UserInput!$C$38=0.09,UserInput!I57,IF(UserInput!$C$38=0.1,UserInput!K57,IF(UserInput!$C$38=0.11,UserInput!M57,UserInput!O57))))) -> 0.08 | J20: 4000 | K20: 0.003511459589 | L20: =IF(Input!$C$40>0,$K20*Input!$C$43,0) -> 0.0008778648973 | M20: =IF(Input!$C$40>1,$K20*Input!$C$44,0) -> 0.0008778648973 | N20: =IF(Input!$C$40>2,$K20*Input!$C$45,0) -> 0.0008778648973 | O20: =IF(Input!$C$40>3,$K20*Input!$C$46,0) -> 0.0008778648973 | P20: =IF(Input!$C$40>4,$K20*Input!$C$47,0) -> 0 | Q20: =$J20*Input!$C$43 -> 1000 | R20: =$J20*Input!$C$44 -> 1000 | S20: =$J20*Input!$C$45 -> 1000 | T20: =$J20*Input!$C$46 -> 1000 | U20: =$J20*Input!$C$47 -> 0 | V20: 60.96244993 | W20: 51.11807297 | X20: 37.79559529 | Y20: 0 | Z20: 0
B21: Lane 3 | C21: 0.2083333333 | D21: 44 | H21: 17 | I21: =IF($J$29="No",IF(UserInput!$C$38=0.08,UserInput!F58,IF(UserInput!$C$38=0.09,UserInput!H58,IF(UserInput!$C$38=0.1,UserInput!J58,IF(UserInput!$C$38=0.11,UserInput!L58,UserInput!N58)))),IF(UserInput!$C$38=0.08,UserInput!G58,IF(UserInput!$C$38=0.09,UserInput!I58,IF(UserInput!$C$38=0.1,UserInput!K58,IF(UserInput!$C$38=0.11,UserInput!M58,UserInput!O58))))) -> 0.073 | J21: 3650 | K21: 0.003204206875 | L21: =IF(Input!$C$40>0,$K21*Input!$C$43,0) -> 0.0008010517187 | M21: =IF(Input!$C$40>1,$K21*Input!$C$44,0) -> 0.0008010517187 | N21: =IF(Input!$C$40>2,$K21*Input!$C$45,0) -> 0.0008010517187 | O21: =IF(Input!$C$40>3,$K21*Input!$C$46,0) -> 0.0008010517187 | P21: =IF(Input!$C$40>4,$K21*Input!$C$47,0) -> 0 | Q21: =$J21*Input!$C$43 -> 912.5 | R21: =$J21*Input!$C$44 -> 912.5 | S21: =$J21*Input!$C$45 -> 912.5 | T21: =$J21*Input!$C$46 -> 912.5 | U21: =$J21*Input!$C$47 -> 0 | V21: 50.58160973 | W21: 42.43972006 | X21: 31.40443158 | Y21: 0 | Z21: 0
B22: Lane 4 | C22: 0 | D22: 0 | H22: 18 | I22: =IF($J$29="No",IF(UserInput!$C$38=0.08,UserInput!F59,IF(UserInput!$C$38=0.09,UserInput!H59,IF(UserInput!$C$38=0.1,UserInput!J59,IF(UserInput!$C$38=0.11,UserInput!L59,UserInput!N59)))),IF(UserInput!$C$38=0.08,UserInput!G59,IF(UserInput!$C$38=0.09,UserInput!I59,IF(UserInput!$C$38=0.1,UserInput!K59,IF(UserInput!$C$38=0.11,UserInput!M59,UserInput!O59))))) -> 0.0568 | J22: 2840 | K22: 0.002493136308 | L22: =IF(Input!$C$40>0,$K22*Input!$C$43,0) -> 0.0006232840771 | M22: =IF(Input!$C$40>1,$K22*Input!$C$44,0) -> 0.0006232840771 | N22: =IF(Input!$C$40>2,$K22*Input!$C$45,0) -> 0.0006232840771 | O22: =IF(Input!$C$40>3,$K22*Input!$C$46,0) -> 0.0006232840771 | P22: =IF(Input!$C$40>4,$K22*Input!$C$47,0) -> 0 | Q22: =$J22*Input!$C$43 -> 710 | R22: =$J22*Input!$C$44 -> 710 | S22: =$J22*Input!$C$45 -> 710 | T22: =$J22*Input!$C$46 -> 710 | U22: =$J22*Input!$C$47 -> 0 | V22: 30.26916792 | W22: 25.44868887 | X22: 18.88176783 | Y22: 0 | Z22: 0
B23: Lane 5 | D23: 0 | H23: 19 | I23: =IF($J$29="No",IF(UserInput!$C$38=0.08,UserInput!F60,IF(UserInput!$C$38=0.09,UserInput!H60,IF(UserInput!$C$38=0.1,UserInput!J60,IF(UserInput!$C$38=0.11,UserInput!L60,UserInput!N60)))),IF(UserInput!$C$38=0.08,UserInput!G60,IF(UserInput!$C$38=0.09,UserInput!I60,IF(UserInput!$C$38=0.1,UserInput!K60,IF(UserInput!$C$38=0.11,UserInput!M60,UserInput!O60))))) -> 0.0429 | J23: 2145 | K23: 0.001883020205 | L23: =IF(Input!$C$40>0,$K23*Input!$C$43,0) -> 0.0004707550512 | M23: =IF(Input!$C$40>1,$K23*Input!$C$44,0) -> 0.0004707550512 | N23: =IF(Input!$C$40>2,$K23*Input!$C$45,0) -> 0.0004707550512 | O23: =IF(Input!$C$40>3,$K23*Input!$C$46,0) -> 0.0004707550512 | P23: =IF(Input!$C$40>4,$K23*Input!$C$47,0) -> 0 | Q23: =$J23*Input!$C$43 -> 536.25 | R23: =$J23*Input!$C$44 -> 536.25 | S23: =$J23*Input!$C$45 -> 536.25 | T23: =$J23*Input!$C$46 -> 536.25 | U23: =$J23*Input!$C$47 -> 0 | V23: 16.97260261 | W23: 14.31330733 | X23: 10.66213115 | Y23: 0 | Z23: 0
H24: 20 | I24: =IF($J$29="No",IF(UserInput!$C$38=0.08,UserInput!F61,IF(UserInput!$C$38=0.09,UserInput!H61,IF(UserInput!$C$38=0.1,UserInput!J61,IF(UserInput!$C$38=0.11,UserInput!L61,UserInput!N61)))),IF(UserInput!$C$38=0.08,UserInput!G61,IF(UserInput!$C$38=0.09,UserInput!I61,IF(UserInput!$C$38=0.1,UserInput!K61,IF(UserInput!$C$38=0.11,UserInput!M61,UserInput!O61))))) -> 0.0351 | J24: 1755 | K24: 0.001540652895 | L24: =IF(Input!$C$40>0,$K24*Input!$C$43,0) -> 0.0003851632237 | M24: =IF(Input!$C$40>1,$K24*Input!$C$44,0) -> 0.0003851632237 | N24: =IF(Input!$C$40>2,$K24*Input!$C$45,0) -> 0.0003851632237 | O24: =IF(Input!$C$40>3,$K24*Input!$C$46,0) -> 0.0003851632237 | P24: =IF(Input!$C$40>4,$K24*Input!$C$47,0) -> 0 | Q24: =$J24*Input!$C$43 -> 438.75 | R24: =$J24*Input!$C$44 -> 438.75 | S24: =$J24*Input!$C$45 -> 438.75 | T24: =$J24*Input!$C$46 -> 438.75 | U24: =$J24*Input!$C$47 -> 0 | V24: 11.18282904 | W24: 9.457682957 | X24: 7.071211623 | Y24: 0 | Z24: 0
B25: No. Vehicles at Risk per Year | H25: 21 | I25: =IF($J$29="No",IF(UserInput!$C$38=0.08,UserInput!F62,IF(UserInput!$C$38=0.09,UserInput!H62,IF(UserInput!$C$38=0.1,UserInput!J62,IF(UserInput!$C$38=0.11,UserInput!L62,UserInput!N62)))),IF(UserInput!$C$38=0.08,UserInput!G62,IF(UserInput!$C$38=0.09,UserInput!I62,IF(UserInput!$C$38=0.1,UserInput!K62,IF(UserInput!$C$38=0.11,UserInput!M62,UserInput!O62))))) -> 0.0297 | J25: 1485 | K25: 0.001303629372 | L25: =IF(Input!$C$40>0,$K25*Input!$C$43,0) -> 0.0003259073431 | M25: =IF(Input!$C$40>1,$K25*Input!$C$44,0) -> 0.0003259073431 | N25: =IF(Input!$C$40>2,$K25*Input!$C$45,0) -> 0.0003259073431 | O25: =IF(Input!$C$40>3,$K25*Input!$C$46,0) -> 0.0003259073431 | P25: =IF(Input!$C$40>4,$K25*Input!$C$47,0) -> 0 | Q25: =$J25*Input!$C$43 -> 371.25 | R25: =$J25*Input!$C$44 -> 371.25 | S25: =$J25*Input!$C$45 -> 371.25 | T25: =$J25*Input!$C$46 -> 371.25 | U25: =$J25*Input!$C$47 -> 0 | V25: 7.878484112 | W25: 6.68273007 | X25: 5.015388103 | Y25: 0 | Z25: 0
B26: Lane 1 (closest to obstruction) | C26: =SUM($V$4:$V$27) -> 506.90127 | H26: 22 | I26: =IF($J$29="No",IF(UserInput!$C$38=0.08,UserInput!F63,IF(UserInput!$C$38=0.09,UserInput!H63,IF(UserInput!$C$38=0.1,UserInput!J63,IF(UserInput!$C$38=0.11,UserInput!L63,UserInput!N63)))),IF(UserInput!$C$38=0.08,UserInput!G63,IF(UserInput!$C$38=0.09,UserInput!I63,IF(UserInput!$C$38=0.1,UserInput!K63,IF(UserInput!$C$38=0.11,UserInput!M63,UserInput!O63))))) -> 0.0228 | J26: 1140 | K26: 0.001000765983 | L26: =IF(Input!$C$40>0,$K26*Input!$C$43,0) -> 0.0002501914957 | M26: =IF(Input!$C$40>1,$K26*Input!$C$44,0) -> 0.0002501914957 | N26: =IF(Input!$C$40>2,$K26*Input!$C$45,0) -> 0.0002501914957 | O26: =IF(Input!$C$40>3,$K26*Input!$C$46,0) -> 0.0002501914957 | P26: =IF(Input!$C$40>4,$K26*Input!$C$47,0) -> 0 | Q26: =$J26*Input!$C$43 -> 285 | R26: =$J26*Input!$C$44 -> 285 | S26: =$J26*Input!$C$45 -> 285 | T26: =$J26*Input!$C$46 -> 285 | U26: =$J26*Input!$C$47 -> 0 | V26: 4.494440029 | W26: 3.835435629 | X26: 2.900720201 | Y26: 0 | Z26: 0
B27: Lane 2 | C27: =SUM($W$4:$W$27) -> 426.368117 | H27: 23 | I27: =IF($J$29="No",IF(UserInput!$C$38=0.08,UserInput!F64,IF(UserInput!$C$38=0.09,UserInput!H64,IF(UserInput!$C$38=0.1,UserInput!J64,IF(UserInput!$C$38=0.11,UserInput!L64,UserInput!N64)))),IF(UserInput!$C$38=0.08,UserInput!G64,IF(UserInput!$C$38=0.09,UserInput!I64,IF(UserInput!$C$38=0.1,UserInput!K64,IF(UserInput!$C$38=0.11,UserInput!M64,UserInput!O64))))) -> 0.0163 | J27: 815 | K27: 0.0007154598913 | L27: =IF(Input!$C$40>0,$K27*Input!$C$43,0) -> 0.0001788649728 | M27: =IF(Input!$C$40>1,$K27*Input!$C$44,0) -> 0.0001788649728 | N27: =IF(Input!$C$40>2,$K27*Input!$C$45,0) -> 0.0001788649728 | O27: =IF(Input!$C$40>3,$K27*Input!$C$46,0) -> 0.0001788649728 | P27: =IF(Input!$C$40>4,$K27*Input!$C$47,0) -> 0 | Q27: =$J27*Input!$C$43 -> 203.75 | R27: =$J27*Input!$C$44 -> 203.75 | S27: =$J27*Input!$C$45 -> 203.75 | T27: =$J27*Input!$C$46 -> 203.75 | U27: =$J27*Input!$C$47 -> 0 | V27: 2.166770281 | W27: 1.870033291 | X27: 1.434318217 | Y27: 0 | Z27: 0
B28: Lane 3 | C28: =SUM($X$4:$X$27) -> 316.532558
B29: Lane 4 | C29: =SUM($Y$4:$Y$27) -> 0 | H29: Use custom k? | J29: No
B30: Lane 5 | C30: =SUM($Z$4:$Z$27) -> 0
B32: Facility | C32: Total crash or MV - FI coefficients | H32: MV - PDO Coefficients | M32: SV - FI Coefficients | R32: SV - PDO Coefficients
B33: Type | C33: x1 | D33: a1 | E33: b1 | F33: c1 | G33: d1 | H33: x2 | I33: a2 | J33: b2 | K33: c2 | L33: d2 | M33: x3 | N33: a3 | O33: b3 | P33: c3 | Q33: d3 | R33: x4 | S33: a4 | T33: b4 | U33: c4 | V33: d4
A34: 1 | B34: Rural two-lane highway | C34: 1 | D34: -8.228 | E34: 1 | F34: 1 | G34: 0 | H34: 0 | I34: 1 | J34: 0 | K34: 1 | L34: 0 | M34: 0 | N34: 1 | O34: 0 | P34: 1 | Q34: 0 | R34: 0 | S34: 1 | T34: 0 | U34: 1 | V34: 0
A35: 2 | B35: Rural four-lane undivided highway | C35: 1 | D35: -9.653 | E35: 1.176 | F35: 1 | G35: 0 | H35: 0 | I35: 1 | J35: 0 | K35: 1 | L35: 0 | M35: 0 | N35: 1 | O35: 0 | P35: 1 | Q35: 0 | R35: 0 | S35: 1 | T35: 0 | U35: 1 | V35: 0
A36: 3 | B36: Rural four-lane divided hifghway | C36: 1 | D36: -9.025 | E36: 1.049 | F36: 1 | G36: 0 | H36: 0 | I36: 1 | J36: 0 | K36: 1 | L36: 0 | M36: 0 | N36: 1 | O36: 0 | P36: 1 | Q36: 0 | R36: 0 | S36: 1 | T36: 0 | U36: 1 | V36: 0
A37: 4 | B37: Rural freeway (4 lanes) | C37: 1 | D37: -5.975 | E37: 1.492 | F37: 0.001 | G37: 0 | H37: 1 | I37: -6.88 | J37: 1.936 | K37: 0.001 | L37: 0 | M37: 1 | N37: -2.126 | O37: 0.646 | P37: 0.001 | Q37: 0 | R37: 1 | S37: -2.235 | T37: 0.876 | U37: 0.001 | V37: 0
A38: 5 | B38: Rural freeway (6 lanes) | C38: 1 | D38: 6.092 | E38: 1.492 | F38: 0.001 | G38: 0 | H38: 1 | I38: -7.141 | J38: 1.936 | K38: 0.001 | L38: 0 | M38: 1 | N38: -2.055 | O38: 0.646 | P38: 0.001 | Q38: 0 | R38: 1 | S38: -2.274 | T38: 0.876 | U38: 0.001 | V38: 0
A39: 6 | B39: Urban freeway (4 lanes) | C39: 1 | D39: -5.47 | E39: 1.492 | F39: 0.001 | G39: 0 | H39: 1 | I39: -6.548 | J39: 1.936 | K39: 0.001 | L39: 0 | M39: 1 | N39: -2.126 | O39: 0.646 | P39: 0.001 | Q39: 0 | R39: 1 | S39: -2.235 | T39: 0.876 | U39: 0.001 | V39: 0
A40: 7 | B40: Urban freeway (6 lanes) | C40: 1 | D40: -5.587 | E40: 1.492 | F40: 0.001 | G40: 0 | H40: 1 | I40: -6.809 | J40: 1.936 | K40: 0.001 | L40: 0 | M40: 1 | N40: -2.055 | O40: 0.646 | P40: 0.001 | Q40: 0 | R40: 1 | S40: -2.274 | T40: 0.876 | U40: 0.001 | V40: 0
A41: 8 | B41: Urban freeway (8 lanes) | C41: 1 | D41: -5.635 | E41: 1.492 | F41: 0.001 | G41: 0 | H41: 1 | I41: -6.997 | J41: 1.936 | K41: 0.001 | L41: 0 | M41: 1 | N41: -1.985 | O41: 0.646 | P41: 0.001 | Q41: 0 | R41: 1 | S41: -2.312 | T41: 0.876 | U41: 0.001 | V41: 0
A42: 9 | B42: Rural one-lane entrance ramp | C42: 1 | D42: -5.226 | E42: 0.524 | F42: 0.001 | G42: 0.0699 | H42: 1 | I42: -3.819 | J42: 1.256 | K42: 0.001 | L42: 0 | M42: 1 | N42: -2.12 | O42: 0.718 | P42: 0.001 | Q42: 0 | R42: 1 | S42: -1.946 | T42: 0.689 | U42: 0.001 | V42: 0
A43: 10 | B43: Rural one-lane exit ramp | C43: 1 | D43: -6.692 | E43: 0.524 | F43: 0.001 | G43: 0.0699 | H43: 1 | I43: -4.851 | J43: 1.256 | K43: 0.001 | L43: 0 | M43: 1 | N43: -1.799 | O43: 0.718 | P43: 0.001 | Q43: 0 | R43: 1 | S43: -1.739 | T43: 0.689 | U43: 0.001 | V43: 0
A44: 11 | B44: Urban one-lane entrance ramp | C44: 1 | D44: -3505 | E44: 0.524 | F44: 0.001 | G44: 0.0699 | H44: 1 | I44: -3.819 | J44: 1.256 | K44: 0.001 | L44: 0 | M44: 1 | N44: -1.966 | O44: 0.718 | P44: 0.001 | Q44: 0 | R44: 1 | S44: -1.715 | T44: 0.689 | U44: 0.001 | V44: 0
A45: 12 | B45: Urban one-lane exit ramp | C45: 1 | D45: -4.971 | E45: 0.524 | F45: 0.001 | G45: 0.0699 | H45: 1 | I45: -4.851 | J45: 1.256 | K45: 0.001 | L45: 0 | M45: 1 | N45: -1.645 | O45: 0.718 | P45: 0.001 | Q45: 0 | R45: 1 | S45: -1.508 | T45: 0.689 | U45: 0.001 | V45: 0
A46: 13 | B46: Urban two-lane entrance ramp | C46: 1 | D46: -3.023 | E46: 0.524 | F46: 0.001 | G46: 0.0699 | H46: 1 | I46: -2.983 | J46: 1.256 | K46: 0.001 | L46: 0 | M46: 1 | N46: 1.999 | O46: 0.718 | P46: 0.001 | Q46: 0 | R46: 1 | S46: -1.4 | T46: 0.689 | U46: 0.001 | V46: 0
A47: 14 | B47: Urban two-lane entrance ramp | C47: 1 | D47: -4.489 | E47: 0.524 | F47: 0.001 | G47: 0.0699 | H47: 1 | I47: -4.015 | J47: 1.256 | K47: 0.001 | L47: 0 | M47: 1 | N47: -1.678 | O47: 0.718 | P47: 0.001 | Q47: 0 | R47: 1 | S47: -1.193 | T47: 0.689 | U47: 0.001 | V47: 0
B49: Default (crashes/yr) | C49: =UserInput!C76*25/5280*EXP(UserInput!D76+UserInput!E76*LN(UserInput!F76*IF(UserInput!$C$7>8,UserInput!$C$10,UserInput!$C$10*2))+UserInput!G76*UserInput!F76*IF(UserInput!$C$7>8,UserInput!$C$10,UserInput!$C$10*2))+UserInput!C81*25/5280*EXP(UserInput!D81+UserInput!E81*LN(UserInput!F81*IF(UserInput!$C$7>8,UserInput!$C$10,UserInput!$C$10*2))+UserInput!G81*UserInput!F81*IF(UserInput!$C$7>8,UserInput!$C$10,UserInput!$C$10*2))+UserInput!C86*25/5280*EXP(UserInput!D86+UserInput!E86*LN(UserInput!F86*IF(UserInput!$C$7>8,UserInput!$C$10,UserInput!$C$10*2))+UserInput!G86*UserInput!F86*IF(UserInput!$C$7>8,UserInput!$C$10,UserInput!$C$10*2))+UserInput!C91*25/5280*EXP(UserInput!D91+UserInput!E91*LN(UserInput!F91*IF(UserInput!$C$7>8,UserInput!$C$10,UserInput!$C$10*2))+UserInput!G91*UserInput!F91*IF(UserInput!$C$7>8,UserInput!$C$10,UserInput!$C$10*2)) -> 0.08778648973 | E49: User Custom? | G49: No
B50: Custom (crashes/yr) | C50: =UserInput!C77*25/5280*EXP(UserInput!D77+UserInput!E77*LN(UserInput!F77*IF(UserInput!$C$7>8,UserInput!$C$10,UserInput!$C$10*2))+UserInput!G77*UserInput!F77*IF(UserInput!$C$7>8,UserInput!$C$10,UserInput!$C$10*2))+UserInput!C82*25/5280*EXP(UserInput!D82+UserInput!E82*LN(UserInput!F82*IF(UserInput!$C$7>8,UserInput!$C$10,UserInput!$C$10*2))+UserInput!G82*UserInput!F82*IF(UserInput!$C$7>8,UserInput!$C$10,UserInput!$C$10*2))+UserInput!C87*25/5280*EXP(UserInput!D87+UserInput!E87*LN(UserInput!F87*IF(UserInput!$C$7>8,UserInput!$C$10,UserInput!$C$10*2))+UserInput!G87*UserInput!F87*IF(UserInput!$C$7>8,UserInput!$C$10,UserInput!$C$10*2))+UserInput!C92*25/5280*EXP(UserInput!D92+UserInput!E92*LN(UserInput!F92*IF(UserInput!$C$7>8,UserInput!$C$10,UserInput!$C$10*2))+UserInput!G92*UserInput!F92*IF(UserInput!$C$7>8,UserInput!$C$10,UserInput!$C$10*2)) -> 
B51: Calibration Factor | C51: =UserInput!C72 -> 1
B53: Directional Crashes | C53: =C51*IF(G49="No",IF(UserInput!C7>8,Crash!C49,Crash!C49/2),IF(UserInput!C7>8,Crash!C50,Crash!C50/2)) -> 0.04389324486

Sheet Capacity
H1: Dir AADT | I1: =UserInput!C10 -> 50000
B2: Probability of Event per 25' | K2: P(queue formation) | P2: Flow Rate (veh/hr/ln) | U2: Number of Vehicles at Risk per hour per lane per yr
C3: Final | D3: Prob | E3: Exists? | H3: Hr of Day | I3: k | J3: Hourly Volume | K3: Lane 1 | L3: Lane 2 | M3: Lane 3 | N3: Lane 4 | O3: Lane 5 | P3: Lane 1 | Q3: Lane 2 | R3: Lane 3 | S3: Lane 4 | T3: Lane 5 | U3: Lane 1 | V3: Lane 2 | W3: Lane 3 | X3: Lane 4 | Y3: Lane 5
B4: Lane 1 (closest to obstruction) | C4: =IF(E4=1,D4,0) -> 0 | D4: =Input!$C$52*25/5280/365/24 -> 0 | E4: =IF(Input!$C$40>=1,1,0) -> 1 | H4: 0 | I4: =IF(Crash!$J$29="No",IF(UserInput!$C$38=0.08,UserInput!F41,IF(UserInput!$C$38=0.09,UserInput!H41,IF(UserInput!$C$38=0.1,UserInput!J41,IF(UserInput!$C$38=0.11,UserInput!L41,UserInput!N41)))),IF(UserInput!$C$38=0.08,UserInput!G41,IF(UserInput!$C$38=0.09,UserInput!I41,IF(UserInput!$C$38=0.1,UserInput!K41,IF(UserInput!$C$38=0.11,UserInput!M41,UserInput!O41))))) -> 0.0102 | J4: =$I$1*I4 -> 510 | K4: =IF(P4>=$I$33,1,IF(P4>0,1-_xlfn.LOGNORM.DIST(3600/P4-$I$32,$I$30,$I$31,TRUE),0)) -> 0 | L4: 0 | M4: =IF(R4>=$I$33,1,IF(R4>0,1-_xlfn.LOGNORM.DIST(3600/R4-$I$32,$I$30,$I$31,TRUE),0)) -> 0 | N4: =IF(S4>=$I$33,1,IF(S4>0,1-_xlfn.LOGNORM.DIST(3600/S4-$I$32,$I$30,$I$31,TRUE),0)) -> 0 | O4: =IF(T4>=$I$33,1,IF(T4>0,1-_xlfn.LOGNORM.DIST(3600/T4-$I$32,$I$30,$I$31,TRUE),0)) -> 0 | P4: =$J4*Input!$C$43 -> 127.5 | Q4: =$J4*Input!$C$44 -> 127.5 | R4: =$J4*Input!$C$45 -> 127.5 | S4: =$J4*Input!$C$46 -> 127.5 | T4: =$J4*Input!$C$47 -> 0 | U4: =K4*(365-Crash!L4*Crash!Q4)*(0.5*(1+$D$26)*MIN(P4,$D$26)+$D$26*MAX(0,(P4-$D$26)))/P4 -> 0 | V4: =IF(Q4=0,0,L4*(365-Crash!M4*Crash!R4)*(0.5*(1+$D$27)*MIN(Q4,$D$27)+$D$27*MAX(0,(Q4-$D$27)))/Q4) -> 0 | W4: =IF(R4=0,0,M4*(365-Crash!N4*Crash!S4)*(0.5*(1+$D$28)*MIN(R4,$D$28)+$D$28*MAX(0,(R4-$D$28)))/R4) -> 0 | X4: =IF(S4=0,0,N4*(365-Crash!O4*Crash!T4)*(0.5*(1+$D$29)*MIN(S4,$D$29)+$D$29*MAX(0,(S4-$D$29)))/S4) -> 0 | Y4: =IF(T4=0,0,O4*(365-Crash!P4*Crash!U4)*(0.5*(1+$D$30)*MIN(T4,$D$30)+$D$30*MAX(0,(T4-$D$30)))/T4) -> 0
B5: Lane 2 | C5: =IF(E5=1,D5,0) -> 0 | D5: =Input!$C$52*25/5280/365/24 -> 0 | E5: =IF(Input!$C$40>=2,1,0) -> 1 | H5: 1 | I5: =IF(Crash!$J$29="No",IF(UserInput!$C$38=0.08,UserInput!F42,IF(UserInput!$C$38=0.09,UserInput!H42,IF(UserInput!$C$38=0.1,UserInput!J42,IF(UserInput!$C$38=0.11,UserInput!L42,UserInput!N42)))),IF(UserInput!$C$38=0.08,UserInput!G42,IF(UserInput!$C$38=0.09,UserInput!I42,IF(UserInput!$C$38=0.1,UserInput!K42,IF(UserInput!$C$38=0.11,UserInput!M42,UserInput!O42))))) -> 0.0073 | J5: =$I$1*I5 -> 365 | K5: 0 | L5: =IF(Q5>=$I$33,1,IF(Q5>0,1-_xlfn.LOGNORM.DIST(3600/Q5-$I$32,$I$30,$I$31,TRUE),0)) -> 0 | M5: =IF(R5>=$I$33,1,IF(R5>0,1-_xlfn.LOGNORM.DIST(3600/R5-$I$32,$I$30,$I$31,TRUE),0)) -> 0 | N5: =IF(S5>=$I$33,1,IF(S5>0,1-_xlfn.LOGNORM.DIST(3600/S5-$I$32,$I$30,$I$31,TRUE),0)) -> 0 | O5: =IF(T5>=$I$33,1,IF(T5>0,1-_xlfn.LOGNORM.DIST(3600/T5-$I$32,$I$30,$I$31,TRUE),0)) -> 0 | P5: =$J5*Input!$C$43 -> 91.25 | Q5: =$J5*Input!$C$44 -> 91.25 | R5: =$J5*Input!$C$45 -> 91.25 | S5: =$J5*Input!$C$46 -> 91.25 | T5: =$J5*Input!$C$47 -> 0 | U5: =K5*(365-Crash!L5*Crash!Q5)*(0.5*(1+$D$26)*MIN(P5,$D$26)+$D$26*MAX(0,(P5-$D$26)))/P5 -> 0 | V5: =IF(Q5=0,0,L5*(365-Crash!M5*Crash!R5)*(0.5*(1+$D$27)*MIN(Q5,$D$27)+$D$27*MAX(0,(Q5-$D$27)))/Q5) -> 0 | W5: =IF(R5=0,0,M5*(365-Crash!N5*Crash!S5)*(0.5*(1+$D$28)*MIN(R5,$D$28)+$D$28*MAX(0,(R5-$D$28)))/R5) -> 0 | X5: =IF(S5=0,0,N5*(365-Crash!O5*Crash!T5)*(0.5*(1+$D$29)*MIN(S5,$D$29)+$D$29*MAX(0,(S5-$D$29)))/S5) -> 0 | Y5: =IF(T5=0,0,O5*(365-Crash!P5*Crash!U5)*(0.5*(1+$D$30)*MIN(T5,$D$30)+$D$30*MAX(0,(T5-$D$30)))/T5) -> 0
B6: Lane 3 | C6: 0 | D6: =Input!$C$52*25/5280/365/24 -> 0 | E6: =IF(Input!$C$40>=3,1,0) -> 1 | H6: 2 | I6: =IF(Crash!$J$29="No",IF(UserInput!$C$38=0.08,UserInput!F43,IF(UserInput!$C$38=0.09,UserInput!H43,IF(UserInput!$C$38=0.1,UserInput!J43,IF(UserInput!$C$38=0.11,UserInput!L43,UserInput!N43)))),IF(UserInput!$C$38=0.08,UserInput!G43,IF(UserInput!$C$38=0.09,UserInput!I43,IF(UserInput!$C$38=0.1,UserInput!K43,IF(UserInput!$C$38=0.11,UserInput!M43,UserInput!O43))))) -> 0.0067 | J6: 335 | K6: 0 | L6: 0 | M6: 0 | N6: 0 | O6: 0 | P6: =$J6*Input!$C$43 -> 83.75 | Q6: =$J6*Input!$C$44 -> 83.75 | R6: =$J6*Input!$C$45 -> 83.75 | S6: =$J6*Input!$C$46 -> 83.75 | T6: =$J6*Input!$C$47 -> 0 | U6: =K6*(365-Crash!L6*Crash!Q6)*(0.5*(1+$D$26)*MIN(P6,$D$26)+$D$26*MAX(0,(P6-$D$26)))/P6 -> 0 | V6: =IF(Q6=0,0,L6*(365-Crash!M6*Crash!R6)*(0.5*(1+$D$27)*MIN(Q6,$D$27)+$D$27*MAX(0,(Q6-$D$27)))/Q6) -> 0 | W6: =IF(R6=0,0,M6*(365-Crash!N6*Crash!S6)*(0.5*(1+$D$28)*MIN(R6,$D$28)+$D$28*MAX(0,(R6-$D$28)))/R6) -> 0 | X6: =IF(S6=0,0,N6*(365-Crash!O6*Crash!T6)*(0.5*(1+$D$29)*MIN(S6,$D$29)+$D$29*MAX(0,(S6-$D$29)))/S6) -> 0 | Y6: =IF(T6=0,0,O6*(365-Crash!P6*Crash!U6)*(0.5*(1+$D$30)*MIN(T6,$D$30)+$D$30*MAX(0,(T6-$D$30)))/T6) -> 0
B7: Lane 4 | C7: 0 | D7: =Input!$C$52*25/5280/365/24 -> 0 | E7: =IF(Input!$C$40>=4,1,0) -> 1 | H7: 3 | I7: =IF(Crash!$J$29="No",IF(UserInput!$C$38=0.08,UserInput!F44,IF(UserInput!$C$38=0.09,UserInput!H44,IF(UserInput!$C$38=0.1,UserInput!J44,IF(UserInput!$C$38=0.11,UserInput!L44,UserInput!N44)))),IF(UserInput!$C$38=0.08,UserInput!G44,IF(UserInput!$C$38=0.09,UserInput!I44,IF(UserInput!$C$38=0.1,UserInput!K44,IF(UserInput!$C$38=0.11,UserInput!M44,UserInput!O44))))) -> 0.0078 | J7: 390 | K7: 0 | L7: 0 | M7: 0 | N7: 0 | O7: 0 | P7: =$J7*Input!$C$43 -> 97.5 | Q7: =$J7*Input!$C$44 -> 97.5 | R7: =$J7*Input!$C$45 -> 97.5 | S7: =$J7*Input!$C$46 -> 97.5 | T7: =$J7*Input!$C$47 -> 0 | U7: =K7*(365-Crash!L7*Crash!Q7)*(0.5*(1+$D$26)*MIN(P7,$D$26)+$D$26*MAX(0,(P7-$D$26)))/P7 -> 0 | V7: =IF(Q7=0,0,L7*(365-Crash!M7*Crash!R7)*(0.5*(1+$D$27)*MIN(Q7,$D$27)+$D$27*MAX(0,(Q7-$D$27)))/Q7) -> 0 | W7: =IF(R7=0,0,M7*(365-Crash!N7*Crash!S7)*(0.5*(1+$D$28)*MIN(R7,$D$28)+$D$28*MAX(0,(R7-$D$28)))/R7) -> 0 | X7: =IF(S7=0,0,N7*(365-Crash!O7*Crash!T7)*(0.5*(1+$D$29)*MIN(S7,$D$29)+$D$29*MAX(0,(S7-$D$29)))/S7) -> 0 | Y7: =IF(T7=0,0,O7*(365-Crash!P7*Crash!U7)*(0.5*(1+$D$30)*MIN(T7,$D$30)+$D$30*MAX(0,(T7-$D$30)))/T7) -> 0
B8: Lane 5 | C8: 0 | D8: =Input!$C$52*25/5280/365/24 -> 0 | E8: =IF(Input!$C$40>=5,1,0) -> 0 | H8: 4 | I8: =IF(Crash!$J$29="No",IF(UserInput!$C$38=0.08,UserInput!F45,IF(UserInput!$C$38=0.09,UserInput!H45,IF(UserInput!$C$38=0.1,UserInput!J45,IF(UserInput!$C$38=0.11,UserInput!L45,UserInput!N45)))),IF(UserInput!$C$38=0.08,UserInput!G45,IF(UserInput!$C$38=0.09,UserInput!I45,IF(UserInput!$C$38=0.1,UserInput!K45,IF(UserInput!$C$38=0.11,UserInput!M45,UserInput!O45))))) -> 0.0121 | J8: 605 | K8: 0 | L8: 0 | M8: 0 | N8: 0 | O8: 0 | P8: =$J8*Input!$C$43 -> 151.25 | Q8: =$J8*Input!$C$44 -> 151.25 | R8: =$J8*Input!$C$45 -> 151.25 | S8: =$J8*Input!$C$46 -> 151.25 | T8: =$J8*Input!$C$47 -> 0 | U8: =K8*(365-Crash!L8*Crash!Q8)*(0.5*(1+$D$26)*MIN(P8,$D$26)+$D$26*MAX(0,(P8-$D$26)))/P8 -> 0 | V8: =IF(Q8=0,0,L8*(365-Crash!M8*Crash!R8)*(0.5*(1+$D$27)*MIN(Q8,$D$27)+$D$27*MAX(0,(Q8-$D$27)))/Q8) -> 0 | W8: =IF(R8=0,0,M8*(365-Crash!N8*Crash!S8)*(0.5*(1+$D$28)*MIN(R8,$D$28)+$D$28*MAX(0,(R8-$D$28)))/R8) -> 0 | X8: =IF(S8=0,0,N8*(365-Crash!O8*Crash!T8)*(0.5*(1+$D$29)*MIN(S8,$D$29)+$D$29*MAX(0,(S8-$D$29)))/S8) -> 0 | Y8: =IF(T8=0,0,O8*(365-Crash!P8*Crash!U8)*(0.5*(1+$D$30)*MIN(T8,$D$30)+$D$30*MAX(0,(T8-$D$30)))/T8) -> 0
H9: 5 | I9: =IF(Crash!$J$29="No",IF(UserInput!$C$38=0.08,UserInput!F46,IF(UserInput!$C$38=0.09,UserInput!H46,IF(UserInput!$C$38=0.1,UserInput!J46,IF(UserInput!$C$38=0.11,UserInput!L46,UserInput!N46)))),IF(UserInput!$C$38=0.08,UserInput!G46,IF(UserInput!$C$38=0.09,UserInput!I46,IF(UserInput!$C$38=0.1,UserInput!K46,IF(UserInput!$C$38=0.11,UserInput!M46,UserInput!O46))))) -> 0.0257 | J9: 1285 | K9: 1.289746088e-12 | L9: 1.289746088e-12 | M9: 1.289746088e-12 | N9: 1.289746088e-12 | O9: 0 | P9: =$J9*Input!$C$43 -> 321.25 | Q9: =$J9*Input!$C$44 -> 321.25 | R9: =$J9*Input!$C$45 -> 321.25 | S9: =$J9*Input!$C$46 -> 321.25 | T9: =$J9*Input!$C$47 -> 0 | U9: =K9*(365-Crash!L9*Crash!Q9)*(0.5*(1+$D$26)*MIN(P9,$D$26)+$D$26*MAX(0,(P9-$D$26)))/P9 -> 3.014150079e-08 | V9: =IF(Q9=0,0,L9*(365-Crash!M9*Crash!R9)*(0.5*(1+$D$27)*MIN(Q9,$D$27)+$D$27*MAX(0,(Q9-$D$27)))/Q9) -> 2.564532766e-08 | W9: =IF(R9=0,0,M9*(365-Crash!N9*Crash!S9)*(0.5*(1+$D$28)*MIN(R9,$D$28)+$D$28*MAX(0,(R9-$D$28)))/R9) -> 1.932226373e-08 | X9: =IF(S9=0,0,N9*(365-Crash!O9*Crash!T9)*(0.5*(1+$D$29)*MIN(S9,$D$29)+$D$29*MAX(0,(S9-$D$29)))/S9) -> 0 | Y9: =IF(T9=0,0,O9*(365-Crash!P9*Crash!U9)*(0.5*(1+$D$30)*MIN(T9,$D$30)+$D$30*MAX(0,(T9-$D$30)))/T9) -> 0
B10: P(Event per 25' causing Q>C) | H10: 6 | I10: =IF(Crash!$J$29="No",IF(UserInput!$C$38=0.08,UserInput!F47,IF(UserInput!$C$38=0.09,UserInput!H47,IF(UserInput!$C$38=0.1,UserInput!J47,IF(UserInput!$C$38=0.11,UserInput!L47,UserInput!N47)))),IF(UserInput!$C$38=0.08,UserInput!G47,IF(UserInput!$C$38=0.09,UserInput!I47,IF(UserInput!$C$38=0.1,UserInput!K47,IF(UserInput!$C$38=0.11,UserInput!M47,UserInput!O47))))) -> 0.0513 | J10: 2565 | K10: 7.63410386e-08 | L10: 7.63410386e-08 | M10: 7.63410386e-08 | N10: 7.63410386e-08 | O10: 0 | P10: =$J10*Input!$C$43 -> 641.25 | Q10: =$J10*Input!$C$44 -> 641.25 | R10: =$J10*Input!$C$45 -> 641.25 | S10: =$J10*Input!$C$46 -> 641.25 | T10: =$J10*Input!$C$47 -> 0 | U10: =K10*(365-Crash!L10*Crash!Q10)*(0.5*(1+$D$26)*MIN(P10,$D$26)+$D$26*MAX(0,(P10-$D$26)))/P10 -> 0.001893301359 | V10: =IF(Q10=0,0,L10*(365-Crash!M10*Crash!R10)*(0.5*(1+$D$27)*MIN(Q10,$D$27)+$D$27*MAX(0,(Q10-$D$27)))/Q10) -> 0.001593378878 | W10: =IF(R10=0,0,M10*(365-Crash!N10*Crash!S10)*(0.5*(1+$D$28)*MIN(R10,$D$28)+$D$28*MAX(0,(R10-$D$28)))/R10) -> 0.001183758306 | X10: =IF(S10=0,0,N10*(365-Crash!O10*Crash!T10)*(0.5*(1+$D$29)*MIN(S10,$D$29)+$D$29*MAX(0,(S10-$D$29)))/S10) -> 0 | Y10: =IF(T10=0,0,O10*(365-Crash!P10*Crash!U10)*(0.5*(1+$D$30)*MIN(T10,$D$30)+$D$30*MAX(0,(T10-$D$30)))/T10) -> 0
B11: Lane 1 (closest to obstruction) | C11: =IF(Input!$C$50*(1-Input!$C$51)<Input!C43,Capacity!C4,0) -> 0 | H11: 7 | I11: =IF(Crash!$J$29="No",IF(UserInput!$C$38=0.08,UserInput!F48,IF(UserInput!$C$38=0.09,UserInput!H48,IF(UserInput!$C$38=0.1,UserInput!J48,IF(UserInput!$C$38=0.11,UserInput!L48,UserInput!N48)))),IF(UserInput!$C$38=0.08,UserInput!G48,IF(UserInput!$C$38=0.09,UserInput!I48,IF(UserInput!$C$38=0.1,UserInput!K48,IF(UserInput!$C$38=0.11,UserInput!M48,UserInput!O48))))) -> 0.0682 | J11: 3410 | K11: 5.215343445e-06 | L11: 5.215343445e-06 | M11: 5.215343445e-06 | N11: 5.215343445e-06 | O11: 0 | P11: =$J11*Input!$C$43 -> 852.5 | Q11: =$J11*Input!$C$44 -> 852.5 | R11: =$J11*Input!$C$45 -> 852.5 | S11: =$J11*Input!$C$46 -> 852.5 | T11: =$J11*Input!$C$47 -> 0 | U11: =K11*(365-Crash!L11*Crash!Q11)*(0.5*(1+$D$26)*MIN(P11,$D$26)+$D$26*MAX(0,(P11-$D$26)))/P11 -> 0.1311221806 | V11: =IF(Q11=0,0,L11*(365-Crash!M11*Crash!R11)*(0.5*(1+$D$27)*MIN(Q11,$D$27)+$D$27*MAX(0,(Q11-$D$27)))/Q11) -> 0.1100709452 | W11: =IF(R11=0,0,M11*(365-Crash!N11*Crash!S11)*(0.5*(1+$D$28)*MIN(R11,$D$28)+$D$28*MAX(0,(R11-$D$28)))/R11) -> 0.08150332199 | X11: =IF(S11=0,0,N11*(365-Crash!O11*Crash!T11)*(0.5*(1+$D$29)*MIN(S11,$D$29)+$D$29*MAX(0,(S11-$D$29)))/S11) -> 0 | Y11: =IF(T11=0,0,O11*(365-Crash!P11*Crash!U11)*(0.5*(1+$D$30)*MIN(T11,$D$30)+$D$30*MAX(0,(T11-$D$30)))/T11) -> 0
B12: Lane 2 | C12: =IF(Input!$C$50*(1-Input!$C$51)<Input!C44,Capacity!C5,0) -> 0 | H12: 8 | I12: =IF(Crash!$J$29="No",IF(UserInput!$C$38=0.08,UserInput!F49,IF(UserInput!$C$38=0.09,UserInput!H49,IF(UserInput!$C$38=0.1,UserInput!J49,IF(UserInput!$C$38=0.11,UserInput!L49,UserInput!N49)))),IF(UserInput!$C$38=0.08,UserInput!G49,IF(UserInput!$C$38=0.09,UserInput!I49,IF(UserInput!$C$38=0.1,UserInput!K49,IF(UserInput!$C$38=0.11,UserInput!M49,UserInput!O49))))) -> 0.0613 | J12: 3065 | K12: 1.089797162e-06 | L12: 1.089797162e-06 | M12: 1.089797162e-06 | N12: 1.089797162e-06 | O12: 0 | P12: =$J12*Input!$C$43 -> 766.25 | Q12: =$J12*Input!$C$44 -> 766.25 | R12: =$J12*Input!$C$45 -> 766.25 | S12: =$J12*Input!$C$46 -> 766.25 | T12: =$J12*Input!$C$47 -> 0 | U12: =K12*(365-Crash!L12*Crash!Q12)*(0.5*(1+$D$26)*MIN(P12,$D$26)+$D$26*MAX(0,(P12-$D$26)))/P12 -> 0.02727442821 | V12: =IF(Q12=0,0,L12*(365-Crash!M12*Crash!R12)*(0.5*(1+$D$27)*MIN(Q12,$D$27)+$D$27*MAX(0,(Q12-$D$27)))/Q12) -> 0.0229153096 | W12: =IF(R12=0,0,M12*(365-Crash!N12*Crash!S12)*(0.5*(1+$D$28)*MIN(R12,$D$28)+$D$28*MAX(0,(R12-$D$28)))/R12) -> 0.01698703269 | X12: =IF(S12=0,0,N12*(365-Crash!O12*Crash!T12)*(0.5*(1+$D$29)*MIN(S12,$D$29)+$D$29*MAX(0,(S12-$D$29)))/S12) -> 0 | Y12: =IF(T12=0,0,O12*(365-Crash!P12*Crash!U12)*(0.5*(1+$D$30)*MIN(T12,$D$30)+$D$30*MAX(0,(T12-$D$30)))/T12) -> 0
B13: Lane 3 | C13: =IF(Input!$C$50*(1-Input!$C$51)<Input!C45,Capacity!C6,0) -> 0 | H13: 9 | I13: =IF(Crash!$J$29="No",IF(UserInput!$C$38=0.08,UserInput!F50,IF(UserInput!$C$38=0.09,UserInput!H50,IF(UserInput!$C$38=0.1,UserInput!J50,IF(UserInput!$C$38=0.11,UserInput!L50,UserInput!N50)))),IF(UserInput!$C$38=0.08,UserInput!G50,IF(UserInput!$C$38=0.09,UserInput!I50,IF(UserInput!$C$38=0.1,UserInput!K50,IF(UserInput!$C$38=0.11,UserInput!M50,UserInput!O50))))) -> 0.0522 | J13: 2610 | K13: 9.923481281e-08 | L13: 9.923481281e-08 | M13: 9.923481281e-08 | N13: 9.923481281e-08 | O13: 0 | P13: =$J13*Input!$C$43 -> 652.5 | Q13: =$J13*Input!$C$44 -> 652.5 | R13: =$J13*Input!$C$45 -> 652.5 | S13: =$J13*Input!$C$46 -> 652.5 | T13: =$J13*Input!$C$47 -> 0 | U13: =K13*(365-Crash!L13*Crash!Q13)*(0.5*(1+$D$26)*MIN(P13,$D$26)+$D$26*MAX(0,(P13-$D$26)))/P13 -> 0.002463480464 | V13: =IF(Q13=0,0,L13*(365-Crash!M13*Crash!R13)*(0.5*(1+$D$27)*MIN(Q13,$D$27)+$D$27*MAX(0,(Q13-$D$27)))/Q13) -> 0.002072863761 | W13: =IF(R13=0,0,M13*(365-Crash!N13*Crash!S13)*(0.5*(1+$D$28)*MIN(R13,$D$28)+$D$28*MAX(0,(R13-$D$28)))/R13) -> 0.001539619836 | X13: =IF(S13=0,0,N13*(365-Crash!O13*Crash!T13)*(0.5*(1+$D$29)*MIN(S13,$D$29)+$D$29*MAX(0,(S13-$D$29)))/S13) -> 0 | Y13: =IF(T13=0,0,O13*(365-Crash!P13*Crash!U13)*(0.5*(1+$D$30)*MIN(T13,$D$30)+$D$30*MAX(0,(T13-$D$30)))/T13) -> 0
B14: Lane 4 | C14: =IF(Input!$C$50*(1-Input!$C$51)<Input!C46,Capacity!C7,0) -> 0 | H14: 10 | I14: =IF(Crash!$J$29="No",IF(UserInput!$C$38=0.08,UserInput!F51,IF(UserInput!$C$38=0.09,UserInput!H51,IF(UserInput!$C$38=0.1,UserInput!J51,IF(UserInput!$C$38=0.11,UserInput!L51,UserInput!N51)))),IF(UserInput!$C$38=0.08,UserInput!G51,IF(UserInput!$C$38=0.09,UserInput!I51,IF(UserInput!$C$38=0.1,UserInput!K51,IF(UserInput!$C$38=0.11,UserInput!M51,UserInput!O51))))) -> 0.0499 | J14: 2495 | K14: 5.023361638e-08 | L14: 5.023361638e-08 | M14: 5.023361638e-08 | N14: 5.023361638e-08 | O14: 0 | P14: =$J14*Input!$C$43 -> 623.75 | Q14: =$J14*Input!$C$44 -> 623.75 | R14: =$J14*Input!$C$45 -> 623.75 | S14: =$J14*Input!$C$46 -> 623.75 | T14: =$J14*Input!$C$47 -> 0 | U14: =K14*(365-Crash!L14*Crash!Q14)*(0.5*(1+$D$26)*MIN(P14,$D$26)+$D$26*MAX(0,(P14-$D$26)))/P14 -> 0.001243840247 | V14: =IF(Q14=0,0,L14*(365-Crash!M14*Crash!R14)*(0.5*(1+$D$27)*MIN(Q14,$D$27)+$D$27*MAX(0,(Q14-$D$27)))/Q14) -> 0.001047105917 | W14: =IF(R14=0,0,M14*(365-Crash!N14*Crash!S14)*(0.5*(1+$D$28)*MIN(R14,$D$28)+$D$28*MAX(0,(R14-$D$28)))/R14) -> 0.0007782151083 | X14: =IF(S14=0,0,N14*(365-Crash!O14*Crash!T14)*(0.5*(1+$D$29)*MIN(S14,$D$29)+$D$29*MAX(0,(S14-$D$29)))/S14) -> 0 | Y14: =IF(T14=0,0,O14*(365-Crash!P14*Crash!U14)*(0.5*(1+$D$30)*MIN(T14,$D$30)+$D$30*MAX(0,(T14-$D$30)))/T14) -> 0
B15: Lane 5 | C15: =IF(Input!$C$50*(1-Input!$C$51)<Input!C47,Capacity!C8,0) -> 0 | H15: 11 | I15: =IF(Crash!$J$29="No",IF(UserInput!$C$38=0.08,UserInput!F52,IF(UserInput!$C$38=0.09,UserInput!H52,IF(UserInput!$C$38=0.1,UserInput!J52,IF(UserInput!$C$38=0.11,UserInput!L52,UserInput!N52)))),IF(UserInput!$C$38=0.08,UserInput!G52,IF(UserInput!$C$38=0.09,UserInput!I52,IF(UserInput!$C$38=0.1,UserInput!K52,IF(UserInput!$C$38=0.11,UserInput!M52,UserInput!O52))))) -> 0.0513 | J15: 2565 | K15: 7.63410386e-08 | L15: 7.63410386e-08 | M15: 7.63410386e-08 | N15: 7.63410386e-08 | O15: 0 | P15: =$J15*Input!$C$43 -> 641.25 | Q15: =$J15*Input!$C$44 -> 641.25 | R15: =$J15*Input!$C$45 -> 641.25 | S15: =$J15*Input!$C$46 -> 641.25 | T15: =$J15*Input!$C$47 -> 0 | U15: =K15*(365-Crash!L15*Crash!Q15)*(0.5*(1+$D$26)*MIN(P15,$D$26)+$D$26*MAX(0,(P15-$D$26)))/P15 -> 0.001893301359 | V15: =IF(Q15=0,0,L15*(365-Crash!M15*Crash!R15)*(0.5*(1+$D$27)*MIN(Q15,$D$27)+$D$27*MAX(0,(Q15-$D$27)))/Q15) -> 0.001593378878 | W15: =IF(R15=0,0,M15*(365-Crash!N15*Crash!S15)*(0.5*(1+$D$28)*MIN(R15,$D$28)+$D$28*MAX(0,(R15-$D$28)))/R15) -> 0.001183758306 | X15: =IF(S15=0,0,N15*(365-Crash!O15*Crash!T15)*(0.5*(1+$D$29)*MIN(S15,$D$29)+$D$29*MAX(0,(S15-$D$29)))/S15) -> 0 | Y15: =IF(T15=0,0,O15*(365-Crash!P15*Crash!U15)*(0.5*(1+$D$30)*MIN(T15,$D$30)+$D$30*MAX(0,(T15-$D$30)))/T15) -> 0
H16: 12 | I16: =IF(Crash!$J$29="No",IF(UserInput!$C$38=0.08,UserInput!F53,IF(UserInput!$C$38=0.09,UserInput!H53,IF(UserInput!$C$38=0.1,UserInput!J53,IF(UserInput!$C$38=0.11,UserInput!L53,UserInput!N53)))),IF(UserInput!$C$38=0.08,UserInput!G53,IF(UserInput!$C$38=0.09,UserInput!I53,IF(UserInput!$C$38=0.1,UserInput!K53,IF(UserInput!$C$38=0.11,UserInput!M53,UserInput!O53))))) -> 0.0532 | J16: 2660 | K16: 1.320231107e-07 | L16: 1.320231107e-07 | M16: 1.320231107e-07 | N16: 1.320231107e-07 | O16: 0 | P16: =$J16*Input!$C$43 -> 665 | Q16: =$J16*Input!$C$44 -> 665 | R16: =$J16*Input!$C$45 -> 665 | S16: =$J16*Input!$C$46 -> 665 | T16: =$J16*Input!$C$47 -> 0 | U16: =K16*(365-Crash!L16*Crash!Q16)*(0.5*(1+$D$26)*MIN(P16,$D$26)+$D$26*MAX(0,(P16-$D$26)))/P16 -> 0.003280856611 | V16: =IF(Q16=0,0,L16*(365-Crash!M16*Crash!R16)*(0.5*(1+$D$27)*MIN(Q16,$D$27)+$D$27*MAX(0,(Q16-$D$27)))/Q16) -> 0.002760106402 | W16: =IF(R16=0,0,M16*(365-Crash!N16*Crash!S16)*(0.5*(1+$D$28)*MIN(R16,$D$28)+$D$28*MAX(0,(R16-$D$28)))/R16) -> 0.002049558161 | X16: =IF(S16=0,0,N16*(365-Crash!O16*Crash!T16)*(0.5*(1+$D$29)*MIN(S16,$D$29)+$D$29*MAX(0,(S16-$D$29)))/S16) -> 0 | Y16: =IF(T16=0,0,O16*(365-Crash!P16*Crash!U16)*(0.5*(1+$D$30)*MIN(T16,$D$30)+$D$30*MAX(0,(T16-$D$30)))/T16) -> 0
B17: No. of Analysis Segments (X) | H17: 13 | I17: =IF(Crash!$J$29="No",IF(UserInput!$C$38=0.08,UserInput!F54,IF(UserInput!$C$38=0.09,UserInput!H54,IF(UserInput!$C$38=0.1,UserInput!J54,IF(UserInput!$C$38=0.11,UserInput!L54,UserInput!N54)))),IF(UserInput!$C$38=0.08,UserInput!G54,IF(UserInput!$C$38=0.09,UserInput!I54,IF(UserInput!$C$38=0.1,UserInput!K54,IF(UserInput!$C$38=0.11,UserInput!M54,UserInput!O54))))) -> 0.0548 | J17: 2740 | K17: 2.058989047e-07 | L17: 2.058989047e-07 | M17: 2.058989047e-07 | N17: 2.058989047e-07 | O17: 0 | P17: =$J17*Input!$C$43 -> 685 | Q17: =$J17*Input!$C$44 -> 685 | R17: =$J17*Input!$C$45 -> 685 | S17: =$J17*Input!$C$46 -> 685 | T17: =$J17*Input!$C$47 -> 0 | U17: =K17*(365-Crash!L17*Crash!Q17)*(0.5*(1+$D$26)*MIN(P17,$D$26)+$D$26*MAX(0,(P17-$D$26)))/P17 -> 0.005124807853 | V17: =IF(Q17=0,0,L17*(365-Crash!M17*Crash!R17)*(0.5*(1+$D$27)*MIN(Q17,$D$27)+$D$27*MAX(0,(Q17-$D$27)))/Q17) -> 0.004310125157 | W17: =IF(R17=0,0,M17*(365-Crash!N17*Crash!S17)*(0.5*(1+$D$28)*MIN(R17,$D$28)+$D$28*MAX(0,(R17-$D$28)))/R17) -> 0.003199333685 | X17: =IF(S17=0,0,N17*(365-Crash!O17*Crash!T17)*(0.5*(1+$D$29)*MIN(S17,$D$29)+$D$29*MAX(0,(S17-$D$29)))/S17) -> 0 | Y17: =IF(T17=0,0,O17*(365-Crash!P17*Crash!U17)*(0.5*(1+$D$30)*MIN(T17,$D$30)+$D$30*MAX(0,(T17-$D$30)))/T17) -> 0
B18: Lane 1 (closest to obstruction) | C18: =Input!C43 -> 0.25 | H18: 14 | I18: =IF(Crash!$J$29="No",IF(UserInput!$C$38=0.08,UserInput!F55,IF(UserInput!$C$38=0.09,UserInput!H55,IF(UserInput!$C$38=0.1,UserInput!J55,IF(UserInput!$C$38=0.11,UserInput!L55,UserInput!N55)))),IF(UserInput!$C$38=0.08,UserInput!G55,IF(UserInput!$C$38=0.09,UserInput!I55,IF(UserInput!$C$38=0.1,UserInput!K55,IF(UserInput!$C$38=0.11,UserInput!M55,UserInput!O55))))) -> 0.0608 | J18: 3040 | K18: 9.655999474e-07 | L18: 9.655999474e-07 | M18: 9.655999474e-07 | N18: 9.655999474e-07 | O18: 0 | P18: =$J18*Input!$C$43 -> 760 | Q18: =$J18*Input!$C$44 -> 760 | R18: =$J18*Input!$C$45 -> 760 | S18: =$J18*Input!$C$46 -> 760 | T18: =$J18*Input!$C$47 -> 0 | U18: =K18*(365-Crash!L18*Crash!Q18)*(0.5*(1+$D$26)*MIN(P18,$D$26)+$D$26*MAX(0,(P18-$D$26)))/P18 -> 0.02415703644 | V18: =IF(Q18=0,0,L18*(365-Crash!M18*Crash!R18)*(0.5*(1+$D$27)*MIN(Q18,$D$27)+$D$27*MAX(0,(Q18-$D$27)))/Q18) -> 0.02029757892 | W18: =IF(R18=0,0,M18*(365-Crash!N18*Crash!S18)*(0.5*(1+$D$28)*MIN(R18,$D$28)+$D$28*MAX(0,(R18-$D$28)))/R18) -> 0.01504790166 | X18: =IF(S18=0,0,N18*(365-Crash!O18*Crash!T18)*(0.5*(1+$D$29)*MIN(S18,$D$29)+$D$29*MAX(0,(S18-$D$29)))/S18) -> 0 | Y18: =IF(T18=0,0,O18*(365-Crash!P18*Crash!U18)*(0.5*(1+$D$30)*MIN(T18,$D$30)+$D$30*MAX(0,(T18-$D$30)))/T18) -> 0
B19: Lane 2 | C19: =Input!C44 -> 0.25 | H19: 15 | I19: =IF(Crash!$J$29="No",IF(UserInput!$C$38=0.08,UserInput!F56,IF(UserInput!$C$38=0.09,UserInput!H56,IF(UserInput!$C$38=0.1,UserInput!J56,IF(UserInput!$C$38=0.11,UserInput!L56,UserInput!N56)))),IF(UserInput!$C$38=0.08,UserInput!G56,IF(UserInput!$C$38=0.09,UserInput!I56,IF(UserInput!$C$38=0.1,UserInput!K56,IF(UserInput!$C$38=0.11,UserInput!M56,UserInput!O56))))) -> 0.0706 | J19: 3530 | K19: 8.631021191e-06 | L19: 8.631021191e-06 | M19: 8.631021191e-06 | N19: 8.631021191e-06 | O19: 0 | P19: =$J19*Input!$C$43 -> 882.5 | Q19: =$J19*Input!$C$44 -> 882.5 | R19: =$J19*Input!$C$45 -> 882.5 | S19: =$J19*Input!$C$46 -> 882.5 | T19: =$J19*Input!$C$47 -> 0 | U19: =K19*(365-Crash!L19*Crash!Q19)*(0.5*(1+$D$26)*MIN(P19,$D$26)+$D$26*MAX(0,(P19-$D$26)))/P19 -> 0.2172911278 | V19: =IF(Q19=0,0,L19*(365-Crash!M19*Crash!R19)*(0.5*(1+$D$27)*MIN(Q19,$D$27)+$D$27*MAX(0,(Q19-$D$27)))/Q19) -> 0.1823586502 | W19: =IF(R19=0,0,M19*(365-Crash!N19*Crash!S19)*(0.5*(1+$D$28)*MIN(R19,$D$28)+$D$28*MAX(0,(R19-$D$28)))/R19) -> 0.1349838824 | X19: =IF(S19=0,0,N19*(365-Crash!O19*Crash!T19)*(0.5*(1+$D$29)*MIN(S19,$D$29)+$D$29*MAX(0,(S19-$D$29)))/S19) -> 0 | Y19: =IF(T19=0,0,O19*(365-Crash!P19*Crash!U19)*(0.5*(1+$D$30)*MIN(T19,$D$30)+$D$30*MAX(0,(T19-$D$30)))/T19) -> 0
B20: Lane 3 | C20: =Input!C45 -> 0.25 | H20: 16 | I20: =IF(Crash!$J$29="No",IF(UserInput!$C$38=0.08,UserInput!F57,IF(UserInput!$C$38=0.09,UserInput!H57,IF(UserInput!$C$38=0.1,UserInput!J57,IF(UserInput!$C$38=0.11,UserInput!L57,UserInput!N57)))),IF(UserInput!$C$38=0.08,UserInput!G57,IF(UserInput!$C$38=0.09,UserInput!I57,IF(UserInput!$C$38=0.1,UserInput!K57,IF(UserInput!$C$38=0.11,UserInput!M57,UserInput!O57))))) -> 0.08 | J20: 4000 | K20: =IF(P20>=$I$33,1,IF(P20>0,1-_xlfn.LOGNORM.DIST(3600/P20-$I$32,$I$30,$I$31,TRUE),0)) -> 5.253134844e-05 | L20: 5.253134844e-05 | M20: 5.253134844e-05 | N20: 5.253134844e-05 | O20: 0 | P20: =$J20*Input!$C$43 -> 1000 | Q20: =$J20*Input!$C$44 -> 1000 | R20: =$J20*Input!$C$45 -> 1000 | S20: =$J20*Input!$C$46 -> 1000 | T20: =$J20*Input!$C$47 -> 0 | U20: =K20*(365-Crash!L20*Crash!Q20)*(0.5*(1+$D$26)*MIN(P20,$D$26)+$D$26*MAX(0,(P20-$D$26)))/P20 -> 1.328312801 | V20: =IF(Q20=0,0,L20*(365-Crash!M20*Crash!R20)*(0.5*(1+$D$27)*MIN(Q20,$D$27)+$D$27*MAX(0,(Q20-$D$27)))/Q20) -> 1.113813352 | W20: =IF(R20=0,0,M20*(365-Crash!N20*Crash!S20)*(0.5*(1+$D$28)*MIN(R20,$D$28)+$D$28*MAX(0,(R20-$D$28)))/R20) -> 0.8235294531 | X20: =IF(S20=0,0,N20*(365-Crash!O20*Crash!T20)*(0.5*(1+$D$29)*MIN(S20,$D$29)+$D$29*MAX(0,(S20-$D$29)))/S20) -> 0 | Y20: =IF(T20=0,0,O20*(365-Crash!P20*Crash!U20)*(0.5*(1+$D$30)*MIN(T20,$D$30)+$D$30*MAX(0,(T20-$D$30)))/T20) -> 0
B21: Lane 4 | C21: =Input!C46 -> 0.25 | H21: 17 | I21: =IF(Crash!$J$29="No",IF(UserInput!$C$38=0.08,UserInput!F58,IF(UserInput!$C$38=0.09,UserInput!H58,IF(UserInput!$C$38=0.1,UserInput!J58,IF(UserInput!$C$38=0.11,UserInput!L58,UserInput!N58)))),IF(UserInput!$C$38=0.08,UserInput!G58,IF(UserInput!$C$38=0.09,UserInput!I58,IF(UserInput!$C$38=0.1,UserInput!K58,IF(UserInput!$C$38=0.11,UserInput!M58,UserInput!O58))))) -> 0.073 | J21: 3650 | K21: =IF(P21>=$I$33,1,IF(P21>0,1-_xlfn.LOGNORM.DIST(3600/P21-$I$32,$I$30,$I$31,TRUE),0)) -> 1.402118187e-05 | L21: 1.402118187e-05 | M21: 1.402118187e-05 | N21: 1.402118187e-05 | O21: 0 | P21: =$J21*Input!$C$43 -> 912.5 | Q21: =$J21*Input!$C$44 -> 912.5 | R21: =$J21*Input!$C$45 -> 912.5 | S21: =$J21*Input!$C$46 -> 912.5 | T21: =$J21*Input!$C$47 -> 0 | U21: =K21*(365-Crash!L21*Crash!Q21)*(0.5*(1+$D$26)*MIN(P21,$D$26)+$D$26*MAX(0,(P21-$D$26)))/P21 -> 0.3534321891 | V21: =IF(Q21=0,0,L21*(365-Crash!M21*Crash!R21)*(0.5*(1+$D$27)*MIN(Q21,$D$27)+$D$27*MAX(0,(Q21-$D$27)))/Q21) -> 0.2965418311 | W21: =IF(R21=0,0,M21*(365-Crash!N21*Crash!S21)*(0.5*(1+$D$28)*MIN(R21,$D$28)+$D$28*MAX(0,(R21-$D$28)))/R21) -> 0.2194342383 | X21: =IF(S21=0,0,N21*(365-Crash!O21*Crash!T21)*(0.5*(1+$D$29)*MIN(S21,$D$29)+$D$29*MAX(0,(S21-$D$29)))/S21) -> 0 | Y21: =IF(T21=0,0,O21*(365-Crash!P21*Crash!U21)*(0.5*(1+$D$30)*MIN(T21,$D$30)+$D$30*MAX(0,(T21-$D$30)))/T21) -> 0
B22: Lane 5 | C22: =Input!C47 -> 0 | H22: 18 | I22: =IF(Crash!$J$29="No",IF(UserInput!$C$38=0.08,UserInput!F59,IF(UserInput!$C$38=0.09,UserInput!H59,IF(UserInput!$C$38=0.1,UserInput!J59,IF(UserInput!$C$38=0.11,UserInput!L59,UserInput!N59)))),IF(UserInput!$C$38=0.08,UserInput!G59,IF(UserInput!$C$38=0.09,UserInput!I59,IF(UserInput!$C$38=0.1,UserInput!K59,IF(UserInput!$C$38=0.11,UserInput!M59,UserInput!O59))))) -> 0.0568 | J22: 2840 | K22: 3.516976402e-07 | L22: 3.516976402e-07 | M22: 3.516976402e-07 | N22: 3.516976402e-07 | O22: 0 | P22: =$J22*Input!$C$43 -> 710 | Q22: =$J22*Input!$C$44 -> 710 | R22: =$J22*Input!$C$45 -> 710 | S22: =$J22*Input!$C$46 -> 710 | T22: =$J22*Input!$C$47 -> 0 | U22: =K22*(365-Crash!L22*Crash!Q22)*(0.5*(1+$D$26)*MIN(P22,$D$26)+$D$26*MAX(0,(P22-$D$26)))/P22 -> 0.008769837691 | V22: =IF(Q22=0,0,L22*(365-Crash!M22*Crash!R22)*(0.5*(1+$D$27)*MIN(Q22,$D$27)+$D$27*MAX(0,(Q22-$D$27)))/Q22) -> 0.007373207992 | W22: =IF(R22=0,0,M22*(365-Crash!N22*Crash!S22)*(0.5*(1+$D$28)*MIN(R22,$D$28)+$D$28*MAX(0,(R22-$D$28)))/R22) -> 0.005470584446 | X22: =IF(S22=0,0,N22*(365-Crash!O22*Crash!T22)*(0.5*(1+$D$29)*MIN(S22,$D$29)+$D$29*MAX(0,(S22-$D$29)))/S22) -> 0 | Y22: =IF(T22=0,0,O22*(365-Crash!P22*Crash!U22)*(0.5*(1+$D$30)*MIN(T22,$D$30)+$D$30*MAX(0,(T22-$D$30)))/T22) -> 0
H23: 19 | I23: =IF(Crash!$J$29="No",IF(UserInput!$C$38=0.08,UserInput!F60,IF(UserInput!$C$38=0.09,UserInput!H60,IF(UserInput!$C$38=0.1,UserInput!J60,IF(UserInput!$C$38=0.11,UserInput!L60,UserInput!N60)))),IF(UserInput!$C$38=0.08,UserInput!G60,IF(UserInput!$C$38=0.09,UserInput!I60,IF(UserInput!$C$38=0.1,UserInput!K60,IF(UserInput!$C$38=0.11,UserInput!M60,UserInput!O60))))) -> 0.0429 | J23: 2145 | K23: 4.963182421e-09 | L23: 4.963182421e-09 | M23: 4.963182421e-09 | N23: 4.963182421e-09 | O23: 0 | P23: =$J23*Input!$C$43 -> 536.25 | Q23: =$J23*Input!$C$44 -> 536.25 | R23: =$J23*Input!$C$45 -> 536.25 | S23: =$J23*Input!$C$46 -> 536.25 | T23: =$J23*Input!$C$47 -> 0 | U23: =K23*(365-Crash!L23*Crash!Q23)*(0.5*(1+$D$26)*MIN(P23,$D$26)+$D$26*MAX(0,(P23-$D$26)))/P23 -> 0.000121713508 | V23: =IF(Q23=0,0,L23*(365-Crash!M23*Crash!R23)*(0.5*(1+$D$27)*MIN(Q23,$D$27)+$D$27*MAX(0,(Q23-$D$27)))/Q23) -> 0.0001026432354 | W23: =IF(R23=0,0,M23*(365-Crash!N23*Crash!S23)*(0.5*(1+$D$28)*MIN(R23,$D$28)+$D$28*MAX(0,(R23-$D$28)))/R23) -> 7.646001114e-05 | X23: =IF(S23=0,0,N23*(365-Crash!O23*Crash!T23)*(0.5*(1+$D$29)*MIN(S23,$D$29)+$D$29*MAX(0,(S23-$D$29)))/S23) -> 0 | Y23: =IF(T23=0,0,O23*(365-Crash!P23*Crash!U23)*(0.5*(1+$D$30)*MIN(T23,$D$30)+$D$30*MAX(0,(T23-$D$30)))/T23) -> 0
B24: No. of Segments in Restricted Zone | H24: 20 | I24: =IF(Crash!$J$29="No",IF(UserInput!$C$38=0.08,UserInput!F61,IF(UserInput!$C$38=0.09,UserInput!H61,IF(UserInput!$C$38=0.1,UserInput!J61,IF(UserInput!$C$38=0.11,UserInput!L61,UserInput!N61)))),IF(UserInput!$C$38=0.08,UserInput!G61,IF(UserInput!$C$38=0.09,UserInput!I61,IF(UserInput!$C$38=0.1,UserInput!K61,IF(UserInput!$C$38=0.11,UserInput!M61,UserInput!O61))))) -> 0.0351 | J24: 1755 | K24: 2.119674436e-10 | L24: 2.119674436e-10 | M24: 2.119674436e-10 | N24: 2.119674436e-10 | O24: 0 | P24: =$J24*Input!$C$43 -> 438.75 | Q24: =$J24*Input!$C$44 -> 438.75 | R24: =$J24*Input!$C$45 -> 438.75 | S24: =$J24*Input!$C$46 -> 438.75 | T24: =$J24*Input!$C$47 -> 0 | U24: =K24*(365-Crash!L24*Crash!Q24)*(0.5*(1+$D$26)*MIN(P24,$D$26)+$D$26*MAX(0,(P24-$D$26)))/P24 -> 5.117415146e-06 | V24: =IF(Q24=0,0,L24*(365-Crash!M24*Crash!R24)*(0.5*(1+$D$27)*MIN(Q24,$D$27)+$D$27*MAX(0,(Q24-$D$27)))/Q24) -> 4.327964762e-06 | W24: =IF(R24=0,0,M24*(365-Crash!N24*Crash!S24)*(0.5*(1+$D$28)*MIN(R24,$D$28)+$D$28*MAX(0,(R24-$D$28)))/R24) -> 3.235882919e-06 | X24: =IF(S24=0,0,N24*(365-Crash!O24*Crash!T24)*(0.5*(1+$D$29)*MIN(S24,$D$29)+$D$29*MAX(0,(S24-$D$29)))/S24) -> 0 | Y24: =IF(T24=0,0,O24*(365-Crash!P24*Crash!U24)*(0.5*(1+$D$30)*MIN(T24,$D$30)+$D$30*MAX(0,(T24-$D$30)))/T24) -> 0
C25: L | D25: No. | H25: 21 | I25: =IF(Crash!$J$29="No",IF(UserInput!$C$38=0.08,UserInput!F62,IF(UserInput!$C$38=0.09,UserInput!H62,IF(UserInput!$C$38=0.1,UserInput!J62,IF(UserInput!$C$38=0.11,UserInput!L62,UserInput!N62)))),IF(UserInput!$C$38=0.08,UserInput!G62,IF(UserInput!$C$38=0.09,UserInput!I62,IF(UserInput!$C$38=0.1,UserInput!K62,IF(UserInput!$C$38=0.11,UserInput!M62,UserInput!O62))))) -> 0.0297 | J25: 1485 | K25: 1.42197365e-11 | L25: 1.42197365e-11 | M25: 1.42197365e-11 | N25: 1.42197365e-11 | O25: 0 | P25: =$J25*Input!$C$43 -> 371.25 | Q25: =$J25*Input!$C$44 -> 371.25 | R25: =$J25*Input!$C$45 -> 371.25 | S25: =$J25*Input!$C$46 -> 371.25 | T25: =$J25*Input!$C$47 -> 0 | U25: =K25*(365-Crash!L25*Crash!Q25)*(0.5*(1+$D$26)*MIN(P25,$D$26)+$D$26*MAX(0,(P25-$D$26)))/P25 -> 3.378488783e-07 | V25: =IF(Q25=0,0,L25*(365-Crash!M25*Crash!R25)*(0.5*(1+$D$27)*MIN(Q25,$D$27)+$D$27*MAX(0,(Q25-$D$27)))/Q25) -> 2.865719885e-07 | W25: =IF(R25=0,0,M25*(365-Crash!N25*Crash!S25)*(0.5*(1+$D$28)*MIN(R25,$D$28)+$D$28*MAX(0,(R25-$D$28)))/R25) -> 2.150722424e-07 | X25: =IF(S25=0,0,N25*(365-Crash!O25*Crash!T25)*(0.5*(1+$D$29)*MIN(S25,$D$29)+$D$29*MAX(0,(S25-$D$29)))/S25) -> 0 | Y25: =IF(T25=0,0,O25*(365-Crash!P25*Crash!U25)*(0.5*(1+$D$30)*MIN(T25,$D$30)+$D$30*MAX(0,(T25-$D$30)))/T25) -> 0
B26: Lane 1 (closest to obstruction) | C26: 0.3409090909 | D26: =ROUNDUP(C26*5280/25,0) -> 72 | H26: 22 | I26: =IF(Crash!$J$29="No",IF(UserInput!$C$38=0.08,UserInput!F63,IF(UserInput!$C$38=0.09,UserInput!H63,IF(UserInput!$C$38=0.1,UserInput!J63,IF(UserInput!$C$38=0.11,UserInput!L63,UserInput!N63)))),IF(UserInput!$C$38=0.08,UserInput!G63,IF(UserInput!$C$38=0.09,UserInput!I63,IF(UserInput!$C$38=0.1,UserInput!K63,IF(UserInput!$C$38=0.11,UserInput!M63,UserInput!O63))))) -> 0.0228 | J26: 1140 | K26: 1.69197989e-13 | L26: 1.69197989e-13 | M26: 1.69197989e-13 | N26: 1.69197989e-13 | O26: 0 | P26: =$J26*Input!$C$43 -> 285 | Q26: =$J26*Input!$C$44 -> 285 | R26: =$J26*Input!$C$45 -> 285 | S26: =$J26*Input!$C$46 -> 285 | T26: =$J26*Input!$C$47 -> 0 | U26: =K26*(365-Crash!L26*Crash!Q26)*(0.5*(1+$D$26)*MIN(P26,$D$26)+$D$26*MAX(0,(P26-$D$26)))/P26 -> 3.891897535e-09 | V26: =IF(Q26=0,0,L26*(365-Crash!M26*Crash!R26)*(0.5*(1+$D$27)*MIN(Q26,$D$27)+$D$27*MAX(0,(Q26-$D$27)))/Q26) -> 3.321241885e-09 | W26: =IF(R26=0,0,M26*(365-Crash!N26*Crash!S26)*(0.5*(1+$D$28)*MIN(R26,$D$28)+$D$28*MAX(0,(R26-$D$28)))/R26) -> 2.511838122e-09 | X26: =IF(S26=0,0,N26*(365-Crash!O26*Crash!T26)*(0.5*(1+$D$29)*MIN(S26,$D$29)+$D$29*MAX(0,(S26-$D$29)))/S26) -> 0 | Y26: =IF(T26=0,0,O26*(365-Crash!P26*Crash!U26)*(0.5*(1+$D$30)*MIN(T26,$D$30)+$D$30*MAX(0,(T26-$D$30)))/T26) -> 0
B27: Lane 2 | C27: 0.2840909091 | D27: =ROUNDUP(C27*5280/25,0) -> 60 | H27: 23 | I27: =IF(Crash!$J$29="No",IF(UserInput!$C$38=0.08,UserInput!F64,IF(UserInput!$C$38=0.09,UserInput!H64,IF(UserInput!$C$38=0.1,UserInput!J64,IF(UserInput!$C$38=0.11,UserInput!L64,UserInput!N64)))),IF(UserInput!$C$38=0.08,UserInput!G64,IF(UserInput!$C$38=0.09,UserInput!I64,IF(UserInput!$C$38=0.1,UserInput!K64,IF(UserInput!$C$38=0.11,UserInput!M64,UserInput!O64))))) -> 0.0163 | J27: 815 | K27: 4.440892099e-16 | L27: 4.440892099e-16 | M27: 4.440892099e-16 | N27: 4.440892099e-16 | O27: 0 | P27: =$J27*Input!$C$43 -> 203.75 | Q27: =$J27*Input!$C$44 -> 203.75 | R27: =$J27*Input!$C$45 -> 203.75 | S27: =$J27*Input!$C$46 -> 203.75 | T27: =$J27*Input!$C$47 -> 0 | U27: =K27*(365-Crash!L27*Crash!Q27)*(0.5*(1+$D$26)*MIN(P27,$D$26)+$D$26*MAX(0,(P27-$D$26)))/P27 -> 9.636285815e-12 | V27: =IF(Q27=0,0,L27*(365-Crash!M27*Crash!R27)*(0.5*(1+$D$27)*MIN(Q27,$D$27)+$D$27*MAX(0,(Q27-$D$27)))/Q27) -> 8.316606257e-12 | W27: =IF(R27=0,0,M27*(365-Crash!N27*Crash!S27)*(0.5*(1+$D$28)*MIN(R27,$D$28)+$D$28*MAX(0,(R27-$D$28)))/R27) -> 6.378848931e-12 | X27: =IF(S27=0,0,N27*(365-Crash!O27*Crash!T27)*(0.5*(1+$D$29)*MIN(S27,$D$29)+$D$29*MAX(0,(S27-$D$29)))/S27) -> 0 | Y27: =IF(T27=0,0,O27*(365-Crash!P27*Crash!U27)*(0.5*(1+$D$30)*MIN(T27,$D$30)+$D$30*MAX(0,(T27-$D$30)))/T27) -> 0
B28: Lane 3 | C28: 0.2083333333 | D28: 44
B29: Lane 4 | C29: 0 | D29: 0
B30: Lane 5 | D30: 0 | H30: Mean | I30: -1.1609
H31: Std Dev | I31: 0.4906
B32: No. Vehicles at Risk per Year | H32: Shift | I32: =3600/VLOOKUP(UserInput!$C$7,Ref!D102:F115,3) -> 1.5
B33: Lane 1 (closest to obstruction) | C33: =SUM(U4:U27) -> 2.106386392 | H33: Capacity | I33: =VLOOKUP(UserInput!$C$7,Ref!D102:F115,3) -> 2400
B34: Lane 2 | C34: =SUM(V4:V27) -> 1.766855121
B35: Lane 3 | C35: =SUM(W4:W27) -> 1.306970591
B36: Lane 4 | C36: =SUM(X4:X27) -> 0
B37: Lane 5 | C37: =SUM(Y4:Y27) -> 0

Sheet Tables (hidden)
B2: 109.7647497 | C2: 126.8308255 | D2: 148.8732374 | E2: 179.853457 | F2: 206.4013568 | G2: 230.0590758 | H2: 0.5528267447 | I2: 0.5439101843 | J2: 0.5349936239 | K2: 0.5260770636 | L2: 0.5082439428 | M2: 0.4993273824 | N2: 3.029187642e-06 | O2: 2.980329777e-06 | P2: 2.931471912e-06 | Q2: 2.882614047e-06 | R2: 2.784898316e-06 | S2: 2.736040451e-06
B3: 109.7647497 | C3: 126.8308255 | D3: 148.8732374 | E3: 179.853457 | F3: 206.4013568 | G3: 230.0590758 | H3: 2.386735888 | I3: 2.36177291 | J3: 2.336347998 | K3: 2.311091477 | L3: 2.269760742 | M3: 2.250121156 | N3: 6.539002433e-06 | O3: 6.470610713e-06 | P3: 6.400953418e-06 | Q3: 6.331757472e-06 | R3: 6.21852258e-06 | S3: 6.164715495e-06
B4: 109.7647497 | C4: 126.8308255 | D4: 148.8732374 | E4: 179.853457 | F4: 206.4013568 | G4: 230.0590758 | H4: 6.549364167 | I4: 6.490294334 | J4: 6.429617339 | K4: 6.367333182 | L4: 6.237943384 | M4: 6.170837743 | N4: 1.196230898e-05 | O4: 1.185441887e-05 | P4: 1.174359331e-05 | Q4: 1.16298323e-05 | R4: 1.13935039e-05 | S4: 1.127093652e-05
B5: 109.7647497 | C5: 126.8308255 | D5: 148.8732374 | E5: 179.853457 | F5: 206.4013568 | G5: 230.0590758 | H5: 12.98178311 | I5: 12.83609138 | J5: 12.68816521 | K5: 12.53800461 | L5: 12.2309801 | M5: 12.07449313 | N5: 1.778326454e-05 | O5: 1.758368682e-05 | P5: 1.738104823e-05 | Q5: 1.717534878e-05 | R5: 1.675476726e-05 | S5: 1.654040154e-05
B6: 109.7647497 | C6: 126.8308255 | D6: 148.8732374 | E6: 179.853457 | F6: 206.4013568 | G6: 230.0590758 | H6: 21.59735442 | I6: 21.33228775 | J6: 21.06425637 | K6: 20.79326029 | L6: 20.24237401 | M6: 19.96248382 | N6: 2.366833361e-05 | O6: 2.337784959e-05 | P6: 2.308411657e-05 | Q6: 2.278713456e-05 | R6: 2.218342357e-05 | S6: 2.187669459e-05
B7: 109.7647497 | C7: 126.8308255 | D7: 148.8732374 | E7: 179.853457 | F7: 206.4013568 | G7: 230.0590758 | H7: 60.53949157 | I7: 59.69227623 | J7: 58.84022177 | K7: 57.98332818 | L7: 56.25502363 | M7: 55.38361266 | N7: 4.146540518e-05 | O7: 4.088512071e-05 | P7: 4.030152176e-05 | Q7: 3.971460834e-05 | R7: 3.85308381e-05 | S7: 3.793398128e-05
B8: 109.7647497 | C8: 126.8308255 | D8: 148.8732374 | E8: 179.853457 | F8: 206.4013568 | G8: 230.0590758 | H8: 97.3626868 | I8: 95.9504528 | J8: 94.5320915 | K8: 93.10760289 | L8: 90.24024374 | M8: 88.79737321 | N8: 5.334941742e-05 | O8: 5.257559058e-05 | P8: 5.17984063e-05 | Q8: 5.10178646e-05 | R8: 4.94467089e-05 | S8: 4.865609491e-05
B9: 109.7647497 | C9: 126.8308255 | D9: 148.8732374 | E9: 179.853457 | F9: 206.4013568 | G9: 230.0590758 | H9: 227.5299018 | I9: 224.0786585 | J9: 220.6181254 | K9: 217.1483027 | L9: 210.1807881 | M9: 206.6830962 | N9: 8.311594586e-05 | O9: 8.18552177e-05 | P9: 8.059109605e-05 | Q9: 7.932358089e-05 | R9: 7.677837008e-05 | S9: 7.550067443e-05
B10: 109.7647497 | C10: 126.8308255 | D10: 148.8732374 | E10: 179.853457 | F10: 206.4013568 | G10: 230.0590758 | H10: 412.4578447 | I10: 406.0707281 | J10: 399.6711308 | K10: 393.2590528 | L10: 380.3974545 | M10: 373.9479342 | N10: 0.0001130021492 | O10: 0.0001112522543 | P10: 0.0001094989399 | Q10: 0.0001077422062 | R10: 0.0001042184807 | S10: 0.0001024514888
B14: 155.074587 | C14: 179.1247288 | D14: 210.1481629 | E14: 253.6616499 | F14: 290.8515526 | G14: 323.9042895 | H14: 0.5349936239 | I14: 0.5260770636 | J14: 0.5082439428 | K14: 0.490410822 | L14: 0.4725777012 | M14: 0.4547445804 | N14: 2.931471912e-06 | O14: 2.882614047e-06 | P14: 2.784898316e-06 | Q14: 2.687182586e-06 | R14: 2.589466856e-06 | S14: 2.491751125e-06
B15: 155.074587 | C15: 179.1247288 | D15: 210.1481629 | E15: 253.6616499 | F15: 290.8515526 | G15: 323.9042895 | H15: 2.336347998 | I15: 2.311091477 | J15: 2.269760742 | K15: 2.229909829 | L15: 2.190347641 | M15: 2.153547819 | N15: 6.400953418e-06 | O15: 6.331757472e-06 | P15: 6.21852258e-06 | Q15: 6.109341997e-06 | R15: 6.000952442e-06 | S15: 5.900131012e-06
B16: 155.074587 | C16: 179.1247288 | D16: 210.1481629 | E16: 253.6616499 | F16: 290.8515526 | G16: 323.9042895 | H16: 6.429617339 | I16: 6.367333182 | J16: 6.237943384 | K16: 6.102670821 | L16: 5.963905009 | M16: 5.818435894 | N16: 1.174359331e-05 | O16: 1.16298323e-05 | P16: 1.13935039e-05 | Q16: 1.114643072e-05 | R16: 1.089297719e-05 | S16: 1.062728017e-05
B17: 155.074587 | C17: 179.1247288 | D17: 210.1481629 | E17: 253.6616499 | F17: 290.8515526 | G17: 323.9042895 | H17: 12.68816521 | I17: 12.53800461 | J17: 12.2309801 | K17: 11.91723757 | L17: 11.59822443 | M17: 11.2707979 | N17: 1.738104823e-05 | O17: 1.717534878e-05 | P17: 1.675476726e-05 | Q17: 1.632498297e-05 | R17: 1.588797866e-05 | S17: 1.543944917e-05
B18: 155.074587 | C18: 179.1247288 | D18: 210.1481629 | E18: 253.6616499 | F18: 290.8515526 | G18: 323.9042895 | H18: 21.06425637 | I18: 20.79326029 | J18: 20.24237401 | K18: 19.67962892 | L18: 19.10502501 | M18: 18.51856229 | N18: 2.308411657e-05 | O18: 2.278713456e-05 | P18: 2.218342357e-05 | Q18: 2.156671662e-05 | R18: 2.093701371e-05 | S18: 2.029431483e-05
B19: 155.074587 | C19: 179.1247288 | D19: 210.1481629 | E19: 253.6616499 | F19: 290.8515526 | G19: 323.9042895 | H19: 58.84022177 | I19: 57.98332818 | J19: 56.25502363 | K19: 54.50736257 | L19: 52.74034502 | M19: 50.95397096 | N19: 4.030152176e-05 | O19: 3.971460834e-05 | P19: 3.85308381e-05 | Q19: 3.733380998e-05 | R19: 3.612352399e-05 | S19: 3.489998011e-05
B20: 155.074587 | C20: 179.1247288 | D20: 210.1481629 | E20: 253.6616499 | F20: 290.8515526 | G20: 323.9042895 | H20: 94.5320915 | I20: 93.10760289 | J20: 90.24024374 | K20: 87.34837537 | L20: 84.43199776 | M20: 81.49433295 | N20: 5.17984063e-05 | O20: 5.10178646e-05 | P20: 4.94467089e-05 | Q20: 4.786212349e-05 | R20: 4.626410836e-05 | S20: 4.465442902e-05
B21: 155.074587 | C21: 179.1247288 | D21: 210.1481629 | E21: 253.6616499 | F21: 290.8515526 | G21: 323.9042895 | H21: 220.6181254 | I21: 217.1483027 | J21: 210.1807881 | K21: 203.1761147 | L21: 196.1342824 | M21: 189.0568713 | N21: 8.059109605e-05 | O21: 7.932358089e-05 | P21: 7.677837008e-05 | Q21: 7.421958527e-05 | R21: 7.164722645e-05 | S21: 6.906187081e-05
B22: 155.074587 | C22: 179.1247288 | D22: 210.1481629 | E22: 253.6616499 | F22: 290.8515526 | G22: 323.9042895 | H22: 399.6711308 | I22: 393.2590528 | J22: 380.3974545 | K22: 367.4859333 | L22: 354.5244891 | M22: 341.5163441 | N22: 0.0001094989399 | O22: 0.0001077422062 | P22: 0.0001042184807 | Q22: 0.0001006810776 | R22: 9.712999702e-05 | S22: 9.356612167e-05
B26: 189.8632496 | C26: 219.2841082 | D26: 257.2195574 | E26: 310.3920233 | F26: 355.7981704 | G26: 396.1182361 | H26: 0.5171605032 | I26: 0.5082439428 | J26: 0.490410822 | K26: 0.4636611408 | L26: 0.4369114596 | M26: 0.4101617784 | N26: 2.833756182e-06 | O26: 2.784898316e-06 | P26: 2.687182586e-06 | Q26: 2.54060899e-06 | R26: 2.394035395e-06 | S26: 2.247461799e-06
B27: 189.8632496 | C27: 219.2841082 | D27: 257.2195574 | E27: 310.3920233 | F27: 355.7981704 | G27: 396.1182361 | H27: 2.28924957 | I27: 2.269760742 | J27: 2.229909829 | K27: 2.170965003 | L27: 2.116308053 | M27: 2.052828943 | N27: 6.271916629e-06 | O27: 6.21852258e-06 | P27: 6.109341997e-06 | Q27: 5.947849323e-06 | R27: 5.798104255e-06 | S27: 5.624188886e-06
B28: 189.8632496 | C28: 219.2841082 | D28: 257.2195574 | E28: 310.3920233 | F28: 355.7981704 | G28: 396.1182361 | H28: 6.303441864 | I28: 6.237943384 | J28: 6.102670821 | K28: 5.892008364 | L28: 5.666263475 | M28: 5.425436152 | N28: 1.151313582e-05 | O28: 1.13935039e-05 | P28: 1.114643072e-05 | Q28: 1.076165911e-05 | R28: 1.034933968e-05 | S28: 9.909472423e-06
B29: 189.8632496 | C29: 219.2841082 | D29: 257.2195574 | E29: 310.3920233 | F29: 355.7981704 | G29: 396.1182361 | H29: 12.38560957 | I29: 12.2309801 | J29: 11.91723757 | K29: 11.43569704 | L29: 10.93388432 | M29: 10.41072572 | N29: 1.696658845e-05 | O29: 1.675476726e-05 | P29: 1.632498297e-05 | Q29: 1.566533841e-05 | R29: 1.497792372e-05 | S29: 1.426126811e-05
B30: 189.8632496 | C30: 219.2841082 | D30: 257.2195574 | E30: 310.3920233 | F30: 355.7981704 | G30: 396.1182361 | H30: 20.5192995 | I30: 20.24237401 | J30: 19.67962892 | K30: 18.813276 | L30: 17.92024075 | M30: 17.00348075 | N30: 2.248690356e-05 | O30: 2.218342357e-05 | P30: 2.156671662e-05 | Q30: 2.061728877e-05 | R30: 1.963862e-05 | S30: 1.863395151e-05
B31: 189.8632496 | C31: 219.2841082 | D31: 257.2195574 | E31: 310.3920233 | F31: 355.7981704 | G31: 396.1182361 | H31: 57.12159547 | I31: 56.25502363 | J31: 54.50736257 | K31: 51.84957755 | L31: 49.15059872 | M31: 46.4096985 | N31: 3.912438046e-05 | O31: 3.85308381e-05 | P31: 3.733380998e-05 | Q31: 3.551340928e-05 | R31: 3.366479364e-05 | S31: 3.178746472e-05
B32: 189.8632496 | C32: 219.2841082 | D32: 257.2195574 | E32: 310.3920233 | F32: 355.7981704 | G32: 396.1182361 | H32: 91.67698697 | I32: 90.24024374 | J32: 87.34837537 | K32: 82.96626189 | L32: 78.5318959 | M32: 74.04179233 | N32: 5.023396546e-05 | O32: 4.94467089e-05 | P32: 4.786212349e-05 | Q32: 4.546096542e-05 | R32: 4.303117583e-05 | S32: 4.057084511e-05
B33: 189.8632496 | C33: 219.2841082 | D33: 257.2195574 | E33: 310.3920233 | F33: 355.7981704 | G33: 396.1182361 | H33: 213.6691903 | I33: 210.1807881 | J33: 203.1761147 | K33: 192.5994317 | L33: 181.943688 | M33: 171.2037565 | N33: 7.805267224e-05 | O33: 7.677837008e-05 | P33: 7.421958527e-05 | Q33: 7.035595679e-05 | R33: 6.646344767e-05 | S33: 6.254018502e-05
B34: 189.8632496 | C34: 219.2841082 | D34: 257.2195574 | E34: 310.3920233 | F34: 355.7981704 | G34: 396.1182361 | H34: 386.834494 | I34: 380.3974545 | J34: 367.4859333 | K34: 348.0266899 | L34: 328.4580131 | M34: 308.7764181 | N34: 0.0001059820531 | O34: 0.0001042184807 | P34: 0.0001006810776 | Q34: 9.534977804e-05 | R34: 8.998849675e-05 | S34: 8.459627892e-05
B38: 219.1985429 | C38: 253.1509991 | D38: 296.9203691 | E38: 358.2494568 | F38: 410.5985547 | G38: 457.0639749 | H38: 0.5082439428 | I38: 0.490410822 | J38: 0.4725777012 | K38: 0.4369114596 | L38: 0.401245218 | M38: 0.3655789764 | N38: 2.784898316e-06 | O38: 2.687182586e-06 | P38: 2.589466856e-06 | Q38: 2.394035395e-06 | R38: 2.198603934e-06 | S38: 2.003172473e-06
B39: 219.1985429 | C39: 253.1509991 | D39: 296.9203691 | E39: 358.2494568 | F39: 410.5985547 | G39: 457.0639749 | H39: 2.269760742 | I39: 2.229909829 | J39: 2.190347641 | K39: 2.116308053 | L39: 2.029637384 | M39: 1.93093364 | N39: 6.21852258e-06 | O39: 6.109341997e-06 | P39: 6.000952442e-06 | Q39: 5.798104255e-06 | R39: 5.560650368e-06 | S39: 5.290229152e-06
B40: 219.1985429 | C40: 253.1509991 | D40: 296.9203691 | E40: 358.2494568 | F40: 410.5985547 | G40: 457.0639749 | H40: 6.237943384 | I40: 6.102670821 | J40: 5.963905009 | K40: 5.666263475 | L40: 5.341808726 | M40: 4.992019344 | N40: 1.13935039e-05 | O40: 1.114643072e-05 | P40: 1.089297719e-05 | Q40: 1.034933968e-05 | R40: 9.756728266e-06 | S40: 9.117843551e-06
B41: 219.1985429 | C41: 253.1509991 | D41: 296.9203691 | E41: 358.2494568 | F41: 410.5985547 | G41: 457.0639749 | H41: 12.2309801 | I41: 11.91723757 | J41: 11.59822443 | K41: 10.93388432 | L41: 10.231596 | M41: 9.491359469 | N41: 1.675476726e-05 | O41: 1.632498297e-05 | P41: 1.588797866e-05 | Q41: 1.497792372e-05 | R41: 1.401588493e-05 | S41: 1.300186229e-05
B42: 219.1985429 | C42: 253.1509991 | D42: 296.9203691 | E42: 358.2494568 | F42: 410.5985547 | G42: 457.0639749 | H42: 20.24237401 | I42: 19.67962892 | J42: 19.10502501 | K42: 17.92024075 | L42: 16.6921962 | M42: 15.41681349 | N42: 2.218342357e-05 | O42: 2.156671662e-05 | P42: 2.093701371e-05 | Q42: 1.963862e-05 | R42: 1.829281776e-05 | S42: 1.689513807e-05
B43: 219.1985429 | C43: 253.1509991 | D43: 296.9203691 | E43: 358.2494568 | F43: 410.5985547 | G43: 457.0639749 | H43: 56.25502363 | I43: 54.50736257 | J43: 52.74034502 | K43: 49.15059872 | L43: 45.4862614 | M43: 41.74513581 | N43: 3.85308381e-05 | O43: 3.733380998e-05 | P43: 3.612352399e-05 | Q43: 3.366479364e-05 | R43: 3.115497356e-05 | S43: 2.859255877e-05
B44: 219.1985429 | C44: 253.1509991 | D44: 296.9203691 | E44: 358.2494568 | F44: 410.5985547 | G44: 457.0639749 | H44: 90.24024374 | I44: 87.34837537 | J44: 84.43199776 | K44: 78.5318959 | L44: 72.53270502 | M44: 66.43442512 | N44: 4.94467089e-05 | O44: 4.786212349e-05 | P44: 4.626410836e-05 | Q44: 4.303117583e-05 | R44: 3.974394795e-05 | S44: 3.640242472e-05
B45: 219.1985429 | C45: 253.1509991 | D45: 296.9203691 | E45: 358.2494568 | F45: 410.5985547 | G45: 457.0639749 | H45: 210.1807881 | I45: 203.1761147 | J45: 196.1342824 | K45: 181.943688 | L45: 167.6050709 | M45: 153.1167867 | N45: 7.677837008e-05 | O45: 7.421958527e-05 | P45: 7.164722645e-05 | Q45: 6.646344767e-05 | R45: 6.122559669e-05 | S45: 5.593307276e-05
B46: 219.1985429 | C46: 253.1509991 | D46: 296.9203691 | E46: 358.2494568 | F46: 410.5985547 | G46: 457.0639749 | H46: 380.3974545 | I46: 367.4859333 | J46: 354.5244891 | K46: 328.4580131 | L46: 302.1907934 | M46: 275.7281808 | N46: 0.0001042184807 | O46: 0.0001006810776 | P46: 9.712999702e-05 | Q46: 8.998849675e-05 | R46: 8.279199819e-05 | S46: 7.554196733e-05
B50: 268.4174212 | C50: 309.9762798 | D50: 363.5401778 | E50: 438.5682158 | F50: 502.5832709 | G50: 559.3793278 | H50: 0.4814942616 | I50: 0.4636611408 | J50: 0.4279948992 | K50: 0.3834120972 | L50: 0.3382671269 | M50: 0.277516351 | N50: 2.638324721e-06 | O50: 2.54060899e-06 | P50: 2.34517753e-06 | Q50: 2.100888204e-06 | R50: 1.853518503e-06 | S50: 1.52063754e-06
B51: 268.4174212 | C51: 309.9762798 | D51: 363.5401778 | E51: 438.5682158 | F51: 502.5832709 | G51: 559.3793278 | H51: 2.210539456 | I51: 2.170965003 | J51: 2.096164278 | K51: 1.982368718 | L51: 1.815366409 | M51: 1.457716612 | N51: 6.056272483e-06 | O51: 5.947849323e-06 | P51: 5.742915829e-06 | Q51: 5.431147172e-06 | R51: 4.973606601e-06 | S51: 3.993744143e-06
B52: 268.4174212 | C52: 309.9762798 | D52: 363.5401778 | E52: 438.5682158 | F52: 502.5832709 | G52: 559.3793278 | H52: 6.034125828 | I52: 5.892008364 | J52: 5.587663526 | K52: 5.169526396 | L52: 4.620996267 | M52: 3.56997409 | N52: 1.102123439e-05 | O52: 1.076165911e-05 | P52: 1.020577813e-05 | Q52: 9.442057344e-06 | R52: 8.440175829e-06 | S52: 6.520500621e-06
B53: 268.4174212 | C53: 309.9762798 | D53: 363.5401778 | E53: 438.5682158 | F53: 502.5832709 | G53: 559.3793278 | H53: 11.75838004 | I53: 11.43569704 | J53: 10.76186988 | K53: 9.86622126 | L53: 8.714680413 | M53: 6.608739884 | N53: 1.610736992e-05 | O53: 1.566533841e-05 | P53: 1.474228751e-05 | Q53: 1.351537159e-05 | R53: 1.193791837e-05 | S53: 9.053068334e-06
B54: 268.4174212 | C54: 309.9762798 | D54: 363.5401778 | E54: 438.5682158 | F54: 502.5832709 | G54: 559.3793278 | H54: 19.39380932 | I54: 18.813276 | J54: 17.61697648 | K54: 16.06055375 | L54: 14.09303953 | M54: 10.57434293 | N54: 2.125348966e-05 | O54: 2.061728877e-05 | P54: 1.930627559e-05 | Q54: 1.760060685e-05 | R54: 1.544442688e-05 | S54: 1.158832102e-05
B55: 268.4174212 | C55: 309.9762798 | D55: 363.5401778 | E55: 438.5682158 | F55: 502.5832709 | G55: 559.3793278 | H55: 53.62627336 | I55: 51.84957755 | J55: 48.24186716 | K55: 43.62468166 | L55: 37.92745341 | M55: 28.03695179 | N55: 3.673032422e-05 | O55: 3.551340928e-05 | P55: 3.304237476e-05 | Q55: 2.987991895e-05 | R55: 2.597770782e-05 | S55: 1.920339163e-05
B56: 268.4174212 | C56: 309.9762798 | D56: 363.5401778 | E56: 438.5682158 | F56: 502.5832709 | G56: 559.3793278 | H56: 85.89325022 | I56: 82.96626189 | J56: 77.04138777 | K56: 69.49595119 | L56: 60.2370562 | M56: 44.31441886 | N56: 4.706479464e-05 | O56: 4.546096542e-05 | P56: 4.221445905e-05 | Q56: 3.807997326e-05 | R56: 3.300660614e-05 | S56: 2.428187335e-05
B57: 268.4174212 | C57: 309.9762798 | D57: 363.5401778 | E57: 438.5682158 | F57: 502.5832709 | G57: 559.3793278 | H57: 199.6598434 | I57: 192.5994317 | J57: 178.373065 | K57: 160.3796372 | L57: 138.4814243 | M57: 101.2431367 | N57: 7.293510261e-05 | O57: 7.035595679e-05 | P57: 6.515911052e-05 | Q57: 5.858616884e-05 | R57: 5.058682168e-05 | S57: 3.698379421e-05
B58: 268.4174212 | C58: 309.9762798 | D58: 363.5401778 | E58: 438.5682158 | F58: 502.5832709 | G58: 559.3793278 | H58: 361.0114516 | I58: 348.0266899 | J58: 321.9100279 | K58: 288.9841858 | L58: 249.0664486 | M58: 181.5263403 | N58: 9.8907247e-05 | O58: 9.534977804e-05 | P58: 8.81945282e-05 | Q58: 7.917374954e-05 | R58: 6.823738319e-05 | S58: 4.973324392e-05
B62: 309.9158336 | C62: 357.8898947 | D62: 419.7157131 | E62: 506.3019976 | F62: 580.1631238 | G62: 645.6810543 | H62: 0.4636611408 | I62: 0.4369114596 | J62: 0.3923286576 | K62: 0.3316399293 | L62: 0 | M62: 0 | N62: 2.54060899e-06 | O62: 2.394035395e-06 | P62: 2.149746069e-06 | Q62: 1.817205092e-06 | R62: 0 | S62: 0
B63: 309.9158336 | C63: 357.8898947 | D63: 419.7157131 | E63: 506.3019976 | F63: 580.1631238 | G63: 645.6810543 | H63: 2.170965003 | I63: 2.116308053 | J63: 2.006479095 | K63: 1.784529562 | L63: 0 | M63: 0 | N63: 5.947849323e-06 | O63: 5.798104255e-06 | P63: 5.497203e-06 | Q63: 4.889122088e-06 | R63: 0 | S63: 0
B64: 309.9158336 | C64: 357.8898947 | D64: 419.7157131 | E64: 506.3019976 | F64: 580.1631238 | G64: 645.6810543 | H64: 5.892008364 | I64: 5.666263475 | J64: 5.256505474 | K64: 4.523793441 | L64: 0 | M64: 0 | N64: 1.076165911e-05 | O64: 1.034933968e-05 | P64: 9.600923239e-06 | Q64: 8.262636422e-06 | R64: 0 | S64: 0
B65: 309.9158336 | C65: 357.8898947 | D65: 419.7157131 | E65: 506.3019976 | F65: 580.1631238 | G65: 645.6810543 | H65: 11.43569704 | I65: 10.93388432 | J65: 10.05009451 | K65: 8.514974392 | L65: 0 | M65: 0 | N65: 1.566533841e-05 | O65: 1.497792372e-05 | P65: 1.376725275e-05 | Q65: 1.166434848e-05 | R65: 0 | S65: 0
B66: 309.9158336 | C66: 357.8898947 | D66: 419.7157131 | E66: 506.3019976 | F66: 580.1631238 | G66: 645.6810543 | H66: 18.813276 | I66: 17.92024075 | J66: 16.37788721 | K66: 13.7545349 | L66: 0 | M66: 0 | N66: 2.061728877e-05 | O66: 1.963862e-05 | P66: 1.794836954e-05 | Q66: 1.507346291e-05 | R66: 0 | S66: 0
B67: 309.9158336 | C67: 357.8898947 | D67: 419.7157131 | E67: 506.3019976 | F67: 580.1631238 | G67: 645.6810543 | H67: 51.84957755 | I67: 49.15059872 | J67: 44.55792246 | K67: 36.96064668 | L67: 0 | M67: 0 | N67: 3.551340928e-05 | O67: 3.366479364e-05 | P67: 3.051912497e-05 | Q67: 2.531551143e-05 | R67: 0 | S67: 0
B68: 309.9158336 | C68: 357.8898947 | D68: 419.7157131 | E68: 506.3019976 | F68: 580.1631238 | G68: 645.6810543 | H68: 82.96626189 | I68: 78.5318959 | J68: 71.01742464 | K68: 58.67223131 | L68: 0 | M68: 0 | N68: 4.546096542e-05 | O68: 4.303117583e-05 | P68: 3.891365734e-05 | Q68: 3.214916784e-05 | R68: 0 | S68: 0
B69: 309.9158336 | C69: 357.8898947 | D69: 419.7157131 | E69: 506.3019976 | F69: 580.1631238 | G69: 645.6810543 | H69: 192.5994317 | I69: 181.943688 | J69: 163.9970312 | K69: 134.7993154 | L69: 0 | M69: 0 | N69: 7.035595679e-05 | O69: 6.646344767e-05 | P69: 5.990759129e-05 | Q69: 4.924175904e-05 | R69: 0 | S69: 0
B70: 309.9158336 | C70: 357.8898947 | D70: 419.7157131 | E70: 506.3019976 | F70: 580.1631238 | G70: 645.6810543 | H70: 348.0266899 | I70: 328.4580131 | J70: 295.5937907 | K70: 242.3693807 | L70: 0 | M70: 0 | N70: 9.534977804e-05 | O70: 8.998849675e-05 | P70: 8.098460019e-05 | Q70: 6.640257005e-05 | R70: 0 | S70: 0
B74: 195.3665174 | C74: 206.0690304 | D74: 221.2019575 | E74: 244.4671059 | F74: 265.8398255 | G74: 285.7471512 | H74: 0.5171605032 | I74: 0.5082439428 | J74: 0.5082439428 | K74: 0.490410822 | L74: 0.4814942616 | M74: 0.4725777012 | N74: 2.833756182e-06 | O74: 2.784898316e-06 | P74: 2.784898316e-06 | Q74: 2.687182586e-06 | R74: 2.638324721e-06 | S74: 2.589466856e-06
B75: 195.3665174 | C75: 206.0690304 | D75: 221.2019575 | E75: 244.4671059 | F75: 265.8398255 | G75: 285.7471512 | H75: 2.28924957 | I75: 2.269760742 | J75: 2.269760742 | K75: 2.229909829 | L75: 2.210539456 | M75: 2.190347641 | N75: 6.271916629e-06 | O75: 6.21852258e-06 | P75: 6.21852258e-06 | Q75: 6.109341997e-06 | R75: 6.056272483e-06 | S75: 6.000952442e-06
B76: 195.3665174 | C76: 206.0690304 | D76: 221.2019575 | E76: 244.4671059 | F76: 265.8398255 | G76: 285.7471512 | H76: 6.303441864 | I76: 6.237943384 | J76: 6.237943384 | K76: 6.102670821 | L76: 6.034125828 | M76: 5.963905009 | N76: 1.151313582e-05 | O76: 1.13935039e-05 | P76: 1.13935039e-05 | Q76: 1.114643072e-05 | R76: 1.102123439e-05 | S76: 1.089297719e-05
B77: 195.3665174 | C77: 206.0690304 | D77: 221.2019575 | E77: 244.4671059 | F77: 265.8398255 | G77: 285.7471512 | H77: 12.38560957 | I77: 12.2309801 | J77: 12.2309801 | K77: 11.91723757 | L77: 11.75838004 | M77: 11.59822443 | N77: 1.696658845e-05 | O77: 1.675476726e-05 | P77: 1.675476726e-05 | Q77: 1.632498297e-05 | R77: 1.610736992e-05 | S77: 1.588797866e-05
B78: 195.3665174 | C78: 206.0690304 | D78: 221.2019575 | E78: 244.4671059 | F78: 265.8398255 | G78: 285.7471512 | H78: 20.5192995 | I78: 20.24237401 | J78: 20.24237401 | K78: 19.67962892 | L78: 19.39380932 | M78: 19.10502501 | N78: 2.248690356e-05 | O78: 2.218342357e-05 | P78: 2.218342357e-05 | Q78: 2.156671662e-05 | R78: 2.125348966e-05 | S78: 2.093701371e-05
B79: 195.3665174 | C79: 206.0690304 | D79: 221.2019575 | E79: 244.4671059 | F79: 265.8398255 | G79: 285.7471512 | H79: 57.12159547 | I79: 56.25502363 | J79: 56.25502363 | K79: 54.50736257 | L79: 53.62627336 | M79: 52.74034502 | N79: 3.912438046e-05 | O79: 3.85308381e-05 | P79: 3.85308381e-05 | Q79: 3.733380998e-05 | R79: 3.673032422e-05 | S79: 3.612352399e-05
B80: 195.3665174 | C80: 206.0690304 | D80: 221.2019575 | E80: 244.4671059 | F80: 265.8398255 | G80: 285.7471512 | H80: 91.67698697 | I80: 90.24024374 | J80: 90.24024374 | K80: 87.34837537 | L80: 85.89325022 | M80: 84.43199776 | N80: 5.023396546e-05 | O80: 4.94467089e-05 | P80: 4.94467089e-05 | Q80: 4.786212349e-05 | R80: 4.706479464e-05 | S80: 4.626410836e-05
B81: 195.3665174 | C81: 206.0690304 | D81: 221.2019575 | E81: 244.4671059 | F81: 265.8398255 | G81: 285.7471512 | H81: 213.6691903 | I81: 210.1807881 | J81: 210.1807881 | K81: 203.1761147 | L81: 199.6598434 | M81: 196.1342824 | N81: 7.805267224e-05 | O81: 7.677837008e-05 | P81: 7.677837008e-05 | Q81: 7.421958527e-05 | R81: 7.293510261e-05 | S81: 7.164722645e-05
B82: 195.3665174 | C82: 206.0690304 | D82: 221.2019575 | E82: 244.4671059 | F82: 265.8398255 | G82: 285.7471512 | H82: 386.834494 | I82: 380.3974545 | J82: 380.3974545 | K82: 367.4859333 | L82: 361.0114516 | M82: 354.5244891 | N82: 0.0001059820531 | O82: 0.0001042184807 | P82: 0.0001042184807 | Q82: 0.0001006810776 | R82: 9.8907247e-05 | S82: 9.712999702e-05
B86: 272.3307699 | C86: 287.156593 | D86: 308.0939015 | E86: 340.2187398 | F86: 369.6558129 | G86: 397.0041592 | H86: 0.4814942616 | I86: 0.4725777012 | J86: 0.4636611408 | K86: 0.44582802 | L86: 0.4279948992 | M86: 0.4101617784 | N86: 2.638324721e-06 | O86: 2.589466856e-06 | P86: 2.54060899e-06 | Q86: 2.44289326e-06 | R86: 2.34517753e-06 | S86: 2.247461799e-06
B87: 272.3307699 | C87: 287.156593 | D87: 308.0939015 | E87: 340.2187398 | F87: 369.6558129 | G87: 397.0041592 | H87: 2.210539456 | I87: 2.190347641 | J87: 2.170965003 | K87: 2.1354359 | L87: 2.096164278 | M87: 2.052828943 | N87: 6.056272483e-06 | O87: 6.000952442e-06 | P87: 5.947849323e-06 | Q87: 5.850509316e-06 | R87: 5.742915829e-06 | S87: 5.624188886e-06
B88: 272.3307699 | C88: 287.156593 | D88: 308.0939015 | E88: 340.2187398 | F88: 369.6558129 | G88: 397.0041592 | H88: 6.034125828 | I88: 5.963905009 | J88: 5.892008364 | K88: 5.743187597 | L88: 5.587663526 | M88: 5.425436152 | N88: 1.102123439e-05 | O88: 1.089297719e-05 | P88: 1.076165911e-05 | Q88: 1.048984036e-05 | R88: 1.020577813e-05 | S88: 9.909472423e-06
B89: 272.3307699 | C89: 287.156593 | D89: 308.0939015 | E89: 340.2187398 | F89: 369.6558129 | G89: 397.0041592 | H89: 11.75838004 | I89: 11.59822443 | J89: 11.43569704 | K89: 11.10352699 | L89: 10.76186988 | M89: 10.41072572 | N89: 1.610736992e-05 | O89: 1.588797866e-05 | P89: 1.566533841e-05 | Q89: 1.521031094e-05 | R89: 1.474228751e-05 | S89: 1.426126811e-05
B90: 272.3307699 | C90: 287.156593 | D90: 308.0939015 | E90: 340.2187398 | F90: 369.6558129 | G90: 397.0041592 | H90: 19.39380932 | I90: 19.10502501 | J90: 18.813276 | K90: 18.22088387 | L90: 17.61697648 | M90: 17.00348075 | N90: 2.125348966e-05 | O90: 2.093701371e-05 | P90: 2.061728877e-05 | Q90: 1.996809191e-05 | R90: 1.930627559e-05 | S90: 1.863395151e-05
B91: 272.3307699 | C91: 287.156593 | D91: 308.0939015 | E91: 340.2187398 | F91: 369.6558129 | G91: 397.0041592 | H91: 53.62627336 | I91: 52.74034502 | J91: 51.84957755 | K91: 50.05442843 | L91: 48.24186716 | M91: 46.4096985 | N91: 3.673032422e-05 | O91: 3.612352399e-05 | P91: 3.551340928e-05 | Q91: 3.428385509e-05 | R91: 3.304237476e-05 | S91: 3.178746472e-05
B92: 272.3307699 | C92: 287.156593 | D92: 308.0939015 | E92: 340.2187398 | F92: 369.6558129 | G92: 397.0041592 | H92: 85.89325022 | I92: 84.43199776 | J92: 82.96626189 | K92: 80.01621096 | L92: 77.04138777 | M92: 74.04179233 | N92: 4.706479464e-05 | O92: 4.626410836e-05 | P92: 4.546096542e-05 | Q92: 4.384449915e-05 | R92: 4.221445905e-05 | S92: 4.057084511e-05
B93: 272.3307699 | C93: 287.156593 | D93: 308.0939015 | E93: 340.2187398 | F93: 369.6558129 | G93: 397.0041592 | H93: 199.6598434 | I93: 196.1342824 | J93: 192.5994317 | K93: 185.5049568 | L93: 178.373065 | M93: 171.2037565 | N93: 7.293510261e-05 | O93: 7.164722645e-05 | P93: 7.035595679e-05 | Q93: 6.776436777e-05 | R93: 6.515911052e-05 | S93: 6.254018502e-05
B94: 272.3307699 | C94: 287.156593 | D94: 308.0939015 | E94: 340.2187398 | F94: 369.6558129 | G94: 397.0041592 | H94: 361.0114516 | I94: 354.5244891 | J94: 348.0266899 | K94: 334.9934519 | L94: 321.9100279 | M94: 308.7764181 | N94: 9.8907247e-05 | O94: 9.712999702e-05 | P94: 9.534977804e-05 | Q94: 9.177902791e-05 | R94: 8.81945282e-05 | S94: 8.459627892e-05
B98: 331.9075996 | C98: 349.9385743 | D98: 375.3917518 | E98: 414.4195817 | F98: 450.1520709 | G98: 483.3210398 | H98: 0.44582802 | I98: 0.4369114596 | J98: 0.4190783388 | K98: 0.401245218 | L98: 0.3744955368 | M98: 0.3510753938 | N98: 2.44289326e-06 | O98: 2.394035395e-06 | P98: 2.296319664e-06 | Q98: 2.198603934e-06 | R98: 2.052030338e-06 | S98: 1.923700788e-06
B99: 331.9075996 | C99: 349.9385743 | D99: 375.3917518 | E99: 414.4195817 | F99: 450.1520709 | G99: 483.3210398 | H99: 2.1354359 | I99: 2.116308053 | J99: 2.075004574 | K99: 2.029637384 | L99: 1.9571869 | M99: 1.875212799 | N99: 5.850509316e-06 | O99: 5.798104255e-06 | P99: 5.68494404e-06 | Q99: 5.560650368e-06 | R99: 5.36215589e-06 | S99: 5.137569311e-06
B100: 331.9075996 | C100: 349.9385743 | D100: 375.3917518 | E100: 414.4195817 | F100: 450.1520709 | G100: 483.3210398 | H100: 5.743187597 | I100: 5.666263475 | J100: 5.507387752 | K100: 5.341808726 | L100: 5.081290306 | M100: 4.81006545 | N100: 1.048984036e-05 | O100: 1.034933968e-05 | P100: 1.005915571e-05 | Q100: 9.756728266e-06 | R100: 9.280895536e-06 | S100: 8.785507671e-06
B101: 331.9075996 | C101: 349.9385743 | D101: 375.3917518 | E101: 414.4195817 | F101: 450.1520709 | G101: 483.3210398 | H101: 11.10352699 | I101: 10.93388432 | J101: 10.58748368 | K101: 10.231596 | L101: 9.679976246 | M101: 9.107010626 | N101: 1.521031094e-05 | O101: 1.497792372e-05 | P101: 1.450340231e-05 | Q101: 1.401588493e-05 | R101: 1.326024143e-05 | S101: 1.247535702e-05
B102: 331.9075996 | C102: 349.9385743 | D102: 375.3917518 | E102: 414.4195817 | F102: 450.1520709 | G102: 483.3210398 | H102: 18.22088387 | I102: 17.92024075 | J102: 17.31174084 | K102: 16.6921962 | L102: 15.74019585 | M102: 14.76097542 | N102: 1.996809191e-05 | O102: 1.963862e-05 | P102: 1.897177079e-05 | Q102: 1.829281776e-05 | R102: 1.72495297e-05 | S102: 1.617641142e-05
B103: 331.9075996 | C103: 349.9385743 | D103: 375.3917518 | E103: 414.4195817 | F103: 450.1520709 | G103: 483.3210398 | H103: 50.05442843 | I103: 49.15059872 | J103: 47.32823375 | K103: 45.4862614 | L103: 42.68717028 | M103: 39.84620351 | N103: 3.428385509e-05 | O103: 3.366479364e-05 | P103: 3.241659846e-05 | Q103: 3.115497356e-05 | R103: 2.923778787e-05 | S103: 2.729192021e-05
B104: 331.9075996 | C104: 349.9385743 | D104: 375.3917518 | E104: 414.4195817 | F104: 450.1520709 | G104: 483.3210398 | H104: 80.01621096 | I104: 78.5318959 | J104: 75.54468658 | K104: 72.53270502 | L104: 67.96828469 | M104: 63.34812678 | N104: 4.384449915e-05 | O104: 4.303117583e-05 | P104: 4.139434881e-05 | Q104: 3.974394795e-05 | R104: 3.724289572e-05 | S104: 3.471130235e-05
B105: 331.9075996 | C105: 349.9385743 | D105: 375.3917518 | E105: 414.4195817 | F105: 450.1520709 | G105: 483.3210398 | H105: 185.5049568 | I105: 181.943688 | J105: 174.7930879 | K105: 167.6050709 | L105: 156.752889 | M105: 145.8174317 | N105: 6.776436777e-05 | O105: 6.646344767e-05 | P105: 6.38513563e-05 | Q105: 6.122559669e-05 | R105: 5.726132933e-05 | S105: 5.326664172e-05
B106: 331.9075996 | C106: 349.9385743 | D106: 375.3917518 | E106: 414.4195817 | F106: 450.1520709 | G106: 483.3210398 | H106: 334.9934519 | I106: 328.4580131 | J106: 315.3494962 | K106: 302.1907934 | L106: 282.3619789 | M106: 262.4226226 | N106: 9.177902791e-05 | O106: 8.998849675e-05 | P106: 8.639712226e-05 | Q106: 8.279199819e-05 | R106: 7.735944626e-05 | S106: 7.189660894e-05
B110: 382.3112959 | C110: 403.0583344 | D110: 432.339552 | E110: 477.2221161 | F110: 518.2977701 | G110: 556.4105076 | H110: 0.4190783388 | I110: 0.401245218 | J110: 0.3834120972 | K110: 0.3510753938 | L110: 0.3248640223 | M110: 0.2825643047 | N110: 2.296319664e-06 | O110: 2.198603934e-06 | P110: 2.100888204e-06 | Q110: 1.923700788e-06 | R110: 1.780076835e-06 | S110: 1.54829756e-06
B111: 382.3112959 | C111: 403.0583344 | D111: 432.339552 | E111: 477.2221161 | F111: 518.2977701 | G111: 556.4105076 | H111: 2.075004574 | I111: 2.029637384 | J111: 1.982368718 | K111: 1.875212799 | L111: 1.752575498 | M111: 1.497887193 | N111: 5.68494404e-06 | O111: 5.560650368e-06 | P111: 5.431147172e-06 | Q111: 5.137569311e-06 | R111: 4.801576706e-06 | S111: 4.103800529e-06
B112: 382.3112959 | C112: 403.0583344 | D112: 432.339552 | E112: 477.2221161 | F112: 518.2977701 | G112: 556.4105076 | H112: 5.507387752 | I112: 5.341808726 | J112: 5.169526396 | K112: 4.81006545 | L112: 4.424811794 | M112: 3.682762395 | N112: 1.005915571e-05 | O112: 9.756728266e-06 | P112: 9.442057344e-06 | Q112: 8.785507671e-06 | R112: 8.081848025e-06 | S112: 6.726506658e-06
B113: 382.3112959 | C113: 403.0583344 | D113: 432.339552 | E113: 477.2221161 | F113: 518.2977701 | G113: 556.4105076 | H113: 10.58748368 | I113: 10.231596 | J113: 9.86622126 | K113: 9.107010626 | L113: 8.312848808 | M113: 6.830221968 | N113: 1.450340231e-05 | O113: 1.401588493e-05 | P113: 1.351537159e-05 | Q113: 1.247535702e-05 | R113: 1.138746412e-05 | S113: 9.35646845e-06
B114: 382.3112959 | C114: 403.0583344 | D114: 432.339552 | E114: 477.2221161 | F114: 518.2977701 | G114: 556.4105076 | H114: 17.31174084 | I114: 16.6921962 | J114: 16.06055375 | K114: 14.76097542 | L114: 13.41300583 | M114: 10.93965603 | N114: 1.897177079e-05 | O114: 1.829281776e-05 | P114: 1.760060685e-05 | Q114: 1.617641142e-05 | R114: 1.469918447e-05 | S114: 1.198866414e-05
B115: 382.3112959 | C115: 403.0583344 | D115: 432.339552 | E115: 477.2221161 | F115: 518.2977701 | G115: 556.4105076 | H115: 47.32823375 | I115: 45.4862614 | J115: 43.62468166 | K115: 39.84620351 | L115: 35.98888551 | M115: 29.04792207 | N115: 3.241659846e-05 | O115: 3.115497356e-05 | P115: 2.987991895e-05 | Q115: 2.729192021e-05 | R115: 2.464992158e-05 | S115: 1.989583703e-05
B116: 382.3112959 | C116: 403.0583344 | D116: 432.339552 | E116: 477.2221161 | F116: 518.2977701 | G116: 556.4105076 | H116: 75.54468658 | I116: 72.53270502 | J116: 69.49595119 | K116: 63.34812678 | L116: 57.10121335 | M116: 45.93459437 | N116: 4.139434881e-05 | O116: 3.974394795e-05 | P116: 3.807997326e-05 | Q116: 3.471130235e-05 | R116: 3.128833608e-05 | S116: 2.516964075e-05
B117: 382.3112959 | C117: 403.0583344 | D117: 432.339552 | E117: 477.2221161 | F117: 518.2977701 | G117: 556.4105076 | H117: 174.7930879 | I117: 167.6050709 | J117: 160.3796372 | K117: 145.8174317 | L117: 131.1078029 | M117: 105.0090677 | N117: 6.38513563e-05 | O117: 6.122559669e-05 | P117: 5.858616884e-05 | Q117: 5.326664172e-05 | R117: 4.789326134e-05 | S117: 3.835947678e-05
B118: 382.3112959 | C118: 403.0583344 | D118: 432.339552 | E118: 477.2221161 | F118: 518.2977701 | G118: 556.4105076 | H118: 315.3494962 | I118: 302.1907934 | J118: 288.9841858 | K118: 262.4226226 | L118: 235.6596587 | M118: 188.337294 | N118: 8.639712226e-05 | O118: 8.279199819e-05 | P118: 7.917374954e-05 | Q118: 7.189660894e-05 | R118: 6.456429007e-05 | S118: 5.159925864e-05
B122: 467.077223 | C122: 492.3971618 | D122: 528.1249209 | E122: 582.8706729 | F122: 632.9519565 | G122: 679.4011969 | H122: 0.3577645568 | I122: 0.344745615 | J122: 0.3115360675 | K122: 0 | L122: 0 | M122: 0 | N122: 1.960353736e-06 | O122: 1.889017069e-06 | P122: 1.707046945e-06 | Q122: 0 | R122: 0 | S122: 0
B123: 467.077223 | C123: 492.3971618 | D123: 528.1249209 | E123: 582.8706729 | F123: 632.9519565 | G123: 679.4011969 | H123: 1.90360894 | I123: 1.845745216 | J123: 1.685315717 | K123: 0 | L123: 0 | M123: 0 | N123: 5.215366959e-06 | O123: 5.056836209e-06 | P123: 4.617303335e-06 | Q123: 0 | R123: 0 | S123: 0
B124: 467.077223 | C124: 492.3971618 | D124: 528.1249209 | E124: 582.8706729 | F124: 632.9519565 | G124: 679.4011969 | H124: 4.901931808 | I124: 4.716420269 | J124: 4.221512031 | K124: 0 | L124: 0 | M124: 0 | N124: 8.953300106e-06 | O124: 8.614466246e-06 | P124: 7.710524258e-06 | Q124: 0 | R124: 0 | S124: 0
B125: 467.077223 | C125: 492.3971618 | D125: 528.1249209 | E125: 582.8706729 | F125: 632.9519565 | G125: 679.4011969 | H125: 9.300370929 | I125: 8.911966872 | J125: 7.901338952 | K125: 0 | L125: 0 | M125: 0 | N125: 1.274023415e-05 | O125: 1.22081738e-05 | P125: 1.082375199e-05 | Q125: 0 | R125: 0 | S125: 0
B126: 467.077223 | C126: 492.3971618 | D126: 528.1249209 | E126: 582.8706729 | F126: 632.9519565 | G126: 679.4011969 | H126: 15.09040668 | I126: 14.4285197 | J126: 12.72087431 | K126: 0 | L126: 0 | M126: 0 | N126: 1.653743198e-05 | O126: 1.581207638e-05 | P126: 1.394068418e-05 | Q126: 0 | R126: 0 | S126: 0
B127: 467.077223 | C127: 492.3971618 | D127: 528.1249209 | E127: 582.8706729 | F127: 632.9519565 | G127: 679.4011969 | H127: 40.79814689 | I127: 38.88930569 | J127: 34.0304998 | K127: 0 | L127: 0 | M127: 0 | N127: 2.794393622e-05 | O127: 2.663651074e-05 | P127: 2.330856151e-05 | Q127: 0 | R127: 0 | S127: 0
B128: 467.077223 | C128: 492.3971618 | D128: 528.1249209 | E128: 582.8706729 | F128: 632.9519565 | G128: 679.4011969 | H128: 64.89437248 | I128: 61.79568802 | J128: 53.94193108 | K128: 0 | L128: 0 | M128: 0 | N128: 3.555856026e-05 | O128: 3.386065097e-05 | P128: 2.955722251e-05 | Q128: 0 | R128: 0 | S128: 0
B129: 467.077223 | C129: 492.3971618 | D129: 528.1249209 | E129: 582.8706729 | F129: 632.9519565 | G129: 679.4011969 | H129: 149.4713301 | I129: 142.1541298 | J129: 123.6972142 | K129: 0 | L129: 0 | M129: 0 | N129: 5.460139912e-05 | O129: 5.192844923e-05 | P129: 4.518619698e-05 | Q129: 0 | R129: 0 | S129: 0
B130: 467.077223 | C130: 492.3971618 | D130: 528.1249209 | E130: 582.8706729 | F130: 632.9519565 | G130: 679.4011969 | H130: 269.0817287 | I130: 255.7508626 | J130: 222.202253 | K130: 0 | L130: 0 | M130: 0 | N130: 7.372102156e-05 | O130: 7.006872949e-05 | P130: 6.087732958e-05 | Q130: 0 | R130: 0 | S130: 0
B134: 538.6656276 | C134: 567.8506459 | D134: 609.0279691 | E134: 672.1136525 | F134: 729.8122196 | G134: 783.3150986 | H134: 0.2992855462 | I134: 0.2627263764 | J134: 0 | K134: 0 | L134: 0 | M134: 0 | N134: 1.639920801e-06 | O134: 1.439596583e-06 | P134: 0 | Q134: 0 | R134: 0 | S134: 0
B135: 538.6656276 | C135: 567.8506459 | D135: 609.0279691 | E135: 672.1136525 | F135: 729.8122196 | G135: 783.3150986 | H135: 1.613587068 | I135: 1.330484608 | J135: 0 | K135: 0 | L135: 0 | M135: 0 | N135: 4.420786487e-06 | O135: 3.64516331e-06 | P135: 0 | Q135: 0 | R135: 0 | S135: 0
B136: 538.6656276 | C136: 567.8506459 | D136: 609.0279691 | E136: 672.1136525 | F136: 729.8122196 | G136: 783.3150986 | H136: 4.01109698 | I136: 3.220721144 | J136: 0 | K136: 0 | L136: 0 | M136: 0 | N136: 7.326204529e-06 | O136: 5.882595696e-06 | P136: 0 | Q136: 0 | R136: 0 | S136: 0
B137: 538.6656276 | C137: 567.8506459 | D137: 609.0279691 | E137: 672.1136525 | F137: 729.8122196 | G137: 783.3150986 | H137: 7.480150847 | I137: 5.930397192 | J137: 0 | K137: 0 | L137: 0 | M137: 0 | N137: 1.024678198e-05 | O137: 8.12383177e-06 | P137: 0 | Q137: 0 | R137: 0 | S137: 0
B138: 538.6656276 | C138: 567.8506459 | D138: 609.0279691 | E138: 672.1136525 | F138: 729.8122196 | G138: 783.3150986 | H138: 12.01721339 | I138: 9.461106689 | J138: 0 | K138: 0 | L138: 0 | M138: 0 | N138: 1.316954893e-05 | O138: 1.03683361e-05 | P138: 0 | Q138: 0 | R138: 0 | S138: 0
B139: 538.6656276 | C139: 567.8506459 | D139: 609.0279691 | E139: 672.1136525 | F139: 729.8122196 | G139: 783.3150986 | H139: 32.05229629 | I139: 24.97410786 | J139: 0 | K139: 0 | L139: 0 | M139: 0 | N139: 2.195362759e-05 | O139: 1.710555333e-05 | P139: 0 | Q139: 0 | R139: 0 | S139: 0
B140: 538.6656276 | C140: 567.8506459 | D140: 609.0279691 | E140: 672.1136525 | F140: 729.8122196 | G140: 783.3150986 | H140: 50.75770457 | I140: 39.41756094 | J140: 0 | K140: 0 | L140: 0 | M140: 0 | N140: 2.781244086e-05 | O140: 2.159866353e-05 | P140: 0 | Q140: 0 | R140: 0 | S140: 0
B141: 538.6656276 | C141: 567.8506459 | D141: 609.0279691 | E141: 672.1136525 | F141: 729.8122196 | G141: 783.3150986 | H141: 116.249956 | I141: 89.88843879 | J141: 0 | K141: 0 | L141: 0 | M141: 0 | N141: 4.246573734e-05 | O141: 3.283595937e-05 | P141: 0 | Q141: 0 | R141: 0 | S141: 0
B142: 538.6656276 | C142: 567.8506459 | D142: 609.0279691 | E142: 672.1136525 | F142: 729.8122196 | G142: 783.3150986 | H142: 208.6942313 | I142: 161.0175554 | J142: 0 | K142: 0 | L142: 0 | M142: 0 | N142: 5.717650173e-05 | O142: 4.411439873e-05 | P142: 0 | Q142: 0 | R142: 0 | S142: 0
B146: 189.8632496 | C146: 219.2841082 | D146: 257.2195574 | E146: 310.3920233 | F146: 355.7981704 | G146: 396.1182361 | H146: 98.52302348 | I146: 96.9336705 | J146: 93.74006385 | K146: 88.91442205 | L146: 84.04615787 | M146: 79.13418102 | N146: 3.969501349e-05 | O146: 3.905466176e-05 | P146: 3.776795481e-05 | Q146: 3.582369946e-05 | R146: 3.38622715e-05 | S146: 3.188323168e-05
B147: 189.8632496 | C147: 219.2841082 | D147: 257.2195574 | E147: 310.3920233 | F147: 355.7981704 | G147: 396.1182361 | H147: 162.7481795 | I147: 160.0777684 | J147: 154.7172612 | K147: 146.6269789 | L147: 138.4772705 | M147: 130.2681361 | N147: 5.245710863e-05 | O147: 5.159637981e-05 | P147: 4.986857735e-05 | Q147: 4.726091181e-05 | R147: 4.463409203e-05 | S147: 4.198811802e-05
B148: 189.8632496 | C148: 219.2841082 | D148: 257.2195574 | E148: 310.3920233 | F148: 355.7981704 | G148: 396.1182361 | H148: 247.0482859 | I148: 242.945458 | J148: 234.7150143 | K148: 222.3073794 | L148: 209.8253812 | M148: 197.2690197 | N148: 6.635731559e-05 | O148: 6.525529358e-05 | P148: 6.304459155e-05 | Q148: 5.971189348e-05 | R148: 5.635922139e-05 | S148: 5.298657526e-05
B149: 189.8632496 | C149: 219.2841082 | D149: 257.2195574 | E149: 310.3920233 | F149: 355.7981704 | G149: 396.1182361 | H149: 354.092048 | I149: 348.1618154 | J149: 336.2711457 | K149: 318.35963 | L149: 300.3575008 | M149: 282.2647582 | N149: 8.15222857e-05 | O149: 8.015697373e-05 | P149: 7.741939582e-05 | Q149: 7.329564407e-05 | R149: 6.915103047e-05 | S149: 6.498555501e-05
B150: 189.8632496 | C150: 219.2841082 | D150: 257.2195574 | E150: 310.3920233 | F150: 355.7981704 | G150: 396.1182361 | H150: 489.4169879 | I150: 481.1688221 | J150: 464.6362659 | K150: 439.7468698 | L150: 414.7487997 | M150: 389.6420554 | N150: 9.859326911e-05 | O150: 9.693167246e-05 | P150: 9.360118169e-05 | Q150: 8.858720182e-05 | R150: 8.355132951e-05 | S150: 7.849356475e-05
B151: 189.8632496 | C151: 219.2841082 | D151: 257.2195574 | E151: 310.3920233 | F151: 355.7981704 | G151: 396.1182361 | H151: 959.6025764 | I151: 943.2739777 | J151: 910.5625089 | K151: 861.3596268 | L151: 811.9939301 | M151: 762.4654188 | N151: 0.0001546498914 | O151: 0.0001520183687 | P151: 0.0001467465768 | Q151: 0.0001388170228 | R151: 0.0001308612297 | S151: 0.0001228791972
B152: 189.8632496 | C152: 219.2841082 | D152: 257.2195574 | E152: 310.3920233 | F152: 355.7981704 | G152: 396.1182361 | H152: 2938.277688 | I152: 2887.852864 | J152: 2786.882798 | K152: 2635.126652 | L152: 2483.00925 | M152: 2330.530591 | N152: 0.0003946115616 | O152: 0.0003878394929 | P152: 0.0003742791831 | Q152: 0.0003538982879 | R152: 0.0003334688758 | S152: 0.000312990947
B153: 189.8632496 | C153: 219.2841082 | D153: 257.2195574 | E153: 310.3920233 | F153: 355.7981704 | G153: 396.1182361 | H153: 27579.28194 | I153: 27102.92085 | J153: 26149.39659 | K153: 24717.10504 | L153: 23282.40729 | M153: 21845.30334 | N153: 0.002963124571 | O153: 0.002911944222 | P153: 0.002809497351 | Q153: 0.002655611608 | R153: 0.002501467342 | S153: 0.002347064554
B154: 189.8632496 | C154: 219.2841082 | D154: 257.2195574 | E154: 310.3920233 | F154: 355.7981704 | G154: 396.1182361 | H154: 94588.46199 | I154: 92951.37974 | J154: 89674.81904 | K154: 84753.98751 | L154: 79825.96742 | M154: 74890.75875 | N154: 0.008468838928 | O154: 0.008322265175 | P154: 0.008028903128 | Q154: 0.00758832371 | R154: 0.007147100673 | S154: 0.006705234018
B158: 219.1985429 | C158: 253.1509991 | D158: 296.9203691 | E158: 358.2494568 | F158: 410.5985547 | G158: 457.0639749 | H158: 96.9336705 | I158: 93.74006385 | J158: 90.52763996 | K158: 84.04615787 | L158: 77.48735047 | M158: 70.84925244 | N158: 3.905466176e-05 | O158: 3.776795481e-05 | P158: 3.647366638e-05 | Q158: 3.38622715e-05 | R158: 3.121972219e-05 | S158: 2.854522661e-05
B159: 219.1985429 | C159: 253.1509991 | D159: 296.9203691 | E159: 358.2494568 | F159: 410.5985547 | G159: 457.0639749 | H159: 160.0777684 | I159: 154.7172612 | J159: 149.3303426 | K159: 138.4772705 | L159: 127.5185522 | M159: 116.4541877 | N159: 5.159637981e-05 | O159: 4.986857735e-05 | P159: 4.81322619e-05 | Q159: 4.463409203e-05 | R159: 4.110187018e-05 | S159: 3.753559637e-05
B160: 219.1985429 | C160: 253.1509991 | D160: 296.9203691 | E160: 358.2494568 | F160: 410.5985547 | G160: 457.0639749 | H160: 242.945458 | I160: 234.7150143 | J160: 226.4515203 | K160: 209.8253812 | L160: 193.0670407 | M160: 176.1764987 | N160: 6.525529358e-05 | O160: 6.304459155e-05 | P160: 6.082501217e-05 | Q160: 5.635922139e-05 | R160: 5.185792121e-05 | S160: 4.732111166e-05
B161: 219.1985429 | C161: 253.1509991 | D161: 296.9203691 | E161: 358.2494568 | F161: 410.5985547 | G161: 457.0639749 | H161: 348.1618154 | I161: 336.2711457 | J161: 324.3402034 | K161: 300.3575008 | L161: 276.2137076 | M161: 251.9088238 | N161: 8.015697373e-05 | O161: 7.741939582e-05 | P161: 7.467254597e-05 | Q161: 6.915103047e-05 | R161: 6.359242722e-05 | S161: 5.799673622e-05
B162: 219.1985429 | C162: 253.1509991 | D162: 296.9203691 | E162: 358.2494568 | F162: 410.5985547 | G162: 457.0639749 | H162: 481.1688221 | I162: 464.6362659 | J162: 448.0554101 | K162: 414.7487997 | L162: 381.2489909 | M162: 347.5559837 | N162: 9.693167246e-05 | O162: 9.360118169e-05 | P162: 9.026096094e-05 | Q162: 8.355132951e-05 | R162: 7.680277818e-05 | S162: 7.001530695e-05
B163: 219.1985429 | C163: 253.1509991 | D163: 296.9203691 | E163: 358.2494568 | F163: 410.5985547 | G163: 457.0639749 | H163: 943.2739777 | I163: 910.5625089 | J163: 877.778678 | K163: 811.9939301 | L163: 745.919734 | M163: 679.5560899 | N163: 0.0001520183687 | O163: 0.0001467465768 | P163: 0.000141463123 | Q163: 0.0001308612297 | R163: 0.0001202126888 | S163: 0.0001095175004
B164: 219.1985429 | C164: 253.1509991 | D164: 296.9203691 | E164: 358.2494568 | F164: 410.5985547 | G164: 457.0639749 | H164: 2887.852864 | I164: 2786.882798 | J164: 2685.752173 | K164: 2483.00925 | L164: 2279.624093 | M164: 2075.596703 | N164: 0.0003878394929 | O164: 0.0003742791831 | P164: 0.0003606973104 | Q164: 0.0003334688758 | R164: 0.0003061541892 | S164: 0.0002787532505
B165: 219.1985429 | C165: 253.1509991 | D165: 296.9203691 | E165: 358.2494568 | F165: 410.5985547 | G165: 457.0639749 | H165: 27102.92085 | I165: 26149.39659 | J165: 25194.80291 | K165: 23282.40729 | L165: 21365.73398 | M165: 19444.78297 | N165: 0.002911944222 | O165: 0.002809497351 | P165: 0.00270693558 | Q165: 0.002501467342 | R165: 0.002295539509 | S165: 0.002089152079
B166: 219.1985429 | C166: 253.1509991 | D166: 296.9203691 | E166: 358.2494568 | F166: 410.5985547 | G166: 457.0639749 | H166: 92951.37974 | I166: 89674.81904 | J166: 86395.06342 | K166: 79825.96742 | L166: 73244.09173 | M166: 66649.43636 | N166: 0.008322265175 | O166: 0.008028903128 | P166: 0.007735255029 | Q166: 0.007147100673 | R166: 0.006557802107 | S166: 0.00596735933
B170: 245.0468437 | C170: 282.9935634 | D170: 331.9059648 | E170: 400.4276839 | F170: 458.9013511 | G170: 510.7897272 | H170: 93.74006385 | I170: 90.52763996 | J170: 85.67353608 | K170: 79.13418102 | L170: 70.84925244 | M170: 62.43738431 | N170: 3.776795481e-05 | O170: 3.647366638e-05 | P170: 3.451794362e-05 | Q170: 3.188323168e-05 | R170: 2.854522661e-05 | S170: 2.515607748e-05
B171: 245.0468437 | C171: 282.9935634 | D171: 331.9059648 | E171: 400.4276839 | F171: 458.9013511 | G171: 510.7897272 | H171: 154.7172612 | I171: 149.3303426 | J171: 141.2004429 | K171: 130.2681361 | L171: 116.4541877 | M171: 102.4751671 | N171: 4.986857735e-05 | O171: 4.81322619e-05 | P171: 4.551182687e-05 | Q171: 4.198811802e-05 | R171: 3.753559637e-05 | S171: 3.302986852e-05
B172: 245.0468437 | C172: 282.9935634 | D172: 331.9059648 | E172: 400.4276839 | F172: 458.9013511 | G172: 510.7897272 | H172: 234.7150143 | I172: 226.4515203 | J172: 213.9943099 | K172: 197.2690197 | L172: 176.1764987 | M172: 154.877413 | N172: 6.304459155e-05 | O172: 6.082501217e-05 | P172: 5.747899809e-05 | Q172: 5.298657526e-05 | R172: 4.732111166e-05 | S172: 4.160016464e-05
B173: 245.0468437 | C173: 282.9935634 | D173: 331.9059648 | E173: 400.4276839 | F173: 458.9013511 | G173: 510.7897272 | H173: 336.2711457 | I173: 324.3402034 | J173: 306.3682787 | K173: 282.2647582 | L173: 251.9088238 | M173: 221.3011852 | N173: 7.741939582e-05 | O173: 7.467254597e-05 | P173: 7.053488632e-05 | Q173: 6.498555501e-05 | R173: 5.799673622e-05 | S173: 5.094996782e-05
B174: 245.0468437 | C174: 282.9935634 | D174: 331.9059648 | E174: 400.4276839 | F174: 458.9013511 | G174: 510.7897272 | H174: 464.6362659 | I174: 448.0554101 | J174: 423.0935646 | K174: 389.6420554 | L174: 347.5559837 | M174: 305.1680394 | N174: 9.360118169e-05 | O174: 9.026096094e-05 | P174: 8.523238611e-05 | Q174: 7.849356475e-05 | R174: 7.001530695e-05 | S174: 6.147623679e-05
B175: 245.0468437 | C175: 282.9935634 | D175: 331.9059648 | E175: 400.4276839 | F175: 458.9013511 | G175: 510.7897272 | H175: 910.5625089 | I175: 877.778678 | J175: 828.4672528 | K175: 762.4654188 | L175: 679.5560899 | M175: 596.1944982 | N175: 0.0001467465768 | O175: 0.000141463123 | P175: 0.0001335160762 | Q175: 0.0001228791972 | R175: 0.0001095175004 | S175: 9.608291671e-05
B176: 245.0468437 | C176: 282.9935634 | D176: 331.9059648 | E176: 400.4276839 | F176: 458.9013511 | G176: 510.7897272 | H176: 2786.882798 | I176: 2685.752173 | J176: 2533.75519 | K176: 2330.530591 | L176: 2075.596703 | M176: 1819.659327 | N176: 0.0003742791831 | O176: 0.0003606973104 | P176: 0.0003402840706 | Q176: 0.000312990947 | R176: 0.0002787532505 | S176: 0.0002443807852
B177: 245.0468437 | C177: 282.9935634 | D177: 331.9059648 | E177: 400.4276839 | F177: 458.9013511 | G177: 510.7897272 | H177: 26149.39659 | I177: 25194.80291 | J177: 23760.90723 | K177: 21845.30334 | L177: 19444.78297 | M177: 17037.57872 | N177: 0.002809497351 | O177: 0.00270693558 | P177: 0.002552877489 | Q177: 0.002347064554 | R177: 0.002089152079 | S177: 0.001830521484
B178: 245.0468437 | C178: 282.9935634 | D178: 331.9059648 | E178: 400.4276839 | F178: 458.9013511 | G178: 510.7897272 | H178: 89674.81904 | I178: 86395.06342 | J178: 81469.43951 | K178: 74890.75875 | L178: 66649.43636 | M178: 58388.14571 | N178: 0.008028903128 | O178: 0.007735255029 | P178: 0.007294246532 | Q178: 0.006705234018 | R178: 0.00596735933 | S178: 0.005227696814
B182: 268.4174212 | C182: 309.9762798 | D182: 363.5401778 | E182: 438.5682158 | F182: 502.5832709 | G182: 559.3793278 | H182: 92.13585137 | I182: 88.91442205 | J182: 82.41373611 | K182: 74.17845662 | L182: 64.1299131 | M182: 46.97613401 | N182: 3.712161619e-05 | O182: 3.582369946e-05 | P182: 3.320456733e-05 | Q182: 2.988656592e-05 | R182: 2.583799883e-05 | S182: 1.892672603e-05
B183: 268.4174212 | C183: 309.9762798 | D183: 363.5401778 | E183: 438.5682158 | F183: 502.5832709 | G183: 559.3793278 | H183: 152.0271033 | I183: 146.6269789 | J183: 135.7474953 | K183: 121.9995758 | L183: 105.284177 | M183: 76.89694791 | N183: 4.900148375e-05 | O183: 4.726091181e-05 | P183: 4.375422894e-05 | Q183: 3.932298977e-05 | R183: 3.393527059e-05 | S183: 2.478547878e-05
B184: 268.4174212 | C184: 309.9762798 | D184: 363.5401778 | E184: 438.5682158 | F184: 502.5832709 | G184: 559.3793278 | H184: 230.5873986 | I184: 222.3073794 | J184: 205.64819 | K184: 184.6382949 | L184: 159.1537553 | M184: 116.0185155 | N184: 6.193591153e-05 | O184: 5.971189348e-05 | P184: 5.523722535e-05 | Q184: 4.959395511e-05 | R184: 4.274879272e-05 | S184: 3.116264181e-05
B185: 268.4174212 | C185: 309.9762798 | D185: 363.5401778 | E185: 438.5682158 | F185: 502.5832709 | G185: 559.3793278 | H185: 330.3107087 | I185: 318.35963 | J185: 294.3366548 | K185: 264.081402 | L185: 227.4428493 | M185: 165.5731415 | N185: 7.604712989e-05 | O185: 7.329564407e-05 | P185: 6.776485663e-05 | Q185: 6.079921769e-05 | R185: 5.236395747e-05 | S185: 3.811975169e-05
B186: 268.4174212 | C186: 309.9762798 | D186: 363.5401778 | E186: 438.5682158 | F186: 502.5832709 | G186: 559.3793278 | H186: 456.3518755 | I186: 439.7468698 | J186: 406.3919598 | K186: 364.4266371 | L186: 313.6697781 | M186: 228.1090211 | N186: 9.193228756e-05 | O186: 8.858720182e-05 | P186: 8.186784042e-05 | Q186: 7.341390755e-05 | R186: 6.318891581e-05 | S186: 4.59526634e-05
B187: 268.4174212 | C187: 309.9762798 | D187: 363.5401778 | E187: 438.5682158 | F187: 502.5832709 | G187: 559.3793278 | H187: 894.1796387 | I187: 861.3596268 | J187: 795.5025168 | K187: 712.774093 | L187: 612.9029975 | M187: 445.0039311 | N187: 0.0001441063076 | O187: 0.0001388170228 | P187: 0.0001282034677 | Q187: 0.0001148709255 | R187: 9.877566439e-05 | S187: 7.171699131e-05
B188: 268.4174212 | C188: 309.9762798 | D188: 363.5401778 | E188: 438.5682158 | F188: 502.5832709 | G188: 559.3793278 | H188: 2736.337555 | I188: 2635.126652 | J188: 2432.22317 | K188: 2177.690677 | L188: 1870.927081 | M188: 1356.443256 | N188: 0.0003674909422 | O188: 0.0003538982879 | P188: 0.0003266482903 | Q188: 0.0002924645014 | R188: 0.0002512660598 | S188: 0.0001821707301
B189: 268.4174212 | C189: 309.9762798 | D189: 363.5401778 | E189: 438.5682158 | F189: 502.5832709 | G189: 559.3793278 | H189: 25672.23343 | I189: 24717.10504 | J189: 22803.63999 | K189: 20405.79319 | L189: 17519.55428 | M189: 12687.76765 | N189: 0.002758230828 | O189: 0.002655611608 | P189: 0.002450028471 | Q189: 0.002192403243 | R189: 0.001882305053 | S189: 0.001363176756
B190: 268.4174212 | C190: 309.9762798 | D190: 363.5401778 | E190: 438.5682158 | F190: 502.5832709 | G190: 559.3793278 | H190: 88035.34059 | I190: 84753.98751 | J190: 78181.69659 | K190: 69948.3615 | L190: 60042.0013 | M190: 43467.50254 | N190: 0.007882114835 | O190: 0.00758832371 | P190: 0.006999883301 | Q190: 0.006262723745 | R190: 0.005375772343 | S190: 0.003891798956
B194: 309.9158336 | C194: 357.8898947 | D194: 419.7157131 | E194: 506.3019976 | F194: 580.1631238 | G194: 645.6810543 | H194: 88.91442205 | I194: 84.04615787 | J194: 75.83544233 | K194: 62.43738431 | L194: 0 | M194: 0 | N194: 3.582369946e-05 | O194: 3.38622715e-05 | P194: 3.055416694e-05 | Q194: 2.515607748e-05 | R194: 0 | S194: 0
B195: 309.9158336 | C195: 357.8898947 | D195: 419.7157131 | E195: 506.3019976 | F195: 580.1631238 | G195: 645.6810543 | H195: 146.6269789 | I195: 138.4772705 | J195: 124.7623654 | K195: 102.4751671 | L195: 0 | M195: 0 | N195: 4.726091181e-05 | O195: 4.463409203e-05 | P195: 4.02134941e-05 | Q195: 3.302986852e-05 | R195: 0 | S195: 0
B196: 309.9158336 | C196: 357.8898947 | D196: 419.7157131 | E196: 506.3019976 | F196: 580.1631238 | G196: 645.6810543 | H196: 222.3073794 | I196: 209.8253812 | J196: 188.8567991 | K196: 154.877413 | L196: 0 | M196: 0 | N196: 5.971189348e-05 | O196: 5.635922139e-05 | P196: 5.072704783e-05 | Q196: 4.160016464e-05 | R196: 0 | S196: 0
B197: 309.9158336 | C197: 357.8898947 | D197: 419.7157131 | E197: 506.3019976 | F197: 580.1631238 | G197: 645.6810543 | H197: 318.35963 | I197: 300.3575008 | J197: 270.1525889 | K197: 221.3011852 | L197: 0 | M197: 0 | N197: 7.329564407e-05 | O197: 6.915103047e-05 | P197: 6.219698144e-05 | Q197: 5.094996782e-05 | R197: 0 | S197: 0
B198: 309.9158336 | C198: 357.8898947 | D198: 419.7157131 | E198: 506.3019976 | F198: 580.1631238 | G198: 645.6810543 | H198: 439.7468698 | I198: 414.7487997 | J198: 372.8438514 | K198: 305.1680394 | L198: 0 | M198: 0 | N198: 8.858720182e-05 | O198: 8.355132951e-05 | P198: 7.510955911e-05 | Q198: 6.147623679e-05 | R198: 0 | S198: 0
B199: 309.9158336 | C199: 357.8898947 | D199: 419.7157131 | E199: 506.3019976 | F199: 580.1631238 | G199: 645.6810543 | H199: 861.3596268 | I199: 811.9939301 | J199: 729.3559588 | K199: 596.1944982 | L199: 0 | M199: 0 | N199: 0.0001388170228 | O199: 0.0001308612297 | P199: 0.0001175432649 | Q199: 9.608291671e-05 | R199: 0 | S199: 0
B200: 309.9158336 | C200: 357.8898947 | D200: 419.7157131 | E200: 506.3019976 | F200: 580.1631238 | G200: 645.6810543 | H200: 2635.126652 | I200: 2483.00925 | J200: 2228.677455 | K200: 1819.659327 | L200: 0 | M200: 0 | N200: 0.0003538982879 | O200: 0.0003334688758 | P200: 0.0002993120407 | Q200: 0.0002443807852 | R200: 0 | S200: 0
B201: 309.9158336 | C201: 357.8898947 | D201: 419.7157131 | E201: 506.3019976 | F201: 580.1631238 | G201: 645.6810543 | H201: 24717.10504 | I201: 23282.40729 | J201: 20885.89726 | K201: 17037.57872 | L201: 0 | M201: 0 | N201: 0.002655611608 | O201: 0.002501467342 | P201: 0.002243985738 | Q201: 0.001830521484 | R201: 0 | S201: 0
B202: 309.9158336 | C202: 357.8898947 | D202: 419.7157131 | E202: 506.3019976 | F202: 580.1631238 | G202: 645.6810543 | H202: 84753.98751 | I202: 79825.96742 | J202: 71596.62598 | K202: 58388.14571 | L202: 0 | M202: 0 | N202: 0.00758832371 | O202: 0.007147100673 | P202: 0.006410298682 | Q202: 0.005227696814 | R202: 0 | S202: 0
B206: 346.4790483 | C206: 400.1063108 | D206: 469.2132956 | E206: 565.9871263 | F206: 648.5281484 | G206: 721.7362514 | H206: 84.04615787 | I206: 79.13418102 | J206: 69.17703398 | K206: 43.48444721 | L206: 0 | M206: 0 | N206: 3.38622715e-05 | O206: 3.188323168e-05 | P206: 2.787148831e-05 | Q206: 1.751992233e-05 | R206: 0 | S206: 0
B207: 346.4790483 | C207: 400.1063108 | D207: 469.2132956 | E207: 565.9871263 | F207: 648.5281484 | G207: 721.7362514 | H207: 138.4772705 | I207: 130.2681361 | J207: 113.6715894 | K207: 71.14026741 | L207: 0 | M207: 0 | N207: 4.463409203e-05 | O207: 4.198811802e-05 | P207: 3.66387073e-05 | Q207: 2.292998144e-05 | R207: 0 | S207: 0
B208: 346.4790483 | C208: 400.1063108 | D208: 469.2132956 | E208: 565.9871263 | F208: 648.5281484 | G208: 721.7362514 | H208: 209.8253812 | I208: 197.2690197 | J208: 171.9332067 | K208: 107.2923164 | L208: 0 | M208: 0 | N208: 5.635922139e-05 | O208: 5.298657526e-05 | P208: 4.618136093e-05 | Q208: 2.88187796e-05 | R208: 0 | S208: 0
B209: 346.4790483 | C209: 400.1063108 | D209: 469.2132956 | E209: 565.9871263 | F209: 648.5281484 | G209: 721.7362514 | H209: 300.3575008 | I209: 282.2647582 | J209: 245.8074324 | K209: 153.0783819 | L209: 0 | M209: 0 | N209: 6.915103047e-05 | O209: 6.498555501e-05 | P209: 5.659201851e-05 | Q209: 3.524309472e-05 | R209: 0 | S209: 0
B210: 346.4790483 | C210: 400.1063108 | D210: 469.2132956 | E210: 565.9871263 | F210: 648.5281484 | G210: 721.7362514 | H210: 414.7487997 | I210: 389.6420554 | J210: 339.1025446 | K210: 210.851971 | L210: 0 | M210: 0 | N210: 8.355132951e-05 | O210: 7.849356475e-05 | P210: 6.83123579e-05 | Q210: 4.2476223e-05 | R210: 0 | S210: 0
B211: 346.4790483 | C211: 400.1063108 | D211: 469.2132956 | E211: 565.9871263 | F211: 648.5281484 | G211: 721.7362514 | H211: 811.9939301 | I211: 762.4654188 | J211: 662.9199526 | K211: 411.2070317 | L211: 0 | M211: 0 | N211: 0.0001308612297 | O211: 0.0001228791972 | P211: 0.0001068364146 | Q211: 6.627027102e-05 | R211: 0 | S211: 0
B212: 346.4790483 | C212: 400.1063108 | D212: 469.2132956 | E212: 565.9871263 | F212: 648.5281484 | G212: 721.7362514 | H212: 2483.00925 | I212: 2330.530591 | J212: 2024.489507 | K212: 1253.064817 | L212: 0 | M212: 0 | N212: 0.0003334688758 | O212: 0.000312990947 | P212: 0.000271889539 | Q212: 0.0001682869751 | R212: 0 | S212: 0
B213: 346.4790483 | C213: 400.1063108 | D213: 469.2132956 | E213: 565.9871263 | F213: 648.5281484 | G213: 721.7362514 | H213: 23282.40729 | I213: 21845.30334 | J213: 18963.87683 | K213: 11718.20206 | L213: 0 | M213: 0 | N213: 0.002501467342 | O213: 0.002347064554 | P213: 0.002037483409 | Q213: 0.001259006399 | R213: 0 | S213: 0
B214: 346.4790483 | C214: 400.1063108 | D214: 469.2132956 | E214: 565.9871263 | F214: 648.5281484 | G214: 721.7362514 | H214: 79825.96742 | I214: 74890.75875 | J214: 64998.77569 | K214: 40143.01803 | L214: 0 | M214: 0 | N214: 0.007147100673 | O214: 0.006705234018 | P214: 0.005819569853 | Q214: 0.003594146121 | R214: 0 | S214: 0
B218: 219.1985429 | C218: 253.1509991 | D218: 296.9203691 | E218: 358.2494568 | F218: 410.5985547 | G218: 457.0639749 | H218: 11.47367642 | I218: 11.22453515 | J218: 10.97166171 | K218: 10.58484875 | L218: 10.18339763 | M218: 9.907631239 | N218: 1.257389197e-05 | O218: 1.230086044e-05 | P218: 1.202373886e-05 | Q218: 1.159983425e-05 | R218: 1.115988781e-05 | S218: 1.085767807e-05
B219: 219.1985429 | C219: 253.1509991 | D219: 296.9203691 | E219: 358.2494568 | F219: 410.5985547 | G219: 457.0639749 | H219: 50.53889815 | I219: 49.21699931 | J219: 47.88200789 | K219: 45.85497213 | L219: 43.80450461 | M219: 42.42163516 | N219: 2.769254693e-05 | O219: 2.69682188e-05 | P219: 2.623671665e-05 | Q219: 2.512601213e-05 | R219: 2.400246828e-05 | S219: 2.324473159e-05
B220: 219.1985429 | C220: 253.1509991 | D220: 296.9203691 | E220: 358.2494568 | F220: 410.5985547 | G220: 457.0639749 | H220: 120.0434768 | I220: 116.7338101 | J220: 113.4036424 | K220: 108.3699518 | L220: 103.2901342 | M220: 99.87796295 | N220: 4.385149837e-05 | O220: 4.26424877e-05 | P220: 4.142598811e-05 | Q220: 3.958719701e-05 | R220: 3.773155586e-05 | S220: 3.648510062e-05
B221: 219.1985429 | C221: 253.1509991 | D221: 296.9203691 | E221: 358.2494568 | F221: 410.5985547 | G221: 457.0639749 | H221: 224.1045533 | I221: 217.7624552 | J221: 211.3922977 | K221: 201.7844504 | L221: 192.1134695 | M221: 185.6310749 | N221: 6.139850775e-05 | O221: 5.966094662e-05 | P221: 5.791569801e-05 | Q221: 5.528341106e-05 | R221: 5.263382727e-05 | S221: 5.085782873e-05
B222: 219.1985429 | C222: 253.1509991 | D222: 296.9203691 | E222: 358.2494568 | F222: 410.5985547 | G222: 457.0639749 | H222: 368.4181831 | I222: 357.8358424 | J222: 347.2171363 | K222: 331.2208919 | L222: 315.1428253 | M222: 304.3786575 | N222: 8.074919083e-05 | O222: 7.842977368e-05 | P222: 7.610238603e-05 | Q222: 7.259635986e-05 | R222: 6.907240007e-05 | S222: 6.671313041e-05
B223: 219.1985429 | C223: 253.1509991 | D223: 296.9203691 | E223: 358.2494568 | F223: 410.5985547 | G223: 457.0639749 | H223: 574.0252928 | I223: 557.3713264 | J223: 540.6710638 | K223: 515.5338645 | L223: 490.2924987 | M223: 473.4070513 | N223: 0.0001048448023 | O223: 0.000101802982 | P223: 9.875270572e-05 | Q223: 9.416143644e-05 | R223: 8.955114132e-05 | S223: 8.646704133e-05
B224: 219.1985429 | C224: 253.1509991 | D224: 296.9203691 | E224: 358.2494568 | F224: 410.5985547 | G224: 457.0639749 | H224: 2228.485517 | I224: 2162.74848 | J224: 2096.899391 | K224: 1997.915662 | L224: 1898.679815 | M224: 1832.38252 | N224: 0.0003052719886 | O224: 0.0002962669151 | P224: 0.000287246492 | Q224: 0.0002736870769 | R224: 0.0002600931254 | S224: 0.0002510113041
B225: 219.1985429 | C225: 253.1509991 | D225: 296.9203691 | E225: 358.2494568 | F225: 410.5985547 | G225: 457.0639749 | H225: 20116.0361 | I225: 19517.52437 | J225: 18918.32108 | K225: 18018.21944 | L225: 17116.56177 | M225: 16514.59219 | N225: 0.002204497107 | O225: 0.002138906781 | P225: 0.002073240666 | Q225: 0.00197459939 | R225: 0.001875787591 | S225: 0.001809818322
B226: 219.1985429 | C226: 253.1509991 | D226: 296.9203691 | E226: 358.2494568 | F226: 410.5985547 | G226: 457.0639749 | H226: 74337.43197 | I226: 72120.75493 | J226: 69901.82961 | K226: 66569.22612 | L226: 63231.564 | M226: 61003.64558 | N226: 0.006788806572 | O226: 0.006586370313 | P226: 0.006383728732 | Q226: 0.006079381381 | R226: 0.005774572055 | S226: 0.005571109186
B230: 245.0468437 | C230: 282.9935634 | D230: 331.9059648 | E230: 400.4276839 | F230: 458.9013511 | G230: 510.7897272 | H230: 11.34987437 | I230: 11.09871139 | J230: 10.71541287 | K230: 10.31884113 | L230: 9.907631239 | M230: 9.336580916 | N230: 1.243821848e-05 | O230: 1.216297138e-05 | P230: 1.174291821e-05 | Q230: 1.130831905e-05 | R230: 1.085767807e-05 | S230: 1.02318695e-05
B231: 245.0468437 | C231: 282.9935634 | D231: 331.9059648 | E231: 400.4276839 | F231: 458.9013511 | G231: 510.7897272 | H231: 49.8795853 | I231: 48.55114017 | J231: 46.53392387 | K231: 44.4911549 | L231: 42.42163516 | M231: 39.61826744 | N231: 2.733127962e-05 | O231: 2.660336448e-05 | P231: 2.549804047e-05 | Q231: 2.437871501e-05 | R231: 2.324473159e-05 | S231: 2.170863969e-05
B232: 245.0468437 | C232: 282.9935634 | D232: 331.9059648 | E232: 400.4276839 | F232: 458.9013511 | G232: 510.7897272 | H232: 118.3912061 | I232: 115.0712889 | J232: 110.0529739 | K232: 104.988532 | L232: 99.87796295 | M232: 92.99211781 | N232: 4.324792915e-05 | O232: 4.203517402e-05 | P232: 4.020199961e-05 | Q232: 3.835197514e-05 | R232: 3.648510062e-05 | S232: 3.39697234e-05
B233: 245.0468437 | C233: 282.9935634 | D233: 331.9059648 | E233: 400.4276839 | F233: 458.9013511 | G233: 510.7897272 | H233: 220.9370116 | I233: 214.5808839 | J233: 204.994081 | K233: 195.3441446 | L233: 185.6310749 | M233: 172.5821076 | N233: 6.053068812e-05 | O233: 5.878928325e-05 | P233: 5.616276191e-05 | Q233: 5.351894374e-05 | R233: 5.085782873e-05 | S233: 4.72827692e-05
B234: 245.0468437 | C234: 282.9935634 | D234: 331.9059648 | E234: 400.4276839 | F234: 458.9013511 | G234: 510.7897272 | H234: 363.1315585 | I234: 352.531035 | J234: 336.5620647 | K234: 320.5112722 | L234: 304.3786575 | M234: 282.7412256 | N234: 7.959047857e-05 | O234: 7.726707617e-05 | P234: 7.376702788e-05 | Q234: 7.024904596e-05 | R234: 6.671313041e-05 | S234: 6.197067959e-05
B235: 245.0468437 | C235: 282.9935634 | D235: 331.9059648 | E235: 400.4276839 | F235: 458.9013511 | G235: 510.7897272 | H235: 565.7040966 | I235: 549.0269821 | J235: 523.924505 | K235: 498.7178614 | L235: 473.4070513 | M235: 439.4972677 | N235: 0.0001033249492 | O235: 0.0001002789008 | P235: 9.569397351e-05 | Q235: 9.109002034e-05 | R235: 8.646704133e-05 | S235: 8.027347355e-05
B236: 245.0468437 | C236: 282.9935634 | D236: 331.9059648 | E236: 400.4276839 | F236: 458.9013511 | G236: 510.7897272 | H236: 2195.631005 | I236: 2129.837942 | J236: 2030.938251 | K236: 1931.786444 | L236: 1832.38252 | M236: 1699.451774 | N236: 0.0003007713705 | O236: 0.0002917586222 | P236: 0.0002782107193 | Q236: 0.00026462828 | R236: 0.0002510113041 | S236: 0.0002328016129
B237: 245.0468437 | C237: 282.9935634 | D237: 331.9059648 | E237: 400.4276839 | F237: 458.9013511 | G237: 510.7897272 | H237: 19816.86668 | I237: 19218.00917 | J237: 18318.42621 | K237: 17417.28722 | L237: 16514.59219 | M237: 15308.57832 | N237: 0.002171711417 | O237: 0.002106083197 | P237: 0.002007498763 | Q237: 0.001908743804 | R237: 0.001809818322 | S237: 0.001677652419
B238: 245.0468437 | C238: 282.9935634 | D238: 331.9059648 | E238: 400.4276839 | F238: 458.9013511 | G238: 510.7897272 | H238: 73229.37448 | I238: 71011.5733 | J238: 67680.65602 | K238: 64344.68011 | L238: 61003.64558 | M238: 56541.06392 | N238: 0.006687614108 | O238: 0.006485075188 | P238: 0.006180881828 | Q238: 0.005876226494 | R238: 0.005571109186 | S238: 0.005163567481
B242: 268.4174212 | C242: 309.9762798 | D242: 363.5401778 | E242: 438.5682158 | F242: 502.5832709 | G242: 559.3793278 | H242: 11.22453515 | I242: 10.97166171 | J242: 10.58484875 | K242: 9.907631239 | L242: 9.48178319 | M242: 8.89345 | N242: 1.230086044e-05 | O242: 1.202373886e-05 | P242: 1.159983425e-05 | Q242: 1.085767807e-05 | R242: 1.039099528e-05 | S242: 9.746246575e-06
B243: 268.4174212 | C243: 309.9762798 | D243: 363.5401778 | E243: 438.5682158 | F243: 502.5832709 | G243: 559.3793278 | H243: 49.21699931 | I243: 47.88200789 | J243: 45.85497213 | K243: 42.42163516 | L243: 40.324194 | M243: 37.4801492 | N243: 2.69682188e-05 | O243: 2.623671665e-05 | P243: 2.512601213e-05 | Q243: 2.324473159e-05 | R243: 2.209544877e-05 | S243: 2.053706806e-05
B244: 268.4174212 | C244: 309.9762798 | D244: 363.5401778 | E244: 438.5682158 | F244: 502.5832709 | G244: 559.3793278 | H244: 116.7338101 | I244: 113.4036424 | J244: 108.3699518 | K244: 99.87796295 | L244: 94.72126693 | M244: 87.77391909 | N244: 4.26424877e-05 | O244: 4.142598811e-05 | P244: 3.958719701e-05 | Q244: 3.648510062e-05 | R244: 3.460137605e-05 | S244: 3.206353209e-05
B245: 268.4174212 | C245: 309.9762798 | D245: 363.5401778 | E245: 438.5682158 | F245: 502.5832709 | G245: 559.3793278 | H245: 217.7624552 | I245: 211.3922977 | J245: 201.7844504 | K245: 185.6310749 | L245: 175.8548717 | M245: 162.7217264 | N245: 5.966094662e-05 | O245: 5.791569801e-05 | P245: 5.528341106e-05 | Q245: 5.085782873e-05 | R245: 4.817941689e-05 | S245: 4.458129492e-05
B246: 268.4174212 | C246: 309.9762798 | D246: 363.5401778 | E246: 438.5682158 | F246: 502.5832709 | G246: 559.3793278 | H246: 357.8358424 | I246: 347.2171363 | J246: 331.2208919 | K246: 304.3786575 | L246: 288.1642206 | M246: 266.4176925 | N246: 7.842977368e-05 | O246: 7.610238603e-05 | P246: 7.259635986e-05 | Q246: 6.671313041e-05 | R246: 6.315928123e-05 | S246: 5.839291891e-05
B247: 268.4174212 | C247: 309.9762798 | D247: 363.5401778 | E247: 438.5682158 | F247: 502.5832709 | G247: 559.3793278 | H247: 557.3713264 | I247: 540.6710638 | J247: 515.5338645 | K247: 473.4070513 | L247: 447.9920747 | M247: 413.9434025 | N247: 0.000101802982 | O247: 9.875270572e-05 | P247: 9.416143644e-05 | Q247: 8.646704133e-05 | R247: 8.182503647e-05 | S247: 7.560610091e-05
B248: 268.4174212 | C248: 309.9762798 | D248: 363.5401778 | E248: 438.5682158 | F248: 502.5832709 | G248: 559.3793278 | H248: 2162.74848 | I248: 2096.899391 | J248: 1997.915662 | K248: 1832.38252 | L248: 1732.72648 | M248: 1599.459579 | N248: 0.0002962669151 | O248: 0.000287246492 | P248: 0.0002736870769 | Q248: 0.0002510113041 | R248: 0.0002373597918 | S248: 0.0002191040519
B249: 268.4174212 | C249: 309.9762798 | D249: 363.5401778 | E249: 438.5682158 | F249: 502.5832709 | G249: 559.3793278 | H249: 19517.52437 | I249: 18918.32108 | J249: 18018.21944 | K249: 16514.59219 | L249: 15610.34113 | M249: 14402.25255 | N249: 0.002138906781 | O249: 0.002073240666 | P249: 0.00197459939 | Q249: 0.001809818322 | R249: 0.001710722315 | S249: 0.001578329046
B250: 268.4174212 | C250: 309.9762798 | D250: 363.5401778 | E250: 438.5682158 | F250: 502.5832709 | G250: 559.3793278 | H250: 72120.75493 | I250: 69901.82961 | J250: 66569.22612 | K250: 61003.64558 | L250: 57657.55244 | M250: 53188.22594 | N250: 0.006586370313 | O250: 0.006383728732 | P250: 0.006079381381 | Q250: 0.005571109186 | R250: 0.005265529903 | S250: 0.004857372232
B254: 309.9158336 | C254: 357.8898947 | D254: 419.7157131 | E254: 506.3019976 | F254: 580.1631238 | G254: 645.6810543 | H254: 10.97166171 | I254: 10.58484875 | J254: 10.18339763 | K254: 9.336580916 | L254: 8.589864692 | M254: 7.801820051 | N254: 1.202373886e-05 | O254: 1.159983425e-05 | P254: 1.115988781e-05 | Q254: 1.02318695e-05 | R254: 9.413550348e-06 | S254: 8.549939781e-06
B255: 309.9158336 | C255: 357.8898947 | D255: 419.7157131 | E255: 506.3019976 | F255: 580.1631238 | G255: 645.6810543 | H255: 47.88200789 | I255: 45.85497213 | J255: 43.80450461 | K255: 39.61826744 | L255: 36.03778826 | M255: 32.37256519 | N255: 2.623671665e-05 | O255: 2.512601213e-05 | P255: 2.400246828e-05 | Q255: 2.170863969e-05 | R255: 1.97467333e-05 | S255: 1.773839188e-05
B256: 309.9158336 | C256: 357.8898947 | D256: 419.7157131 | E256: 506.3019976 | F256: 580.1631238 | G256: 645.6810543 | H256: 113.4036424 | I256: 108.3699518 | J256: 103.2901342 | K256: 92.99211781 | L256: 84.26949382 | M256: 75.41873921 | N256: 4.142598811e-05 | O256: 3.958719701e-05 | P256: 3.773155586e-05 | Q256: 3.39697234e-05 | R256: 3.078337674e-05 | S256: 2.755022437e-05
B257: 309.9158336 | C257: 357.8898947 | D257: 419.7157131 | E257: 506.3019976 | F257: 580.1631238 | G257: 645.6810543 | H257: 211.3922977 | I257: 201.7844504 | J257: 192.1134695 | K257: 172.5821076 | L257: 156.1130649 | M257: 139.4686515 | N257: 5.791569801e-05 | O257: 5.528341106e-05 | P257: 5.263382727e-05 | Q257: 4.72827692e-05 | R257: 4.277070271e-05 | S257: 3.821058945e-05
B258: 309.9158336 | C258: 357.8898947 | D258: 419.7157131 | E258: 506.3019976 | F258: 580.1631238 | G258: 645.6810543 | H258: 347.2171363 | I258: 331.2208919 | J258: 315.1428253 | K258: 282.7412256 | L258: 255.4898803 | M258: 228.0112512 | N258: 7.610238603e-05 | O258: 7.259635986e-05 | P258: 6.907240007e-05 | Q258: 6.197067959e-05 | R258: 5.599778199e-05 | S258: 4.997506876e-05
B259: 309.9158336 | C259: 357.8898947 | D259: 419.7157131 | E259: 506.3019976 | F259: 580.1631238 | G259: 645.6810543 | H259: 540.6710638 | I259: 515.5338645 | J259: 490.2924987 | K259: 439.4972677 | L259: 396.849622 | M259: 353.912625 | N259: 9.875270572e-05 | O259: 9.416143644e-05 | P259: 8.955114132e-05 | Q259: 8.027347355e-05 | R259: 7.248394923e-05 | S259: 6.464157534e-05
B260: 309.9158336 | C260: 357.8898947 | D260: 419.7157131 | E260: 506.3019976 | F260: 580.1631238 | G260: 645.6810543 | H260: 2096.899391 | I260: 1997.915662 | J260: 1898.679815 | K260: 1699.451774 | L260: 1532.658051 | M260: 1365.164005 | N260: 0.000287246492 | O260: 0.0002736870769 | P260: 0.0002600931254 | Q260: 0.0002328016129 | R260: 0.0002099531577 | S260: 0.0001870087677
B261: 309.9158336 | C261: 357.8898947 | D261: 419.7157131 | E261: 506.3019976 | F261: 580.1631238 | G261: 645.6810543 | H261: 18918.32108 | I261: 18018.21944 | J261: 17116.56177 | K261: 15308.57832 | L261: 13797.1709 | M261: 12281.44117 | N261: 0.002073240666 | O261: 0.00197459939 | P261: 0.001875787591 | Q261: 0.001677652419 | R261: 0.001512018729 | S261: 0.001345911362
B262: 309.9158336 | C262: 357.8898947 | D262: 419.7157131 | E262: 506.3019976 | F262: 580.1631238 | G262: 645.6810543 | H262: 69901.82961 | I262: 66569.22612 | J262: 63231.564 | K262: 56541.06392 | L262: 50950.19028 | M262: 45345.26492 | N262: 0.006383728732 | O262: 0.006079381381 | P262: 0.005774572055 | Q262: 0.005163567481 | R262: 0.004652985414 | S262: 0.004141120084
B266: 346.4790483 | C266: 400.1063108 | D266: 469.2132956 | E266: 565.9871263 | F266: 648.5281484 | G266: 721.7362514 | H266: 10.71541287 | I266: 10.31884113 | J266: 9.767308351 | K266: 8.742488242 | L266: 7.801820051 | M266: 6.632148335 | N266: 1.174291821e-05 | O266: 1.130831905e-05 | P266: 1.070389956e-05 | Q266: 9.580809033e-06 | R266: 8.549939781e-06 | S266: 7.268107765e-06
B267: 346.4790483 | C267: 400.1063108 | D267: 469.2132956 | E267: 565.9871263 | F267: 648.5281484 | G267: 721.7362514 | H267: 46.53392387 | I267: 44.4911549 | J267: 41.72587786 | K267: 36.76066361 | L267: 32.37256519 | M267: 27.09888312 | N267: 2.549804047e-05 | O267: 2.437871501e-05 | P267: 2.286349472e-05 | Q267: 2.014282938e-05 | R267: 1.773839188e-05 | S267: 1.484870308e-05
... 70 more rows
